Workbook

Sheet Notes
A1: RWMWD Stormwater Reuse Credit Calculator (DRAFT)
A2: Version 1.0
A3: Date: 2/27/2014
A5: The (draft) Stormwater Reuse Credit Calculator was developed for RWMWD to assist District staff in the review of development proposals including stormwater reuse and the estimated credit towards achieving the RWMWD rules and standards.
A7: The current version of the calculator focuses on stormwater reuse for irrigation. However, the calculator can easily be revised to handle irrigation and other uses in a future version.

Sheet Reuse Inputs_Summary
A1: Reuse Scenario Name | C1: Example 1
A2: Watershed Input Parameters
A3: Watershed Area Tributary to Stormwater Reuse System | B3: (acre) | C3: 1
A4: Watershed Imperviousness* Tributary to Stormwater Reuse System *assumed to be directly-connected | B4: (%) | C4: 5
A5: Watershed Hydrologic Soil Group (HSG) | C5: C
A6: Stormwater Reuse System Input Parameters
A7: Estimated Reuse Storage Volume | B7: (ac-ft) | C7: 0.075
B8: (cu-ft) | C8: =C7*43560 -> 3267
B9: (gal) | C9: =C7*43560*7.48052 -> 24438.85884
A10: Irrigation Application Area (ac) | B10: (acre) | C10: 0.5
A11: Irrigation Application Rate | B11: (in/week) | C11: 1
B12: (ac-ft/day) | C12: =C11/7/12*C10 -> 0.005952380952
A13: Irrigation Season Start (month #) | C13: 5
A14: Irrigation Season End (month #) | C14: 9
A15: Does the system go offline and drain down at the end of the season? | B15: (1=Yes / 0=No) | C15: 1
A16: Stormwater Reuse Summary of Results - Stormwater Management
A17: Average Annual Precipitation | B17: (in/yr) | C17: =ReuseWaterBalance!G18271 -> 27.67540248
A18: Average Annual Watershed Runoff Volume | B18: (ac-ft/yr) | C18: =ReuseWaterBalance!$H$18271 -> 0.2997344774
A19: Average Annual Runoff Coefficient | C19: =ReuseWaterBalance!$H$18274 -> 0.129964279
A20: Average Annual Runoff Volume Reduction due to Stormwater Reuse for Irrigation | B20: (ac-ft/yr) | C20: =ReuseWaterBalance!$P$18271 -> 0.1063796468
B21: (%) | C21: =ReuseWaterBalance!$P$18270 -> 35.49129476
A22: Average Annual Runoff Volume Bypassing the Reuse System (including Winterization Drawdown, if applicable) | B22: (ac-ft/yr) | C22: =ReuseWaterBalance!$M$18271+ReuseWaterBalance!$R$18271 -> 0.1933548305
B23: (%) | C23: =ReuseWaterBalance!$M$18270+ReuseWaterBalance!$R$18270 -> 64.50870524
A24: Stormwater Reuse Summary of Results - Irrigation Demand
A25: Average Annual Irrigation Demand | B25: (ac-ft/yr) | C25: =ReuseWaterBalance!$P$18271+ReuseWaterBalance!$T$18271 -> 0.6598042513
A26: Average Annual Irrigation Demand met by Stormwater Reuse | B26: (ac-ft/yr) | C26: =ReuseWaterBalance!$P$18271 -> 0.1063796468
B27: (%) | C27: =$C$20/$C$25*100 -> 16.12291019
A28: Average Annual Irrigation Augmentation (from Potable Water Supply) | B28: (ac-ft/yr) | C28: =ReuseWaterBalance!T18271 -> 0.5534246045
B29: (%) | C29: =$C$28/$C$25*100 -> 83.87708981
A30: RWMWD Credit Factor For Stormwater Reuse
A31: Required Water Quality Volume for Watershed Based on RWMWD Rules | B31: (ac-ft) | C31: =$C$3*$C$4/100*0.9/12 -> 0.00375
A32: Average Annual Volume Reduction for an Infiltration System Sized to Meet the RWMWD Rules (Estimated by MIDS Calculator) | B32: (%) | C32: ='MIDS Lookup'!C10*100 -> 37.45058131
A33: Average Annual Runoff Volume Reduction due to Stormwater Reuse for Irrigation | B33: (%) | C33: =C21 -> 35.49129476
A34: RWMWD Credit Factor For Stormwater Reuse | C34: =$C$33/$C$32 -> 0.947683414
A35: Reuse Storage Volume Provided | B35: (ac-ft) | C35: =C7 -> 0.075
B36: (gal) | C36: =C9 -> 24438.85884
B37: (cu-ft) | C37: =C8 -> 3267
A38: Reuse Storage Volume that can be applied towards achieving the RWMWD Rules | B38: (ac-ft) | C38: =$C$34*$C$7 -> 0.07107625605
B39: (gal) | C39: =C9*C34 -> 23160.30118
B40: (cu-ft) | C40: =$C$38*43560 -> 3096.081714

Sheet ReuseWaterBalance
A1: Date | B1: Year | C1: Month | D1: Day | E1: Daily Rain | F1: Daily Snowmelt | G1: Total Precip | H1: Total Watershed Runoff Volume | I1: ='Reuse Inputs_Summary'!$C$1 -> Example 1
I2: Total Volume in Reuse Storage | J2: Volume of Water in Reuse Storage from End of Previous Day | K2: Watershed Runoff Volume to Reuse Storage | L2: Total Volume Available for Irrigation | M2: Watershed Runoff to Overflow | N2: Is it the Defined Irrigation Season? | O2: Has there been Precipitation on the Current Day? | P2: Daily Reuse Volume used for Irrigation | Q2: Is the System Offline/ Drawndown In the Winter? | R2: Winterization Drawdown Volume | S2: Volume of Water in Reuse Storage after Irrigation | T2: Estimated Augmentation Volume
E3: (in) | F3: (in) | G3: (in) | H3: (acft) | I3: (acft) | J3: (acft) | K3: (acft) | L3: (acft) | M3: (acft) | N3: (Y/N) | O3: (Y/N) | P3: (acft) | Q3: (Y/N) | R3: (acft) | S3: (acft) | T3: (acft)
S4: 0
A5: 1955-01-01 | B5: =YEAR(A5) -> 1955 | C5: =MONTH(A5) -> 1 | D5: =DAY(A5) -> 1 | E5: 0 | F5: 0 | G5: =SUM(E5:F5) -> 0 | H5: =IF((ISNA((VLOOKUP(A5,'RunoffLook-up'!$G$5:$H$3442,2,FALSE))))=TRUE,0,VLOOKUP(A5,'RunoffLook-up'!$G$5:$H$3442,2,FALSE))*('Reuse Inputs_Summary'!$C$3/10) -> 0 | I5: ='Reuse Inputs_Summary'!$C$7 -> 0.075 | J5: =S4 -> 0 | K5: =IF(AND(N5="NO",Q5="YES"),0,IF($H5=0,0,IF($H5>(I5-J5),(I5-J5),IF($H5<(I5-J5),$H5)))) -> 0 | L5: =J5+K5 -> 0 | M5: =IF(AND(N5="NO",Q5="YES"),H5,H5-K5) -> 0 | N5: =IF($C5<'Reuse Inputs_Summary'!$C$13,"NO",IF(($C5>'Reuse Inputs_Summary'!$C$14),"NO","YES")) -> NO | O5: =IF(G5>0,"YES","NO") -> NO | P5: =IF(N5="No",0,IF(AND(N5="Yes",O5="NO",L5>'Reuse Inputs_Summary'!$C$12),'Reuse Inputs_Summary'!$C$12,IF(AND(N5="Yes",O5="NO",L5<'Reuse Inputs_Summary'!$C$12,L5>0),L5,0))) -> 0 | Q5: =IF('Reuse Inputs_Summary'!$C$15=0,"NO","YES") -> YES | R5: 0 | S5: =L5-P5-R5 -> 0 | T5: =IF(N5="No",0,IF(AND(N5="Yes",O5="YES"),0,IF(AND(N5="Yes",O5="NO",ReuseWaterBalance!L5<'Reuse Inputs_Summary'!$C$12),('Reuse Inputs_Summary'!$C$12-ReuseWaterBalance!L5),0))) -> 0
A6: 1955-01-02 | B6: 1955 | C6: =MONTH(A6) -> 1 | D6: =DAY(A6) -> 2 | E6: 0 | F6: 0 | G6: =SUM(E6:F6) -> 0 | H6: =IF((ISNA((VLOOKUP(A6,'RunoffLook-up'!$G$5:$H$3442,2,FALSE))))=TRUE,0,VLOOKUP(A6,'RunoffLook-up'!$G$5:$H$3442,2,FALSE))*('Reuse Inputs_Summary'!$C$3/10) -> 0 | I6: ='Reuse Inputs_Summary'!$C$7 -> 0.075 | J6: =S5 -> 0 | K6: =IF(AND(N6="NO",Q6="YES"),0,IF($H6=0,0,IF($H6>(I6-J6),(I6-J6),IF($H6<(I6-J6),$H6)))) -> 0 | L6: =J6+K6 -> 0 | M6: =IF(AND(N6="NO",Q6="YES"),H6,H6-K6) -> 0 | N6: =IF($C6<'Reuse Inputs_Summary'!$C$13,"NO",IF(($C6>'Reuse Inputs_Summary'!$C$14),"NO","YES")) -> NO | O6: =IF(G6>0,"YES","NO") -> NO | P6: =IF(N6="No",0,IF(AND(N6="Yes",O6="NO",L6>'Reuse Inputs_Summary'!$C$12),'Reuse Inputs_Summary'!$C$12,IF(AND(N6="Yes",O6="NO",L6<'Reuse Inputs_Summary'!$C$12,L6>0),L6,0))) -> 0 | Q6: =IF('Reuse Inputs_Summary'!$C$15=0,"NO","YES") -> YES | R6: =IF(AND(N6="NO",Q6="YES"),S5,0) -> 0 | S6: =L6-P6-R6 -> 0 | T6: =IF(N6="No",0,IF(AND(N6="Yes",O6="YES"),0,IF(AND(N6="Yes",O6="NO",ReuseWaterBalance!L6<'Reuse Inputs_Summary'!$C$12),('Reuse Inputs_Summary'!$C$12-ReuseWaterBalance!L6),0))) -> 0
A7: 1955-01-03 | B7: 1955 | C7: 1 | D7: 3 | E7: 0 | F7: 0 | G7: 0 | H7: =IF((ISNA((VLOOKUP(A7,'RunoffLook-up'!$G$5:$H$3442,2,FALSE))))=TRUE,0,VLOOKUP(A7,'RunoffLook-up'!$G$5:$H$3442,2,FALSE))*('Reuse Inputs_Summary'!$C$3/10) -> 0 | I7: ='Reuse Inputs_Summary'!$C$7 -> 0.075 | J7: =S6 -> 0 | K7: 0 | L7: 0 | M7: 0 | N7: =IF($C7<'Reuse Inputs_Summary'!$C$13,"NO",IF(($C7>'Reuse Inputs_Summary'!$C$14),"NO","YES")) -> NO | O7: NO | P7: =IF(N7="No",0,IF(AND(N7="Yes",O7="NO",L7>'Reuse Inputs_Summary'!$C$12),'Reuse Inputs_Summary'!$C$12,IF(AND(N7="Yes",O7="NO",L7<'Reuse Inputs_Summary'!$C$12,L7>0),L7,0))) -> 0 | Q7: =IF('Reuse Inputs_Summary'!$C$15=0,"NO","YES") -> YES | R7: =IF(AND(N7="NO",Q7="YES"),S6,0) -> 0 | S7: 0 | T7: =IF(N7="No",0,IF(AND(N7="Yes",O7="YES"),0,IF(AND(N7="Yes",O7="NO",ReuseWaterBalance!L7<'Reuse Inputs_Summary'!$C$12),('Reuse Inputs_Summary'!$C$12-ReuseWaterBalance!L7),0))) -> 0
A8: 1955-01-04 | B8: 1955 | C8: 1 | D8: 4 | E8: 0 | F8: 0 | G8: 0 | H8: =IF((ISNA((VLOOKUP(A8,'RunoffLook-up'!$G$5:$H$3442,2,FALSE))))=TRUE,0,VLOOKUP(A8,'RunoffLook-up'!$G$5:$H$3442,2,FALSE))*('Reuse Inputs_Summary'!$C$3/10) -> 0 | I8: ='Reuse Inputs_Summary'!$C$7 -> 0.075 | J8: 0 | K8: 0 | L8: 0 | M8: 0 | N8: =IF($C8<'Reuse Inputs_Summary'!$C$13,"NO",IF(($C8>'Reuse Inputs_Summary'!$C$14),"NO","YES")) -> NO | O8: NO | P8: =IF(N8="No",0,IF(AND(N8="Yes",O8="NO",L8>'Reuse Inputs_Summary'!$C$12),'Reuse Inputs_Summary'!$C$12,IF(AND(N8="Yes",O8="NO",L8<'Reuse Inputs_Summary'!$C$12,L8>0),L8,0))) -> 0 | Q8: =IF('Reuse Inputs_Summary'!$C$15=0,"NO","YES") -> YES | R8: 0 | S8: 0 | T8: =IF(N8="No",0,IF(AND(N8="Yes",O8="YES"),0,IF(AND(N8="Yes",O8="NO",ReuseWaterBalance!L8<'Reuse Inputs_Summary'!$C$12),('Reuse Inputs_Summary'!$C$12-ReuseWaterBalance!L8),0))) -> 0
A9: 1955-01-05 | B9: 1955 | C9: 1 | D9: 5 | E9: 0 | F9: 0 | G9: 0 | H9: =IF((ISNA((VLOOKUP(A9,'RunoffLook-up'!$G$5:$H$3442,2,FALSE))))=TRUE,0,VLOOKUP(A9,'RunoffLook-up'!$G$5:$H$3442,2,FALSE))*('Reuse Inputs_Summary'!$C$3/10) -> 0 | I9: ='Reuse Inputs_Summary'!$C$7 -> 0.075 | J9: 0 | K9: 0 | L9: 0 | M9: 0 | N9: =IF($C9<'Reuse Inputs_Summary'!$C$13,"NO",IF(($C9>'Reuse Inputs_Summary'!$C$14),"NO","YES")) -> NO | O9: NO | P9: =IF(N9="No",0,IF(AND(N9="Yes",O9="NO",L9>'Reuse Inputs_Summary'!$C$12),'Reuse Inputs_Summary'!$C$12,IF(AND(N9="Yes",O9="NO",L9<'Reuse Inputs_Summary'!$C$12,L9>0),L9,0))) -> 0 | Q9: =IF('Reuse Inputs_Summary'!$C$15=0,"NO","YES") -> YES | R9: 0 | S9: 0 | T9: =IF(N9="No",0,IF(AND(N9="Yes",O9="YES"),0,IF(AND(N9="Yes",O9="NO",ReuseWaterBalance!L9<'Reuse Inputs_Summary'!$C$12),('Reuse Inputs_Summary'!$C$12-ReuseWaterBalance!L9),0))) -> 0
A10: 1955-01-06 | B10: 1955 | C10: 1 | D10: 6 | E10: 0 | F10: 0 | G10: 0 | H10: =IF((ISNA((VLOOKUP(A10,'RunoffLook-up'!$G$5:$H$3442,2,FALSE))))=TRUE,0,VLOOKUP(A10,'RunoffLook-up'!$G$5:$H$3442,2,FALSE))*('Reuse Inputs_Summary'!$C$3/10) -> 0 | I10: ='Reuse Inputs_Summary'!$C$7 -> 0.075 | J10: 0 | K10: 0 | L10: 0 | M10: 0 | N10: =IF($C10<'Reuse Inputs_Summary'!$C$13,"NO",IF(($C10>'Reuse Inputs_Summary'!$C$14),"NO","YES")) -> NO | O10: NO | P10: =IF(N10="No",0,IF(AND(N10="Yes",O10="NO",L10>'Reuse Inputs_Summary'!$C$12),'Reuse Inputs_Summary'!$C$12,IF(AND(N10="Yes",O10="NO",L10<'Reuse Inputs_Summary'!$C$12,L10>0),L10,0))) -> 0 | Q10: =IF('Reuse Inputs_Summary'!$C$15=0,"NO","YES") -> YES | R10: 0 | S10: 0 | T10: =IF(N10="No",0,IF(AND(N10="Yes",O10="YES"),0,IF(AND(N10="Yes",O10="NO",ReuseWaterBalance!L10<'Reuse Inputs_Summary'!$C$12),('Reuse Inputs_Summary'!$C$12-ReuseWaterBalance!L10),0))) -> 0
A11: 1955-01-07 | B11: 1955 | C11: 1 | D11: 7 | E11: 0 | F11: 0 | G11: 0 | H11: =IF((ISNA((VLOOKUP(A11,'RunoffLook-up'!$G$5:$H$3442,2,FALSE))))=TRUE,0,VLOOKUP(A11,'RunoffLook-up'!$G$5:$H$3442,2,FALSE))*('Reuse Inputs_Summary'!$C$3/10) -> 0 | I11: ='Reuse Inputs_Summary'!$C$7 -> 0.075 | J11: 0 | K11: 0 | L11: 0 | M11: 0 | N11: =IF($C11<'Reuse Inputs_Summary'!$C$13,"NO",IF(($C11>'Reuse Inputs_Summary'!$C$14),"NO","YES")) -> NO | O11: NO | P11: =IF(N11="No",0,IF(AND(N11="Yes",O11="NO",L11>'Reuse Inputs_Summary'!$C$12),'Reuse Inputs_Summary'!$C$12,IF(AND(N11="Yes",O11="NO",L11<'Reuse Inputs_Summary'!$C$12,L11>0),L11,0))) -> 0 | Q11: =IF('Reuse Inputs_Summary'!$C$15=0,"NO","YES") -> YES | R11: 0 | S11: 0 | T11: =IF(N11="No",0,IF(AND(N11="Yes",O11="YES"),0,IF(AND(N11="Yes",O11="NO",ReuseWaterBalance!L11<'Reuse Inputs_Summary'!$C$12),('Reuse Inputs_Summary'!$C$12-ReuseWaterBalance!L11),0))) -> 0
A12: 1955-01-08 | B12: 1955 | C12: 1 | D12: 8 | E12: 0 | F12: 0 | G12: 0 | H12: =IF((ISNA((VLOOKUP(A12,'RunoffLook-up'!$G$5:$H$3442,2,FALSE))))=TRUE,0,VLOOKUP(A12,'RunoffLook-up'!$G$5:$H$3442,2,FALSE))*('Reuse Inputs_Summary'!$C$3/10) -> 0 | I12: ='Reuse Inputs_Summary'!$C$7 -> 0.075 | J12: 0 | K12: 0 | L12: 0 | M12: 0 | N12: =IF($C12<'Reuse Inputs_Summary'!$C$13,"NO",IF(($C12>'Reuse Inputs_Summary'!$C$14),"NO","YES")) -> NO | O12: NO | P12: =IF(N12="No",0,IF(AND(N12="Yes",O12="NO",L12>'Reuse Inputs_Summary'!$C$12),'Reuse Inputs_Summary'!$C$12,IF(AND(N12="Yes",O12="NO",L12<'Reuse Inputs_Summary'!$C$12,L12>0),L12,0))) -> 0 | Q12: =IF('Reuse Inputs_Summary'!$C$15=0,"NO","YES") -> YES | R12: 0 | S12: 0 | T12: =IF(N12="No",0,IF(AND(N12="Yes",O12="YES"),0,IF(AND(N12="Yes",O12="NO",ReuseWaterBalance!L12<'Reuse Inputs_Summary'!$C$12),('Reuse Inputs_Summary'!$C$12-ReuseWaterBalance!L12),0))) -> 0
A13: 1955-01-09 | B13: 1955 | C13: 1 | D13: 9 | E13: 0 | F13: 0 | G13: 0 | H13: =IF((ISNA((VLOOKUP(A13,'RunoffLook-up'!$G$5:$H$3442,2,FALSE))))=TRUE,0,VLOOKUP(A13,'RunoffLook-up'!$G$5:$H$3442,2,FALSE))*('Reuse Inputs_Summary'!$C$3/10) -> 0 | I13: ='Reuse Inputs_Summary'!$C$7 -> 0.075 | J13: 0 | K13: 0 | L13: 0 | M13: 0 | N13: =IF($C13<'Reuse Inputs_Summary'!$C$13,"NO",IF(($C13>'Reuse Inputs_Summary'!$C$14),"NO","YES")) -> NO | O13: NO | P13: =IF(N13="No",0,IF(AND(N13="Yes",O13="NO",L13>'Reuse Inputs_Summary'!$C$12),'Reuse Inputs_Summary'!$C$12,IF(AND(N13="Yes",O13="NO",L13<'Reuse Inputs_Summary'!$C$12,L13>0),L13,0))) -> 0 | Q13: =IF('Reuse Inputs_Summary'!$C$15=0,"NO","YES") -> YES | R13: 0 | S13: 0 | T13: =IF(N13="No",0,IF(AND(N13="Yes",O13="YES"),0,IF(AND(N13="Yes",O13="NO",ReuseWaterBalance!L13<'Reuse Inputs_Summary'!$C$12),('Reuse Inputs_Summary'!$C$12-ReuseWaterBalance!L13),0))) -> 0
A14: 1955-01-10 | B14: 1955 | C14: 1 | D14: 10 | E14: 0 | F14: 0 | G14: 0 | H14: =IF((ISNA((VLOOKUP(A14,'RunoffLook-up'!$G$5:$H$3442,2,FALSE))))=TRUE,0,VLOOKUP(A14,'RunoffLook-up'!$G$5:$H$3442,2,FALSE))*('Reuse Inputs_Summary'!$C$3/10) -> 0 | I14: ='Reuse Inputs_Summary'!$C$7 -> 0.075 | J14: 0 | K14: 0 | L14: 0 | M14: 0 | N14: =IF($C14<'Reuse Inputs_Summary'!$C$13,"NO",IF(($C14>'Reuse Inputs_Summary'!$C$14),"NO","YES")) -> NO | O14: NO | P14: =IF(N14="No",0,IF(AND(N14="Yes",O14="NO",L14>'Reuse Inputs_Summary'!$C$12),'Reuse Inputs_Summary'!$C$12,IF(AND(N14="Yes",O14="NO",L14<'Reuse Inputs_Summary'!$C$12,L14>0),L14,0))) -> 0 | Q14: =IF('Reuse Inputs_Summary'!$C$15=0,"NO","YES") -> YES | R14: 0 | S14: 0 | T14: =IF(N14="No",0,IF(AND(N14="Yes",O14="YES"),0,IF(AND(N14="Yes",O14="NO",ReuseWaterBalance!L14<'Reuse Inputs_Summary'!$C$12),('Reuse Inputs_Summary'!$C$12-ReuseWaterBalance!L14),0))) -> 0
A15: 1955-01-11 | B15: 1955 | C15: 1 | D15: 11 | E15: 0 | F15: 0 | G15: 0 | H15: =IF((ISNA((VLOOKUP(A15,'RunoffLook-up'!$G$5:$H$3442,2,FALSE))))=TRUE,0,VLOOKUP(A15,'RunoffLook-up'!$G$5:$H$3442,2,FALSE))*('Reuse Inputs_Summary'!$C$3/10) -> 0 | I15: ='Reuse Inputs_Summary'!$C$7 -> 0.075 | J15: 0 | K15: 0 | L15: 0 | M15: 0 | N15: =IF($C15<'Reuse Inputs_Summary'!$C$13,"NO",IF(($C15>'Reuse Inputs_Summary'!$C$14),"NO","YES")) -> NO | O15: NO | P15: =IF(N15="No",0,IF(AND(N15="Yes",O15="NO",L15>'Reuse Inputs_Summary'!$C$12),'Reuse Inputs_Summary'!$C$12,IF(AND(N15="Yes",O15="NO",L15<'Reuse Inputs_Summary'!$C$12,L15>0),L15,0))) -> 0 | Q15: =IF('Reuse Inputs_Summary'!$C$15=0,"NO","YES") -> YES | R15: 0 | S15: 0 | T15: =IF(N15="No",0,IF(AND(N15="Yes",O15="YES"),0,IF(AND(N15="Yes",O15="NO",ReuseWaterBalance!L15<'Reuse Inputs_Summary'!$C$12),('Reuse Inputs_Summary'!$C$12-ReuseWaterBalance!L15),0))) -> 0
A16: 1955-01-12 | B16: 1955 | C16: 1 | D16: 12 | E16: 0 | F16: 0 | G16: 0 | H16: =IF((ISNA((VLOOKUP(A16,'RunoffLook-up'!$G$5:$H$3442,2,FALSE))))=TRUE,0,VLOOKUP(A16,'RunoffLook-up'!$G$5:$H$3442,2,FALSE))*('Reuse Inputs_Summary'!$C$3/10) -> 0 | I16: ='Reuse Inputs_Summary'!$C$7 -> 0.075 | J16: 0 | K16: 0 | L16: 0 | M16: 0 | N16: =IF($C16<'Reuse Inputs_Summary'!$C$13,"NO",IF(($C16>'Reuse Inputs_Summary'!$C$14),"NO","YES")) -> NO | O16: NO | P16: =IF(N16="No",0,IF(AND(N16="Yes",O16="NO",L16>'Reuse Inputs_Summary'!$C$12),'Reuse Inputs_Summary'!$C$12,IF(AND(N16="Yes",O16="NO",L16<'Reuse Inputs_Summary'!$C$12,L16>0),L16,0))) -> 0 | Q16: =IF('Reuse Inputs_Summary'!$C$15=0,"NO","YES") -> YES | R16: 0 | S16: 0 | T16: =IF(N16="No",0,IF(AND(N16="Yes",O16="YES"),0,IF(AND(N16="Yes",O16="NO",ReuseWaterBalance!L16<'Reuse Inputs_Summary'!$C$12),('Reuse Inputs_Summary'!$C$12-ReuseWaterBalance!L16),0))) -> 0
A17: 1955-01-13 | B17: 1955 | C17: 1 | D17: 13 | E17: 0 | F17: 0 | G17: 0 | H17: =IF((ISNA((VLOOKUP(A17,'RunoffLook-up'!$G$5:$H$3442,2,FALSE))))=TRUE,0,VLOOKUP(A17,'RunoffLook-up'!$G$5:$H$3442,2,FALSE))*('Reuse Inputs_Summary'!$C$3/10) -> 0 | I17: ='Reuse Inputs_Summary'!$C$7 -> 0.075 | J17: 0 | K17: 0 | L17: 0 | M17: 0 | N17: =IF($C17<'Reuse Inputs_Summary'!$C$13,"NO",IF(($C17>'Reuse Inputs_Summary'!$C$14),"NO","YES")) -> NO | O17: NO | P17: =IF(N17="No",0,IF(AND(N17="Yes",O17="NO",L17>'Reuse Inputs_Summary'!$C$12),'Reuse Inputs_Summary'!$C$12,IF(AND(N17="Yes",O17="NO",L17<'Reuse Inputs_Summary'!$C$12,L17>0),L17,0))) -> 0 | Q17: =IF('Reuse Inputs_Summary'!$C$15=0,"NO","YES") -> YES | R17: 0 | S17: 0 | T17: =IF(N17="No",0,IF(AND(N17="Yes",O17="YES"),0,IF(AND(N17="Yes",O17="NO",ReuseWaterBalance!L17<'Reuse Inputs_Summary'!$C$12),('Reuse Inputs_Summary'!$C$12-ReuseWaterBalance!L17),0))) -> 0
A18: 1955-01-14 | B18: 1955 | C18: 1 | D18: 14 | E18: 0 | F18: 0 | G18: 0 | H18: =IF((ISNA((VLOOKUP(A18,'RunoffLook-up'!$G$5:$H$3442,2,FALSE))))=TRUE,0,VLOOKUP(A18,'RunoffLook-up'!$G$5:$H$3442,2,FALSE))*('Reuse Inputs_Summary'!$C$3/10) -> 0 | I18: ='Reuse Inputs_Summary'!$C$7 -> 0.075 | J18: 0 | K18: 0 | L18: 0 | M18: 0 | N18: =IF($C18<'Reuse Inputs_Summary'!$C$13,"NO",IF(($C18>'Reuse Inputs_Summary'!$C$14),"NO","YES")) -> NO | O18: NO | P18: =IF(N18="No",0,IF(AND(N18="Yes",O18="NO",L18>'Reuse Inputs_Summary'!$C$12),'Reuse Inputs_Summary'!$C$12,IF(AND(N18="Yes",O18="NO",L18<'Reuse Inputs_Summary'!$C$12,L18>0),L18,0))) -> 0 | Q18: =IF('Reuse Inputs_Summary'!$C$15=0,"NO","YES") -> YES | R18: 0 | S18: 0 | T18: =IF(N18="No",0,IF(AND(N18="Yes",O18="YES"),0,IF(AND(N18="Yes",O18="NO",ReuseWaterBalance!L18<'Reuse Inputs_Summary'!$C$12),('Reuse Inputs_Summary'!$C$12-ReuseWaterBalance!L18),0))) -> 0
A19: 1955-01-15 | B19: 1955 | C19: 1 | D19: 15 | E19: 0 | F19: 0 | G19: 0 | H19: =IF((ISNA((VLOOKUP(A19,'RunoffLook-up'!$G$5:$H$3442,2,FALSE))))=TRUE,0,VLOOKUP(A19,'RunoffLook-up'!$G$5:$H$3442,2,FALSE))*('Reuse Inputs_Summary'!$C$3/10) -> 0 | I19: ='Reuse Inputs_Summary'!$C$7 -> 0.075 | J19: 0 | K19: 0 | L19: 0 | M19: 0 | N19: =IF($C19<'Reuse Inputs_Summary'!$C$13,"NO",IF(($C19>'Reuse Inputs_Summary'!$C$14),"NO","YES")) -> NO | O19: NO | P19: =IF(N19="No",0,IF(AND(N19="Yes",O19="NO",L19>'Reuse Inputs_Summary'!$C$12),'Reuse Inputs_Summary'!$C$12,IF(AND(N19="Yes",O19="NO",L19<'Reuse Inputs_Summary'!$C$12,L19>0),L19,0))) -> 0 | Q19: =IF('Reuse Inputs_Summary'!$C$15=0,"NO","YES") -> YES | R19: 0 | S19: 0 | T19: =IF(N19="No",0,IF(AND(N19="Yes",O19="YES"),0,IF(AND(N19="Yes",O19="NO",ReuseWaterBalance!L19<'Reuse Inputs_Summary'!$C$12),('Reuse Inputs_Summary'!$C$12-ReuseWaterBalance!L19),0))) -> 0
A20: 1955-01-16 | B20: 1955 | C20: 1 | D20: 16 | E20: 0 | F20: 0 | G20: 0 | H20: =IF((ISNA((VLOOKUP(A20,'RunoffLook-up'!$G$5:$H$3442,2,FALSE))))=TRUE,0,VLOOKUP(A20,'RunoffLook-up'!$G$5:$H$3442,2,FALSE))*('Reuse Inputs_Summary'!$C$3/10) -> 0 | I20: ='Reuse Inputs_Summary'!$C$7 -> 0.075 | J20: 0 | K20: 0 | L20: 0 | M20: 0 | N20: =IF($C20<'Reuse Inputs_Summary'!$C$13,"NO",IF(($C20>'Reuse Inputs_Summary'!$C$14),"NO","YES")) -> NO | O20: NO | P20: =IF(N20="No",0,IF(AND(N20="Yes",O20="NO",L20>'Reuse Inputs_Summary'!$C$12),'Reuse Inputs_Summary'!$C$12,IF(AND(N20="Yes",O20="NO",L20<'Reuse Inputs_Summary'!$C$12,L20>0),L20,0))) -> 0 | Q20: =IF('Reuse Inputs_Summary'!$C$15=0,"NO","YES") -> YES | R20: 0 | S20: 0 | T20: =IF(N20="No",0,IF(AND(N20="Yes",O20="YES"),0,IF(AND(N20="Yes",O20="NO",ReuseWaterBalance!L20<'Reuse Inputs_Summary'!$C$12),('Reuse Inputs_Summary'!$C$12-ReuseWaterBalance!L20),0))) -> 0
A21: 1955-01-17 | B21: 1955 | C21: 1 | D21: 17 | E21: 0 | F21: 0 | G21: 0 | H21: =IF((ISNA((VLOOKUP(A21,'RunoffLook-up'!$G$5:$H$3442,2,FALSE))))=TRUE,0,VLOOKUP(A21,'RunoffLook-up'!$G$5:$H$3442,2,FALSE))*('Reuse Inputs_Summary'!$C$3/10) -> 0 | I21: ='Reuse Inputs_Summary'!$C$7 -> 0.075 | J21: 0 | K21: 0 | L21: 0 | M21: 0 | N21: =IF($C21<'Reuse Inputs_Summary'!$C$13,"NO",IF(($C21>'Reuse Inputs_Summary'!$C$14),"NO","YES")) -> NO | O21: NO | P21: =IF(N21="No",0,IF(AND(N21="Yes",O21="NO",L21>'Reuse Inputs_Summary'!$C$12),'Reuse Inputs_Summary'!$C$12,IF(AND(N21="Yes",O21="NO",L21<'Reuse Inputs_Summary'!$C$12,L21>0),L21,0))) -> 0 | Q21: =IF('Reuse Inputs_Summary'!$C$15=0,"NO","YES") -> YES | R21: 0 | S21: 0 | T21: =IF(N21="No",0,IF(AND(N21="Yes",O21="YES"),0,IF(AND(N21="Yes",O21="NO",ReuseWaterBalance!L21<'Reuse Inputs_Summary'!$C$12),('Reuse Inputs_Summary'!$C$12-ReuseWaterBalance!L21),0))) -> 0
A22: 1955-01-18 | B22: 1955 | C22: 1 | D22: 18 | E22: 0 | F22: 0 | G22: 0 | H22: =IF((ISNA((VLOOKUP(A22,'RunoffLook-up'!$G$5:$H$3442,2,FALSE))))=TRUE,0,VLOOKUP(A22,'RunoffLook-up'!$G$5:$H$3442,2,FALSE))*('Reuse Inputs_Summary'!$C$3/10) -> 0 | I22: ='Reuse Inputs_Summary'!$C$7 -> 0.075 | J22: 0 | K22: 0 | L22: 0 | M22: 0 | N22: =IF($C22<'Reuse Inputs_Summary'!$C$13,"NO",IF(($C22>'Reuse Inputs_Summary'!$C$14),"NO","YES")) -> NO | O22: NO | P22: =IF(N22="No",0,IF(AND(N22="Yes",O22="NO",L22>'Reuse Inputs_Summary'!$C$12),'Reuse Inputs_Summary'!$C$12,IF(AND(N22="Yes",O22="NO",L22<'Reuse Inputs_Summary'!$C$12,L22>0),L22,0))) -> 0 | Q22: =IF('Reuse Inputs_Summary'!$C$15=0,"NO","YES") -> YES | R22: 0 | S22: 0 | T22: =IF(N22="No",0,IF(AND(N22="Yes",O22="YES"),0,IF(AND(N22="Yes",O22="NO",ReuseWaterBalance!L22<'Reuse Inputs_Summary'!$C$12),('Reuse Inputs_Summary'!$C$12-ReuseWaterBalance!L22),0))) -> 0
A23: 1955-01-19 | B23: 1955 | C23: 1 | D23: 19 | E23: 0 | F23: 0 | G23: 0 | H23: =IF((ISNA((VLOOKUP(A23,'RunoffLook-up'!$G$5:$H$3442,2,FALSE))))=TRUE,0,VLOOKUP(A23,'RunoffLook-up'!$G$5:$H$3442,2,FALSE))*('Reuse Inputs_Summary'!$C$3/10) -> 0 | I23: ='Reuse Inputs_Summary'!$C$7 -> 0.075 | J23: 0 | K23: 0 | L23: 0 | M23: 0 | N23: =IF($C23<'Reuse Inputs_Summary'!$C$13,"NO",IF(($C23>'Reuse Inputs_Summary'!$C$14),"NO","YES")) -> NO | O23: NO | P23: =IF(N23="No",0,IF(AND(N23="Yes",O23="NO",L23>'Reuse Inputs_Summary'!$C$12),'Reuse Inputs_Summary'!$C$12,IF(AND(N23="Yes",O23="NO",L23<'Reuse Inputs_Summary'!$C$12,L23>0),L23,0))) -> 0 | Q23: =IF('Reuse Inputs_Summary'!$C$15=0,"NO","YES") -> YES | R23: 0 | S23: 0 | T23: =IF(N23="No",0,IF(AND(N23="Yes",O23="YES"),0,IF(AND(N23="Yes",O23="NO",ReuseWaterBalance!L23<'Reuse Inputs_Summary'!$C$12),('Reuse Inputs_Summary'!$C$12-ReuseWaterBalance!L23),0))) -> 0
A24: 1955-01-20 | B24: 1955 | C24: 1 | D24: 20 | E24: 0 | F24: 0 | G24: 0 | H24: =IF((ISNA((VLOOKUP(A24,'RunoffLook-up'!$G$5:$H$3442,2,FALSE))))=TRUE,0,VLOOKUP(A24,'RunoffLook-up'!$G$5:$H$3442,2,FALSE))*('Reuse Inputs_Summary'!$C$3/10) -> 0 | I24: ='Reuse Inputs_Summary'!$C$7 -> 0.075 | J24: 0 | K24: 0 | L24: 0 | M24: 0 | N24: =IF($C24<'Reuse Inputs_Summary'!$C$13,"NO",IF(($C24>'Reuse Inputs_Summary'!$C$14),"NO","YES")) -> NO | O24: NO | P24: =IF(N24="No",0,IF(AND(N24="Yes",O24="NO",L24>'Reuse Inputs_Summary'!$C$12),'Reuse Inputs_Summary'!$C$12,IF(AND(N24="Yes",O24="NO",L24<'Reuse Inputs_Summary'!$C$12,L24>0),L24,0))) -> 0 | Q24: =IF('Reuse Inputs_Summary'!$C$15=0,"NO","YES") -> YES | R24: 0 | S24: 0 | T24: =IF(N24="No",0,IF(AND(N24="Yes",O24="YES"),0,IF(AND(N24="Yes",O24="NO",ReuseWaterBalance!L24<'Reuse Inputs_Summary'!$C$12),('Reuse Inputs_Summary'!$C$12-ReuseWaterBalance!L24),0))) -> 0
A25: 1955-01-21 | B25: 1955 | C25: 1 | D25: 21 | E25: 0 | F25: 0 | G25: 0 | H25: =IF((ISNA((VLOOKUP(A25,'RunoffLook-up'!$G$5:$H$3442,2,FALSE))))=TRUE,0,VLOOKUP(A25,'RunoffLook-up'!$G$5:$H$3442,2,FALSE))*('Reuse Inputs_Summary'!$C$3/10) -> 0 | I25: ='Reuse Inputs_Summary'!$C$7 -> 0.075 | J25: 0 | K25: 0 | L25: 0 | M25: 0 | N25: =IF($C25<'Reuse Inputs_Summary'!$C$13,"NO",IF(($C25>'Reuse Inputs_Summary'!$C$14),"NO","YES")) -> NO | O25: NO | P25: =IF(N25="No",0,IF(AND(N25="Yes",O25="NO",L25>'Reuse Inputs_Summary'!$C$12),'Reuse Inputs_Summary'!$C$12,IF(AND(N25="Yes",O25="NO",L25<'Reuse Inputs_Summary'!$C$12,L25>0),L25,0))) -> 0 | Q25: =IF('Reuse Inputs_Summary'!$C$15=0,"NO","YES") -> YES | R25: 0 | S25: 0 | T25: =IF(N25="No",0,IF(AND(N25="Yes",O25="YES"),0,IF(AND(N25="Yes",O25="NO",ReuseWaterBalance!L25<'Reuse Inputs_Summary'!$C$12),('Reuse Inputs_Summary'!$C$12-ReuseWaterBalance!L25),0))) -> 0
A26: 1955-01-22 | B26: 1955 | C26: 1 | D26: 22 | E26: 0 | F26: 0 | G26: 0 | H26: =IF((ISNA((VLOOKUP(A26,'RunoffLook-up'!$G$5:$H$3442,2,FALSE))))=TRUE,0,VLOOKUP(A26,'RunoffLook-up'!$G$5:$H$3442,2,FALSE))*('Reuse Inputs_Summary'!$C$3/10) -> 0 | I26: ='Reuse Inputs_Summary'!$C$7 -> 0.075 | J26: 0 | K26: 0 | L26: 0 | M26: 0 | N26: =IF($C26<'Reuse Inputs_Summary'!$C$13,"NO",IF(($C26>'Reuse Inputs_Summary'!$C$14),"NO","YES")) -> NO | O26: NO | P26: =IF(N26="No",0,IF(AND(N26="Yes",O26="NO",L26>'Reuse Inputs_Summary'!$C$12),'Reuse Inputs_Summary'!$C$12,IF(AND(N26="Yes",O26="NO",L26<'Reuse Inputs_Summary'!$C$12,L26>0),L26,0))) -> 0 | Q26: =IF('Reuse Inputs_Summary'!$C$15=0,"NO","YES") -> YES | R26: 0 | S26: 0 | T26: =IF(N26="No",0,IF(AND(N26="Yes",O26="YES"),0,IF(AND(N26="Yes",O26="NO",ReuseWaterBalance!L26<'Reuse Inputs_Summary'!$C$12),('Reuse Inputs_Summary'!$C$12-ReuseWaterBalance!L26),0))) -> 0
A27: 1955-01-23 | B27: 1955 | C27: 1 | D27: 23 | E27: 0 | F27: 0 | G27: 0 | H27: =IF((ISNA((VLOOKUP(A27,'RunoffLook-up'!$G$5:$H$3442,2,FALSE))))=TRUE,0,VLOOKUP(A27,'RunoffLook-up'!$G$5:$H$3442,2,FALSE))*('Reuse Inputs_Summary'!$C$3/10) -> 0 | I27: ='Reuse Inputs_Summary'!$C$7 -> 0.075 | J27: 0 | K27: 0 | L27: 0 | M27: 0 | N27: =IF($C27<'Reuse Inputs_Summary'!$C$13,"NO",IF(($C27>'Reuse Inputs_Summary'!$C$14),"NO","YES")) -> NO | O27: NO | P27: =IF(N27="No",0,IF(AND(N27="Yes",O27="NO",L27>'Reuse Inputs_Summary'!$C$12),'Reuse Inputs_Summary'!$C$12,IF(AND(N27="Yes",O27="NO",L27<'Reuse Inputs_Summary'!$C$12,L27>0),L27,0))) -> 0 | Q27: =IF('Reuse Inputs_Summary'!$C$15=0,"NO","YES") -> YES | R27: 0 | S27: 0 | T27: =IF(N27="No",0,IF(AND(N27="Yes",O27="YES"),0,IF(AND(N27="Yes",O27="NO",ReuseWaterBalance!L27<'Reuse Inputs_Summary'!$C$12),('Reuse Inputs_Summary'!$C$12-ReuseWaterBalance!L27),0))) -> 0
A28: 1955-01-24 | B28: 1955 | C28: 1 | D28: 24 | E28: 0 | F28: 0 | G28: 0 | H28: =IF((ISNA((VLOOKUP(A28,'RunoffLook-up'!$G$5:$H$3442,2,FALSE))))=TRUE,0,VLOOKUP(A28,'RunoffLook-up'!$G$5:$H$3442,2,FALSE))*('Reuse Inputs_Summary'!$C$3/10) -> 0 | I28: ='Reuse Inputs_Summary'!$C$7 -> 0.075 | J28: 0 | K28: 0 | L28: 0 | M28: 0 | N28: =IF($C28<'Reuse Inputs_Summary'!$C$13,"NO",IF(($C28>'Reuse Inputs_Summary'!$C$14),"NO","YES")) -> NO | O28: NO | P28: =IF(N28="No",0,IF(AND(N28="Yes",O28="NO",L28>'Reuse Inputs_Summary'!$C$12),'Reuse Inputs_Summary'!$C$12,IF(AND(N28="Yes",O28="NO",L28<'Reuse Inputs_Summary'!$C$12,L28>0),L28,0))) -> 0 | Q28: =IF('Reuse Inputs_Summary'!$C$15=0,"NO","YES") -> YES | R28: 0 | S28: 0 | T28: =IF(N28="No",0,IF(AND(N28="Yes",O28="YES"),0,IF(AND(N28="Yes",O28="NO",ReuseWaterBalance!L28<'Reuse Inputs_Summary'!$C$12),('Reuse Inputs_Summary'!$C$12-ReuseWaterBalance!L28),0))) -> 0
A29: 1955-01-25 | B29: 1955 | C29: 1 | D29: 25 | E29: 0 | F29: 0 | G29: 0 | H29: =IF((ISNA((VLOOKUP(A29,'RunoffLook-up'!$G$5:$H$3442,2,FALSE))))=TRUE,0,VLOOKUP(A29,'RunoffLook-up'!$G$5:$H$3442,2,FALSE))*('Reuse Inputs_Summary'!$C$3/10) -> 0 | I29: ='Reuse Inputs_Summary'!$C$7 -> 0.075 | J29: 0 | K29: 0 | L29: 0 | M29: 0 | N29: =IF($C29<'Reuse Inputs_Summary'!$C$13,"NO",IF(($C29>'Reuse Inputs_Summary'!$C$14),"NO","YES")) -> NO | O29: NO | P29: =IF(N29="No",0,IF(AND(N29="Yes",O29="NO",L29>'Reuse Inputs_Summary'!$C$12),'Reuse Inputs_Summary'!$C$12,IF(AND(N29="Yes",O29="NO",L29<'Reuse Inputs_Summary'!$C$12,L29>0),L29,0))) -> 0 | Q29: =IF('Reuse Inputs_Summary'!$C$15=0,"NO","YES") -> YES | R29: 0 | S29: 0 | T29: =IF(N29="No",0,IF(AND(N29="Yes",O29="YES"),0,IF(AND(N29="Yes",O29="NO",ReuseWaterBalance!L29<'Reuse Inputs_Summary'!$C$12),('Reuse Inputs_Summary'!$C$12-ReuseWaterBalance!L29),0))) -> 0
A30: 1955-01-26 | B30: 1955 | C30: 1 | D30: 26 | E30: 0 | F30: 0 | G30: 0 | H30: =IF((ISNA((VLOOKUP(A30,'RunoffLook-up'!$G$5:$H$3442,2,FALSE))))=TRUE,0,VLOOKUP(A30,'RunoffLook-up'!$G$5:$H$3442,2,FALSE))*('Reuse Inputs_Summary'!$C$3/10) -> 0 | I30: ='Reuse Inputs_Summary'!$C$7 -> 0.075 | J30: 0 | K30: 0 | L30: 0 | M30: 0 | N30: =IF($C30<'Reuse Inputs_Summary'!$C$13,"NO",IF(($C30>'Reuse Inputs_Summary'!$C$14),"NO","YES")) -> NO | O30: NO | P30: =IF(N30="No",0,IF(AND(N30="Yes",O30="NO",L30>'Reuse Inputs_Summary'!$C$12),'Reuse Inputs_Summary'!$C$12,IF(AND(N30="Yes",O30="NO",L30<'Reuse Inputs_Summary'!$C$12,L30>0),L30,0))) -> 0 | Q30: =IF('Reuse Inputs_Summary'!$C$15=0,"NO","YES") -> YES | R30: 0 | S30: 0 | T30: =IF(N30="No",0,IF(AND(N30="Yes",O30="YES"),0,IF(AND(N30="Yes",O30="NO",ReuseWaterBalance!L30<'Reuse Inputs_Summary'!$C$12),('Reuse Inputs_Summary'!$C$12-ReuseWaterBalance!L30),0))) -> 0
A31: 1955-01-27 | B31: 1955 | C31: 1 | D31: 27 | E31: 0 | F31: 0 | G31: 0 | H31: =IF((ISNA((VLOOKUP(A31,'RunoffLook-up'!$G$5:$H$3442,2,FALSE))))=TRUE,0,VLOOKUP(A31,'RunoffLook-up'!$G$5:$H$3442,2,FALSE))*('Reuse Inputs_Summary'!$C$3/10) -> 0 | I31: ='Reuse Inputs_Summary'!$C$7 -> 0.075 | J31: 0 | K31: 0 | L31: 0 | M31: 0 | N31: =IF($C31<'Reuse Inputs_Summary'!$C$13,"NO",IF(($C31>'Reuse Inputs_Summary'!$C$14),"NO","YES")) -> NO | O31: NO | P31: =IF(N31="No",0,IF(AND(N31="Yes",O31="NO",L31>'Reuse Inputs_Summary'!$C$12),'Reuse Inputs_Summary'!$C$12,IF(AND(N31="Yes",O31="NO",L31<'Reuse Inputs_Summary'!$C$12,L31>0),L31,0))) -> 0 | Q31: =IF('Reuse Inputs_Summary'!$C$15=0,"NO","YES") -> YES | R31: 0 | S31: 0 | T31: =IF(N31="No",0,IF(AND(N31="Yes",O31="YES"),0,IF(AND(N31="Yes",O31="NO",ReuseWaterBalance!L31<'Reuse Inputs_Summary'!$C$12),('Reuse Inputs_Summary'!$C$12-ReuseWaterBalance!L31),0))) -> 0
A32: 1955-01-28 | B32: 1955 | C32: 1 | D32: 28 | E32: 0 | F32: 0 | G32: 0 | H32: =IF((ISNA((VLOOKUP(A32,'RunoffLook-up'!$G$5:$H$3442,2,FALSE))))=TRUE,0,VLOOKUP(A32,'RunoffLook-up'!$G$5:$H$3442,2,FALSE))*('Reuse Inputs_Summary'!$C$3/10) -> 0 | I32: ='Reuse Inputs_Summary'!$C$7 -> 0.075 | J32: 0 | K32: 0 | L32: 0 | M32: 0 | N32: =IF($C32<'Reuse Inputs_Summary'!$C$13,"NO",IF(($C32>'Reuse Inputs_Summary'!$C$14),"NO","YES")) -> NO | O32: NO | P32: =IF(N32="No",0,IF(AND(N32="Yes",O32="NO",L32>'Reuse Inputs_Summary'!$C$12),'Reuse Inputs_Summary'!$C$12,IF(AND(N32="Yes",O32="NO",L32<'Reuse Inputs_Summary'!$C$12,L32>0),L32,0))) -> 0 | Q32: =IF('Reuse Inputs_Summary'!$C$15=0,"NO","YES") -> YES | R32: 0 | S32: 0 | T32: =IF(N32="No",0,IF(AND(N32="Yes",O32="YES"),0,IF(AND(N32="Yes",O32="NO",ReuseWaterBalance!L32<'Reuse Inputs_Summary'!$C$12),('Reuse Inputs_Summary'!$C$12-ReuseWaterBalance!L32),0))) -> 0
A33: 1955-01-29 | B33: 1955 | C33: 1 | D33: 29 | E33: 0 | F33: 0 | G33: 0 | H33: =IF((ISNA((VLOOKUP(A33,'RunoffLook-up'!$G$5:$H$3442,2,FALSE))))=TRUE,0,VLOOKUP(A33,'RunoffLook-up'!$G$5:$H$3442,2,FALSE))*('Reuse Inputs_Summary'!$C$3/10) -> 0 | I33: ='Reuse Inputs_Summary'!$C$7 -> 0.075 | J33: 0 | K33: 0 | L33: 0 | M33: 0 | N33: =IF($C33<'Reuse Inputs_Summary'!$C$13,"NO",IF(($C33>'Reuse Inputs_Summary'!$C$14),"NO","YES")) -> NO | O33: NO | P33: =IF(N33="No",0,IF(AND(N33="Yes",O33="NO",L33>'Reuse Inputs_Summary'!$C$12),'Reuse Inputs_Summary'!$C$12,IF(AND(N33="Yes",O33="NO",L33<'Reuse Inputs_Summary'!$C$12,L33>0),L33,0))) -> 0 | Q33: =IF('Reuse Inputs_Summary'!$C$15=0,"NO","YES") -> YES | R33: 0 | S33: 0 | T33: =IF(N33="No",0,IF(AND(N33="Yes",O33="YES"),0,IF(AND(N33="Yes",O33="NO",ReuseWaterBalance!L33<'Reuse Inputs_Summary'!$C$12),('Reuse Inputs_Summary'!$C$12-ReuseWaterBalance!L33),0))) -> 0
A34: 1955-01-30 | B34: 1955 | C34: 1 | D34: 30 | E34: 0 | F34: 0 | G34: 0 | H34: =IF((ISNA((VLOOKUP(A34,'RunoffLook-up'!$G$5:$H$3442,2,FALSE))))=TRUE,0,VLOOKUP(A34,'RunoffLook-up'!$G$5:$H$3442,2,FALSE))*('Reuse Inputs_Summary'!$C$3/10) -> 0 | I34: ='Reuse Inputs_Summary'!$C$7 -> 0.075 | J34: 0 | K34: 0 | L34: 0 | M34: 0 | N34: =IF($C34<'Reuse Inputs_Summary'!$C$13,"NO",IF(($C34>'Reuse Inputs_Summary'!$C$14),"NO","YES")) -> NO | O34: NO | P34: =IF(N34="No",0,IF(AND(N34="Yes",O34="NO",L34>'Reuse Inputs_Summary'!$C$12),'Reuse Inputs_Summary'!$C$12,IF(AND(N34="Yes",O34="NO",L34<'Reuse Inputs_Summary'!$C$12,L34>0),L34,0))) -> 0 | Q34: =IF('Reuse Inputs_Summary'!$C$15=0,"NO","YES") -> YES | R34: 0 | S34: 0 | T34: =IF(N34="No",0,IF(AND(N34="Yes",O34="YES"),0,IF(AND(N34="Yes",O34="NO",ReuseWaterBalance!L34<'Reuse Inputs_Summary'!$C$12),('Reuse Inputs_Summary'!$C$12-ReuseWaterBalance!L34),0))) -> 0
A35: 1955-01-31 | B35: 1955 | C35: 1 | D35: 31 | E35: 0 | F35: 0 | G35: 0 | H35: =IF((ISNA((VLOOKUP(A35,'RunoffLook-up'!$G$5:$H$3442,2,FALSE))))=TRUE,0,VLOOKUP(A35,'RunoffLook-up'!$G$5:$H$3442,2,FALSE))*('Reuse Inputs_Summary'!$C$3/10) -> 0 | I35: ='Reuse Inputs_Summary'!$C$7 -> 0.075 | J35: 0 | K35: 0 | L35: 0 | M35: 0 | N35: =IF($C35<'Reuse Inputs_Summary'!$C$13,"NO",IF(($C35>'Reuse Inputs_Summary'!$C$14),"NO","YES")) -> NO | O35: NO | P35: =IF(N35="No",0,IF(AND(N35="Yes",O35="NO",L35>'Reuse Inputs_Summary'!$C$12),'Reuse Inputs_Summary'!$C$12,IF(AND(N35="Yes",O35="NO",L35<'Reuse Inputs_Summary'!$C$12,L35>0),L35,0))) -> 0 | Q35: =IF('Reuse Inputs_Summary'!$C$15=0,"NO","YES") -> YES | R35: 0 | S35: 0 | T35: =IF(N35="No",0,IF(AND(N35="Yes",O35="YES"),0,IF(AND(N35="Yes",O35="NO",ReuseWaterBalance!L35<'Reuse Inputs_Summary'!$C$12),('Reuse Inputs_Summary'!$C$12-ReuseWaterBalance!L35),0))) -> 0
A36: 1955-02-01 | B36: 1955 | C36: 2 | D36: 1 | E36: 0 | F36: 0 | G36: 0 | H36: =IF((ISNA((VLOOKUP(A36,'RunoffLook-up'!$G$5:$H$3442,2,FALSE))))=TRUE,0,VLOOKUP(A36,'RunoffLook-up'!$G$5:$H$3442,2,FALSE))*('Reuse Inputs_Summary'!$C$3/10) -> 0 | I36: ='Reuse Inputs_Summary'!$C$7 -> 0.075 | J36: 0 | K36: 0 | L36: 0 | M36: 0 | N36: =IF($C36<'Reuse Inputs_Summary'!$C$13,"NO",IF(($C36>'Reuse Inputs_Summary'!$C$14),"NO","YES")) -> NO | O36: NO | P36: =IF(N36="No",0,IF(AND(N36="Yes",O36="NO",L36>'Reuse Inputs_Summary'!$C$12),'Reuse Inputs_Summary'!$C$12,IF(AND(N36="Yes",O36="NO",L36<'Reuse Inputs_Summary'!$C$12,L36>0),L36,0))) -> 0 | Q36: =IF('Reuse Inputs_Summary'!$C$15=0,"NO","YES") -> YES | R36: 0 | S36: 0 | T36: =IF(N36="No",0,IF(AND(N36="Yes",O36="YES"),0,IF(AND(N36="Yes",O36="NO",ReuseWaterBalance!L36<'Reuse Inputs_Summary'!$C$12),('Reuse Inputs_Summary'!$C$12-ReuseWaterBalance!L36),0))) -> 0
A37: 1955-02-02 | B37: 1955 | C37: 2 | D37: 2 | E37: 0 | F37: 0 | G37: 0 | H37: =IF((ISNA((VLOOKUP(A37,'RunoffLook-up'!$G$5:$H$3442,2,FALSE))))=TRUE,0,VLOOKUP(A37,'RunoffLook-up'!$G$5:$H$3442,2,FALSE))*('Reuse Inputs_Summary'!$C$3/10) -> 0 | I37: ='Reuse Inputs_Summary'!$C$7 -> 0.075 | J37: 0 | K37: 0 | L37: 0 | M37: 0 | N37: =IF($C37<'Reuse Inputs_Summary'!$C$13,"NO",IF(($C37>'Reuse Inputs_Summary'!$C$14),"NO","YES")) -> NO | O37: NO | P37: =IF(N37="No",0,IF(AND(N37="Yes",O37="NO",L37>'Reuse Inputs_Summary'!$C$12),'Reuse Inputs_Summary'!$C$12,IF(AND(N37="Yes",O37="NO",L37<'Reuse Inputs_Summary'!$C$12,L37>0),L37,0))) -> 0 | Q37: =IF('Reuse Inputs_Summary'!$C$15=0,"NO","YES") -> YES | R37: 0 | S37: 0 | T37: =IF(N37="No",0,IF(AND(N37="Yes",O37="YES"),0,IF(AND(N37="Yes",O37="NO",ReuseWaterBalance!L37<'Reuse Inputs_Summary'!$C$12),('Reuse Inputs_Summary'!$C$12-ReuseWaterBalance!L37),0))) -> 0
A38: 1955-02-03 | B38: 1955 | C38: 2 | D38: 3 | E38: 0 | F38: 0 | G38: 0 | H38: =IF((ISNA((VLOOKUP(A38,'RunoffLook-up'!$G$5:$H$3442,2,FALSE))))=TRUE,0,VLOOKUP(A38,'RunoffLook-up'!$G$5:$H$3442,2,FALSE))*('Reuse Inputs_Summary'!$C$3/10) -> 0 | I38: ='Reuse Inputs_Summary'!$C$7 -> 0.075 | J38: 0 | K38: 0 | L38: 0 | M38: 0 | N38: =IF($C38<'Reuse Inputs_Summary'!$C$13,"NO",IF(($C38>'Reuse Inputs_Summary'!$C$14),"NO","YES")) -> NO | O38: NO | P38: =IF(N38="No",0,IF(AND(N38="Yes",O38="NO",L38>'Reuse Inputs_Summary'!$C$12),'Reuse Inputs_Summary'!$C$12,IF(AND(N38="Yes",O38="NO",L38<'Reuse Inputs_Summary'!$C$12,L38>0),L38,0))) -> 0 | Q38: =IF('Reuse Inputs_Summary'!$C$15=0,"NO","YES") -> YES | R38: 0 | S38: 0 | T38: =IF(N38="No",0,IF(AND(N38="Yes",O38="YES"),0,IF(AND(N38="Yes",O38="NO",ReuseWaterBalance!L38<'Reuse Inputs_Summary'!$C$12),('Reuse Inputs_Summary'!$C$12-ReuseWaterBalance!L38),0))) -> 0
A39: 1955-02-04 | B39: 1955 | C39: 2 | D39: 4 | E39: 0 | F39: 0 | G39: 0 | H39: =IF((ISNA((VLOOKUP(A39,'RunoffLook-up'!$G$5:$H$3442,2,FALSE))))=TRUE,0,VLOOKUP(A39,'RunoffLook-up'!$G$5:$H$3442,2,FALSE))*('Reuse Inputs_Summary'!$C$3/10) -> 0 | I39: ='Reuse Inputs_Summary'!$C$7 -> 0.075 | J39: 0 | K39: 0 | L39: 0 | M39: 0 | N39: =IF($C39<'Reuse Inputs_Summary'!$C$13,"NO",IF(($C39>'Reuse Inputs_Summary'!$C$14),"NO","YES")) -> NO | O39: NO | P39: =IF(N39="No",0,IF(AND(N39="Yes",O39="NO",L39>'Reuse Inputs_Summary'!$C$12),'Reuse Inputs_Summary'!$C$12,IF(AND(N39="Yes",O39="NO",L39<'Reuse Inputs_Summary'!$C$12,L39>0),L39,0))) -> 0 | Q39: =IF('Reuse Inputs_Summary'!$C$15=0,"NO","YES") -> YES | R39: 0 | S39: 0 | T39: =IF(N39="No",0,IF(AND(N39="Yes",O39="YES"),0,IF(AND(N39="Yes",O39="NO",ReuseWaterBalance!L39<'Reuse Inputs_Summary'!$C$12),('Reuse Inputs_Summary'!$C$12-ReuseWaterBalance!L39),0))) -> 0
A40: 1955-02-05 | B40: 1955 | C40: 2 | D40: 5 | E40: 0 | F40: 0 | G40: 0 | H40: =IF((ISNA((VLOOKUP(A40,'RunoffLook-up'!$G$5:$H$3442,2,FALSE))))=TRUE,0,VLOOKUP(A40,'RunoffLook-up'!$G$5:$H$3442,2,FALSE))*('Reuse Inputs_Summary'!$C$3/10) -> 0 | I40: ='Reuse Inputs_Summary'!$C$7 -> 0.075 | J40: 0 | K40: 0 | L40: 0 | M40: 0 | N40: =IF($C40<'Reuse Inputs_Summary'!$C$13,"NO",IF(($C40>'Reuse Inputs_Summary'!$C$14),"NO","YES")) -> NO | O40: NO | P40: =IF(N40="No",0,IF(AND(N40="Yes",O40="NO",L40>'Reuse Inputs_Summary'!$C$12),'Reuse Inputs_Summary'!$C$12,IF(AND(N40="Yes",O40="NO",L40<'Reuse Inputs_Summary'!$C$12,L40>0),L40,0))) -> 0 | Q40: =IF('Reuse Inputs_Summary'!$C$15=0,"NO","YES") -> YES | R40: 0 | S40: 0 | T40: =IF(N40="No",0,IF(AND(N40="Yes",O40="YES"),0,IF(AND(N40="Yes",O40="NO",ReuseWaterBalance!L40<'Reuse Inputs_Summary'!$C$12),('Reuse Inputs_Summary'!$C$12-ReuseWaterBalance!L40),0))) -> 0
A41: 1955-02-06 | B41: 1955 | C41: 2 | D41: 6 | E41: 0 | F41: 0 | G41: 0 | H41: =IF((ISNA((VLOOKUP(A41,'RunoffLook-up'!$G$5:$H$3442,2,FALSE))))=TRUE,0,VLOOKUP(A41,'RunoffLook-up'!$G$5:$H$3442,2,FALSE))*('Reuse Inputs_Summary'!$C$3/10) -> 0 | I41: ='Reuse Inputs_Summary'!$C$7 -> 0.075 | J41: 0 | K41: 0 | L41: 0 | M41: 0 | N41: =IF($C41<'Reuse Inputs_Summary'!$C$13,"NO",IF(($C41>'Reuse Inputs_Summary'!$C$14),"NO","YES")) -> NO | O41: NO | P41: =IF(N41="No",0,IF(AND(N41="Yes",O41="NO",L41>'Reuse Inputs_Summary'!$C$12),'Reuse Inputs_Summary'!$C$12,IF(AND(N41="Yes",O41="NO",L41<'Reuse Inputs_Summary'!$C$12,L41>0),L41,0))) -> 0 | Q41: =IF('Reuse Inputs_Summary'!$C$15=0,"NO","YES") -> YES | R41: 0 | S41: 0 | T41: =IF(N41="No",0,IF(AND(N41="Yes",O41="YES"),0,IF(AND(N41="Yes",O41="NO",ReuseWaterBalance!L41<'Reuse Inputs_Summary'!$C$12),('Reuse Inputs_Summary'!$C$12-ReuseWaterBalance!L41),0))) -> 0
A42: 1955-02-07 | B42: 1955 | C42: 2 | D42: 7 | E42: 0 | F42: 0 | G42: 0 | H42: =IF((ISNA((VLOOKUP(A42,'RunoffLook-up'!$G$5:$H$3442,2,FALSE))))=TRUE,0,VLOOKUP(A42,'RunoffLook-up'!$G$5:$H$3442,2,FALSE))*('Reuse Inputs_Summary'!$C$3/10) -> 0 | I42: ='Reuse Inputs_Summary'!$C$7 -> 0.075 | J42: 0 | K42: 0 | L42: 0 | M42: 0 | N42: =IF($C42<'Reuse Inputs_Summary'!$C$13,"NO",IF(($C42>'Reuse Inputs_Summary'!$C$14),"NO","YES")) -> NO | O42: NO | P42: =IF(N42="No",0,IF(AND(N42="Yes",O42="NO",L42>'Reuse Inputs_Summary'!$C$12),'Reuse Inputs_Summary'!$C$12,IF(AND(N42="Yes",O42="NO",L42<'Reuse Inputs_Summary'!$C$12,L42>0),L42,0))) -> 0 | Q42: =IF('Reuse Inputs_Summary'!$C$15=0,"NO","YES") -> YES | R42: 0 | S42: 0 | T42: =IF(N42="No",0,IF(AND(N42="Yes",O42="YES"),0,IF(AND(N42="Yes",O42="NO",ReuseWaterBalance!L42<'Reuse Inputs_Summary'!$C$12),('Reuse Inputs_Summary'!$C$12-ReuseWaterBalance!L42),0))) -> 0
A43: 1955-02-08 | B43: 1955 | C43: 2 | D43: 8 | E43: 0 | F43: 0 | G43: 0 | H43: =IF((ISNA((VLOOKUP(A43,'RunoffLook-up'!$G$5:$H$3442,2,FALSE))))=TRUE,0,VLOOKUP(A43,'RunoffLook-up'!$G$5:$H$3442,2,FALSE))*('Reuse Inputs_Summary'!$C$3/10) -> 0 | I43: ='Reuse Inputs_Summary'!$C$7 -> 0.075 | J43: 0 | K43: 0 | L43: 0 | M43: 0 | N43: =IF($C43<'Reuse Inputs_Summary'!$C$13,"NO",IF(($C43>'Reuse Inputs_Summary'!$C$14),"NO","YES")) -> NO | O43: NO | P43: =IF(N43="No",0,IF(AND(N43="Yes",O43="NO",L43>'Reuse Inputs_Summary'!$C$12),'Reuse Inputs_Summary'!$C$12,IF(AND(N43="Yes",O43="NO",L43<'Reuse Inputs_Summary'!$C$12,L43>0),L43,0))) -> 0 | Q43: =IF('Reuse Inputs_Summary'!$C$15=0,"NO","YES") -> YES | R43: 0 | S43: 0 | T43: =IF(N43="No",0,IF(AND(N43="Yes",O43="YES"),0,IF(AND(N43="Yes",O43="NO",ReuseWaterBalance!L43<'Reuse Inputs_Summary'!$C$12),('Reuse Inputs_Summary'!$C$12-ReuseWaterBalance!L43),0))) -> 0
A44: 1955-02-09 | B44: 1955 | C44: 2 | D44: 9 | E44: 0 | F44: 0 | G44: 0 | H44: =IF((ISNA((VLOOKUP(A44,'RunoffLook-up'!$G$5:$H$3442,2,FALSE))))=TRUE,0,VLOOKUP(A44,'RunoffLook-up'!$G$5:$H$3442,2,FALSE))*('Reuse Inputs_Summary'!$C$3/10) -> 0 | I44: ='Reuse Inputs_Summary'!$C$7 -> 0.075 | J44: 0 | K44: 0 | L44: 0 | M44: 0 | N44: =IF($C44<'Reuse Inputs_Summary'!$C$13,"NO",IF(($C44>'Reuse Inputs_Summary'!$C$14),"NO","YES")) -> NO | O44: NO | P44: =IF(N44="No",0,IF(AND(N44="Yes",O44="NO",L44>'Reuse Inputs_Summary'!$C$12),'Reuse Inputs_Summary'!$C$12,IF(AND(N44="Yes",O44="NO",L44<'Reuse Inputs_Summary'!$C$12,L44>0),L44,0))) -> 0 | Q44: =IF('Reuse Inputs_Summary'!$C$15=0,"NO","YES") -> YES | R44: 0 | S44: 0 | T44: =IF(N44="No",0,IF(AND(N44="Yes",O44="YES"),0,IF(AND(N44="Yes",O44="NO",ReuseWaterBalance!L44<'Reuse Inputs_Summary'!$C$12),('Reuse Inputs_Summary'!$C$12-ReuseWaterBalance!L44),0))) -> 0
A45: 1955-02-10 | B45: 1955 | C45: 2 | D45: 10 | E45: 0 | F45: 0 | G45: 0 | H45: =IF((ISNA((VLOOKUP(A45,'RunoffLook-up'!$G$5:$H$3442,2,FALSE))))=TRUE,0,VLOOKUP(A45,'RunoffLook-up'!$G$5:$H$3442,2,FALSE))*('Reuse Inputs_Summary'!$C$3/10) -> 0 | I45: ='Reuse Inputs_Summary'!$C$7 -> 0.075 | J45: 0 | K45: 0 | L45: 0 | M45: 0 | N45: =IF($C45<'Reuse Inputs_Summary'!$C$13,"NO",IF(($C45>'Reuse Inputs_Summary'!$C$14),"NO","YES")) -> NO | O45: NO | P45: =IF(N45="No",0,IF(AND(N45="Yes",O45="NO",L45>'Reuse Inputs_Summary'!$C$12),'Reuse Inputs_Summary'!$C$12,IF(AND(N45="Yes",O45="NO",L45<'Reuse Inputs_Summary'!$C$12,L45>0),L45,0))) -> 0 | Q45: =IF('Reuse Inputs_Summary'!$C$15=0,"NO","YES") -> YES | R45: 0 | S45: 0 | T45: =IF(N45="No",0,IF(AND(N45="Yes",O45="YES"),0,IF(AND(N45="Yes",O45="NO",ReuseWaterBalance!L45<'Reuse Inputs_Summary'!$C$12),('Reuse Inputs_Summary'!$C$12-ReuseWaterBalance!L45),0))) -> 0
A46: 1955-02-11 | B46: 1955 | C46: 2 | D46: 11 | E46: 0 | F46: 0 | G46: 0 | H46: =IF((ISNA((VLOOKUP(A46,'RunoffLook-up'!$G$5:$H$3442,2,FALSE))))=TRUE,0,VLOOKUP(A46,'RunoffLook-up'!$G$5:$H$3442,2,FALSE))*('Reuse Inputs_Summary'!$C$3/10) -> 0 | I46: ='Reuse Inputs_Summary'!$C$7 -> 0.075 | J46: 0 | K46: 0 | L46: 0 | M46: 0 | N46: =IF($C46<'Reuse Inputs_Summary'!$C$13,"NO",IF(($C46>'Reuse Inputs_Summary'!$C$14),"NO","YES")) -> NO | O46: NO | P46: =IF(N46="No",0,IF(AND(N46="Yes",O46="NO",L46>'Reuse Inputs_Summary'!$C$12),'Reuse Inputs_Summary'!$C$12,IF(AND(N46="Yes",O46="NO",L46<'Reuse Inputs_Summary'!$C$12,L46>0),L46,0))) -> 0 | Q46: =IF('Reuse Inputs_Summary'!$C$15=0,"NO","YES") -> YES | R46: 0 | S46: 0 | T46: =IF(N46="No",0,IF(AND(N46="Yes",O46="YES"),0,IF(AND(N46="Yes",O46="NO",ReuseWaterBalance!L46<'Reuse Inputs_Summary'!$C$12),('Reuse Inputs_Summary'!$C$12-ReuseWaterBalance!L46),0))) -> 0
A47: 1955-02-12 | B47: 1955 | C47: 2 | D47: 12 | E47: 0 | F47: 0 | G47: 0 | H47: =IF((ISNA((VLOOKUP(A47,'RunoffLook-up'!$G$5:$H$3442,2,FALSE))))=TRUE,0,VLOOKUP(A47,'RunoffLook-up'!$G$5:$H$3442,2,FALSE))*('Reuse Inputs_Summary'!$C$3/10) -> 0 | I47: ='Reuse Inputs_Summary'!$C$7 -> 0.075 | J47: 0 | K47: 0 | L47: 0 | M47: 0 | N47: =IF($C47<'Reuse Inputs_Summary'!$C$13,"NO",IF(($C47>'Reuse Inputs_Summary'!$C$14),"NO","YES")) -> NO | O47: NO | P47: =IF(N47="No",0,IF(AND(N47="Yes",O47="NO",L47>'Reuse Inputs_Summary'!$C$12),'Reuse Inputs_Summary'!$C$12,IF(AND(N47="Yes",O47="NO",L47<'Reuse Inputs_Summary'!$C$12,L47>0),L47,0))) -> 0 | Q47: =IF('Reuse Inputs_Summary'!$C$15=0,"NO","YES") -> YES | R47: 0 | S47: 0 | T47: =IF(N47="No",0,IF(AND(N47="Yes",O47="YES"),0,IF(AND(N47="Yes",O47="NO",ReuseWaterBalance!L47<'Reuse Inputs_Summary'!$C$12),('Reuse Inputs_Summary'!$C$12-ReuseWaterBalance!L47),0))) -> 0
A48: 1955-02-13 | B48: 1955 | C48: 2 | D48: 13 | E48: 0 | F48: 0 | G48: 0 | H48: =IF((ISNA((VLOOKUP(A48,'RunoffLook-up'!$G$5:$H$3442,2,FALSE))))=TRUE,0,VLOOKUP(A48,'RunoffLook-up'!$G$5:$H$3442,2,FALSE))*('Reuse Inputs_Summary'!$C$3/10) -> 0 | I48: ='Reuse Inputs_Summary'!$C$7 -> 0.075 | J48: 0 | K48: 0 | L48: 0 | M48: 0 | N48: =IF($C48<'Reuse Inputs_Summary'!$C$13,"NO",IF(($C48>'Reuse Inputs_Summary'!$C$14),"NO","YES")) -> NO | O48: NO | P48: =IF(N48="No",0,IF(AND(N48="Yes",O48="NO",L48>'Reuse Inputs_Summary'!$C$12),'Reuse Inputs_Summary'!$C$12,IF(AND(N48="Yes",O48="NO",L48<'Reuse Inputs_Summary'!$C$12,L48>0),L48,0))) -> 0 | Q48: =IF('Reuse Inputs_Summary'!$C$15=0,"NO","YES") -> YES | R48: 0 | S48: 0 | T48: =IF(N48="No",0,IF(AND(N48="Yes",O48="YES"),0,IF(AND(N48="Yes",O48="NO",ReuseWaterBalance!L48<'Reuse Inputs_Summary'!$C$12),('Reuse Inputs_Summary'!$C$12-ReuseWaterBalance!L48),0))) -> 0
A49: 1955-02-14 | B49: 1955 | C49: 2 | D49: 14 | E49: 0 | F49: 0 | G49: 0 | H49: =IF((ISNA((VLOOKUP(A49,'RunoffLook-up'!$G$5:$H$3442,2,FALSE))))=TRUE,0,VLOOKUP(A49,'RunoffLook-up'!$G$5:$H$3442,2,FALSE))*('Reuse Inputs_Summary'!$C$3/10) -> 0 | I49: ='Reuse Inputs_Summary'!$C$7 -> 0.075 | J49: 0 | K49: 0 | L49: 0 | M49: 0 | N49: =IF($C49<'Reuse Inputs_Summary'!$C$13,"NO",IF(($C49>'Reuse Inputs_Summary'!$C$14),"NO","YES")) -> NO | O49: NO | P49: =IF(N49="No",0,IF(AND(N49="Yes",O49="NO",L49>'Reuse Inputs_Summary'!$C$12),'Reuse Inputs_Summary'!$C$12,IF(AND(N49="Yes",O49="NO",L49<'Reuse Inputs_Summary'!$C$12,L49>0),L49,0))) -> 0 | Q49: =IF('Reuse Inputs_Summary'!$C$15=0,"NO","YES") -> YES | R49: 0 | S49: 0 | T49: =IF(N49="No",0,IF(AND(N49="Yes",O49="YES"),0,IF(AND(N49="Yes",O49="NO",ReuseWaterBalance!L49<'Reuse Inputs_Summary'!$C$12),('Reuse Inputs_Summary'!$C$12-ReuseWaterBalance!L49),0))) -> 0
A50: 1955-02-15 | B50: 1955 | C50: 2 | D50: 15 | E50: 0 | F50: 0 | G50: 0 | H50: =IF((ISNA((VLOOKUP(A50,'RunoffLook-up'!$G$5:$H$3442,2,FALSE))))=TRUE,0,VLOOKUP(A50,'RunoffLook-up'!$G$5:$H$3442,2,FALSE))*('Reuse Inputs_Summary'!$C$3/10) -> 0 | I50: ='Reuse Inputs_Summary'!$C$7 -> 0.075 | J50: 0 | K50: 0 | L50: 0 | M50: 0 | N50: =IF($C50<'Reuse Inputs_Summary'!$C$13,"NO",IF(($C50>'Reuse Inputs_Summary'!$C$14),"NO","YES")) -> NO | O50: NO | P50: =IF(N50="No",0,IF(AND(N50="Yes",O50="NO",L50>'Reuse Inputs_Summary'!$C$12),'Reuse Inputs_Summary'!$C$12,IF(AND(N50="Yes",O50="NO",L50<'Reuse Inputs_Summary'!$C$12,L50>0),L50,0))) -> 0 | Q50: =IF('Reuse Inputs_Summary'!$C$15=0,"NO","YES") -> YES | R50: 0 | S50: 0 | T50: =IF(N50="No",0,IF(AND(N50="Yes",O50="YES"),0,IF(AND(N50="Yes",O50="NO",ReuseWaterBalance!L50<'Reuse Inputs_Summary'!$C$12),('Reuse Inputs_Summary'!$C$12-ReuseWaterBalance!L50),0))) -> 0
A51: 1955-02-16 | B51: 1955 | C51: 2 | D51: 16 | E51: 0 | F51: 0 | G51: 0 | H51: =IF((ISNA((VLOOKUP(A51,'RunoffLook-up'!$G$5:$H$3442,2,FALSE))))=TRUE,0,VLOOKUP(A51,'RunoffLook-up'!$G$5:$H$3442,2,FALSE))*('Reuse Inputs_Summary'!$C$3/10) -> 0 | I51: ='Reuse Inputs_Summary'!$C$7 -> 0.075 | J51: 0 | K51: 0 | L51: 0 | M51: 0 | N51: =IF($C51<'Reuse Inputs_Summary'!$C$13,"NO",IF(($C51>'Reuse Inputs_Summary'!$C$14),"NO","YES")) -> NO | O51: NO | P51: =IF(N51="No",0,IF(AND(N51="Yes",O51="NO",L51>'Reuse Inputs_Summary'!$C$12),'Reuse Inputs_Summary'!$C$12,IF(AND(N51="Yes",O51="NO",L51<'Reuse Inputs_Summary'!$C$12,L51>0),L51,0))) -> 0 | Q51: =IF('Reuse Inputs_Summary'!$C$15=0,"NO","YES") -> YES | R51: 0 | S51: 0 | T51: =IF(N51="No",0,IF(AND(N51="Yes",O51="YES"),0,IF(AND(N51="Yes",O51="NO",ReuseWaterBalance!L51<'Reuse Inputs_Summary'!$C$12),('Reuse Inputs_Summary'!$C$12-ReuseWaterBalance!L51),0))) -> 0
A52: 1955-02-17 | B52: 1955 | C52: 2 | D52: 17 | E52: 0 | F52: 0 | G52: 0 | H52: =IF((ISNA((VLOOKUP(A52,'RunoffLook-up'!$G$5:$H$3442,2,FALSE))))=TRUE,0,VLOOKUP(A52,'RunoffLook-up'!$G$5:$H$3442,2,FALSE))*('Reuse Inputs_Summary'!$C$3/10) -> 0 | I52: ='Reuse Inputs_Summary'!$C$7 -> 0.075 | J52: 0 | K52: 0 | L52: 0 | M52: 0 | N52: =IF($C52<'Reuse Inputs_Summary'!$C$13,"NO",IF(($C52>'Reuse Inputs_Summary'!$C$14),"NO","YES")) -> NO | O52: NO | P52: =IF(N52="No",0,IF(AND(N52="Yes",O52="NO",L52>'Reuse Inputs_Summary'!$C$12),'Reuse Inputs_Summary'!$C$12,IF(AND(N52="Yes",O52="NO",L52<'Reuse Inputs_Summary'!$C$12,L52>0),L52,0))) -> 0 | Q52: =IF('Reuse Inputs_Summary'!$C$15=0,"NO","YES") -> YES | R52: 0 | S52: 0 | T52: =IF(N52="No",0,IF(AND(N52="Yes",O52="YES"),0,IF(AND(N52="Yes",O52="NO",ReuseWaterBalance!L52<'Reuse Inputs_Summary'!$C$12),('Reuse Inputs_Summary'!$C$12-ReuseWaterBalance!L52),0))) -> 0
A53: 1955-02-18 | B53: 1955 | C53: 2 | D53: 18 | E53: 0 | F53: 0.03 | G53: 0.03 | H53: =IF((ISNA((VLOOKUP(A53,'RunoffLook-up'!$G$5:$H$3442,2,FALSE))))=TRUE,0,VLOOKUP(A53,'RunoffLook-up'!$G$5:$H$3442,2,FALSE))*('Reuse Inputs_Summary'!$C$3/10) -> 0 | I53: ='Reuse Inputs_Summary'!$C$7 -> 0.075 | J53: 0 | K53: 0 | L53: 0 | M53: 0 | N53: =IF($C53<'Reuse Inputs_Summary'!$C$13,"NO",IF(($C53>'Reuse Inputs_Summary'!$C$14),"NO","YES")) -> NO | O53: YES | P53: =IF(N53="No",0,IF(AND(N53="Yes",O53="NO",L53>'Reuse Inputs_Summary'!$C$12),'Reuse Inputs_Summary'!$C$12,IF(AND(N53="Yes",O53="NO",L53<'Reuse Inputs_Summary'!$C$12,L53>0),L53,0))) -> 0 | Q53: =IF('Reuse Inputs_Summary'!$C$15=0,"NO","YES") -> YES | R53: 0 | S53: 0 | T53: =IF(N53="No",0,IF(AND(N53="Yes",O53="YES"),0,IF(AND(N53="Yes",O53="NO",ReuseWaterBalance!L53<'Reuse Inputs_Summary'!$C$12),('Reuse Inputs_Summary'!$C$12-ReuseWaterBalance!L53),0))) -> 0
A54: 1955-02-19 | B54: 1955 | C54: 2 | D54: 19 | E54: 0 | F54: 0 | G54: 0 | H54: =IF((ISNA((VLOOKUP(A54,'RunoffLook-up'!$G$5:$H$3442,2,FALSE))))=TRUE,0,VLOOKUP(A54,'RunoffLook-up'!$G$5:$H$3442,2,FALSE))*('Reuse Inputs_Summary'!$C$3/10) -> 0 | I54: ='Reuse Inputs_Summary'!$C$7 -> 0.075 | J54: 0 | K54: 0 | L54: 0 | M54: 0 | N54: =IF($C54<'Reuse Inputs_Summary'!$C$13,"NO",IF(($C54>'Reuse Inputs_Summary'!$C$14),"NO","YES")) -> NO | O54: NO | P54: =IF(N54="No",0,IF(AND(N54="Yes",O54="NO",L54>'Reuse Inputs_Summary'!$C$12),'Reuse Inputs_Summary'!$C$12,IF(AND(N54="Yes",O54="NO",L54<'Reuse Inputs_Summary'!$C$12,L54>0),L54,0))) -> 0 | Q54: =IF('Reuse Inputs_Summary'!$C$15=0,"NO","YES") -> YES | R54: 0 | S54: 0 | T54: =IF(N54="No",0,IF(AND(N54="Yes",O54="YES"),0,IF(AND(N54="Yes",O54="NO",ReuseWaterBalance!L54<'Reuse Inputs_Summary'!$C$12),('Reuse Inputs_Summary'!$C$12-ReuseWaterBalance!L54),0))) -> 0
A55: 1955-02-20 | B55: 1955 | C55: 2 | D55: 20 | E55: 0 | F55: 0 | G55: 0 | H55: =IF((ISNA((VLOOKUP(A55,'RunoffLook-up'!$G$5:$H$3442,2,FALSE))))=TRUE,0,VLOOKUP(A55,'RunoffLook-up'!$G$5:$H$3442,2,FALSE))*('Reuse Inputs_Summary'!$C$3/10) -> 0 | I55: ='Reuse Inputs_Summary'!$C$7 -> 0.075 | J55: 0 | K55: 0 | L55: 0 | M55: 0 | N55: =IF($C55<'Reuse Inputs_Summary'!$C$13,"NO",IF(($C55>'Reuse Inputs_Summary'!$C$14),"NO","YES")) -> NO | O55: NO | P55: =IF(N55="No",0,IF(AND(N55="Yes",O55="NO",L55>'Reuse Inputs_Summary'!$C$12),'Reuse Inputs_Summary'!$C$12,IF(AND(N55="Yes",O55="NO",L55<'Reuse Inputs_Summary'!$C$12,L55>0),L55,0))) -> 0 | Q55: =IF('Reuse Inputs_Summary'!$C$15=0,"NO","YES") -> YES | R55: 0 | S55: 0 | T55: =IF(N55="No",0,IF(AND(N55="Yes",O55="YES"),0,IF(AND(N55="Yes",O55="NO",ReuseWaterBalance!L55<'Reuse Inputs_Summary'!$C$12),('Reuse Inputs_Summary'!$C$12-ReuseWaterBalance!L55),0))) -> 0
A56: 1955-02-21 | B56: 1955 | C56: 2 | D56: 21 | E56: 0 | F56: 0 | G56: 0 | H56: =IF((ISNA((VLOOKUP(A56,'RunoffLook-up'!$G$5:$H$3442,2,FALSE))))=TRUE,0,VLOOKUP(A56,'RunoffLook-up'!$G$5:$H$3442,2,FALSE))*('Reuse Inputs_Summary'!$C$3/10) -> 0 | I56: ='Reuse Inputs_Summary'!$C$7 -> 0.075 | J56: 0 | K56: 0 | L56: 0 | M56: 0 | N56: =IF($C56<'Reuse Inputs_Summary'!$C$13,"NO",IF(($C56>'Reuse Inputs_Summary'!$C$14),"NO","YES")) -> NO | O56: NO | P56: =IF(N56="No",0,IF(AND(N56="Yes",O56="NO",L56>'Reuse Inputs_Summary'!$C$12),'Reuse Inputs_Summary'!$C$12,IF(AND(N56="Yes",O56="NO",L56<'Reuse Inputs_Summary'!$C$12,L56>0),L56,0))) -> 0 | Q56: =IF('Reuse Inputs_Summary'!$C$15=0,"NO","YES") -> YES | R56: 0 | S56: 0 | T56: =IF(N56="No",0,IF(AND(N56="Yes",O56="YES"),0,IF(AND(N56="Yes",O56="NO",ReuseWaterBalance!L56<'Reuse Inputs_Summary'!$C$12),('Reuse Inputs_Summary'!$C$12-ReuseWaterBalance!L56),0))) -> 0
A57: 1955-02-22 | B57: 1955 | C57: 2 | D57: 22 | E57: 0 | F57: 0 | G57: 0 | H57: =IF((ISNA((VLOOKUP(A57,'RunoffLook-up'!$G$5:$H$3442,2,FALSE))))=TRUE,0,VLOOKUP(A57,'RunoffLook-up'!$G$5:$H$3442,2,FALSE))*('Reuse Inputs_Summary'!$C$3/10) -> 0 | I57: ='Reuse Inputs_Summary'!$C$7 -> 0.075 | J57: 0 | K57: 0 | L57: 0 | M57: 0 | N57: =IF($C57<'Reuse Inputs_Summary'!$C$13,"NO",IF(($C57>'Reuse Inputs_Summary'!$C$14),"NO","YES")) -> NO | O57: NO | P57: =IF(N57="No",0,IF(AND(N57="Yes",O57="NO",L57>'Reuse Inputs_Summary'!$C$12),'Reuse Inputs_Summary'!$C$12,IF(AND(N57="Yes",O57="NO",L57<'Reuse Inputs_Summary'!$C$12,L57>0),L57,0))) -> 0 | Q57: =IF('Reuse Inputs_Summary'!$C$15=0,"NO","YES") -> YES | R57: 0 | S57: 0 | T57: =IF(N57="No",0,IF(AND(N57="Yes",O57="YES"),0,IF(AND(N57="Yes",O57="NO",ReuseWaterBalance!L57<'Reuse Inputs_Summary'!$C$12),('Reuse Inputs_Summary'!$C$12-ReuseWaterBalance!L57),0))) -> 0
A58: 1955-02-23 | B58: 1955 | C58: 2 | D58: 23 | E58: 0 | F58: 0 | G58: 0 | H58: =IF((ISNA((VLOOKUP(A58,'RunoffLook-up'!$G$5:$H$3442,2,FALSE))))=TRUE,0,VLOOKUP(A58,'RunoffLook-up'!$G$5:$H$3442,2,FALSE))*('Reuse Inputs_Summary'!$C$3/10) -> 0 | I58: ='Reuse Inputs_Summary'!$C$7 -> 0.075 | J58: 0 | K58: 0 | L58: 0 | M58: 0 | N58: =IF($C58<'Reuse Inputs_Summary'!$C$13,"NO",IF(($C58>'Reuse Inputs_Summary'!$C$14),"NO","YES")) -> NO | O58: NO | P58: =IF(N58="No",0,IF(AND(N58="Yes",O58="NO",L58>'Reuse Inputs_Summary'!$C$12),'Reuse Inputs_Summary'!$C$12,IF(AND(N58="Yes",O58="NO",L58<'Reuse Inputs_Summary'!$C$12,L58>0),L58,0))) -> 0 | Q58: =IF('Reuse Inputs_Summary'!$C$15=0,"NO","YES") -> YES | R58: 0 | S58: 0 | T58: =IF(N58="No",0,IF(AND(N58="Yes",O58="YES"),0,IF(AND(N58="Yes",O58="NO",ReuseWaterBalance!L58<'Reuse Inputs_Summary'!$C$12),('Reuse Inputs_Summary'!$C$12-ReuseWaterBalance!L58),0))) -> 0
A59: 1955-02-24 | B59: 1955 | C59: 2 | D59: 24 | E59: 0 | F59: 0 | G59: 0 | H59: =IF((ISNA((VLOOKUP(A59,'RunoffLook-up'!$G$5:$H$3442,2,FALSE))))=TRUE,0,VLOOKUP(A59,'RunoffLook-up'!$G$5:$H$3442,2,FALSE))*('Reuse Inputs_Summary'!$C$3/10) -> 0 | I59: ='Reuse Inputs_Summary'!$C$7 -> 0.075 | J59: 0 | K59: 0 | L59: 0 | M59: 0 | N59: =IF($C59<'Reuse Inputs_Summary'!$C$13,"NO",IF(($C59>'Reuse Inputs_Summary'!$C$14),"NO","YES")) -> NO | O59: NO | P59: =IF(N59="No",0,IF(AND(N59="Yes",O59="NO",L59>'Reuse Inputs_Summary'!$C$12),'Reuse Inputs_Summary'!$C$12,IF(AND(N59="Yes",O59="NO",L59<'Reuse Inputs_Summary'!$C$12,L59>0),L59,0))) -> 0 | Q59: =IF('Reuse Inputs_Summary'!$C$15=0,"NO","YES") -> YES | R59: 0 | S59: 0 | T59: =IF(N59="No",0,IF(AND(N59="Yes",O59="YES"),0,IF(AND(N59="Yes",O59="NO",ReuseWaterBalance!L59<'Reuse Inputs_Summary'!$C$12),('Reuse Inputs_Summary'!$C$12-ReuseWaterBalance!L59),0))) -> 0
A60: 1955-02-25 | B60: 1955 | C60: 2 | D60: 25 | E60: 0 | F60: 0 | G60: 0 | H60: =IF((ISNA((VLOOKUP(A60,'RunoffLook-up'!$G$5:$H$3442,2,FALSE))))=TRUE,0,VLOOKUP(A60,'RunoffLook-up'!$G$5:$H$3442,2,FALSE))*('Reuse Inputs_Summary'!$C$3/10) -> 0 | I60: ='Reuse Inputs_Summary'!$C$7 -> 0.075 | J60: 0 | K60: 0 | L60: 0 | M60: 0 | N60: =IF($C60<'Reuse Inputs_Summary'!$C$13,"NO",IF(($C60>'Reuse Inputs_Summary'!$C$14),"NO","YES")) -> NO | O60: NO | P60: =IF(N60="No",0,IF(AND(N60="Yes",O60="NO",L60>'Reuse Inputs_Summary'!$C$12),'Reuse Inputs_Summary'!$C$12,IF(AND(N60="Yes",O60="NO",L60<'Reuse Inputs_Summary'!$C$12,L60>0),L60,0))) -> 0 | Q60: =IF('Reuse Inputs_Summary'!$C$15=0,"NO","YES") -> YES | R60: 0 | S60: 0 | T60: =IF(N60="No",0,IF(AND(N60="Yes",O60="YES"),0,IF(AND(N60="Yes",O60="NO",ReuseWaterBalance!L60<'Reuse Inputs_Summary'!$C$12),('Reuse Inputs_Summary'!$C$12-ReuseWaterBalance!L60),0))) -> 0
A61: 1955-02-26 | B61: 1955 | C61: 2 | D61: 26 | E61: 0 | F61: 0 | G61: 0 | H61: =IF((ISNA((VLOOKUP(A61,'RunoffLook-up'!$G$5:$H$3442,2,FALSE))))=TRUE,0,VLOOKUP(A61,'RunoffLook-up'!$G$5:$H$3442,2,FALSE))*('Reuse Inputs_Summary'!$C$3/10) -> 0 | I61: ='Reuse Inputs_Summary'!$C$7 -> 0.075 | J61: 0 | K61: 0 | L61: 0 | M61: 0 | N61: =IF($C61<'Reuse Inputs_Summary'!$C$13,"NO",IF(($C61>'Reuse Inputs_Summary'!$C$14),"NO","YES")) -> NO | O61: NO | P61: =IF(N61="No",0,IF(AND(N61="Yes",O61="NO",L61>'Reuse Inputs_Summary'!$C$12),'Reuse Inputs_Summary'!$C$12,IF(AND(N61="Yes",O61="NO",L61<'Reuse Inputs_Summary'!$C$12,L61>0),L61,0))) -> 0 | Q61: =IF('Reuse Inputs_Summary'!$C$15=0,"NO","YES") -> YES | R61: 0 | S61: 0 | T61: =IF(N61="No",0,IF(AND(N61="Yes",O61="YES"),0,IF(AND(N61="Yes",O61="NO",ReuseWaterBalance!L61<'Reuse Inputs_Summary'!$C$12),('Reuse Inputs_Summary'!$C$12-ReuseWaterBalance!L61),0))) -> 0
A62: 1955-02-27 | B62: 1955 | C62: 2 | D62: 27 | E62: 0 | F62: 0 | G62: 0 | H62: =IF((ISNA((VLOOKUP(A62,'RunoffLook-up'!$G$5:$H$3442,2,FALSE))))=TRUE,0,VLOOKUP(A62,'RunoffLook-up'!$G$5:$H$3442,2,FALSE))*('Reuse Inputs_Summary'!$C$3/10) -> 0 | I62: ='Reuse Inputs_Summary'!$C$7 -> 0.075 | J62: 0 | K62: 0 | L62: 0 | M62: 0 | N62: =IF($C62<'Reuse Inputs_Summary'!$C$13,"NO",IF(($C62>'Reuse Inputs_Summary'!$C$14),"NO","YES")) -> NO | O62: NO | P62: =IF(N62="No",0,IF(AND(N62="Yes",O62="NO",L62>'Reuse Inputs_Summary'!$C$12),'Reuse Inputs_Summary'!$C$12,IF(AND(N62="Yes",O62="NO",L62<'Reuse Inputs_Summary'!$C$12,L62>0),L62,0))) -> 0 | Q62: =IF('Reuse Inputs_Summary'!$C$15=0,"NO","YES") -> YES | R62: 0 | S62: 0 | T62: =IF(N62="No",0,IF(AND(N62="Yes",O62="YES"),0,IF(AND(N62="Yes",O62="NO",ReuseWaterBalance!L62<'Reuse Inputs_Summary'!$C$12),('Reuse Inputs_Summary'!$C$12-ReuseWaterBalance!L62),0))) -> 0
A63: 1955-02-28 | B63: 1955 | C63: 2 | D63: 28 | E63: 0 | F63: 0 | G63: 0 | H63: =IF((ISNA((VLOOKUP(A63,'RunoffLook-up'!$G$5:$H$3442,2,FALSE))))=TRUE,0,VLOOKUP(A63,'RunoffLook-up'!$G$5:$H$3442,2,FALSE))*('Reuse Inputs_Summary'!$C$3/10) -> 0 | I63: ='Reuse Inputs_Summary'!$C$7 -> 0.075 | J63: 0 | K63: 0 | L63: 0 | M63: 0 | N63: =IF($C63<'Reuse Inputs_Summary'!$C$13,"NO",IF(($C63>'Reuse Inputs_Summary'!$C$14),"NO","YES")) -> NO | O63: NO | P63: =IF(N63="No",0,IF(AND(N63="Yes",O63="NO",L63>'Reuse Inputs_Summary'!$C$12),'Reuse Inputs_Summary'!$C$12,IF(AND(N63="Yes",O63="NO",L63<'Reuse Inputs_Summary'!$C$12,L63>0),L63,0))) -> 0 | Q63: =IF('Reuse Inputs_Summary'!$C$15=0,"NO","YES") -> YES | R63: 0 | S63: 0 | T63: =IF(N63="No",0,IF(AND(N63="Yes",O63="YES"),0,IF(AND(N63="Yes",O63="NO",ReuseWaterBalance!L63<'Reuse Inputs_Summary'!$C$12),('Reuse Inputs_Summary'!$C$12-ReuseWaterBalance!L63),0))) -> 0
A64: 1955-03-01 | B64: 1955 | C64: 3 | D64: 1 | E64: 0 | F64: 2.28 | G64: 2.28 | H64: =IF((ISNA((VLOOKUP(A64,'RunoffLook-up'!$G$5:$H$3442,2,FALSE))))=TRUE,0,VLOOKUP(A64,'RunoffLook-up'!$G$5:$H$3442,2,FALSE))*('Reuse Inputs_Summary'!$C$3/10) -> 0.1042723455 | I64: ='Reuse Inputs_Summary'!$C$7 -> 0.075 | J64: 0 | K64: 0 | L64: 0 | M64: 0.1042723455 | N64: =IF($C64<'Reuse Inputs_Summary'!$C$13,"NO",IF(($C64>'Reuse Inputs_Summary'!$C$14),"NO","YES")) -> NO | O64: YES | P64: =IF(N64="No",0,IF(AND(N64="Yes",O64="NO",L64>'Reuse Inputs_Summary'!$C$12),'Reuse Inputs_Summary'!$C$12,IF(AND(N64="Yes",O64="NO",L64<'Reuse Inputs_Summary'!$C$12,L64>0),L64,0))) -> 0 | Q64: =IF('Reuse Inputs_Summary'!$C$15=0,"NO","YES") -> YES | R64: 0 | S64: 0 | T64: =IF(N64="No",0,IF(AND(N64="Yes",O64="YES"),0,IF(AND(N64="Yes",O64="NO",ReuseWaterBalance!L64<'Reuse Inputs_Summary'!$C$12),('Reuse Inputs_Summary'!$C$12-ReuseWaterBalance!L64),0))) -> 0
A65: 1955-03-02 | B65: 1955 | C65: 3 | D65: 2 | E65: 0 | F65: 0 | G65: 0 | H65: =IF((ISNA((VLOOKUP(A65,'RunoffLook-up'!$G$5:$H$3442,2,FALSE))))=TRUE,0,VLOOKUP(A65,'RunoffLook-up'!$G$5:$H$3442,2,FALSE))*('Reuse Inputs_Summary'!$C$3/10) -> 0 | I65: ='Reuse Inputs_Summary'!$C$7 -> 0.075 | J65: 0 | K65: 0 | L65: 0 | M65: 0 | N65: =IF($C65<'Reuse Inputs_Summary'!$C$13,"NO",IF(($C65>'Reuse Inputs_Summary'!$C$14),"NO","YES")) -> NO | O65: NO | P65: =IF(N65="No",0,IF(AND(N65="Yes",O65="NO",L65>'Reuse Inputs_Summary'!$C$12),'Reuse Inputs_Summary'!$C$12,IF(AND(N65="Yes",O65="NO",L65<'Reuse Inputs_Summary'!$C$12,L65>0),L65,0))) -> 0 | Q65: =IF('Reuse Inputs_Summary'!$C$15=0,"NO","YES") -> YES | R65: 0 | S65: 0 | T65: =IF(N65="No",0,IF(AND(N65="Yes",O65="YES"),0,IF(AND(N65="Yes",O65="NO",ReuseWaterBalance!L65<'Reuse Inputs_Summary'!$C$12),('Reuse Inputs_Summary'!$C$12-ReuseWaterBalance!L65),0))) -> 0
A66: 1955-03-03 | B66: 1955 | C66: 3 | D66: 3 | E66: 0 | F66: 0 | G66: 0 | H66: =IF((ISNA((VLOOKUP(A66,'RunoffLook-up'!$G$5:$H$3442,2,FALSE))))=TRUE,0,VLOOKUP(A66,'RunoffLook-up'!$G$5:$H$3442,2,FALSE))*('Reuse Inputs_Summary'!$C$3/10) -> 0 | I66: ='Reuse Inputs_Summary'!$C$7 -> 0.075 | J66: 0 | K66: 0 | L66: 0 | M66: 0 | N66: =IF($C66<'Reuse Inputs_Summary'!$C$13,"NO",IF(($C66>'Reuse Inputs_Summary'!$C$14),"NO","YES")) -> NO | O66: NO | P66: =IF(N66="No",0,IF(AND(N66="Yes",O66="NO",L66>'Reuse Inputs_Summary'!$C$12),'Reuse Inputs_Summary'!$C$12,IF(AND(N66="Yes",O66="NO",L66<'Reuse Inputs_Summary'!$C$12,L66>0),L66,0))) -> 0 | Q66: =IF('Reuse Inputs_Summary'!$C$15=0,"NO","YES") -> YES | R66: 0 | S66: 0 | T66: =IF(N66="No",0,IF(AND(N66="Yes",O66="YES"),0,IF(AND(N66="Yes",O66="NO",ReuseWaterBalance!L66<'Reuse Inputs_Summary'!$C$12),('Reuse Inputs_Summary'!$C$12-ReuseWaterBalance!L66),0))) -> 0
A67: 1955-03-04 | B67: 1955 | C67: 3 | D67: 4 | E67: 0 | F67: 0 | G67: 0 | H67: =IF((ISNA((VLOOKUP(A67,'RunoffLook-up'!$G$5:$H$3442,2,FALSE))))=TRUE,0,VLOOKUP(A67,'RunoffLook-up'!$G$5:$H$3442,2,FALSE))*('Reuse Inputs_Summary'!$C$3/10) -> 0 | I67: ='Reuse Inputs_Summary'!$C$7 -> 0.075 | J67: 0 | K67: 0 | L67: 0 | M67: 0 | N67: =IF($C67<'Reuse Inputs_Summary'!$C$13,"NO",IF(($C67>'Reuse Inputs_Summary'!$C$14),"NO","YES")) -> NO | O67: NO | P67: =IF(N67="No",0,IF(AND(N67="Yes",O67="NO",L67>'Reuse Inputs_Summary'!$C$12),'Reuse Inputs_Summary'!$C$12,IF(AND(N67="Yes",O67="NO",L67<'Reuse Inputs_Summary'!$C$12,L67>0),L67,0))) -> 0 | Q67: =IF('Reuse Inputs_Summary'!$C$15=0,"NO","YES") -> YES | R67: 0 | S67: 0 | T67: =IF(N67="No",0,IF(AND(N67="Yes",O67="YES"),0,IF(AND(N67="Yes",O67="NO",ReuseWaterBalance!L67<'Reuse Inputs_Summary'!$C$12),('Reuse Inputs_Summary'!$C$12-ReuseWaterBalance!L67),0))) -> 0
A68: 1955-03-05 | B68: 1955 | C68: 3 | D68: 5 | E68: 0 | F68: 0 | G68: 0 | H68: =IF((ISNA((VLOOKUP(A68,'RunoffLook-up'!$G$5:$H$3442,2,FALSE))))=TRUE,0,VLOOKUP(A68,'RunoffLook-up'!$G$5:$H$3442,2,FALSE))*('Reuse Inputs_Summary'!$C$3/10) -> 0 | I68: ='Reuse Inputs_Summary'!$C$7 -> 0.075 | J68: 0 | K68: 0 | L68: 0 | M68: 0 | N68: =IF($C68<'Reuse Inputs_Summary'!$C$13,"NO",IF(($C68>'Reuse Inputs_Summary'!$C$14),"NO","YES")) -> NO | O68: NO | P68: =IF(N68="No",0,IF(AND(N68="Yes",O68="NO",L68>'Reuse Inputs_Summary'!$C$12),'Reuse Inputs_Summary'!$C$12,IF(AND(N68="Yes",O68="NO",L68<'Reuse Inputs_Summary'!$C$12,L68>0),L68,0))) -> 0 | Q68: =IF('Reuse Inputs_Summary'!$C$15=0,"NO","YES") -> YES | R68: 0 | S68: 0 | T68: =IF(N68="No",0,IF(AND(N68="Yes",O68="YES"),0,IF(AND(N68="Yes",O68="NO",ReuseWaterBalance!L68<'Reuse Inputs_Summary'!$C$12),('Reuse Inputs_Summary'!$C$12-ReuseWaterBalance!L68),0))) -> 0
A69: 1955-03-06 | B69: =YEAR(A69) -> 1955 | C69: 3 | D69: 6 | E69: 0 | F69: 0 | G69: 0 | H69: =IF((ISNA((VLOOKUP(A69,'RunoffLook-up'!$G$5:$H$3442,2,FALSE))))=TRUE,0,VLOOKUP(A69,'RunoffLook-up'!$G$5:$H$3442,2,FALSE))*('Reuse Inputs_Summary'!$C$3/10) -> 0 | I69: ='Reuse Inputs_Summary'!$C$7 -> 0.075 | J69: 0 | K69: 0 | L69: 0 | M69: 0 | N69: =IF($C69<'Reuse Inputs_Summary'!$C$13,"NO",IF(($C69>'Reuse Inputs_Summary'!$C$14),"NO","YES")) -> NO | O69: NO | P69: =IF(N69="No",0,IF(AND(N69="Yes",O69="NO",L69>'Reuse Inputs_Summary'!$C$12),'Reuse Inputs_Summary'!$C$12,IF(AND(N69="Yes",O69="NO",L69<'Reuse Inputs_Summary'!$C$12,L69>0),L69,0))) -> 0 | Q69: =IF('Reuse Inputs_Summary'!$C$15=0,"NO","YES") -> YES | R69: 0 | S69: 0 | T69: =IF(N69="No",0,IF(AND(N69="Yes",O69="YES"),0,IF(AND(N69="Yes",O69="NO",ReuseWaterBalance!L69<'Reuse Inputs_Summary'!$C$12),('Reuse Inputs_Summary'!$C$12-ReuseWaterBalance!L69),0))) -> 0
A70: 1955-03-07 | B70: 1955 | C70: =MONTH(A70) -> 3 | D70: =DAY(A70) -> 7 | E70: 0 | F70: 0 | G70: =SUM(E70:F70) -> 0 | H70: =IF((ISNA((VLOOKUP(A70,'RunoffLook-up'!$G$5:$H$3442,2,FALSE))))=TRUE,0,VLOOKUP(A70,'RunoffLook-up'!$G$5:$H$3442,2,FALSE))*('Reuse Inputs_Summary'!$C$3/10) -> 0 | I70: ='Reuse Inputs_Summary'!$C$7 -> 0.075 | J70: =S69 -> 0 | K70: =IF(AND(N70="NO",Q70="YES"),0,IF($H70=0,0,IF($H70>(I70-J70),(I70-J70),IF($H70<(I70-J70),$H70)))) -> 0 | L70: =J70+K70 -> 0 | M70: =IF(AND(N70="NO",Q70="YES"),H70,H70-K70) -> 0 | N70: =IF($C70<'Reuse Inputs_Summary'!$C$13,"NO",IF(($C70>'Reuse Inputs_Summary'!$C$14),"NO","YES")) -> NO | O70: =IF(G70>0,"YES","NO") -> NO | P70: =IF(N70="No",0,IF(AND(N70="Yes",O70="NO",L70>'Reuse Inputs_Summary'!$C$12),'Reuse Inputs_Summary'!$C$12,IF(AND(N70="Yes",O70="NO",L70<'Reuse Inputs_Summary'!$C$12,L70>0),L70,0))) -> 0 | Q70: =IF('Reuse Inputs_Summary'!$C$15=0,"NO","YES") -> YES | R70: 0 | S70: =L70-P70-R70 -> 0 | T70: =IF(N70="No",0,IF(AND(N70="Yes",O70="YES"),0,IF(AND(N70="Yes",O70="NO",ReuseWaterBalance!L70<'Reuse Inputs_Summary'!$C$12),('Reuse Inputs_Summary'!$C$12-ReuseWaterBalance!L70),0))) -> 0
A71: 1955-03-08 | B71: 1955 | C71: 3 | D71: 8 | E71: 0 | F71: 0 | G71: 0 | H71: =IF((ISNA((VLOOKUP(A71,'RunoffLook-up'!$G$5:$H$3442,2,FALSE))))=TRUE,0,VLOOKUP(A71,'RunoffLook-up'!$G$5:$H$3442,2,FALSE))*('Reuse Inputs_Summary'!$C$3/10) -> 0 | I71: ='Reuse Inputs_Summary'!$C$7 -> 0.075 | J71: 0 | K71: 0 | L71: 0 | M71: 0 | N71: =IF($C71<'Reuse Inputs_Summary'!$C$13,"NO",IF(($C71>'Reuse Inputs_Summary'!$C$14),"NO","YES")) -> NO | O71: NO | P71: =IF(N71="No",0,IF(AND(N71="Yes",O71="NO",L71>'Reuse Inputs_Summary'!$C$12),'Reuse Inputs_Summary'!$C$12,IF(AND(N71="Yes",O71="NO",L71<'Reuse Inputs_Summary'!$C$12,L71>0),L71,0))) -> 0 | Q71: =IF('Reuse Inputs_Summary'!$C$15=0,"NO","YES") -> YES | R71: =IF(AND(N71="NO",Q71="YES"),S70,0) -> 0 | S71: 0 | T71: =IF(N71="No",0,IF(AND(N71="Yes",O71="YES"),0,IF(AND(N71="Yes",O71="NO",ReuseWaterBalance!L71<'Reuse Inputs_Summary'!$C$12),('Reuse Inputs_Summary'!$C$12-ReuseWaterBalance!L71),0))) -> 0
A72: 1955-03-09 | B72: 1955 | C72: 3 | D72: 9 | E72: 0.04 | F72: 0.46 | G72: 0.5 | H72: =IF((ISNA((VLOOKUP(A72,'RunoffLook-up'!$G$5:$H$3442,2,FALSE))))=TRUE,0,VLOOKUP(A72,'RunoffLook-up'!$G$5:$H$3442,2,FALSE))*('Reuse Inputs_Summary'!$C$3/10) -> 0.004459867003 | I72: ='Reuse Inputs_Summary'!$C$7 -> 0.075 | J72: 0 | K72: 0 | L72: 0 | M72: 0.004459867003 | N72: =IF($C72<'Reuse Inputs_Summary'!$C$13,"NO",IF(($C72>'Reuse Inputs_Summary'!$C$14),"NO","YES")) -> NO | O72: YES | P72: =IF(N72="No",0,IF(AND(N72="Yes",O72="NO",L72>'Reuse Inputs_Summary'!$C$12),'Reuse Inputs_Summary'!$C$12,IF(AND(N72="Yes",O72="NO",L72<'Reuse Inputs_Summary'!$C$12,L72>0),L72,0))) -> 0 | Q72: =IF('Reuse Inputs_Summary'!$C$15=0,"NO","YES") -> YES | R72: 0 | S72: 0 | T72: =IF(N72="No",0,IF(AND(N72="Yes",O72="YES"),0,IF(AND(N72="Yes",O72="NO",ReuseWaterBalance!L72<'Reuse Inputs_Summary'!$C$12),('Reuse Inputs_Summary'!$C$12-ReuseWaterBalance!L72),0))) -> 0
A73: 1955-03-10 | B73: 1955 | C73: 3 | D73: 10 | E73: 0 | F73: 0 | G73: 0 | H73: =IF((ISNA((VLOOKUP(A73,'RunoffLook-up'!$G$5:$H$3442,2,FALSE))))=TRUE,0,VLOOKUP(A73,'RunoffLook-up'!$G$5:$H$3442,2,FALSE))*('Reuse Inputs_Summary'!$C$3/10) -> 0 | I73: ='Reuse Inputs_Summary'!$C$7 -> 0.075 | J73: 0 | K73: 0 | L73: 0 | M73: 0 | N73: =IF($C73<'Reuse Inputs_Summary'!$C$13,"NO",IF(($C73>'Reuse Inputs_Summary'!$C$14),"NO","YES")) -> NO | O73: NO | P73: =IF(N73="No",0,IF(AND(N73="Yes",O73="NO",L73>'Reuse Inputs_Summary'!$C$12),'Reuse Inputs_Summary'!$C$12,IF(AND(N73="Yes",O73="NO",L73<'Reuse Inputs_Summary'!$C$12,L73>0),L73,0))) -> 0 | Q73: =IF('Reuse Inputs_Summary'!$C$15=0,"NO","YES") -> YES | R73: 0 | S73: 0 | T73: =IF(N73="No",0,IF(AND(N73="Yes",O73="YES"),0,IF(AND(N73="Yes",O73="NO",ReuseWaterBalance!L73<'Reuse Inputs_Summary'!$C$12),('Reuse Inputs_Summary'!$C$12-ReuseWaterBalance!L73),0))) -> 0
A74: 1955-03-11 | B74: 1955 | C74: 3 | D74: 11 | E74: 0 | F74: 0 | G74: 0 | H74: =IF((ISNA((VLOOKUP(A74,'RunoffLook-up'!$G$5:$H$3442,2,FALSE))))=TRUE,0,VLOOKUP(A74,'RunoffLook-up'!$G$5:$H$3442,2,FALSE))*('Reuse Inputs_Summary'!$C$3/10) -> 0 | I74: ='Reuse Inputs_Summary'!$C$7 -> 0.075 | J74: 0 | K74: 0 | L74: 0 | M74: 0 | N74: =IF($C74<'Reuse Inputs_Summary'!$C$13,"NO",IF(($C74>'Reuse Inputs_Summary'!$C$14),"NO","YES")) -> NO | O74: NO | P74: =IF(N74="No",0,IF(AND(N74="Yes",O74="NO",L74>'Reuse Inputs_Summary'!$C$12),'Reuse Inputs_Summary'!$C$12,IF(AND(N74="Yes",O74="NO",L74<'Reuse Inputs_Summary'!$C$12,L74>0),L74,0))) -> 0 | Q74: =IF('Reuse Inputs_Summary'!$C$15=0,"NO","YES") -> YES | R74: 0 | S74: 0 | T74: =IF(N74="No",0,IF(AND(N74="Yes",O74="YES"),0,IF(AND(N74="Yes",O74="NO",ReuseWaterBalance!L74<'Reuse Inputs_Summary'!$C$12),('Reuse Inputs_Summary'!$C$12-ReuseWaterBalance!L74),0))) -> 0
A75: 1955-03-12 | B75: 1955 | C75: 3 | D75: 12 | E75: 0 | F75: 0 | G75: 0 | H75: =IF((ISNA((VLOOKUP(A75,'RunoffLook-up'!$G$5:$H$3442,2,FALSE))))=TRUE,0,VLOOKUP(A75,'RunoffLook-up'!$G$5:$H$3442,2,FALSE))*('Reuse Inputs_Summary'!$C$3/10) -> 0 | I75: ='Reuse Inputs_Summary'!$C$7 -> 0.075 | J75: 0 | K75: 0 | L75: 0 | M75: 0 | N75: =IF($C75<'Reuse Inputs_Summary'!$C$13,"NO",IF(($C75>'Reuse Inputs_Summary'!$C$14),"NO","YES")) -> NO | O75: NO | P75: =IF(N75="No",0,IF(AND(N75="Yes",O75="NO",L75>'Reuse Inputs_Summary'!$C$12),'Reuse Inputs_Summary'!$C$12,IF(AND(N75="Yes",O75="NO",L75<'Reuse Inputs_Summary'!$C$12,L75>0),L75,0))) -> 0 | Q75: =IF('Reuse Inputs_Summary'!$C$15=0,"NO","YES") -> YES | R75: 0 | S75: 0 | T75: =IF(N75="No",0,IF(AND(N75="Yes",O75="YES"),0,IF(AND(N75="Yes",O75="NO",ReuseWaterBalance!L75<'Reuse Inputs_Summary'!$C$12),('Reuse Inputs_Summary'!$C$12-ReuseWaterBalance!L75),0))) -> 0
A76: 1955-03-13 | B76: 1955 | C76: 3 | D76: 13 | E76: 0 | F76: 0 | G76: 0 | H76: =IF((ISNA((VLOOKUP(A76,'RunoffLook-up'!$G$5:$H$3442,2,FALSE))))=TRUE,0,VLOOKUP(A76,'RunoffLook-up'!$G$5:$H$3442,2,FALSE))*('Reuse Inputs_Summary'!$C$3/10) -> 0 | I76: ='Reuse Inputs_Summary'!$C$7 -> 0.075 | J76: 0 | K76: 0 | L76: 0 | M76: 0 | N76: =IF($C76<'Reuse Inputs_Summary'!$C$13,"NO",IF(($C76>'Reuse Inputs_Summary'!$C$14),"NO","YES")) -> NO | O76: NO | P76: =IF(N76="No",0,IF(AND(N76="Yes",O76="NO",L76>'Reuse Inputs_Summary'!$C$12),'Reuse Inputs_Summary'!$C$12,IF(AND(N76="Yes",O76="NO",L76<'Reuse Inputs_Summary'!$C$12,L76>0),L76,0))) -> 0 | Q76: =IF('Reuse Inputs_Summary'!$C$15=0,"NO","YES") -> YES | R76: 0 | S76: 0 | T76: =IF(N76="No",0,IF(AND(N76="Yes",O76="YES"),0,IF(AND(N76="Yes",O76="NO",ReuseWaterBalance!L76<'Reuse Inputs_Summary'!$C$12),('Reuse Inputs_Summary'!$C$12-ReuseWaterBalance!L76),0))) -> 0
A77: 1955-03-14 | B77: 1955 | C77: 3 | D77: 14 | E77: 0 | F77: 0.05 | G77: 0.05 | H77: =IF((ISNA((VLOOKUP(A77,'RunoffLook-up'!$G$5:$H$3442,2,FALSE))))=TRUE,0,VLOOKUP(A77,'RunoffLook-up'!$G$5:$H$3442,2,FALSE))*('Reuse Inputs_Summary'!$C$3/10) -> 2.864875813e-195 | I77: ='Reuse Inputs_Summary'!$C$7 -> 0.075 | J77: 0 | K77: 0 | L77: 0 | M77: 2.864875813e-195 | N77: =IF($C77<'Reuse Inputs_Summary'!$C$13,"NO",IF(($C77>'Reuse Inputs_Summary'!$C$14),"NO","YES")) -> NO | O77: YES | P77: =IF(N77="No",0,IF(AND(N77="Yes",O77="NO",L77>'Reuse Inputs_Summary'!$C$12),'Reuse Inputs_Summary'!$C$12,IF(AND(N77="Yes",O77="NO",L77<'Reuse Inputs_Summary'!$C$12,L77>0),L77,0))) -> 0 | Q77: =IF('Reuse Inputs_Summary'!$C$15=0,"NO","YES") -> YES | R77: 0 | S77: 0 | T77: =IF(N77="No",0,IF(AND(N77="Yes",O77="YES"),0,IF(AND(N77="Yes",O77="NO",ReuseWaterBalance!L77<'Reuse Inputs_Summary'!$C$12),('Reuse Inputs_Summary'!$C$12-ReuseWaterBalance!L77),0))) -> 0
A78: 1955-03-15 | B78: 1955 | C78: 3 | D78: 15 | E78: 0.01 | F78: 0 | G78: 0.01 | H78: =IF((ISNA((VLOOKUP(A78,'RunoffLook-up'!$G$5:$H$3442,2,FALSE))))=TRUE,0,VLOOKUP(A78,'RunoffLook-up'!$G$5:$H$3442,2,FALSE))*('Reuse Inputs_Summary'!$C$3/10) -> 2.810716072e-241 | I78: ='Reuse Inputs_Summary'!$C$7 -> 0.075 | J78: 0 | K78: 0 | L78: 0 | M78: 2.810716072e-241 | N78: =IF($C78<'Reuse Inputs_Summary'!$C$13,"NO",IF(($C78>'Reuse Inputs_Summary'!$C$14),"NO","YES")) -> NO | O78: YES | P78: =IF(N78="No",0,IF(AND(N78="Yes",O78="NO",L78>'Reuse Inputs_Summary'!$C$12),'Reuse Inputs_Summary'!$C$12,IF(AND(N78="Yes",O78="NO",L78<'Reuse Inputs_Summary'!$C$12,L78>0),L78,0))) -> 0 | Q78: =IF('Reuse Inputs_Summary'!$C$15=0,"NO","YES") -> YES | R78: 0 | S78: 0 | T78: =IF(N78="No",0,IF(AND(N78="Yes",O78="YES"),0,IF(AND(N78="Yes",O78="NO",ReuseWaterBalance!L78<'Reuse Inputs_Summary'!$C$12),('Reuse Inputs_Summary'!$C$12-ReuseWaterBalance!L78),0))) -> 0
A79: 1955-03-16 | B79: 1955 | C79: 3 | D79: 16 | E79: 0 | F79: 0 | G79: 0 | H79: =IF((ISNA((VLOOKUP(A79,'RunoffLook-up'!$G$5:$H$3442,2,FALSE))))=TRUE,0,VLOOKUP(A79,'RunoffLook-up'!$G$5:$H$3442,2,FALSE))*('Reuse Inputs_Summary'!$C$3/10) -> 0 | I79: ='Reuse Inputs_Summary'!$C$7 -> 0.075 | J79: 0 | K79: 0 | L79: 0 | M79: 0 | N79: =IF($C79<'Reuse Inputs_Summary'!$C$13,"NO",IF(($C79>'Reuse Inputs_Summary'!$C$14),"NO","YES")) -> NO | O79: NO | P79: =IF(N79="No",0,IF(AND(N79="Yes",O79="NO",L79>'Reuse Inputs_Summary'!$C$12),'Reuse Inputs_Summary'!$C$12,IF(AND(N79="Yes",O79="NO",L79<'Reuse Inputs_Summary'!$C$12,L79>0),L79,0))) -> 0 | Q79: =IF('Reuse Inputs_Summary'!$C$15=0,"NO","YES") -> YES | R79: 0 | S79: 0 | T79: =IF(N79="No",0,IF(AND(N79="Yes",O79="YES"),0,IF(AND(N79="Yes",O79="NO",ReuseWaterBalance!L79<'Reuse Inputs_Summary'!$C$12),('Reuse Inputs_Summary'!$C$12-ReuseWaterBalance!L79),0))) -> 0
A80: 1955-03-17 | B80: 1955 | C80: 3 | D80: 17 | E80: 0 | F80: 0 | G80: 0 | H80: =IF((ISNA((VLOOKUP(A80,'RunoffLook-up'!$G$5:$H$3442,2,FALSE))))=TRUE,0,VLOOKUP(A80,'RunoffLook-up'!$G$5:$H$3442,2,FALSE))*('Reuse Inputs_Summary'!$C$3/10) -> 0 | I80: ='Reuse Inputs_Summary'!$C$7 -> 0.075 | J80: 0 | K80: 0 | L80: 0 | M80: 0 | N80: =IF($C80<'Reuse Inputs_Summary'!$C$13,"NO",IF(($C80>'Reuse Inputs_Summary'!$C$14),"NO","YES")) -> NO | O80: NO | P80: =IF(N80="No",0,IF(AND(N80="Yes",O80="NO",L80>'Reuse Inputs_Summary'!$C$12),'Reuse Inputs_Summary'!$C$12,IF(AND(N80="Yes",O80="NO",L80<'Reuse Inputs_Summary'!$C$12,L80>0),L80,0))) -> 0 | Q80: =IF('Reuse Inputs_Summary'!$C$15=0,"NO","YES") -> YES | R80: 0 | S80: 0 | T80: =IF(N80="No",0,IF(AND(N80="Yes",O80="YES"),0,IF(AND(N80="Yes",O80="NO",ReuseWaterBalance!L80<'Reuse Inputs_Summary'!$C$12),('Reuse Inputs_Summary'!$C$12-ReuseWaterBalance!L80),0))) -> 0
A81: 1955-03-18 | B81: 1955 | C81: 3 | D81: 18 | E81: 0 | F81: 0 | G81: 0 | H81: =IF((ISNA((VLOOKUP(A81,'RunoffLook-up'!$G$5:$H$3442,2,FALSE))))=TRUE,0,VLOOKUP(A81,'RunoffLook-up'!$G$5:$H$3442,2,FALSE))*('Reuse Inputs_Summary'!$C$3/10) -> 0 | I81: ='Reuse Inputs_Summary'!$C$7 -> 0.075 | J81: 0 | K81: 0 | L81: 0 | M81: 0 | N81: =IF($C81<'Reuse Inputs_Summary'!$C$13,"NO",IF(($C81>'Reuse Inputs_Summary'!$C$14),"NO","YES")) -> NO | O81: NO | P81: =IF(N81="No",0,IF(AND(N81="Yes",O81="NO",L81>'Reuse Inputs_Summary'!$C$12),'Reuse Inputs_Summary'!$C$12,IF(AND(N81="Yes",O81="NO",L81<'Reuse Inputs_Summary'!$C$12,L81>0),L81,0))) -> 0 | Q81: =IF('Reuse Inputs_Summary'!$C$15=0,"NO","YES") -> YES | R81: 0 | S81: 0 | T81: =IF(N81="No",0,IF(AND(N81="Yes",O81="YES"),0,IF(AND(N81="Yes",O81="NO",ReuseWaterBalance!L81<'Reuse Inputs_Summary'!$C$12),('Reuse Inputs_Summary'!$C$12-ReuseWaterBalance!L81),0))) -> 0
A82: 1955-03-19 | B82: 1955 | C82: 3 | D82: 19 | E82: 0 | F82: 0.09 | G82: 0.09 | H82: =IF((ISNA((VLOOKUP(A82,'RunoffLook-up'!$G$5:$H$3442,2,FALSE))))=TRUE,0,VLOOKUP(A82,'RunoffLook-up'!$G$5:$H$3442,2,FALSE))*('Reuse Inputs_Summary'!$C$3/10) -> 0.000125 | I82: ='Reuse Inputs_Summary'!$C$7 -> 0.075 | J82: 0 | K82: 0 | L82: 0 | M82: 0.000125 | N82: =IF($C82<'Reuse Inputs_Summary'!$C$13,"NO",IF(($C82>'Reuse Inputs_Summary'!$C$14),"NO","YES")) -> NO | O82: YES | P82: =IF(N82="No",0,IF(AND(N82="Yes",O82="NO",L82>'Reuse Inputs_Summary'!$C$12),'Reuse Inputs_Summary'!$C$12,IF(AND(N82="Yes",O82="NO",L82<'Reuse Inputs_Summary'!$C$12,L82>0),L82,0))) -> 0 | Q82: =IF('Reuse Inputs_Summary'!$C$15=0,"NO","YES") -> YES | R82: 0 | S82: 0 | T82: =IF(N82="No",0,IF(AND(N82="Yes",O82="YES"),0,IF(AND(N82="Yes",O82="NO",ReuseWaterBalance!L82<'Reuse Inputs_Summary'!$C$12),('Reuse Inputs_Summary'!$C$12-ReuseWaterBalance!L82),0))) -> 0
A83: 1955-03-20 | B83: 1955 | C83: 3 | D83: 20 | E83: 0 | F83: 0 | G83: 0 | H83: =IF((ISNA((VLOOKUP(A83,'RunoffLook-up'!$G$5:$H$3442,2,FALSE))))=TRUE,0,VLOOKUP(A83,'RunoffLook-up'!$G$5:$H$3442,2,FALSE))*('Reuse Inputs_Summary'!$C$3/10) -> 0 | I83: ='Reuse Inputs_Summary'!$C$7 -> 0.075 | J83: 0 | K83: 0 | L83: 0 | M83: 0 | N83: =IF($C83<'Reuse Inputs_Summary'!$C$13,"NO",IF(($C83>'Reuse Inputs_Summary'!$C$14),"NO","YES")) -> NO | O83: NO | P83: =IF(N83="No",0,IF(AND(N83="Yes",O83="NO",L83>'Reuse Inputs_Summary'!$C$12),'Reuse Inputs_Summary'!$C$12,IF(AND(N83="Yes",O83="NO",L83<'Reuse Inputs_Summary'!$C$12,L83>0),L83,0))) -> 0 | Q83: =IF('Reuse Inputs_Summary'!$C$15=0,"NO","YES") -> YES | R83: 0 | S83: 0 | T83: =IF(N83="No",0,IF(AND(N83="Yes",O83="YES"),0,IF(AND(N83="Yes",O83="NO",ReuseWaterBalance!L83<'Reuse Inputs_Summary'!$C$12),('Reuse Inputs_Summary'!$C$12-ReuseWaterBalance!L83),0))) -> 0
A84: 1955-03-21 | B84: 1955 | C84: 3 | D84: 21 | E84: 0 | F84: 0 | G84: 0 | H84: =IF((ISNA((VLOOKUP(A84,'RunoffLook-up'!$G$5:$H$3442,2,FALSE))))=TRUE,0,VLOOKUP(A84,'RunoffLook-up'!$G$5:$H$3442,2,FALSE))*('Reuse Inputs_Summary'!$C$3/10) -> 0 | I84: ='Reuse Inputs_Summary'!$C$7 -> 0.075 | J84: 0 | K84: 0 | L84: 0 | M84: 0 | N84: =IF($C84<'Reuse Inputs_Summary'!$C$13,"NO",IF(($C84>'Reuse Inputs_Summary'!$C$14),"NO","YES")) -> NO | O84: NO | P84: =IF(N84="No",0,IF(AND(N84="Yes",O84="NO",L84>'Reuse Inputs_Summary'!$C$12),'Reuse Inputs_Summary'!$C$12,IF(AND(N84="Yes",O84="NO",L84<'Reuse Inputs_Summary'!$C$12,L84>0),L84,0))) -> 0 | Q84: =IF('Reuse Inputs_Summary'!$C$15=0,"NO","YES") -> YES | R84: 0 | S84: 0 | T84: =IF(N84="No",0,IF(AND(N84="Yes",O84="YES"),0,IF(AND(N84="Yes",O84="NO",ReuseWaterBalance!L84<'Reuse Inputs_Summary'!$C$12),('Reuse Inputs_Summary'!$C$12-ReuseWaterBalance!L84),0))) -> 0
A85: 1955-03-22 | B85: 1955 | C85: 3 | D85: 22 | E85: 0 | F85: 0 | G85: 0 | H85: =IF((ISNA((VLOOKUP(A85,'RunoffLook-up'!$G$5:$H$3442,2,FALSE))))=TRUE,0,VLOOKUP(A85,'RunoffLook-up'!$G$5:$H$3442,2,FALSE))*('Reuse Inputs_Summary'!$C$3/10) -> 0 | I85: ='Reuse Inputs_Summary'!$C$7 -> 0.075 | J85: 0 | K85: 0 | L85: 0 | M85: 0 | N85: =IF($C85<'Reuse Inputs_Summary'!$C$13,"NO",IF(($C85>'Reuse Inputs_Summary'!$C$14),"NO","YES")) -> NO | O85: NO | P85: =IF(N85="No",0,IF(AND(N85="Yes",O85="NO",L85>'Reuse Inputs_Summary'!$C$12),'Reuse Inputs_Summary'!$C$12,IF(AND(N85="Yes",O85="NO",L85<'Reuse Inputs_Summary'!$C$12,L85>0),L85,0))) -> 0 | Q85: =IF('Reuse Inputs_Summary'!$C$15=0,"NO","YES") -> YES | R85: 0 | S85: 0 | T85: =IF(N85="No",0,IF(AND(N85="Yes",O85="YES"),0,IF(AND(N85="Yes",O85="NO",ReuseWaterBalance!L85<'Reuse Inputs_Summary'!$C$12),('Reuse Inputs_Summary'!$C$12-ReuseWaterBalance!L85),0))) -> 0
A86: 1955-03-23 | B86: 1955 | C86: 3 | D86: 23 | E86: 0 | F86: 0 | G86: 0 | H86: =IF((ISNA((VLOOKUP(A86,'RunoffLook-up'!$G$5:$H$3442,2,FALSE))))=TRUE,0,VLOOKUP(A86,'RunoffLook-up'!$G$5:$H$3442,2,FALSE))*('Reuse Inputs_Summary'!$C$3/10) -> 0 | I86: ='Reuse Inputs_Summary'!$C$7 -> 0.075 | J86: 0 | K86: 0 | L86: 0 | M86: 0 | N86: =IF($C86<'Reuse Inputs_Summary'!$C$13,"NO",IF(($C86>'Reuse Inputs_Summary'!$C$14),"NO","YES")) -> NO | O86: NO | P86: =IF(N86="No",0,IF(AND(N86="Yes",O86="NO",L86>'Reuse Inputs_Summary'!$C$12),'Reuse Inputs_Summary'!$C$12,IF(AND(N86="Yes",O86="NO",L86<'Reuse Inputs_Summary'!$C$12,L86>0),L86,0))) -> 0 | Q86: =IF('Reuse Inputs_Summary'!$C$15=0,"NO","YES") -> YES | R86: 0 | S86: 0 | T86: =IF(N86="No",0,IF(AND(N86="Yes",O86="YES"),0,IF(AND(N86="Yes",O86="NO",ReuseWaterBalance!L86<'Reuse Inputs_Summary'!$C$12),('Reuse Inputs_Summary'!$C$12-ReuseWaterBalance!L86),0))) -> 0
A87: 1955-03-24 | B87: 1955 | C87: 3 | D87: 24 | E87: 0 | F87: 0 | G87: 0 | H87: =IF((ISNA((VLOOKUP(A87,'RunoffLook-up'!$G$5:$H$3442,2,FALSE))))=TRUE,0,VLOOKUP(A87,'RunoffLook-up'!$G$5:$H$3442,2,FALSE))*('Reuse Inputs_Summary'!$C$3/10) -> 0 | I87: ='Reuse Inputs_Summary'!$C$7 -> 0.075 | J87: 0 | K87: 0 | L87: 0 | M87: 0 | N87: =IF($C87<'Reuse Inputs_Summary'!$C$13,"NO",IF(($C87>'Reuse Inputs_Summary'!$C$14),"NO","YES")) -> NO | O87: NO | P87: =IF(N87="No",0,IF(AND(N87="Yes",O87="NO",L87>'Reuse Inputs_Summary'!$C$12),'Reuse Inputs_Summary'!$C$12,IF(AND(N87="Yes",O87="NO",L87<'Reuse Inputs_Summary'!$C$12,L87>0),L87,0))) -> 0 | Q87: =IF('Reuse Inputs_Summary'!$C$15=0,"NO","YES") -> YES | R87: 0 | S87: 0 | T87: =IF(N87="No",0,IF(AND(N87="Yes",O87="YES"),0,IF(AND(N87="Yes",O87="NO",ReuseWaterBalance!L87<'Reuse Inputs_Summary'!$C$12),('Reuse Inputs_Summary'!$C$12-ReuseWaterBalance!L87),0))) -> 0
A88: 1955-03-25 | B88: 1955 | C88: 3 | D88: 25 | E88: 0 | F88: 0 | G88: 0 | H88: =IF((ISNA((VLOOKUP(A88,'RunoffLook-up'!$G$5:$H$3442,2,FALSE))))=TRUE,0,VLOOKUP(A88,'RunoffLook-up'!$G$5:$H$3442,2,FALSE))*('Reuse Inputs_Summary'!$C$3/10) -> 0 | I88: ='Reuse Inputs_Summary'!$C$7 -> 0.075 | J88: 0 | K88: 0 | L88: 0 | M88: 0 | N88: =IF($C88<'Reuse Inputs_Summary'!$C$13,"NO",IF(($C88>'Reuse Inputs_Summary'!$C$14),"NO","YES")) -> NO | O88: NO | P88: =IF(N88="No",0,IF(AND(N88="Yes",O88="NO",L88>'Reuse Inputs_Summary'!$C$12),'Reuse Inputs_Summary'!$C$12,IF(AND(N88="Yes",O88="NO",L88<'Reuse Inputs_Summary'!$C$12,L88>0),L88,0))) -> 0 | Q88: =IF('Reuse Inputs_Summary'!$C$15=0,"NO","YES") -> YES | R88: 0 | S88: 0 | T88: =IF(N88="No",0,IF(AND(N88="Yes",O88="YES"),0,IF(AND(N88="Yes",O88="NO",ReuseWaterBalance!L88<'Reuse Inputs_Summary'!$C$12),('Reuse Inputs_Summary'!$C$12-ReuseWaterBalance!L88),0))) -> 0
A89: 1955-03-26 | B89: 1955 | C89: 3 | D89: 26 | E89: 0 | F89: 0 | G89: 0 | H89: =IF((ISNA((VLOOKUP(A89,'RunoffLook-up'!$G$5:$H$3442,2,FALSE))))=TRUE,0,VLOOKUP(A89,'RunoffLook-up'!$G$5:$H$3442,2,FALSE))*('Reuse Inputs_Summary'!$C$3/10) -> 0 | I89: ='Reuse Inputs_Summary'!$C$7 -> 0.075 | J89: 0 | K89: 0 | L89: 0 | M89: 0 | N89: =IF($C89<'Reuse Inputs_Summary'!$C$13,"NO",IF(($C89>'Reuse Inputs_Summary'!$C$14),"NO","YES")) -> NO | O89: NO | P89: =IF(N89="No",0,IF(AND(N89="Yes",O89="NO",L89>'Reuse Inputs_Summary'!$C$12),'Reuse Inputs_Summary'!$C$12,IF(AND(N89="Yes",O89="NO",L89<'Reuse Inputs_Summary'!$C$12,L89>0),L89,0))) -> 0 | Q89: =IF('Reuse Inputs_Summary'!$C$15=0,"NO","YES") -> YES | R89: 0 | S89: 0 | T89: =IF(N89="No",0,IF(AND(N89="Yes",O89="YES"),0,IF(AND(N89="Yes",O89="NO",ReuseWaterBalance!L89<'Reuse Inputs_Summary'!$C$12),('Reuse Inputs_Summary'!$C$12-ReuseWaterBalance!L89),0))) -> 0
A90: 1955-03-27 | B90: 1955 | C90: 3 | D90: 27 | E90: 0 | F90: 0 | G90: 0 | H90: =IF((ISNA((VLOOKUP(A90,'RunoffLook-up'!$G$5:$H$3442,2,FALSE))))=TRUE,0,VLOOKUP(A90,'RunoffLook-up'!$G$5:$H$3442,2,FALSE))*('Reuse Inputs_Summary'!$C$3/10) -> 0 | I90: ='Reuse Inputs_Summary'!$C$7 -> 0.075 | J90: 0 | K90: 0 | L90: 0 | M90: 0 | N90: =IF($C90<'Reuse Inputs_Summary'!$C$13,"NO",IF(($C90>'Reuse Inputs_Summary'!$C$14),"NO","YES")) -> NO | O90: NO | P90: =IF(N90="No",0,IF(AND(N90="Yes",O90="NO",L90>'Reuse Inputs_Summary'!$C$12),'Reuse Inputs_Summary'!$C$12,IF(AND(N90="Yes",O90="NO",L90<'Reuse Inputs_Summary'!$C$12,L90>0),L90,0))) -> 0 | Q90: =IF('Reuse Inputs_Summary'!$C$15=0,"NO","YES") -> YES | R90: 0 | S90: 0 | T90: =IF(N90="No",0,IF(AND(N90="Yes",O90="YES"),0,IF(AND(N90="Yes",O90="NO",ReuseWaterBalance!L90<'Reuse Inputs_Summary'!$C$12),('Reuse Inputs_Summary'!$C$12-ReuseWaterBalance!L90),0))) -> 0
A91: 1955-03-28 | B91: 1955 | C91: 3 | D91: 28 | E91: 0 | F91: 0 | G91: 0 | H91: =IF((ISNA((VLOOKUP(A91,'RunoffLook-up'!$G$5:$H$3442,2,FALSE))))=TRUE,0,VLOOKUP(A91,'RunoffLook-up'!$G$5:$H$3442,2,FALSE))*('Reuse Inputs_Summary'!$C$3/10) -> 0 | I91: ='Reuse Inputs_Summary'!$C$7 -> 0.075 | J91: 0 | K91: 0 | L91: 0 | M91: 0 | N91: =IF($C91<'Reuse Inputs_Summary'!$C$13,"NO",IF(($C91>'Reuse Inputs_Summary'!$C$14),"NO","YES")) -> NO | O91: NO | P91: =IF(N91="No",0,IF(AND(N91="Yes",O91="NO",L91>'Reuse Inputs_Summary'!$C$12),'Reuse Inputs_Summary'!$C$12,IF(AND(N91="Yes",O91="NO",L91<'Reuse Inputs_Summary'!$C$12,L91>0),L91,0))) -> 0 | Q91: =IF('Reuse Inputs_Summary'!$C$15=0,"NO","YES") -> YES | R91: 0 | S91: 0 | T91: =IF(N91="No",0,IF(AND(N91="Yes",O91="YES"),0,IF(AND(N91="Yes",O91="NO",ReuseWaterBalance!L91<'Reuse Inputs_Summary'!$C$12),('Reuse Inputs_Summary'!$C$12-ReuseWaterBalance!L91),0))) -> 0
A92: 1955-03-29 | B92: 1955 | C92: 3 | D92: 29 | E92: 0 | F92: 0.29 | G92: 0.29 | H92: =IF((ISNA((VLOOKUP(A92,'RunoffLook-up'!$G$5:$H$3442,2,FALSE))))=TRUE,0,VLOOKUP(A92,'RunoffLook-up'!$G$5:$H$3442,2,FALSE))*('Reuse Inputs_Summary'!$C$3/10) -> 0.0009795612873 | I92: ='Reuse Inputs_Summary'!$C$7 -> 0.075 | J92: 0 | K92: 0 | L92: 0 | M92: 0.0009795612873 | N92: =IF($C92<'Reuse Inputs_Summary'!$C$13,"NO",IF(($C92>'Reuse Inputs_Summary'!$C$14),"NO","YES")) -> NO | O92: YES | P92: =IF(N92="No",0,IF(AND(N92="Yes",O92="NO",L92>'Reuse Inputs_Summary'!$C$12),'Reuse Inputs_Summary'!$C$12,IF(AND(N92="Yes",O92="NO",L92<'Reuse Inputs_Summary'!$C$12,L92>0),L92,0))) -> 0 | Q92: =IF('Reuse Inputs_Summary'!$C$15=0,"NO","YES") -> YES | R92: 0 | S92: 0 | T92: =IF(N92="No",0,IF(AND(N92="Yes",O92="YES"),0,IF(AND(N92="Yes",O92="NO",ReuseWaterBalance!L92<'Reuse Inputs_Summary'!$C$12),('Reuse Inputs_Summary'!$C$12-ReuseWaterBalance!L92),0))) -> 0
A93: 1955-03-30 | B93: 1955 | C93: 3 | D93: 30 | E93: 0 | F93: 0 | G93: 0 | H93: =IF((ISNA((VLOOKUP(A93,'RunoffLook-up'!$G$5:$H$3442,2,FALSE))))=TRUE,0,VLOOKUP(A93,'RunoffLook-up'!$G$5:$H$3442,2,FALSE))*('Reuse Inputs_Summary'!$C$3/10) -> 0 | I93: ='Reuse Inputs_Summary'!$C$7 -> 0.075 | J93: 0 | K93: 0 | L93: 0 | M93: 0 | N93: =IF($C93<'Reuse Inputs_Summary'!$C$13,"NO",IF(($C93>'Reuse Inputs_Summary'!$C$14),"NO","YES")) -> NO | O93: NO | P93: =IF(N93="No",0,IF(AND(N93="Yes",O93="NO",L93>'Reuse Inputs_Summary'!$C$12),'Reuse Inputs_Summary'!$C$12,IF(AND(N93="Yes",O93="NO",L93<'Reuse Inputs_Summary'!$C$12,L93>0),L93,0))) -> 0 | Q93: =IF('Reuse Inputs_Summary'!$C$15=0,"NO","YES") -> YES | R93: 0 | S93: 0 | T93: =IF(N93="No",0,IF(AND(N93="Yes",O93="YES"),0,IF(AND(N93="Yes",O93="NO",ReuseWaterBalance!L93<'Reuse Inputs_Summary'!$C$12),('Reuse Inputs_Summary'!$C$12-ReuseWaterBalance!L93),0))) -> 0
A94: 1955-03-31 | B94: 1955 | C94: 3 | D94: 31 | E94: 0 | F94: 0 | G94: 0 | H94: =IF((ISNA((VLOOKUP(A94,'RunoffLook-up'!$G$5:$H$3442,2,FALSE))))=TRUE,0,VLOOKUP(A94,'RunoffLook-up'!$G$5:$H$3442,2,FALSE))*('Reuse Inputs_Summary'!$C$3/10) -> 0 | I94: ='Reuse Inputs_Summary'!$C$7 -> 0.075 | J94: 0 | K94: 0 | L94: 0 | M94: 0 | N94: =IF($C94<'Reuse Inputs_Summary'!$C$13,"NO",IF(($C94>'Reuse Inputs_Summary'!$C$14),"NO","YES")) -> NO | O94: NO | P94: =IF(N94="No",0,IF(AND(N94="Yes",O94="NO",L94>'Reuse Inputs_Summary'!$C$12),'Reuse Inputs_Summary'!$C$12,IF(AND(N94="Yes",O94="NO",L94<'Reuse Inputs_Summary'!$C$12,L94>0),L94,0))) -> 0 | Q94: =IF('Reuse Inputs_Summary'!$C$15=0,"NO","YES") -> YES | R94: 0 | S94: 0 | T94: =IF(N94="No",0,IF(AND(N94="Yes",O94="YES"),0,IF(AND(N94="Yes",O94="NO",ReuseWaterBalance!L94<'Reuse Inputs_Summary'!$C$12),('Reuse Inputs_Summary'!$C$12-ReuseWaterBalance!L94),0))) -> 0
A95: 1955-04-01 | B95: 1955 | C95: 4 | D95: 1 | E95: 0 | F95: 0 | G95: 0 | H95: =IF((ISNA((VLOOKUP(A95,'RunoffLook-up'!$G$5:$H$3442,2,FALSE))))=TRUE,0,VLOOKUP(A95,'RunoffLook-up'!$G$5:$H$3442,2,FALSE))*('Reuse Inputs_Summary'!$C$3/10) -> 0 | I95: ='Reuse Inputs_Summary'!$C$7 -> 0.075 | J95: 0 | K95: 0 | L95: 0 | M95: 0 | N95: =IF($C95<'Reuse Inputs_Summary'!$C$13,"NO",IF(($C95>'Reuse Inputs_Summary'!$C$14),"NO","YES")) -> NO | O95: NO | P95: =IF(N95="No",0,IF(AND(N95="Yes",O95="NO",L95>'Reuse Inputs_Summary'!$C$12),'Reuse Inputs_Summary'!$C$12,IF(AND(N95="Yes",O95="NO",L95<'Reuse Inputs_Summary'!$C$12,L95>0),L95,0))) -> 0 | Q95: =IF('Reuse Inputs_Summary'!$C$15=0,"NO","YES") -> YES | R95: 0 | S95: 0 | T95: =IF(N95="No",0,IF(AND(N95="Yes",O95="YES"),0,IF(AND(N95="Yes",O95="NO",ReuseWaterBalance!L95<'Reuse Inputs_Summary'!$C$12),('Reuse Inputs_Summary'!$C$12-ReuseWaterBalance!L95),0))) -> 0
A96: 1955-04-02 | B96: 1955 | C96: 4 | D96: 2 | E96: 0 | F96: 0 | G96: 0 | H96: =IF((ISNA((VLOOKUP(A96,'RunoffLook-up'!$G$5:$H$3442,2,FALSE))))=TRUE,0,VLOOKUP(A96,'RunoffLook-up'!$G$5:$H$3442,2,FALSE))*('Reuse Inputs_Summary'!$C$3/10) -> 0 | I96: ='Reuse Inputs_Summary'!$C$7 -> 0.075 | J96: 0 | K96: 0 | L96: 0 | M96: 0 | N96: =IF($C96<'Reuse Inputs_Summary'!$C$13,"NO",IF(($C96>'Reuse Inputs_Summary'!$C$14),"NO","YES")) -> NO | O96: NO | P96: =IF(N96="No",0,IF(AND(N96="Yes",O96="NO",L96>'Reuse Inputs_Summary'!$C$12),'Reuse Inputs_Summary'!$C$12,IF(AND(N96="Yes",O96="NO",L96<'Reuse Inputs_Summary'!$C$12,L96>0),L96,0))) -> 0 | Q96: =IF('Reuse Inputs_Summary'!$C$15=0,"NO","YES") -> YES | R96: 0 | S96: 0 | T96: =IF(N96="No",0,IF(AND(N96="Yes",O96="YES"),0,IF(AND(N96="Yes",O96="NO",ReuseWaterBalance!L96<'Reuse Inputs_Summary'!$C$12),('Reuse Inputs_Summary'!$C$12-ReuseWaterBalance!L96),0))) -> 0
A97: 1955-04-03 | B97: 1955 | C97: 4 | D97: 3 | E97: 0 | F97: 0 | G97: 0 | H97: =IF((ISNA((VLOOKUP(A97,'RunoffLook-up'!$G$5:$H$3442,2,FALSE))))=TRUE,0,VLOOKUP(A97,'RunoffLook-up'!$G$5:$H$3442,2,FALSE))*('Reuse Inputs_Summary'!$C$3/10) -> 0 | I97: ='Reuse Inputs_Summary'!$C$7 -> 0.075 | J97: 0 | K97: 0 | L97: 0 | M97: 0 | N97: =IF($C97<'Reuse Inputs_Summary'!$C$13,"NO",IF(($C97>'Reuse Inputs_Summary'!$C$14),"NO","YES")) -> NO | O97: NO | P97: =IF(N97="No",0,IF(AND(N97="Yes",O97="NO",L97>'Reuse Inputs_Summary'!$C$12),'Reuse Inputs_Summary'!$C$12,IF(AND(N97="Yes",O97="NO",L97<'Reuse Inputs_Summary'!$C$12,L97>0),L97,0))) -> 0 | Q97: =IF('Reuse Inputs_Summary'!$C$15=0,"NO","YES") -> YES | R97: 0 | S97: 0 | T97: =IF(N97="No",0,IF(AND(N97="Yes",O97="YES"),0,IF(AND(N97="Yes",O97="NO",ReuseWaterBalance!L97<'Reuse Inputs_Summary'!$C$12),('Reuse Inputs_Summary'!$C$12-ReuseWaterBalance!L97),0))) -> 0
A98: 1955-04-04 | B98: 1955 | C98: 4 | D98: 4 | E98: 0 | F98: 0 | G98: 0 | H98: =IF((ISNA((VLOOKUP(A98,'RunoffLook-up'!$G$5:$H$3442,2,FALSE))))=TRUE,0,VLOOKUP(A98,'RunoffLook-up'!$G$5:$H$3442,2,FALSE))*('Reuse Inputs_Summary'!$C$3/10) -> 0 | I98: ='Reuse Inputs_Summary'!$C$7 -> 0.075 | J98: 0 | K98: 0 | L98: 0 | M98: 0 | N98: =IF($C98<'Reuse Inputs_Summary'!$C$13,"NO",IF(($C98>'Reuse Inputs_Summary'!$C$14),"NO","YES")) -> NO | O98: NO | P98: =IF(N98="No",0,IF(AND(N98="Yes",O98="NO",L98>'Reuse Inputs_Summary'!$C$12),'Reuse Inputs_Summary'!$C$12,IF(AND(N98="Yes",O98="NO",L98<'Reuse Inputs_Summary'!$C$12,L98>0),L98,0))) -> 0 | Q98: =IF('Reuse Inputs_Summary'!$C$15=0,"NO","YES") -> YES | R98: 0 | S98: 0 | T98: =IF(N98="No",0,IF(AND(N98="Yes",O98="YES"),0,IF(AND(N98="Yes",O98="NO",ReuseWaterBalance!L98<'Reuse Inputs_Summary'!$C$12),('Reuse Inputs_Summary'!$C$12-ReuseWaterBalance!L98),0))) -> 0
A99: 1955-04-05 | B99: 1955 | C99: 4 | D99: 5 | E99: 0.38 | F99: 0 | G99: 0.38 | H99: =IF((ISNA((VLOOKUP(A99,'RunoffLook-up'!$G$5:$H$3442,2,FALSE))))=TRUE,0,VLOOKUP(A99,'RunoffLook-up'!$G$5:$H$3442,2,FALSE))*('Reuse Inputs_Summary'!$C$3/10) -> 0.001333333333 | I99: ='Reuse Inputs_Summary'!$C$7 -> 0.075 | J99: 0 | K99: 0 | L99: 0 | M99: 0.001333333333 | N99: =IF($C99<'Reuse Inputs_Summary'!$C$13,"NO",IF(($C99>'Reuse Inputs_Summary'!$C$14),"NO","YES")) -> NO | O99: YES | P99: =IF(N99="No",0,IF(AND(N99="Yes",O99="NO",L99>'Reuse Inputs_Summary'!$C$12),'Reuse Inputs_Summary'!$C$12,IF(AND(N99="Yes",O99="NO",L99<'Reuse Inputs_Summary'!$C$12,L99>0),L99,0))) -> 0 | Q99: =IF('Reuse Inputs_Summary'!$C$15=0,"NO","YES") -> YES | R99: 0 | S99: 0 | T99: =IF(N99="No",0,IF(AND(N99="Yes",O99="YES"),0,IF(AND(N99="Yes",O99="NO",ReuseWaterBalance!L99<'Reuse Inputs_Summary'!$C$12),('Reuse Inputs_Summary'!$C$12-ReuseWaterBalance!L99),0))) -> 0
A100: 1955-04-06 | B100: 1955 | C100: 4 | D100: 6 | E100: 0 | F100: 0 | G100: 0 | H100: =IF((ISNA((VLOOKUP(A100,'RunoffLook-up'!$G$5:$H$3442,2,FALSE))))=TRUE,0,VLOOKUP(A100,'RunoffLook-up'!$G$5:$H$3442,2,FALSE))*('Reuse Inputs_Summary'!$C$3/10) -> 0 | I100: ='Reuse Inputs_Summary'!$C$7 -> 0.075 | J100: 0 | K100: 0 | L100: 0 | M100: 0 | N100: =IF($C100<'Reuse Inputs_Summary'!$C$13,"NO",IF(($C100>'Reuse Inputs_Summary'!$C$14),"NO","YES")) -> NO | O100: NO | P100: =IF(N100="No",0,IF(AND(N100="Yes",O100="NO",L100>'Reuse Inputs_Summary'!$C$12),'Reuse Inputs_Summary'!$C$12,IF(AND(N100="Yes",O100="NO",L100<'Reuse Inputs_Summary'!$C$12,L100>0),L100,0))) -> 0 | Q100: =IF('Reuse Inputs_Summary'!$C$15=0,"NO","YES") -> YES | R100: 0 | S100: 0 | T100: =IF(N100="No",0,IF(AND(N100="Yes",O100="YES"),0,IF(AND(N100="Yes",O100="NO",ReuseWaterBalance!L100<'Reuse Inputs_Summary'!$C$12),('Reuse Inputs_Summary'!$C$12-ReuseWaterBalance!L100),0))) -> 0
A101: 1955-04-07 | B101: 1955 | C101: 4 | D101: 7 | E101: 0 | F101: 0 | G101: 0 | H101: =IF((ISNA((VLOOKUP(A101,'RunoffLook-up'!$G$5:$H$3442,2,FALSE))))=TRUE,0,VLOOKUP(A101,'RunoffLook-up'!$G$5:$H$3442,2,FALSE))*('Reuse Inputs_Summary'!$C$3/10) -> 0 | I101: ='Reuse Inputs_Summary'!$C$7 -> 0.075 | J101: 0 | K101: 0 | L101: 0 | M101: 0 | N101: =IF($C101<'Reuse Inputs_Summary'!$C$13,"NO",IF(($C101>'Reuse Inputs_Summary'!$C$14),"NO","YES")) -> NO | O101: NO | P101: =IF(N101="No",0,IF(AND(N101="Yes",O101="NO",L101>'Reuse Inputs_Summary'!$C$12),'Reuse Inputs_Summary'!$C$12,IF(AND(N101="Yes",O101="NO",L101<'Reuse Inputs_Summary'!$C$12,L101>0),L101,0))) -> 0 | Q101: =IF('Reuse Inputs_Summary'!$C$15=0,"NO","YES") -> YES | R101: 0 | S101: 0 | T101: =IF(N101="No",0,IF(AND(N101="Yes",O101="YES"),0,IF(AND(N101="Yes",O101="NO",ReuseWaterBalance!L101<'Reuse Inputs_Summary'!$C$12),('Reuse Inputs_Summary'!$C$12-ReuseWaterBalance!L101),0))) -> 0
A102: 1955-04-08 | B102: 1955 | C102: 4 | D102: 8 | E102: 0 | F102: 0 | G102: 0 | H102: =IF((ISNA((VLOOKUP(A102,'RunoffLook-up'!$G$5:$H$3442,2,FALSE))))=TRUE,0,VLOOKUP(A102,'RunoffLook-up'!$G$5:$H$3442,2,FALSE))*('Reuse Inputs_Summary'!$C$3/10) -> 0 | I102: ='Reuse Inputs_Summary'!$C$7 -> 0.075 | J102: 0 | K102: 0 | L102: 0 | M102: 0 | N102: =IF($C102<'Reuse Inputs_Summary'!$C$13,"NO",IF(($C102>'Reuse Inputs_Summary'!$C$14),"NO","YES")) -> NO | O102: NO | P102: =IF(N102="No",0,IF(AND(N102="Yes",O102="NO",L102>'Reuse Inputs_Summary'!$C$12),'Reuse Inputs_Summary'!$C$12,IF(AND(N102="Yes",O102="NO",L102<'Reuse Inputs_Summary'!$C$12,L102>0),L102,0))) -> 0 | Q102: =IF('Reuse Inputs_Summary'!$C$15=0,"NO","YES") -> YES | R102: 0 | S102: 0 | T102: =IF(N102="No",0,IF(AND(N102="Yes",O102="YES"),0,IF(AND(N102="Yes",O102="NO",ReuseWaterBalance!L102<'Reuse Inputs_Summary'!$C$12),('Reuse Inputs_Summary'!$C$12-ReuseWaterBalance!L102),0))) -> 0
A103: 1955-04-09 | B103: 1955 | C103: 4 | D103: 9 | E103: 0 | F103: 0 | G103: 0 | H103: =IF((ISNA((VLOOKUP(A103,'RunoffLook-up'!$G$5:$H$3442,2,FALSE))))=TRUE,0,VLOOKUP(A103,'RunoffLook-up'!$G$5:$H$3442,2,FALSE))*('Reuse Inputs_Summary'!$C$3/10) -> 0 | I103: ='Reuse Inputs_Summary'!$C$7 -> 0.075 | J103: 0 | K103: 0 | L103: 0 | M103: 0 | N103: =IF($C103<'Reuse Inputs_Summary'!$C$13,"NO",IF(($C103>'Reuse Inputs_Summary'!$C$14),"NO","YES")) -> NO | O103: NO | P103: =IF(N103="No",0,IF(AND(N103="Yes",O103="NO",L103>'Reuse Inputs_Summary'!$C$12),'Reuse Inputs_Summary'!$C$12,IF(AND(N103="Yes",O103="NO",L103<'Reuse Inputs_Summary'!$C$12,L103>0),L103,0))) -> 0 | Q103: =IF('Reuse Inputs_Summary'!$C$15=0,"NO","YES") -> YES | R103: 0 | S103: 0 | T103: =IF(N103="No",0,IF(AND(N103="Yes",O103="YES"),0,IF(AND(N103="Yes",O103="NO",ReuseWaterBalance!L103<'Reuse Inputs_Summary'!$C$12),('Reuse Inputs_Summary'!$C$12-ReuseWaterBalance!L103),0))) -> 0
A104: 1955-04-10 | B104: 1955 | C104: 4 | D104: 10 | E104: 0 | F104: 0 | G104: 0 | H104: =IF((ISNA((VLOOKUP(A104,'RunoffLook-up'!$G$5:$H$3442,2,FALSE))))=TRUE,0,VLOOKUP(A104,'RunoffLook-up'!$G$5:$H$3442,2,FALSE))*('Reuse Inputs_Summary'!$C$3/10) -> 0 | I104: ='Reuse Inputs_Summary'!$C$7 -> 0.075 | J104: 0 | K104: 0 | L104: 0 | M104: 0 | N104: =IF($C104<'Reuse Inputs_Summary'!$C$13,"NO",IF(($C104>'Reuse Inputs_Summary'!$C$14),"NO","YES")) -> NO | O104: NO | P104: =IF(N104="No",0,IF(AND(N104="Yes",O104="NO",L104>'Reuse Inputs_Summary'!$C$12),'Reuse Inputs_Summary'!$C$12,IF(AND(N104="Yes",O104="NO",L104<'Reuse Inputs_Summary'!$C$12,L104>0),L104,0))) -> 0 | Q104: =IF('Reuse Inputs_Summary'!$C$15=0,"NO","YES") -> YES | R104: 0 | S104: 0 | T104: =IF(N104="No",0,IF(AND(N104="Yes",O104="YES"),0,IF(AND(N104="Yes",O104="NO",ReuseWaterBalance!L104<'Reuse Inputs_Summary'!$C$12),('Reuse Inputs_Summary'!$C$12-ReuseWaterBalance!L104),0))) -> 0
A105: 1955-04-11 | B105: 1955 | C105: 4 | D105: 11 | E105: 0 | F105: 0 | G105: 0 | H105: =IF((ISNA((VLOOKUP(A105,'RunoffLook-up'!$G$5:$H$3442,2,FALSE))))=TRUE,0,VLOOKUP(A105,'RunoffLook-up'!$G$5:$H$3442,2,FALSE))*('Reuse Inputs_Summary'!$C$3/10) -> 0 | I105: ='Reuse Inputs_Summary'!$C$7 -> 0.075 | J105: 0 | K105: 0 | L105: 0 | M105: 0 | N105: =IF($C105<'Reuse Inputs_Summary'!$C$13,"NO",IF(($C105>'Reuse Inputs_Summary'!$C$14),"NO","YES")) -> NO | O105: NO | P105: =IF(N105="No",0,IF(AND(N105="Yes",O105="NO",L105>'Reuse Inputs_Summary'!$C$12),'Reuse Inputs_Summary'!$C$12,IF(AND(N105="Yes",O105="NO",L105<'Reuse Inputs_Summary'!$C$12,L105>0),L105,0))) -> 0 | Q105: =IF('Reuse Inputs_Summary'!$C$15=0,"NO","YES") -> YES | R105: 0 | S105: 0 | T105: =IF(N105="No",0,IF(AND(N105="Yes",O105="YES"),0,IF(AND(N105="Yes",O105="NO",ReuseWaterBalance!L105<'Reuse Inputs_Summary'!$C$12),('Reuse Inputs_Summary'!$C$12-ReuseWaterBalance!L105),0))) -> 0
A106: 1955-04-12 | B106: 1955 | C106: 4 | D106: 12 | E106: 0 | F106: 0 | G106: 0 | H106: =IF((ISNA((VLOOKUP(A106,'RunoffLook-up'!$G$5:$H$3442,2,FALSE))))=TRUE,0,VLOOKUP(A106,'RunoffLook-up'!$G$5:$H$3442,2,FALSE))*('Reuse Inputs_Summary'!$C$3/10) -> 0 | I106: ='Reuse Inputs_Summary'!$C$7 -> 0.075 | J106: 0 | K106: 0 | L106: 0 | M106: 0 | N106: =IF($C106<'Reuse Inputs_Summary'!$C$13,"NO",IF(($C106>'Reuse Inputs_Summary'!$C$14),"NO","YES")) -> NO | O106: NO | P106: =IF(N106="No",0,IF(AND(N106="Yes",O106="NO",L106>'Reuse Inputs_Summary'!$C$12),'Reuse Inputs_Summary'!$C$12,IF(AND(N106="Yes",O106="NO",L106<'Reuse Inputs_Summary'!$C$12,L106>0),L106,0))) -> 0 | Q106: =IF('Reuse Inputs_Summary'!$C$15=0,"NO","YES") -> YES | R106: 0 | S106: 0 | T106: =IF(N106="No",0,IF(AND(N106="Yes",O106="YES"),0,IF(AND(N106="Yes",O106="NO",ReuseWaterBalance!L106<'Reuse Inputs_Summary'!$C$12),('Reuse Inputs_Summary'!$C$12-ReuseWaterBalance!L106),0))) -> 0
A107: 1955-04-13 | B107: 1955 | C107: 4 | D107: 13 | E107: 0 | F107: 0 | G107: 0 | H107: =IF((ISNA((VLOOKUP(A107,'RunoffLook-up'!$G$5:$H$3442,2,FALSE))))=TRUE,0,VLOOKUP(A107,'RunoffLook-up'!$G$5:$H$3442,2,FALSE))*('Reuse Inputs_Summary'!$C$3/10) -> 0 | I107: ='Reuse Inputs_Summary'!$C$7 -> 0.075 | J107: 0 | K107: 0 | L107: 0 | M107: 0 | N107: =IF($C107<'Reuse Inputs_Summary'!$C$13,"NO",IF(($C107>'Reuse Inputs_Summary'!$C$14),"NO","YES")) -> NO | O107: NO | P107: =IF(N107="No",0,IF(AND(N107="Yes",O107="NO",L107>'Reuse Inputs_Summary'!$C$12),'Reuse Inputs_Summary'!$C$12,IF(AND(N107="Yes",O107="NO",L107<'Reuse Inputs_Summary'!$C$12,L107>0),L107,0))) -> 0 | Q107: =IF('Reuse Inputs_Summary'!$C$15=0,"NO","YES") -> YES | R107: 0 | S107: 0 | T107: =IF(N107="No",0,IF(AND(N107="Yes",O107="YES"),0,IF(AND(N107="Yes",O107="NO",ReuseWaterBalance!L107<'Reuse Inputs_Summary'!$C$12),('Reuse Inputs_Summary'!$C$12-ReuseWaterBalance!L107),0))) -> 0
A108: 1955-04-14 | B108: 1955 | C108: 4 | D108: 14 | E108: 0 | F108: 0 | G108: 0 | H108: =IF((ISNA((VLOOKUP(A108,'RunoffLook-up'!$G$5:$H$3442,2,FALSE))))=TRUE,0,VLOOKUP(A108,'RunoffLook-up'!$G$5:$H$3442,2,FALSE))*('Reuse Inputs_Summary'!$C$3/10) -> 0 | I108: ='Reuse Inputs_Summary'!$C$7 -> 0.075 | J108: 0 | K108: 0 | L108: 0 | M108: 0 | N108: =IF($C108<'Reuse Inputs_Summary'!$C$13,"NO",IF(($C108>'Reuse Inputs_Summary'!$C$14),"NO","YES")) -> NO | O108: NO | P108: =IF(N108="No",0,IF(AND(N108="Yes",O108="NO",L108>'Reuse Inputs_Summary'!$C$12),'Reuse Inputs_Summary'!$C$12,IF(AND(N108="Yes",O108="NO",L108<'Reuse Inputs_Summary'!$C$12,L108>0),L108,0))) -> 0 | Q108: =IF('Reuse Inputs_Summary'!$C$15=0,"NO","YES") -> YES | R108: 0 | S108: 0 | T108: =IF(N108="No",0,IF(AND(N108="Yes",O108="YES"),0,IF(AND(N108="Yes",O108="NO",ReuseWaterBalance!L108<'Reuse Inputs_Summary'!$C$12),('Reuse Inputs_Summary'!$C$12-ReuseWaterBalance!L108),0))) -> 0
A109: 1955-04-15 | B109: 1955 | C109: 4 | D109: 15 | E109: 0 | F109: 0 | G109: 0 | H109: =IF((ISNA((VLOOKUP(A109,'RunoffLook-up'!$G$5:$H$3442,2,FALSE))))=TRUE,0,VLOOKUP(A109,'RunoffLook-up'!$G$5:$H$3442,2,FALSE))*('Reuse Inputs_Summary'!$C$3/10) -> 0 | I109: ='Reuse Inputs_Summary'!$C$7 -> 0.075 | J109: 0 | K109: 0 | L109: 0 | M109: 0 | N109: =IF($C109<'Reuse Inputs_Summary'!$C$13,"NO",IF(($C109>'Reuse Inputs_Summary'!$C$14),"NO","YES")) -> NO | O109: NO | P109: =IF(N109="No",0,IF(AND(N109="Yes",O109="NO",L109>'Reuse Inputs_Summary'!$C$12),'Reuse Inputs_Summary'!$C$12,IF(AND(N109="Yes",O109="NO",L109<'Reuse Inputs_Summary'!$C$12,L109>0),L109,0))) -> 0 | Q109: =IF('Reuse Inputs_Summary'!$C$15=0,"NO","YES") -> YES | R109: 0 | S109: 0 | T109: =IF(N109="No",0,IF(AND(N109="Yes",O109="YES"),0,IF(AND(N109="Yes",O109="NO",ReuseWaterBalance!L109<'Reuse Inputs_Summary'!$C$12),('Reuse Inputs_Summary'!$C$12-ReuseWaterBalance!L109),0))) -> 0
A110: 1955-04-16 | B110: 1955 | C110: 4 | D110: 16 | E110: 0 | F110: 0 | G110: 0 | H110: =IF((ISNA((VLOOKUP(A110,'RunoffLook-up'!$G$5:$H$3442,2,FALSE))))=TRUE,0,VLOOKUP(A110,'RunoffLook-up'!$G$5:$H$3442,2,FALSE))*('Reuse Inputs_Summary'!$C$3/10) -> 0 | I110: ='Reuse Inputs_Summary'!$C$7 -> 0.075 | J110: 0 | K110: 0 | L110: 0 | M110: 0 | N110: =IF($C110<'Reuse Inputs_Summary'!$C$13,"NO",IF(($C110>'Reuse Inputs_Summary'!$C$14),"NO","YES")) -> NO | O110: NO | P110: =IF(N110="No",0,IF(AND(N110="Yes",O110="NO",L110>'Reuse Inputs_Summary'!$C$12),'Reuse Inputs_Summary'!$C$12,IF(AND(N110="Yes",O110="NO",L110<'Reuse Inputs_Summary'!$C$12,L110>0),L110,0))) -> 0 | Q110: =IF('Reuse Inputs_Summary'!$C$15=0,"NO","YES") -> YES | R110: 0 | S110: 0 | T110: =IF(N110="No",0,IF(AND(N110="Yes",O110="YES"),0,IF(AND(N110="Yes",O110="NO",ReuseWaterBalance!L110<'Reuse Inputs_Summary'!$C$12),('Reuse Inputs_Summary'!$C$12-ReuseWaterBalance!L110),0))) -> 0
A111: 1955-04-17 | B111: 1955 | C111: 4 | D111: 17 | E111: 0 | F111: 0 | G111: 0 | H111: =IF((ISNA((VLOOKUP(A111,'RunoffLook-up'!$G$5:$H$3442,2,FALSE))))=TRUE,0,VLOOKUP(A111,'RunoffLook-up'!$G$5:$H$3442,2,FALSE))*('Reuse Inputs_Summary'!$C$3/10) -> 0 | I111: ='Reuse Inputs_Summary'!$C$7 -> 0.075 | J111: 0 | K111: 0 | L111: 0 | M111: 0 | N111: =IF($C111<'Reuse Inputs_Summary'!$C$13,"NO",IF(($C111>'Reuse Inputs_Summary'!$C$14),"NO","YES")) -> NO | O111: NO | P111: =IF(N111="No",0,IF(AND(N111="Yes",O111="NO",L111>'Reuse Inputs_Summary'!$C$12),'Reuse Inputs_Summary'!$C$12,IF(AND(N111="Yes",O111="NO",L111<'Reuse Inputs_Summary'!$C$12,L111>0),L111,0))) -> 0 | Q111: =IF('Reuse Inputs_Summary'!$C$15=0,"NO","YES") -> YES | R111: 0 | S111: 0 | T111: =IF(N111="No",0,IF(AND(N111="Yes",O111="YES"),0,IF(AND(N111="Yes",O111="NO",ReuseWaterBalance!L111<'Reuse Inputs_Summary'!$C$12),('Reuse Inputs_Summary'!$C$12-ReuseWaterBalance!L111),0))) -> 0
A112: 1955-04-18 | B112: 1955 | C112: 4 | D112: 18 | E112: 0 | F112: 0 | G112: 0 | H112: =IF((ISNA((VLOOKUP(A112,'RunoffLook-up'!$G$5:$H$3442,2,FALSE))))=TRUE,0,VLOOKUP(A112,'RunoffLook-up'!$G$5:$H$3442,2,FALSE))*('Reuse Inputs_Summary'!$C$3/10) -> 0 | I112: ='Reuse Inputs_Summary'!$C$7 -> 0.075 | J112: 0 | K112: 0 | L112: 0 | M112: 0 | N112: =IF($C112<'Reuse Inputs_Summary'!$C$13,"NO",IF(($C112>'Reuse Inputs_Summary'!$C$14),"NO","YES")) -> NO | O112: NO | P112: =IF(N112="No",0,IF(AND(N112="Yes",O112="NO",L112>'Reuse Inputs_Summary'!$C$12),'Reuse Inputs_Summary'!$C$12,IF(AND(N112="Yes",O112="NO",L112<'Reuse Inputs_Summary'!$C$12,L112>0),L112,0))) -> 0 | Q112: =IF('Reuse Inputs_Summary'!$C$15=0,"NO","YES") -> YES | R112: 0 | S112: 0 | T112: =IF(N112="No",0,IF(AND(N112="Yes",O112="YES"),0,IF(AND(N112="Yes",O112="NO",ReuseWaterBalance!L112<'Reuse Inputs_Summary'!$C$12),('Reuse Inputs_Summary'!$C$12-ReuseWaterBalance!L112),0))) -> 0
A113: 1955-04-19 | B113: 1955 | C113: 4 | D113: 19 | E113: 0.29 | F113: 0 | G113: 0.29 | H113: =IF((ISNA((VLOOKUP(A113,'RunoffLook-up'!$G$5:$H$3442,2,FALSE))))=TRUE,0,VLOOKUP(A113,'RunoffLook-up'!$G$5:$H$3442,2,FALSE))*('Reuse Inputs_Summary'!$C$3/10) -> 0.0009583333333 | I113: ='Reuse Inputs_Summary'!$C$7 -> 0.075 | J113: 0 | K113: 0 | L113: 0 | M113: 0.0009583333333 | N113: =IF($C113<'Reuse Inputs_Summary'!$C$13,"NO",IF(($C113>'Reuse Inputs_Summary'!$C$14),"NO","YES")) -> NO | O113: YES | P113: =IF(N113="No",0,IF(AND(N113="Yes",O113="NO",L113>'Reuse Inputs_Summary'!$C$12),'Reuse Inputs_Summary'!$C$12,IF(AND(N113="Yes",O113="NO",L113<'Reuse Inputs_Summary'!$C$12,L113>0),L113,0))) -> 0 | Q113: =IF('Reuse Inputs_Summary'!$C$15=0,"NO","YES") -> YES | R113: 0 | S113: =L113-P113-R113 -> 0 | T113: =IF(N113="No",0,IF(AND(N113="Yes",O113="YES"),0,IF(AND(N113="Yes",O113="NO",ReuseWaterBalance!L113<'Reuse Inputs_Summary'!$C$12),('Reuse Inputs_Summary'!$C$12-ReuseWaterBalance!L113),0))) -> 0
A114: 1955-04-20 | B114: 1955 | C114: 4 | D114: 20 | E114: 0 | F114: 0 | G114: 0 | H114: =IF((ISNA((VLOOKUP(A114,'RunoffLook-up'!$G$5:$H$3442,2,FALSE))))=TRUE,0,VLOOKUP(A114,'RunoffLook-up'!$G$5:$H$3442,2,FALSE))*('Reuse Inputs_Summary'!$C$3/10) -> 0 | I114: ='Reuse Inputs_Summary'!$C$7 -> 0.075 | J114: 0 | K114: 0 | L114: 0 | M114: 0 | N114: =IF($C114<'Reuse Inputs_Summary'!$C$13,"NO",IF(($C114>'Reuse Inputs_Summary'!$C$14),"NO","YES")) -> NO | O114: NO | P114: =IF(N114="No",0,IF(AND(N114="Yes",O114="NO",L114>'Reuse Inputs_Summary'!$C$12),'Reuse Inputs_Summary'!$C$12,IF(AND(N114="Yes",O114="NO",L114<'Reuse Inputs_Summary'!$C$12,L114>0),L114,0))) -> 0 | Q114: =IF('Reuse Inputs_Summary'!$C$15=0,"NO","YES") -> YES | R114: 0 | S114: 0 | T114: =IF(N114="No",0,IF(AND(N114="Yes",O114="YES"),0,IF(AND(N114="Yes",O114="NO",ReuseWaterBalance!L114<'Reuse Inputs_Summary'!$C$12),('Reuse Inputs_Summary'!$C$12-ReuseWaterBalance!L114),0))) -> 0
A115: 1955-04-21 | B115: 1955 | C115: 4 | D115: 21 | E115: 0.04 | F115: 0 | G115: 0.04 | H115: =IF((ISNA((VLOOKUP(A115,'RunoffLook-up'!$G$5:$H$3442,2,FALSE))))=TRUE,0,VLOOKUP(A115,'RunoffLook-up'!$G$5:$H$3442,2,FALSE))*('Reuse Inputs_Summary'!$C$3/10) -> 8.748561493e-83 | I115: ='Reuse Inputs_Summary'!$C$7 -> 0.075 | J115: 0 | K115: 0 | L115: 0 | M115: 8.748561493e-83 | N115: =IF($C115<'Reuse Inputs_Summary'!$C$13,"NO",IF(($C115>'Reuse Inputs_Summary'!$C$14),"NO","YES")) -> NO | O115: YES | P115: =IF(N115="No",0,IF(AND(N115="Yes",O115="NO",L115>'Reuse Inputs_Summary'!$C$12),'Reuse Inputs_Summary'!$C$12,IF(AND(N115="Yes",O115="NO",L115<'Reuse Inputs_Summary'!$C$12,L115>0),L115,0))) -> 0 | Q115: =IF('Reuse Inputs_Summary'!$C$15=0,"NO","YES") -> YES | R115: 0 | S115: 0 | T115: =IF(N115="No",0,IF(AND(N115="Yes",O115="YES"),0,IF(AND(N115="Yes",O115="NO",ReuseWaterBalance!L115<'Reuse Inputs_Summary'!$C$12),('Reuse Inputs_Summary'!$C$12-ReuseWaterBalance!L115),0))) -> 0
A116: 1955-04-22 | B116: 1955 | C116: 4 | D116: 22 | E116: 0 | F116: 0 | G116: 0 | H116: =IF((ISNA((VLOOKUP(A116,'RunoffLook-up'!$G$5:$H$3442,2,FALSE))))=TRUE,0,VLOOKUP(A116,'RunoffLook-up'!$G$5:$H$3442,2,FALSE))*('Reuse Inputs_Summary'!$C$3/10) -> 0 | I116: ='Reuse Inputs_Summary'!$C$7 -> 0.075 | J116: 0 | K116: 0 | L116: 0 | M116: 0 | N116: =IF($C116<'Reuse Inputs_Summary'!$C$13,"NO",IF(($C116>'Reuse Inputs_Summary'!$C$14),"NO","YES")) -> NO | O116: NO | P116: =IF(N116="No",0,IF(AND(N116="Yes",O116="NO",L116>'Reuse Inputs_Summary'!$C$12),'Reuse Inputs_Summary'!$C$12,IF(AND(N116="Yes",O116="NO",L116<'Reuse Inputs_Summary'!$C$12,L116>0),L116,0))) -> 0 | Q116: =IF('Reuse Inputs_Summary'!$C$15=0,"NO","YES") -> YES | R116: 0 | S116: 0 | T116: =IF(N116="No",0,IF(AND(N116="Yes",O116="YES"),0,IF(AND(N116="Yes",O116="NO",ReuseWaterBalance!L116<'Reuse Inputs_Summary'!$C$12),('Reuse Inputs_Summary'!$C$12-ReuseWaterBalance!L116),0))) -> 0
A117: 1955-04-23 | B117: 1955 | C117: 4 | D117: 23 | E117: 0 | F117: 0 | G117: 0 | H117: =IF((ISNA((VLOOKUP(A117,'RunoffLook-up'!$G$5:$H$3442,2,FALSE))))=TRUE,0,VLOOKUP(A117,'RunoffLook-up'!$G$5:$H$3442,2,FALSE))*('Reuse Inputs_Summary'!$C$3/10) -> 0 | I117: ='Reuse Inputs_Summary'!$C$7 -> 0.075 | J117: 0 | K117: 0 | L117: 0 | M117: 0 | N117: =IF($C117<'Reuse Inputs_Summary'!$C$13,"NO",IF(($C117>'Reuse Inputs_Summary'!$C$14),"NO","YES")) -> NO | O117: NO | P117: =IF(N117="No",0,IF(AND(N117="Yes",O117="NO",L117>'Reuse Inputs_Summary'!$C$12),'Reuse Inputs_Summary'!$C$12,IF(AND(N117="Yes",O117="NO",L117<'Reuse Inputs_Summary'!$C$12,L117>0),L117,0))) -> 0 | Q117: =IF('Reuse Inputs_Summary'!$C$15=0,"NO","YES") -> YES | R117: 0 | S117: 0 | T117: =IF(N117="No",0,IF(AND(N117="Yes",O117="YES"),0,IF(AND(N117="Yes",O117="NO",ReuseWaterBalance!L117<'Reuse Inputs_Summary'!$C$12),('Reuse Inputs_Summary'!$C$12-ReuseWaterBalance!L117),0))) -> 0
A118: 1955-04-24 | B118: 1955 | C118: 4 | D118: 24 | E118: 0 | F118: 0 | G118: 0 | H118: =IF((ISNA((VLOOKUP(A118,'RunoffLook-up'!$G$5:$H$3442,2,FALSE))))=TRUE,0,VLOOKUP(A118,'RunoffLook-up'!$G$5:$H$3442,2,FALSE))*('Reuse Inputs_Summary'!$C$3/10) -> 0 | I118: ='Reuse Inputs_Summary'!$C$7 -> 0.075 | J118: 0 | K118: 0 | L118: 0 | M118: 0 | N118: =IF($C118<'Reuse Inputs_Summary'!$C$13,"NO",IF(($C118>'Reuse Inputs_Summary'!$C$14),"NO","YES")) -> NO | O118: NO | P118: =IF(N118="No",0,IF(AND(N118="Yes",O118="NO",L118>'Reuse Inputs_Summary'!$C$12),'Reuse Inputs_Summary'!$C$12,IF(AND(N118="Yes",O118="NO",L118<'Reuse Inputs_Summary'!$C$12,L118>0),L118,0))) -> 0 | Q118: =IF('Reuse Inputs_Summary'!$C$15=0,"NO","YES") -> YES | R118: 0 | S118: 0 | T118: =IF(N118="No",0,IF(AND(N118="Yes",O118="YES"),0,IF(AND(N118="Yes",O118="NO",ReuseWaterBalance!L118<'Reuse Inputs_Summary'!$C$12),('Reuse Inputs_Summary'!$C$12-ReuseWaterBalance!L118),0))) -> 0
A119: 1955-04-25 | B119: 1955 | C119: 4 | D119: 25 | E119: 0.16 | F119: 0 | G119: 0.16 | H119: =IF((ISNA((VLOOKUP(A119,'RunoffLook-up'!$G$5:$H$3442,2,FALSE))))=TRUE,0,VLOOKUP(A119,'RunoffLook-up'!$G$5:$H$3442,2,FALSE))*('Reuse Inputs_Summary'!$C$3/10) -> 0.0004166666667 | I119: ='Reuse Inputs_Summary'!$C$7 -> 0.075 | J119: 0 | K119: 0 | L119: 0 | M119: 0.0004166666667 | N119: =IF($C119<'Reuse Inputs_Summary'!$C$13,"NO",IF(($C119>'Reuse Inputs_Summary'!$C$14),"NO","YES")) -> NO | O119: YES | P119: =IF(N119="No",0,IF(AND(N119="Yes",O119="NO",L119>'Reuse Inputs_Summary'!$C$12),'Reuse Inputs_Summary'!$C$12,IF(AND(N119="Yes",O119="NO",L119<'Reuse Inputs_Summary'!$C$12,L119>0),L119,0))) -> 0 | Q119: =IF('Reuse Inputs_Summary'!$C$15=0,"NO","YES") -> YES | R119: 0 | S119: 0 | T119: =IF(N119="No",0,IF(AND(N119="Yes",O119="YES"),0,IF(AND(N119="Yes",O119="NO",ReuseWaterBalance!L119<'Reuse Inputs_Summary'!$C$12),('Reuse Inputs_Summary'!$C$12-ReuseWaterBalance!L119),0))) -> 0
A120: 1955-04-26 | B120: 1955 | C120: 4 | D120: 26 | E120: 0 | F120: 0 | G120: 0 | H120: =IF((ISNA((VLOOKUP(A120,'RunoffLook-up'!$G$5:$H$3442,2,FALSE))))=TRUE,0,VLOOKUP(A120,'RunoffLook-up'!$G$5:$H$3442,2,FALSE))*('Reuse Inputs_Summary'!$C$3/10) -> 0 | I120: ='Reuse Inputs_Summary'!$C$7 -> 0.075 | J120: 0 | K120: 0 | L120: 0 | M120: 0 | N120: =IF($C120<'Reuse Inputs_Summary'!$C$13,"NO",IF(($C120>'Reuse Inputs_Summary'!$C$14),"NO","YES")) -> NO | O120: NO | P120: =IF(N120="No",0,IF(AND(N120="Yes",O120="NO",L120>'Reuse Inputs_Summary'!$C$12),'Reuse Inputs_Summary'!$C$12,IF(AND(N120="Yes",O120="NO",L120<'Reuse Inputs_Summary'!$C$12,L120>0),L120,0))) -> 0 | Q120: =IF('Reuse Inputs_Summary'!$C$15=0,"NO","YES") -> YES | R120: 0 | S120: 0 | T120: =IF(N120="No",0,IF(AND(N120="Yes",O120="YES"),0,IF(AND(N120="Yes",O120="NO",ReuseWaterBalance!L120<'Reuse Inputs_Summary'!$C$12),('Reuse Inputs_Summary'!$C$12-ReuseWaterBalance!L120),0))) -> 0
A121: 1955-04-27 | B121: 1955 | C121: 4 | D121: 27 | E121: 0 | F121: 0 | G121: 0 | H121: =IF((ISNA((VLOOKUP(A121,'RunoffLook-up'!$G$5:$H$3442,2,FALSE))))=TRUE,0,VLOOKUP(A121,'RunoffLook-up'!$G$5:$H$3442,2,FALSE))*('Reuse Inputs_Summary'!$C$3/10) -> 0 | I121: ='Reuse Inputs_Summary'!$C$7 -> 0.075 | J121: 0 | K121: 0 | L121: 0 | M121: 0 | N121: =IF($C121<'Reuse Inputs_Summary'!$C$13,"NO",IF(($C121>'Reuse Inputs_Summary'!$C$14),"NO","YES")) -> NO | O121: NO | P121: =IF(N121="No",0,IF(AND(N121="Yes",O121="NO",L121>'Reuse Inputs_Summary'!$C$12),'Reuse Inputs_Summary'!$C$12,IF(AND(N121="Yes",O121="NO",L121<'Reuse Inputs_Summary'!$C$12,L121>0),L121,0))) -> 0 | Q121: =IF('Reuse Inputs_Summary'!$C$15=0,"NO","YES") -> YES | R121: 0 | S121: 0 | T121: =IF(N121="No",0,IF(AND(N121="Yes",O121="YES"),0,IF(AND(N121="Yes",O121="NO",ReuseWaterBalance!L121<'Reuse Inputs_Summary'!$C$12),('Reuse Inputs_Summary'!$C$12-ReuseWaterBalance!L121),0))) -> 0
A122: 1955-04-28 | B122: 1955 | C122: 4 | D122: 28 | E122: 0 | F122: 0 | G122: 0 | H122: =IF((ISNA((VLOOKUP(A122,'RunoffLook-up'!$G$5:$H$3442,2,FALSE))))=TRUE,0,VLOOKUP(A122,'RunoffLook-up'!$G$5:$H$3442,2,FALSE))*('Reuse Inputs_Summary'!$C$3/10) -> 0 | I122: ='Reuse Inputs_Summary'!$C$7 -> 0.075 | J122: 0 | K122: 0 | L122: 0 | M122: 0 | N122: =IF($C122<'Reuse Inputs_Summary'!$C$13,"NO",IF(($C122>'Reuse Inputs_Summary'!$C$14),"NO","YES")) -> NO | O122: NO | P122: =IF(N122="No",0,IF(AND(N122="Yes",O122="NO",L122>'Reuse Inputs_Summary'!$C$12),'Reuse Inputs_Summary'!$C$12,IF(AND(N122="Yes",O122="NO",L122<'Reuse Inputs_Summary'!$C$12,L122>0),L122,0))) -> 0 | Q122: =IF('Reuse Inputs_Summary'!$C$15=0,"NO","YES") -> YES | R122: 0 | S122: 0 | T122: =IF(N122="No",0,IF(AND(N122="Yes",O122="YES"),0,IF(AND(N122="Yes",O122="NO",ReuseWaterBalance!L122<'Reuse Inputs_Summary'!$C$12),('Reuse Inputs_Summary'!$C$12-ReuseWaterBalance!L122),0))) -> 0
A123: 1955-04-29 | B123: 1955 | C123: 4 | D123: 29 | E123: 0.05 | F123: 0 | G123: 0.05 | H123: =IF((ISNA((VLOOKUP(A123,'RunoffLook-up'!$G$5:$H$3442,2,FALSE))))=TRUE,0,VLOOKUP(A123,'RunoffLook-up'!$G$5:$H$3442,2,FALSE))*('Reuse Inputs_Summary'!$C$3/10) -> 1.701233383e-165 | I123: ='Reuse Inputs_Summary'!$C$7 -> 0.075 | J123: 0 | K123: 0 | L123: 0 | M123: 1.701233383e-165 | N123: =IF($C123<'Reuse Inputs_Summary'!$C$13,"NO",IF(($C123>'Reuse Inputs_Summary'!$C$14),"NO","YES")) -> NO | O123: YES | P123: =IF(N123="No",0,IF(AND(N123="Yes",O123="NO",L123>'Reuse Inputs_Summary'!$C$12),'Reuse Inputs_Summary'!$C$12,IF(AND(N123="Yes",O123="NO",L123<'Reuse Inputs_Summary'!$C$12,L123>0),L123,0))) -> 0 | Q123: =IF('Reuse Inputs_Summary'!$C$15=0,"NO","YES") -> YES | R123: 0 | S123: 0 | T123: =IF(N123="No",0,IF(AND(N123="Yes",O123="YES"),0,IF(AND(N123="Yes",O123="NO",ReuseWaterBalance!L123<'Reuse Inputs_Summary'!$C$12),('Reuse Inputs_Summary'!$C$12-ReuseWaterBalance!L123),0))) -> 0
A124: 1955-04-30 | B124: 1955 | C124: 4 | D124: 30 | E124: 0 | F124: 0 | G124: 0 | H124: =IF((ISNA((VLOOKUP(A124,'RunoffLook-up'!$G$5:$H$3442,2,FALSE))))=TRUE,0,VLOOKUP(A124,'RunoffLook-up'!$G$5:$H$3442,2,FALSE))*('Reuse Inputs_Summary'!$C$3/10) -> 0 | I124: ='Reuse Inputs_Summary'!$C$7 -> 0.075 | J124: 0 | K124: 0 | L124: 0 | M124: 0 | N124: =IF($C124<'Reuse Inputs_Summary'!$C$13,"NO",IF(($C124>'Reuse Inputs_Summary'!$C$14),"NO","YES")) -> NO | O124: NO | P124: =IF(N124="No",0,IF(AND(N124="Yes",O124="NO",L124>'Reuse Inputs_Summary'!$C$12),'Reuse Inputs_Summary'!$C$12,IF(AND(N124="Yes",O124="NO",L124<'Reuse Inputs_Summary'!$C$12,L124>0),L124,0))) -> 0 | Q124: =IF('Reuse Inputs_Summary'!$C$15=0,"NO","YES") -> YES | R124: 0 | S124: 0 | T124: =IF(N124="No",0,IF(AND(N124="Yes",O124="YES"),0,IF(AND(N124="Yes",O124="NO",ReuseWaterBalance!L124<'Reuse Inputs_Summary'!$C$12),('Reuse Inputs_Summary'!$C$12-ReuseWaterBalance!L124),0))) -> 0
A125: 1955-05-01 | B125: 1955 | C125: 5 | D125: 1 | E125: 0 | F125: 0 | G125: 0 | H125: =IF((ISNA((VLOOKUP(A125,'RunoffLook-up'!$G$5:$H$3442,2,FALSE))))=TRUE,0,VLOOKUP(A125,'RunoffLook-up'!$G$5:$H$3442,2,FALSE))*('Reuse Inputs_Summary'!$C$3/10) -> 0 | I125: ='Reuse Inputs_Summary'!$C$7 -> 0.075 | J125: 0 | K125: 0 | L125: 0 | M125: 0 | N125: =IF($C125<'Reuse Inputs_Summary'!$C$13,"NO",IF(($C125>'Reuse Inputs_Summary'!$C$14),"NO","YES")) -> YES | O125: NO | P125: =IF(N125="No",0,IF(AND(N125="Yes",O125="NO",L125>'Reuse Inputs_Summary'!$C$12),'Reuse Inputs_Summary'!$C$12,IF(AND(N125="Yes",O125="NO",L125<'Reuse Inputs_Summary'!$C$12,L125>0),L125,0))) -> 0 | Q125: =IF('Reuse Inputs_Summary'!$C$15=0,"NO","YES") -> YES | R125: 0 | S125: 0 | T125: =IF(N125="No",0,IF(AND(N125="Yes",O125="YES"),0,IF(AND(N125="Yes",O125="NO",ReuseWaterBalance!L125<'Reuse Inputs_Summary'!$C$12),('Reuse Inputs_Summary'!$C$12-ReuseWaterBalance!L125),0))) -> 0.005952380952
A126: 1955-05-02 | B126: 1955 | C126: 5 | D126: 2 | E126: 0.04 | F126: 0 | G126: 0.04 | H126: =IF((ISNA((VLOOKUP(A126,'RunoffLook-up'!$G$5:$H$3442,2,FALSE))))=TRUE,0,VLOOKUP(A126,'RunoffLook-up'!$G$5:$H$3442,2,FALSE))*('Reuse Inputs_Summary'!$C$3/10) -> 0 | I126: ='Reuse Inputs_Summary'!$C$7 -> 0.075 | J126: 0 | K126: 0 | L126: 0 | M126: 0 | N126: =IF($C126<'Reuse Inputs_Summary'!$C$13,"NO",IF(($C126>'Reuse Inputs_Summary'!$C$14),"NO","YES")) -> YES | O126: YES | P126: =IF(N126="No",0,IF(AND(N126="Yes",O126="NO",L126>'Reuse Inputs_Summary'!$C$12),'Reuse Inputs_Summary'!$C$12,IF(AND(N126="Yes",O126="NO",L126<'Reuse Inputs_Summary'!$C$12,L126>0),L126,0))) -> 0 | Q126: =IF('Reuse Inputs_Summary'!$C$15=0,"NO","YES") -> YES | R126: 0 | S126: 0 | T126: =IF(N126="No",0,IF(AND(N126="Yes",O126="YES"),0,IF(AND(N126="Yes",O126="NO",ReuseWaterBalance!L126<'Reuse Inputs_Summary'!$C$12),('Reuse Inputs_Summary'!$C$12-ReuseWaterBalance!L126),0))) -> 0
A127: 1955-05-03 | B127: 1955 | C127: 5 | D127: 3 | E127: 0 | F127: 0 | G127: 0 | H127: =IF((ISNA((VLOOKUP(A127,'RunoffLook-up'!$G$5:$H$3442,2,FALSE))))=TRUE,0,VLOOKUP(A127,'RunoffLook-up'!$G$5:$H$3442,2,FALSE))*('Reuse Inputs_Summary'!$C$3/10) -> 0 | I127: ='Reuse Inputs_Summary'!$C$7 -> 0.075 | J127: 0 | K127: 0 | L127: 0 | M127: 0 | N127: =IF($C127<'Reuse Inputs_Summary'!$C$13,"NO",IF(($C127>'Reuse Inputs_Summary'!$C$14),"NO","YES")) -> YES | O127: NO | P127: =IF(N127="No",0,IF(AND(N127="Yes",O127="NO",L127>'Reuse Inputs_Summary'!$C$12),'Reuse Inputs_Summary'!$C$12,IF(AND(N127="Yes",O127="NO",L127<'Reuse Inputs_Summary'!$C$12,L127>0),L127,0))) -> 0 | Q127: =IF('Reuse Inputs_Summary'!$C$15=0,"NO","YES") -> YES | R127: 0 | S127: 0 | T127: =IF(N127="No",0,IF(AND(N127="Yes",O127="YES"),0,IF(AND(N127="Yes",O127="NO",ReuseWaterBalance!L127<'Reuse Inputs_Summary'!$C$12),('Reuse Inputs_Summary'!$C$12-ReuseWaterBalance!L127),0))) -> 0.005952380952
A128: 1955-05-04 | B128: 1955 | C128: 5 | D128: 4 | E128: 0.01 | F128: 0 | G128: 0.01 | H128: =IF((ISNA((VLOOKUP(A128,'RunoffLook-up'!$G$5:$H$3442,2,FALSE))))=TRUE,0,VLOOKUP(A128,'RunoffLook-up'!$G$5:$H$3442,2,FALSE))*('Reuse Inputs_Summary'!$C$3/10) -> 0 | I128: ='Reuse Inputs_Summary'!$C$7 -> 0.075 | J128: 0 | K128: 0 | L128: 0 | M128: 0 | N128: =IF($C128<'Reuse Inputs_Summary'!$C$13,"NO",IF(($C128>'Reuse Inputs_Summary'!$C$14),"NO","YES")) -> YES | O128: YES | P128: =IF(N128="No",0,IF(AND(N128="Yes",O128="NO",L128>'Reuse Inputs_Summary'!$C$12),'Reuse Inputs_Summary'!$C$12,IF(AND(N128="Yes",O128="NO",L128<'Reuse Inputs_Summary'!$C$12,L128>0),L128,0))) -> 0 | Q128: =IF('Reuse Inputs_Summary'!$C$15=0,"NO","YES") -> YES | R128: 0 | S128: 0 | T128: =IF(N128="No",0,IF(AND(N128="Yes",O128="YES"),0,IF(AND(N128="Yes",O128="NO",ReuseWaterBalance!L128<'Reuse Inputs_Summary'!$C$12),('Reuse Inputs_Summary'!$C$12-ReuseWaterBalance!L128),0))) -> 0
A129: 1955-05-05 | B129: 1955 | C129: 5 | D129: 5 | E129: 0 | F129: 0 | G129: 0 | H129: =IF((ISNA((VLOOKUP(A129,'RunoffLook-up'!$G$5:$H$3442,2,FALSE))))=TRUE,0,VLOOKUP(A129,'RunoffLook-up'!$G$5:$H$3442,2,FALSE))*('Reuse Inputs_Summary'!$C$3/10) -> 0 | I129: ='Reuse Inputs_Summary'!$C$7 -> 0.075 | J129: 0 | K129: 0 | L129: 0 | M129: 0 | N129: =IF($C129<'Reuse Inputs_Summary'!$C$13,"NO",IF(($C129>'Reuse Inputs_Summary'!$C$14),"NO","YES")) -> YES | O129: NO | P129: =IF(N129="No",0,IF(AND(N129="Yes",O129="NO",L129>'Reuse Inputs_Summary'!$C$12),'Reuse Inputs_Summary'!$C$12,IF(AND(N129="Yes",O129="NO",L129<'Reuse Inputs_Summary'!$C$12,L129>0),L129,0))) -> 0 | Q129: =IF('Reuse Inputs_Summary'!$C$15=0,"NO","YES") -> YES | R129: 0 | S129: 0 | T129: =IF(N129="No",0,IF(AND(N129="Yes",O129="YES"),0,IF(AND(N129="Yes",O129="NO",ReuseWaterBalance!L129<'Reuse Inputs_Summary'!$C$12),('Reuse Inputs_Summary'!$C$12-ReuseWaterBalance!L129),0))) -> 0.005952380952
A130: 1955-05-06 | B130: 1955 | C130: 5 | D130: 6 | E130: 0 | F130: 0 | G130: 0 | H130: =IF((ISNA((VLOOKUP(A130,'RunoffLook-up'!$G$5:$H$3442,2,FALSE))))=TRUE,0,VLOOKUP(A130,'RunoffLook-up'!$G$5:$H$3442,2,FALSE))*('Reuse Inputs_Summary'!$C$3/10) -> 0 | I130: ='Reuse Inputs_Summary'!$C$7 -> 0.075 | J130: 0 | K130: 0 | L130: 0 | M130: 0 | N130: =IF($C130<'Reuse Inputs_Summary'!$C$13,"NO",IF(($C130>'Reuse Inputs_Summary'!$C$14),"NO","YES")) -> YES | O130: NO | P130: =IF(N130="No",0,IF(AND(N130="Yes",O130="NO",L130>'Reuse Inputs_Summary'!$C$12),'Reuse Inputs_Summary'!$C$12,IF(AND(N130="Yes",O130="NO",L130<'Reuse Inputs_Summary'!$C$12,L130>0),L130,0))) -> 0 | Q130: =IF('Reuse Inputs_Summary'!$C$15=0,"NO","YES") -> YES | R130: 0 | S130: 0 | T130: =IF(N130="No",0,IF(AND(N130="Yes",O130="YES"),0,IF(AND(N130="Yes",O130="NO",ReuseWaterBalance!L130<'Reuse Inputs_Summary'!$C$12),('Reuse Inputs_Summary'!$C$12-ReuseWaterBalance!L130),0))) -> 0.005952380952
A131: 1955-05-07 | B131: 1955 | C131: 5 | D131: 7 | E131: 0.02 | F131: 0 | G131: 0.02 | H131: =IF((ISNA((VLOOKUP(A131,'RunoffLook-up'!$G$5:$H$3442,2,FALSE))))=TRUE,0,VLOOKUP(A131,'RunoffLook-up'!$G$5:$H$3442,2,FALSE))*('Reuse Inputs_Summary'!$C$3/10) -> 0 | I131: ='Reuse Inputs_Summary'!$C$7 -> 0.075 | J131: 0 | K131: 0 | L131: 0 | M131: 0 | N131: =IF($C131<'Reuse Inputs_Summary'!$C$13,"NO",IF(($C131>'Reuse Inputs_Summary'!$C$14),"NO","YES")) -> YES | O131: YES | P131: =IF(N131="No",0,IF(AND(N131="Yes",O131="NO",L131>'Reuse Inputs_Summary'!$C$12),'Reuse Inputs_Summary'!$C$12,IF(AND(N131="Yes",O131="NO",L131<'Reuse Inputs_Summary'!$C$12,L131>0),L131,0))) -> 0 | Q131: =IF('Reuse Inputs_Summary'!$C$15=0,"NO","YES") -> YES | R131: 0 | S131: 0 | T131: =IF(N131="No",0,IF(AND(N131="Yes",O131="YES"),0,IF(AND(N131="Yes",O131="NO",ReuseWaterBalance!L131<'Reuse Inputs_Summary'!$C$12),('Reuse Inputs_Summary'!$C$12-ReuseWaterBalance!L131),0))) -> 0
A132: 1955-05-08 | B132: 1955 | C132: 5 | D132: 8 | E132: 0 | F132: 0 | G132: 0 | H132: =IF((ISNA((VLOOKUP(A132,'RunoffLook-up'!$G$5:$H$3442,2,FALSE))))=TRUE,0,VLOOKUP(A132,'RunoffLook-up'!$G$5:$H$3442,2,FALSE))*('Reuse Inputs_Summary'!$C$3/10) -> 0 | I132: ='Reuse Inputs_Summary'!$C$7 -> 0.075 | J132: 0 | K132: 0 | L132: 0 | M132: 0 | N132: =IF($C132<'Reuse Inputs_Summary'!$C$13,"NO",IF(($C132>'Reuse Inputs_Summary'!$C$14),"NO","YES")) -> YES | O132: NO | P132: =IF(N132="No",0,IF(AND(N132="Yes",O132="NO",L132>'Reuse Inputs_Summary'!$C$12),'Reuse Inputs_Summary'!$C$12,IF(AND(N132="Yes",O132="NO",L132<'Reuse Inputs_Summary'!$C$12,L132>0),L132,0))) -> 0 | Q132: =IF('Reuse Inputs_Summary'!$C$15=0,"NO","YES") -> YES | R132: 0 | S132: 0 | T132: =IF(N132="No",0,IF(AND(N132="Yes",O132="YES"),0,IF(AND(N132="Yes",O132="NO",ReuseWaterBalance!L132<'Reuse Inputs_Summary'!$C$12),('Reuse Inputs_Summary'!$C$12-ReuseWaterBalance!L132),0))) -> 0.005952380952
A133: 1955-05-09 | B133: =YEAR(A133) -> 1955 | C133: 5 | D133: 9 | E133: 0 | F133: 0 | G133: 0 | H133: =IF((ISNA((VLOOKUP(A133,'RunoffLook-up'!$G$5:$H$3442,2,FALSE))))=TRUE,0,VLOOKUP(A133,'RunoffLook-up'!$G$5:$H$3442,2,FALSE))*('Reuse Inputs_Summary'!$C$3/10) -> 0 | I133: ='Reuse Inputs_Summary'!$C$7 -> 0.075 | J133: 0 | K133: 0 | L133: 0 | M133: 0 | N133: =IF($C133<'Reuse Inputs_Summary'!$C$13,"NO",IF(($C133>'Reuse Inputs_Summary'!$C$14),"NO","YES")) -> YES | O133: NO | P133: =IF(N133="No",0,IF(AND(N133="Yes",O133="NO",L133>'Reuse Inputs_Summary'!$C$12),'Reuse Inputs_Summary'!$C$12,IF(AND(N133="Yes",O133="NO",L133<'Reuse Inputs_Summary'!$C$12,L133>0),L133,0))) -> 0 | Q133: =IF('Reuse Inputs_Summary'!$C$15=0,"NO","YES") -> YES | R133: 0 | S133: 0 | T133: =IF(N133="No",0,IF(AND(N133="Yes",O133="YES"),0,IF(AND(N133="Yes",O133="NO",ReuseWaterBalance!L133<'Reuse Inputs_Summary'!$C$12),('Reuse Inputs_Summary'!$C$12-ReuseWaterBalance!L133),0))) -> 0.005952380952
A134: 1955-05-10 | B134: 1955 | C134: =MONTH(A134) -> 5 | D134: =DAY(A134) -> 10 | E134: 0.29 | F134: 0 | G134: =SUM(E134:F134) -> 0.29 | H134: =IF((ISNA((VLOOKUP(A134,'RunoffLook-up'!$G$5:$H$3442,2,FALSE))))=TRUE,0,VLOOKUP(A134,'RunoffLook-up'!$G$5:$H$3442,2,FALSE))*('Reuse Inputs_Summary'!$C$3/10) -> 0.0009583333333 | I134: ='Reuse Inputs_Summary'!$C$7 -> 0.075 | J134: =S133 -> 0 | K134: =IF(AND(N134="NO",Q134="YES"),0,IF($H134=0,0,IF($H134>(I134-J134),(I134-J134),IF($H134<(I134-J134),$H134)))) -> 0.0009583333333 | L134: =J134+K134 -> 0.0009583333333 | M134: =IF(AND(N134="NO",Q134="YES"),H134,H134-K134) -> 0 | N134: =IF($C134<'Reuse Inputs_Summary'!$C$13,"NO",IF(($C134>'Reuse Inputs_Summary'!$C$14),"NO","YES")) -> YES | O134: =IF(G134>0,"YES","NO") -> YES | P134: =IF(N134="No",0,IF(AND(N134="Yes",O134="NO",L134>'Reuse Inputs_Summary'!$C$12),'Reuse Inputs_Summary'!$C$12,IF(AND(N134="Yes",O134="NO",L134<'Reuse Inputs_Summary'!$C$12,L134>0),L134,0))) -> 0 | Q134: =IF('Reuse Inputs_Summary'!$C$15=0,"NO","YES") -> YES | R134: 0 | S134: =L134-P134-R134 -> 0.0009583333333 | T134: =IF(N134="No",0,IF(AND(N134="Yes",O134="YES"),0,IF(AND(N134="Yes",O134="NO",ReuseWaterBalance!L134<'Reuse Inputs_Summary'!$C$12),('Reuse Inputs_Summary'!$C$12-ReuseWaterBalance!L134),0))) -> 0
A135: 1955-05-11 | B135: 1955 | C135: 5 | D135: 11 | E135: 0 | F135: 0 | G135: 0 | H135: =IF((ISNA((VLOOKUP(A135,'RunoffLook-up'!$G$5:$H$3442,2,FALSE))))=TRUE,0,VLOOKUP(A135,'RunoffLook-up'!$G$5:$H$3442,2,FALSE))*('Reuse Inputs_Summary'!$C$3/10) -> 0 | I135: ='Reuse Inputs_Summary'!$C$7 -> 0.075 | J135: 0.0009583333333 | K135: 0 | L135: 0.0009583333333 | M135: 0 | N135: =IF($C135<'Reuse Inputs_Summary'!$C$13,"NO",IF(($C135>'Reuse Inputs_Summary'!$C$14),"NO","YES")) -> YES | O135: NO | P135: =IF(N135="No",0,IF(AND(N135="Yes",O135="NO",L135>'Reuse Inputs_Summary'!$C$12),'Reuse Inputs_Summary'!$C$12,IF(AND(N135="Yes",O135="NO",L135<'Reuse Inputs_Summary'!$C$12,L135>0),L135,0))) -> 0.0009583333333 | Q135: =IF('Reuse Inputs_Summary'!$C$15=0,"NO","YES") -> YES | R135: =IF(AND(N135="NO",Q135="YES"),S134,0) -> 0 | S135: 0 | T135: =IF(N135="No",0,IF(AND(N135="Yes",O135="YES"),0,IF(AND(N135="Yes",O135="NO",ReuseWaterBalance!L135<'Reuse Inputs_Summary'!$C$12),('Reuse Inputs_Summary'!$C$12-ReuseWaterBalance!L135),0))) -> 0.004994047619
A136: 1955-05-12 | B136: 1955 | C136: 5 | D136: 12 | E136: 0 | F136: 0 | G136: 0 | H136: =IF((ISNA((VLOOKUP(A136,'RunoffLook-up'!$G$5:$H$3442,2,FALSE))))=TRUE,0,VLOOKUP(A136,'RunoffLook-up'!$G$5:$H$3442,2,FALSE))*('Reuse Inputs_Summary'!$C$3/10) -> 0 | I136: ='Reuse Inputs_Summary'!$C$7 -> 0.075 | J136: 0 | K136: 0 | L136: 0 | M136: 0 | N136: =IF($C136<'Reuse Inputs_Summary'!$C$13,"NO",IF(($C136>'Reuse Inputs_Summary'!$C$14),"NO","YES")) -> YES | O136: NO | P136: =IF(N136="No",0,IF(AND(N136="Yes",O136="NO",L136>'Reuse Inputs_Summary'!$C$12),'Reuse Inputs_Summary'!$C$12,IF(AND(N136="Yes",O136="NO",L136<'Reuse Inputs_Summary'!$C$12,L136>0),L136,0))) -> 0 | Q136: =IF('Reuse Inputs_Summary'!$C$15=0,"NO","YES") -> YES | R136: 0 | S136: 0 | T136: =IF(N136="No",0,IF(AND(N136="Yes",O136="YES"),0,IF(AND(N136="Yes",O136="NO",ReuseWaterBalance!L136<'Reuse Inputs_Summary'!$C$12),('Reuse Inputs_Summary'!$C$12-ReuseWaterBalance!L136),0))) -> 0.005952380952
A137: 1955-05-13 | B137: 1955 | C137: 5 | D137: 13 | E137: 0 | F137: 0 | G137: 0 | H137: =IF((ISNA((VLOOKUP(A137,'RunoffLook-up'!$G$5:$H$3442,2,FALSE))))=TRUE,0,VLOOKUP(A137,'RunoffLook-up'!$G$5:$H$3442,2,FALSE))*('Reuse Inputs_Summary'!$C$3/10) -> 0 | I137: ='Reuse Inputs_Summary'!$C$7 -> 0.075 | J137: 0 | K137: 0 | L137: 0 | M137: 0 | N137: =IF($C137<'Reuse Inputs_Summary'!$C$13,"NO",IF(($C137>'Reuse Inputs_Summary'!$C$14),"NO","YES")) -> YES | O137: NO | P137: =IF(N137="No",0,IF(AND(N137="Yes",O137="NO",L137>'Reuse Inputs_Summary'!$C$12),'Reuse Inputs_Summary'!$C$12,IF(AND(N137="Yes",O137="NO",L137<'Reuse Inputs_Summary'!$C$12,L137>0),L137,0))) -> 0 | Q137: =IF('Reuse Inputs_Summary'!$C$15=0,"NO","YES") -> YES | R137: 0 | S137: 0 | T137: =IF(N137="No",0,IF(AND(N137="Yes",O137="YES"),0,IF(AND(N137="Yes",O137="NO",ReuseWaterBalance!L137<'Reuse Inputs_Summary'!$C$12),('Reuse Inputs_Summary'!$C$12-ReuseWaterBalance!L137),0))) -> 0.005952380952
A138: 1955-05-14 | B138: 1955 | C138: 5 | D138: 14 | E138: 0 | F138: 0 | G138: 0 | H138: =IF((ISNA((VLOOKUP(A138,'RunoffLook-up'!$G$5:$H$3442,2,FALSE))))=TRUE,0,VLOOKUP(A138,'RunoffLook-up'!$G$5:$H$3442,2,FALSE))*('Reuse Inputs_Summary'!$C$3/10) -> 0 | I138: ='Reuse Inputs_Summary'!$C$7 -> 0.075 | J138: 0 | K138: 0 | L138: 0 | M138: 0 | N138: =IF($C138<'Reuse Inputs_Summary'!$C$13,"NO",IF(($C138>'Reuse Inputs_Summary'!$C$14),"NO","YES")) -> YES | O138: NO | P138: =IF(N138="No",0,IF(AND(N138="Yes",O138="NO",L138>'Reuse Inputs_Summary'!$C$12),'Reuse Inputs_Summary'!$C$12,IF(AND(N138="Yes",O138="NO",L138<'Reuse Inputs_Summary'!$C$12,L138>0),L138,0))) -> 0 | Q138: =IF('Reuse Inputs_Summary'!$C$15=0,"NO","YES") -> YES | R138: 0 | S138: 0 | T138: =IF(N138="No",0,IF(AND(N138="Yes",O138="YES"),0,IF(AND(N138="Yes",O138="NO",ReuseWaterBalance!L138<'Reuse Inputs_Summary'!$C$12),('Reuse Inputs_Summary'!$C$12-ReuseWaterBalance!L138),0))) -> 0.005952380952
A139: 1955-05-15 | B139: 1955 | C139: 5 | D139: 15 | E139: 0 | F139: 0 | G139: 0 | H139: =IF((ISNA((VLOOKUP(A139,'RunoffLook-up'!$G$5:$H$3442,2,FALSE))))=TRUE,0,VLOOKUP(A139,'RunoffLook-up'!$G$5:$H$3442,2,FALSE))*('Reuse Inputs_Summary'!$C$3/10) -> 0 | I139: ='Reuse Inputs_Summary'!$C$7 -> 0.075 | J139: 0 | K139: 0 | L139: 0 | M139: 0 | N139: =IF($C139<'Reuse Inputs_Summary'!$C$13,"NO",IF(($C139>'Reuse Inputs_Summary'!$C$14),"NO","YES")) -> YES | O139: NO | P139: =IF(N139="No",0,IF(AND(N139="Yes",O139="NO",L139>'Reuse Inputs_Summary'!$C$12),'Reuse Inputs_Summary'!$C$12,IF(AND(N139="Yes",O139="NO",L139<'Reuse Inputs_Summary'!$C$12,L139>0),L139,0))) -> 0 | Q139: =IF('Reuse Inputs_Summary'!$C$15=0,"NO","YES") -> YES | R139: 0 | S139: 0 | T139: =IF(N139="No",0,IF(AND(N139="Yes",O139="YES"),0,IF(AND(N139="Yes",O139="NO",ReuseWaterBalance!L139<'Reuse Inputs_Summary'!$C$12),('Reuse Inputs_Summary'!$C$12-ReuseWaterBalance!L139),0))) -> 0.005952380952
A140: 1955-05-16 | B140: 1955 | C140: 5 | D140: 16 | E140: 0 | F140: 0 | G140: 0 | H140: =IF((ISNA((VLOOKUP(A140,'RunoffLook-up'!$G$5:$H$3442,2,FALSE))))=TRUE,0,VLOOKUP(A140,'RunoffLook-up'!$G$5:$H$3442,2,FALSE))*('Reuse Inputs_Summary'!$C$3/10) -> 0 | I140: ='Reuse Inputs_Summary'!$C$7 -> 0.075 | J140: 0 | K140: 0 | L140: 0 | M140: 0 | N140: =IF($C140<'Reuse Inputs_Summary'!$C$13,"NO",IF(($C140>'Reuse Inputs_Summary'!$C$14),"NO","YES")) -> YES | O140: NO | P140: =IF(N140="No",0,IF(AND(N140="Yes",O140="NO",L140>'Reuse Inputs_Summary'!$C$12),'Reuse Inputs_Summary'!$C$12,IF(AND(N140="Yes",O140="NO",L140<'Reuse Inputs_Summary'!$C$12,L140>0),L140,0))) -> 0 | Q140: =IF('Reuse Inputs_Summary'!$C$15=0,"NO","YES") -> YES | R140: 0 | S140: 0 | T140: =IF(N140="No",0,IF(AND(N140="Yes",O140="YES"),0,IF(AND(N140="Yes",O140="NO",ReuseWaterBalance!L140<'Reuse Inputs_Summary'!$C$12),('Reuse Inputs_Summary'!$C$12-ReuseWaterBalance!L140),0))) -> 0.005952380952
A141: 1955-05-17 | B141: 1955 | C141: 5 | D141: 17 | E141: 0 | F141: 0 | G141: 0 | H141: =IF((ISNA((VLOOKUP(A141,'RunoffLook-up'!$G$5:$H$3442,2,FALSE))))=TRUE,0,VLOOKUP(A141,'RunoffLook-up'!$G$5:$H$3442,2,FALSE))*('Reuse Inputs_Summary'!$C$3/10) -> 0 | I141: ='Reuse Inputs_Summary'!$C$7 -> 0.075 | J141: 0 | K141: 0 | L141: 0 | M141: 0 | N141: =IF($C141<'Reuse Inputs_Summary'!$C$13,"NO",IF(($C141>'Reuse Inputs_Summary'!$C$14),"NO","YES")) -> YES | O141: NO | P141: =IF(N141="No",0,IF(AND(N141="Yes",O141="NO",L141>'Reuse Inputs_Summary'!$C$12),'Reuse Inputs_Summary'!$C$12,IF(AND(N141="Yes",O141="NO",L141<'Reuse Inputs_Summary'!$C$12,L141>0),L141,0))) -> 0 | Q141: =IF('Reuse Inputs_Summary'!$C$15=0,"NO","YES") -> YES | R141: 0 | S141: 0 | T141: =IF(N141="No",0,IF(AND(N141="Yes",O141="YES"),0,IF(AND(N141="Yes",O141="NO",ReuseWaterBalance!L141<'Reuse Inputs_Summary'!$C$12),('Reuse Inputs_Summary'!$C$12-ReuseWaterBalance!L141),0))) -> 0.005952380952
A142: 1955-05-18 | B142: 1955 | C142: 5 | D142: 18 | E142: 0 | F142: 0 | G142: 0 | H142: =IF((ISNA((VLOOKUP(A142,'RunoffLook-up'!$G$5:$H$3442,2,FALSE))))=TRUE,0,VLOOKUP(A142,'RunoffLook-up'!$G$5:$H$3442,2,FALSE))*('Reuse Inputs_Summary'!$C$3/10) -> 0 | I142: ='Reuse Inputs_Summary'!$C$7 -> 0.075 | J142: 0 | K142: 0 | L142: 0 | M142: 0 | N142: =IF($C142<'Reuse Inputs_Summary'!$C$13,"NO",IF(($C142>'Reuse Inputs_Summary'!$C$14),"NO","YES")) -> YES | O142: NO | P142: =IF(N142="No",0,IF(AND(N142="Yes",O142="NO",L142>'Reuse Inputs_Summary'!$C$12),'Reuse Inputs_Summary'!$C$12,IF(AND(N142="Yes",O142="NO",L142<'Reuse Inputs_Summary'!$C$12,L142>0),L142,0))) -> 0 | Q142: =IF('Reuse Inputs_Summary'!$C$15=0,"NO","YES") -> YES | R142: 0 | S142: 0 | T142: =IF(N142="No",0,IF(AND(N142="Yes",O142="YES"),0,IF(AND(N142="Yes",O142="NO",ReuseWaterBalance!L142<'Reuse Inputs_Summary'!$C$12),('Reuse Inputs_Summary'!$C$12-ReuseWaterBalance!L142),0))) -> 0.005952380952
A143: 1955-05-19 | B143: 1955 | C143: 5 | D143: 19 | E143: 0 | F143: 0 | G143: 0 | H143: =IF((ISNA((VLOOKUP(A143,'RunoffLook-up'!$G$5:$H$3442,2,FALSE))))=TRUE,0,VLOOKUP(A143,'RunoffLook-up'!$G$5:$H$3442,2,FALSE))*('Reuse Inputs_Summary'!$C$3/10) -> 0 | I143: ='Reuse Inputs_Summary'!$C$7 -> 0.075 | J143: 0 | K143: 0 | L143: 0 | M143: 0 | N143: =IF($C143<'Reuse Inputs_Summary'!$C$13,"NO",IF(($C143>'Reuse Inputs_Summary'!$C$14),"NO","YES")) -> YES | O143: NO | P143: =IF(N143="No",0,IF(AND(N143="Yes",O143="NO",L143>'Reuse Inputs_Summary'!$C$12),'Reuse Inputs_Summary'!$C$12,IF(AND(N143="Yes",O143="NO",L143<'Reuse Inputs_Summary'!$C$12,L143>0),L143,0))) -> 0 | Q143: =IF('Reuse Inputs_Summary'!$C$15=0,"NO","YES") -> YES | R143: 0 | S143: 0 | T143: =IF(N143="No",0,IF(AND(N143="Yes",O143="YES"),0,IF(AND(N143="Yes",O143="NO",ReuseWaterBalance!L143<'Reuse Inputs_Summary'!$C$12),('Reuse Inputs_Summary'!$C$12-ReuseWaterBalance!L143),0))) -> 0.005952380952
A144: 1955-05-20 | B144: 1955 | C144: 5 | D144: 20 | E144: 0 | F144: 0 | G144: 0 | H144: =IF((ISNA((VLOOKUP(A144,'RunoffLook-up'!$G$5:$H$3442,2,FALSE))))=TRUE,0,VLOOKUP(A144,'RunoffLook-up'!$G$5:$H$3442,2,FALSE))*('Reuse Inputs_Summary'!$C$3/10) -> 0 | I144: ='Reuse Inputs_Summary'!$C$7 -> 0.075 | J144: 0 | K144: 0 | L144: 0 | M144: 0 | N144: =IF($C144<'Reuse Inputs_Summary'!$C$13,"NO",IF(($C144>'Reuse Inputs_Summary'!$C$14),"NO","YES")) -> YES | O144: NO | P144: =IF(N144="No",0,IF(AND(N144="Yes",O144="NO",L144>'Reuse Inputs_Summary'!$C$12),'Reuse Inputs_Summary'!$C$12,IF(AND(N144="Yes",O144="NO",L144<'Reuse Inputs_Summary'!$C$12,L144>0),L144,0))) -> 0 | Q144: =IF('Reuse Inputs_Summary'!$C$15=0,"NO","YES") -> YES | R144: 0 | S144: 0 | T144: =IF(N144="No",0,IF(AND(N144="Yes",O144="YES"),0,IF(AND(N144="Yes",O144="NO",ReuseWaterBalance!L144<'Reuse Inputs_Summary'!$C$12),('Reuse Inputs_Summary'!$C$12-ReuseWaterBalance!L144),0))) -> 0.005952380952
A145: 1955-05-21 | B145: 1955 | C145: 5 | D145: 21 | E145: 0 | F145: 0 | G145: 0 | H145: =IF((ISNA((VLOOKUP(A145,'RunoffLook-up'!$G$5:$H$3442,2,FALSE))))=TRUE,0,VLOOKUP(A145,'RunoffLook-up'!$G$5:$H$3442,2,FALSE))*('Reuse Inputs_Summary'!$C$3/10) -> 0 | I145: ='Reuse Inputs_Summary'!$C$7 -> 0.075 | J145: 0 | K145: 0 | L145: 0 | M145: 0 | N145: =IF($C145<'Reuse Inputs_Summary'!$C$13,"NO",IF(($C145>'Reuse Inputs_Summary'!$C$14),"NO","YES")) -> YES | O145: NO | P145: =IF(N145="No",0,IF(AND(N145="Yes",O145="NO",L145>'Reuse Inputs_Summary'!$C$12),'Reuse Inputs_Summary'!$C$12,IF(AND(N145="Yes",O145="NO",L145<'Reuse Inputs_Summary'!$C$12,L145>0),L145,0))) -> 0 | Q145: =IF('Reuse Inputs_Summary'!$C$15=0,"NO","YES") -> YES | R145: 0 | S145: 0 | T145: =IF(N145="No",0,IF(AND(N145="Yes",O145="YES"),0,IF(AND(N145="Yes",O145="NO",ReuseWaterBalance!L145<'Reuse Inputs_Summary'!$C$12),('Reuse Inputs_Summary'!$C$12-ReuseWaterBalance!L145),0))) -> 0.005952380952
A146: 1955-05-22 | B146: 1955 | C146: 5 | D146: 22 | E146: 0 | F146: 0 | G146: 0 | H146: =IF((ISNA((VLOOKUP(A146,'RunoffLook-up'!$G$5:$H$3442,2,FALSE))))=TRUE,0,VLOOKUP(A146,'RunoffLook-up'!$G$5:$H$3442,2,FALSE))*('Reuse Inputs_Summary'!$C$3/10) -> 0 | I146: ='Reuse Inputs_Summary'!$C$7 -> 0.075 | J146: 0 | K146: 0 | L146: 0 | M146: 0 | N146: =IF($C146<'Reuse Inputs_Summary'!$C$13,"NO",IF(($C146>'Reuse Inputs_Summary'!$C$14),"NO","YES")) -> YES | O146: NO | P146: =IF(N146="No",0,IF(AND(N146="Yes",O146="NO",L146>'Reuse Inputs_Summary'!$C$12),'Reuse Inputs_Summary'!$C$12,IF(AND(N146="Yes",O146="NO",L146<'Reuse Inputs_Summary'!$C$12,L146>0),L146,0))) -> 0 | Q146: =IF('Reuse Inputs_Summary'!$C$15=0,"NO","YES") -> YES | R146: 0 | S146: 0 | T146: =IF(N146="No",0,IF(AND(N146="Yes",O146="YES"),0,IF(AND(N146="Yes",O146="NO",ReuseWaterBalance!L146<'Reuse Inputs_Summary'!$C$12),('Reuse Inputs_Summary'!$C$12-ReuseWaterBalance!L146),0))) -> 0.005952380952
A147: 1955-05-23 | B147: 1955 | C147: 5 | D147: 23 | E147: 0 | F147: 0 | G147: 0 | H147: =IF((ISNA((VLOOKUP(A147,'RunoffLook-up'!$G$5:$H$3442,2,FALSE))))=TRUE,0,VLOOKUP(A147,'RunoffLook-up'!$G$5:$H$3442,2,FALSE))*('Reuse Inputs_Summary'!$C$3/10) -> 0 | I147: ='Reuse Inputs_Summary'!$C$7 -> 0.075 | J147: 0 | K147: 0 | L147: 0 | M147: 0 | N147: =IF($C147<'Reuse Inputs_Summary'!$C$13,"NO",IF(($C147>'Reuse Inputs_Summary'!$C$14),"NO","YES")) -> YES | O147: NO | P147: =IF(N147="No",0,IF(AND(N147="Yes",O147="NO",L147>'Reuse Inputs_Summary'!$C$12),'Reuse Inputs_Summary'!$C$12,IF(AND(N147="Yes",O147="NO",L147<'Reuse Inputs_Summary'!$C$12,L147>0),L147,0))) -> 0 | Q147: =IF('Reuse Inputs_Summary'!$C$15=0,"NO","YES") -> YES | R147: 0 | S147: 0 | T147: =IF(N147="No",0,IF(AND(N147="Yes",O147="YES"),0,IF(AND(N147="Yes",O147="NO",ReuseWaterBalance!L147<'Reuse Inputs_Summary'!$C$12),('Reuse Inputs_Summary'!$C$12-ReuseWaterBalance!L147),0))) -> 0.005952380952
A148: 1955-05-24 | B148: 1955 | C148: 5 | D148: 24 | E148: 0 | F148: 0 | G148: 0 | H148: =IF((ISNA((VLOOKUP(A148,'RunoffLook-up'!$G$5:$H$3442,2,FALSE))))=TRUE,0,VLOOKUP(A148,'RunoffLook-up'!$G$5:$H$3442,2,FALSE))*('Reuse Inputs_Summary'!$C$3/10) -> 0 | I148: ='Reuse Inputs_Summary'!$C$7 -> 0.075 | J148: 0 | K148: 0 | L148: 0 | M148: 0 | N148: =IF($C148<'Reuse Inputs_Summary'!$C$13,"NO",IF(($C148>'Reuse Inputs_Summary'!$C$14),"NO","YES")) -> YES | O148: NO | P148: =IF(N148="No",0,IF(AND(N148="Yes",O148="NO",L148>'Reuse Inputs_Summary'!$C$12),'Reuse Inputs_Summary'!$C$12,IF(AND(N148="Yes",O148="NO",L148<'Reuse Inputs_Summary'!$C$12,L148>0),L148,0))) -> 0 | Q148: =IF('Reuse Inputs_Summary'!$C$15=0,"NO","YES") -> YES | R148: 0 | S148: 0 | T148: =IF(N148="No",0,IF(AND(N148="Yes",O148="YES"),0,IF(AND(N148="Yes",O148="NO",ReuseWaterBalance!L148<'Reuse Inputs_Summary'!$C$12),('Reuse Inputs_Summary'!$C$12-ReuseWaterBalance!L148),0))) -> 0.005952380952
A149: 1955-05-25 | B149: 1955 | C149: 5 | D149: 25 | E149: 0 | F149: 0 | G149: 0 | H149: =IF((ISNA((VLOOKUP(A149,'RunoffLook-up'!$G$5:$H$3442,2,FALSE))))=TRUE,0,VLOOKUP(A149,'RunoffLook-up'!$G$5:$H$3442,2,FALSE))*('Reuse Inputs_Summary'!$C$3/10) -> 0 | I149: ='Reuse Inputs_Summary'!$C$7 -> 0.075 | J149: 0 | K149: 0 | L149: 0 | M149: 0 | N149: =IF($C149<'Reuse Inputs_Summary'!$C$13,"NO",IF(($C149>'Reuse Inputs_Summary'!$C$14),"NO","YES")) -> YES | O149: NO | P149: =IF(N149="No",0,IF(AND(N149="Yes",O149="NO",L149>'Reuse Inputs_Summary'!$C$12),'Reuse Inputs_Summary'!$C$12,IF(AND(N149="Yes",O149="NO",L149<'Reuse Inputs_Summary'!$C$12,L149>0),L149,0))) -> 0 | Q149: =IF('Reuse Inputs_Summary'!$C$15=0,"NO","YES") -> YES | R149: 0 | S149: 0 | T149: =IF(N149="No",0,IF(AND(N149="Yes",O149="YES"),0,IF(AND(N149="Yes",O149="NO",ReuseWaterBalance!L149<'Reuse Inputs_Summary'!$C$12),('Reuse Inputs_Summary'!$C$12-ReuseWaterBalance!L149),0))) -> 0.005952380952
A150: 1955-05-26 | B150: 1955 | C150: 5 | D150: 26 | E150: 0 | F150: 0 | G150: 0 | H150: =IF((ISNA((VLOOKUP(A150,'RunoffLook-up'!$G$5:$H$3442,2,FALSE))))=TRUE,0,VLOOKUP(A150,'RunoffLook-up'!$G$5:$H$3442,2,FALSE))*('Reuse Inputs_Summary'!$C$3/10) -> 0 | I150: ='Reuse Inputs_Summary'!$C$7 -> 0.075 | J150: 0 | K150: 0 | L150: 0 | M150: 0 | N150: =IF($C150<'Reuse Inputs_Summary'!$C$13,"NO",IF(($C150>'Reuse Inputs_Summary'!$C$14),"NO","YES")) -> YES | O150: NO | P150: =IF(N150="No",0,IF(AND(N150="Yes",O150="NO",L150>'Reuse Inputs_Summary'!$C$12),'Reuse Inputs_Summary'!$C$12,IF(AND(N150="Yes",O150="NO",L150<'Reuse Inputs_Summary'!$C$12,L150>0),L150,0))) -> 0 | Q150: =IF('Reuse Inputs_Summary'!$C$15=0,"NO","YES") -> YES | R150: 0 | S150: 0 | T150: =IF(N150="No",0,IF(AND(N150="Yes",O150="YES"),0,IF(AND(N150="Yes",O150="NO",ReuseWaterBalance!L150<'Reuse Inputs_Summary'!$C$12),('Reuse Inputs_Summary'!$C$12-ReuseWaterBalance!L150),0))) -> 0.005952380952
A151: 1955-05-27 | B151: 1955 | C151: 5 | D151: 27 | E151: 0.21 | F151: 0 | G151: 0.21 | H151: =IF((ISNA((VLOOKUP(A151,'RunoffLook-up'!$G$5:$H$3442,2,FALSE))))=TRUE,0,VLOOKUP(A151,'RunoffLook-up'!$G$5:$H$3442,2,FALSE))*('Reuse Inputs_Summary'!$C$3/10) -> 0.000625 | I151: ='Reuse Inputs_Summary'!$C$7 -> 0.075 | J151: 0 | K151: 0.000625 | L151: 0.000625 | M151: 0 | N151: =IF($C151<'Reuse Inputs_Summary'!$C$13,"NO",IF(($C151>'Reuse Inputs_Summary'!$C$14),"NO","YES")) -> YES | O151: YES | P151: =IF(N151="No",0,IF(AND(N151="Yes",O151="NO",L151>'Reuse Inputs_Summary'!$C$12),'Reuse Inputs_Summary'!$C$12,IF(AND(N151="Yes",O151="NO",L151<'Reuse Inputs_Summary'!$C$12,L151>0),L151,0))) -> 0 | Q151: =IF('Reuse Inputs_Summary'!$C$15=0,"NO","YES") -> YES | R151: 0 | S151: 0.000625 | T151: =IF(N151="No",0,IF(AND(N151="Yes",O151="YES"),0,IF(AND(N151="Yes",O151="NO",ReuseWaterBalance!L151<'Reuse Inputs_Summary'!$C$12),('Reuse Inputs_Summary'!$C$12-ReuseWaterBalance!L151),0))) -> 0
A152: 1955-05-28 | B152: 1955 | C152: 5 | D152: 28 | E152: 0 | F152: 0 | G152: 0 | H152: =IF((ISNA((VLOOKUP(A152,'RunoffLook-up'!$G$5:$H$3442,2,FALSE))))=TRUE,0,VLOOKUP(A152,'RunoffLook-up'!$G$5:$H$3442,2,FALSE))*('Reuse Inputs_Summary'!$C$3/10) -> 0 | I152: ='Reuse Inputs_Summary'!$C$7 -> 0.075 | J152: 0.000625 | K152: 0 | L152: 0.000625 | M152: 0 | N152: =IF($C152<'Reuse Inputs_Summary'!$C$13,"NO",IF(($C152>'Reuse Inputs_Summary'!$C$14),"NO","YES")) -> YES | O152: NO | P152: =IF(N152="No",0,IF(AND(N152="Yes",O152="NO",L152>'Reuse Inputs_Summary'!$C$12),'Reuse Inputs_Summary'!$C$12,IF(AND(N152="Yes",O152="NO",L152<'Reuse Inputs_Summary'!$C$12,L152>0),L152,0))) -> 0.000625 | Q152: =IF('Reuse Inputs_Summary'!$C$15=0,"NO","YES") -> YES | R152: 0 | S152: 0 | T152: =IF(N152="No",0,IF(AND(N152="Yes",O152="YES"),0,IF(AND(N152="Yes",O152="NO",ReuseWaterBalance!L152<'Reuse Inputs_Summary'!$C$12),('Reuse Inputs_Summary'!$C$12-ReuseWaterBalance!L152),0))) -> 0.005327380952
A153: 1955-05-29 | B153: 1955 | C153: 5 | D153: 29 | E153: 0.12 | F153: 0 | G153: 0.12 | H153: =IF((ISNA((VLOOKUP(A153,'RunoffLook-up'!$G$5:$H$3442,2,FALSE))))=TRUE,0,VLOOKUP(A153,'RunoffLook-up'!$G$5:$H$3442,2,FALSE))*('Reuse Inputs_Summary'!$C$3/10) -> 0.00025 | I153: ='Reuse Inputs_Summary'!$C$7 -> 0.075 | J153: 0 | K153: 0.00025 | L153: 0.00025 | M153: 0 | N153: =IF($C153<'Reuse Inputs_Summary'!$C$13,"NO",IF(($C153>'Reuse Inputs_Summary'!$C$14),"NO","YES")) -> YES | O153: YES | P153: =IF(N153="No",0,IF(AND(N153="Yes",O153="NO",L153>'Reuse Inputs_Summary'!$C$12),'Reuse Inputs_Summary'!$C$12,IF(AND(N153="Yes",O153="NO",L153<'Reuse Inputs_Summary'!$C$12,L153>0),L153,0))) -> 0 | Q153: =IF('Reuse Inputs_Summary'!$C$15=0,"NO","YES") -> YES | R153: 0 | S153: 0.00025 | T153: =IF(N153="No",0,IF(AND(N153="Yes",O153="YES"),0,IF(AND(N153="Yes",O153="NO",ReuseWaterBalance!L153<'Reuse Inputs_Summary'!$C$12),('Reuse Inputs_Summary'!$C$12-ReuseWaterBalance!L153),0))) -> 0
A154: 1955-05-30 | B154: 1955 | C154: 5 | D154: 30 | E154: 0 | F154: 0 | G154: 0 | H154: =IF((ISNA((VLOOKUP(A154,'RunoffLook-up'!$G$5:$H$3442,2,FALSE))))=TRUE,0,VLOOKUP(A154,'RunoffLook-up'!$G$5:$H$3442,2,FALSE))*('Reuse Inputs_Summary'!$C$3/10) -> 0 | I154: ='Reuse Inputs_Summary'!$C$7 -> 0.075 | J154: 0.00025 | K154: 0 | L154: 0.00025 | M154: 0 | N154: =IF($C154<'Reuse Inputs_Summary'!$C$13,"NO",IF(($C154>'Reuse Inputs_Summary'!$C$14),"NO","YES")) -> YES | O154: NO | P154: =IF(N154="No",0,IF(AND(N154="Yes",O154="NO",L154>'Reuse Inputs_Summary'!$C$12),'Reuse Inputs_Summary'!$C$12,IF(AND(N154="Yes",O154="NO",L154<'Reuse Inputs_Summary'!$C$12,L154>0),L154,0))) -> 0.00025 | Q154: =IF('Reuse Inputs_Summary'!$C$15=0,"NO","YES") -> YES | R154: 0 | S154: 0 | T154: =IF(N154="No",0,IF(AND(N154="Yes",O154="YES"),0,IF(AND(N154="Yes",O154="NO",ReuseWaterBalance!L154<'Reuse Inputs_Summary'!$C$12),('Reuse Inputs_Summary'!$C$12-ReuseWaterBalance!L154),0))) -> 0.005702380952
A155: 1955-05-31 | B155: 1955 | C155: 5 | D155: 31 | E155: 0 | F155: 0 | G155: 0 | H155: =IF((ISNA((VLOOKUP(A155,'RunoffLook-up'!$G$5:$H$3442,2,FALSE))))=TRUE,0,VLOOKUP(A155,'RunoffLook-up'!$G$5:$H$3442,2,FALSE))*('Reuse Inputs_Summary'!$C$3/10) -> 0 | I155: ='Reuse Inputs_Summary'!$C$7 -> 0.075 | J155: 0 | K155: 0 | L155: 0 | M155: 0 | N155: =IF($C155<'Reuse Inputs_Summary'!$C$13,"NO",IF(($C155>'Reuse Inputs_Summary'!$C$14),"NO","YES")) -> YES | O155: NO | P155: =IF(N155="No",0,IF(AND(N155="Yes",O155="NO",L155>'Reuse Inputs_Summary'!$C$12),'Reuse Inputs_Summary'!$C$12,IF(AND(N155="Yes",O155="NO",L155<'Reuse Inputs_Summary'!$C$12,L155>0),L155,0))) -> 0 | Q155: =IF('Reuse Inputs_Summary'!$C$15=0,"NO","YES") -> YES | R155: 0 | S155: 0 | T155: =IF(N155="No",0,IF(AND(N155="Yes",O155="YES"),0,IF(AND(N155="Yes",O155="NO",ReuseWaterBalance!L155<'Reuse Inputs_Summary'!$C$12),('Reuse Inputs_Summary'!$C$12-ReuseWaterBalance!L155),0))) -> 0.005952380952
A156: 1955-06-01 | B156: 1955 | C156: 6 | D156: 1 | E156: 0 | F156: 0 | G156: 0 | H156: =IF((ISNA((VLOOKUP(A156,'RunoffLook-up'!$G$5:$H$3442,2,FALSE))))=TRUE,0,VLOOKUP(A156,'RunoffLook-up'!$G$5:$H$3442,2,FALSE))*('Reuse Inputs_Summary'!$C$3/10) -> 0 | I156: ='Reuse Inputs_Summary'!$C$7 -> 0.075 | J156: 0 | K156: 0 | L156: 0 | M156: 0 | N156: =IF($C156<'Reuse Inputs_Summary'!$C$13,"NO",IF(($C156>'Reuse Inputs_Summary'!$C$14),"NO","YES")) -> YES | O156: NO | P156: =IF(N156="No",0,IF(AND(N156="Yes",O156="NO",L156>'Reuse Inputs_Summary'!$C$12),'Reuse Inputs_Summary'!$C$12,IF(AND(N156="Yes",O156="NO",L156<'Reuse Inputs_Summary'!$C$12,L156>0),L156,0))) -> 0 | Q156: =IF('Reuse Inputs_Summary'!$C$15=0,"NO","YES") -> YES | R156: 0 | S156: 0 | T156: =IF(N156="No",0,IF(AND(N156="Yes",O156="YES"),0,IF(AND(N156="Yes",O156="NO",ReuseWaterBalance!L156<'Reuse Inputs_Summary'!$C$12),('Reuse Inputs_Summary'!$C$12-ReuseWaterBalance!L156),0))) -> 0.005952380952
A157: 1955-06-02 | B157: 1955 | C157: 6 | D157: 2 | E157: 0.3 | F157: 0 | G157: 0.3 | H157: =IF((ISNA((VLOOKUP(A157,'RunoffLook-up'!$G$5:$H$3442,2,FALSE))))=TRUE,0,VLOOKUP(A157,'RunoffLook-up'!$G$5:$H$3442,2,FALSE))*('Reuse Inputs_Summary'!$C$3/10) -> 0.001 | I157: ='Reuse Inputs_Summary'!$C$7 -> 0.075 | J157: 0 | K157: 0.001 | L157: 0.001 | M157: 0 | N157: =IF($C157<'Reuse Inputs_Summary'!$C$13,"NO",IF(($C157>'Reuse Inputs_Summary'!$C$14),"NO","YES")) -> YES | O157: YES | P157: =IF(N157="No",0,IF(AND(N157="Yes",O157="NO",L157>'Reuse Inputs_Summary'!$C$12),'Reuse Inputs_Summary'!$C$12,IF(AND(N157="Yes",O157="NO",L157<'Reuse Inputs_Summary'!$C$12,L157>0),L157,0))) -> 0 | Q157: =IF('Reuse Inputs_Summary'!$C$15=0,"NO","YES") -> YES | R157: 0 | S157: 0.001 | T157: =IF(N157="No",0,IF(AND(N157="Yes",O157="YES"),0,IF(AND(N157="Yes",O157="NO",ReuseWaterBalance!L157<'Reuse Inputs_Summary'!$C$12),('Reuse Inputs_Summary'!$C$12-ReuseWaterBalance!L157),0))) -> 0
A158: 1955-06-03 | B158: 1955 | C158: 6 | D158: 3 | E158: 0.11 | F158: 0 | G158: 0.11 | H158: =IF((ISNA((VLOOKUP(A158,'RunoffLook-up'!$G$5:$H$3442,2,FALSE))))=TRUE,0,VLOOKUP(A158,'RunoffLook-up'!$G$5:$H$3442,2,FALSE))*('Reuse Inputs_Summary'!$C$3/10) -> 0.0002083333333 | I158: ='Reuse Inputs_Summary'!$C$7 -> 0.075 | J158: 0.001 | K158: 0.0002083333333 | L158: 0.001208333333 | M158: 0 | N158: =IF($C158<'Reuse Inputs_Summary'!$C$13,"NO",IF(($C158>'Reuse Inputs_Summary'!$C$14),"NO","YES")) -> YES | O158: YES | P158: =IF(N158="No",0,IF(AND(N158="Yes",O158="NO",L158>'Reuse Inputs_Summary'!$C$12),'Reuse Inputs_Summary'!$C$12,IF(AND(N158="Yes",O158="NO",L158<'Reuse Inputs_Summary'!$C$12,L158>0),L158,0))) -> 0 | Q158: =IF('Reuse Inputs_Summary'!$C$15=0,"NO","YES") -> YES | R158: 0 | S158: 0.001208333333 | T158: =IF(N158="No",0,IF(AND(N158="Yes",O158="YES"),0,IF(AND(N158="Yes",O158="NO",ReuseWaterBalance!L158<'Reuse Inputs_Summary'!$C$12),('Reuse Inputs_Summary'!$C$12-ReuseWaterBalance!L158),0))) -> 0
A159: 1955-06-04 | B159: 1955 | C159: 6 | D159: 4 | E159: 0.52 | F159: 0 | G159: 0.52 | H159: =IF((ISNA((VLOOKUP(A159,'RunoffLook-up'!$G$5:$H$3442,2,FALSE))))=TRUE,0,VLOOKUP(A159,'RunoffLook-up'!$G$5:$H$3442,2,FALSE))*('Reuse Inputs_Summary'!$C$3/10) -> 0.001916666667 | I159: ='Reuse Inputs_Summary'!$C$7 -> 0.075 | J159: 0.001208333333 | K159: 0.001916666667 | L159: 0.003125 | M159: 0 | N159: =IF($C159<'Reuse Inputs_Summary'!$C$13,"NO",IF(($C159>'Reuse Inputs_Summary'!$C$14),"NO","YES")) -> YES | O159: YES | P159: =IF(N159="No",0,IF(AND(N159="Yes",O159="NO",L159>'Reuse Inputs_Summary'!$C$12),'Reuse Inputs_Summary'!$C$12,IF(AND(N159="Yes",O159="NO",L159<'Reuse Inputs_Summary'!$C$12,L159>0),L159,0))) -> 0 | Q159: =IF('Reuse Inputs_Summary'!$C$15=0,"NO","YES") -> YES | R159: 0 | S159: 0.003125 | T159: =IF(N159="No",0,IF(AND(N159="Yes",O159="YES"),0,IF(AND(N159="Yes",O159="NO",ReuseWaterBalance!L159<'Reuse Inputs_Summary'!$C$12),('Reuse Inputs_Summary'!$C$12-ReuseWaterBalance!L159),0))) -> 0
A160: 1955-06-05 | B160: 1955 | C160: 6 | D160: 5 | E160: 0 | F160: 0 | G160: 0 | H160: =IF((ISNA((VLOOKUP(A160,'RunoffLook-up'!$G$5:$H$3442,2,FALSE))))=TRUE,0,VLOOKUP(A160,'RunoffLook-up'!$G$5:$H$3442,2,FALSE))*('Reuse Inputs_Summary'!$C$3/10) -> 0 | I160: ='Reuse Inputs_Summary'!$C$7 -> 0.075 | J160: 0.003125 | K160: 0 | L160: 0.003125 | M160: 0 | N160: =IF($C160<'Reuse Inputs_Summary'!$C$13,"NO",IF(($C160>'Reuse Inputs_Summary'!$C$14),"NO","YES")) -> YES | O160: NO | P160: =IF(N160="No",0,IF(AND(N160="Yes",O160="NO",L160>'Reuse Inputs_Summary'!$C$12),'Reuse Inputs_Summary'!$C$12,IF(AND(N160="Yes",O160="NO",L160<'Reuse Inputs_Summary'!$C$12,L160>0),L160,0))) -> 0.003125 | Q160: =IF('Reuse Inputs_Summary'!$C$15=0,"NO","YES") -> YES | R160: 0 | S160: 0 | T160: =IF(N160="No",0,IF(AND(N160="Yes",O160="YES"),0,IF(AND(N160="Yes",O160="NO",ReuseWaterBalance!L160<'Reuse Inputs_Summary'!$C$12),('Reuse Inputs_Summary'!$C$12-ReuseWaterBalance!L160),0))) -> 0.002827380952
A161: 1955-06-06 | B161: 1955 | C161: 6 | D161: 6 | E161: 0.22 | F161: 0 | G161: 0.22 | H161: =IF((ISNA((VLOOKUP(A161,'RunoffLook-up'!$G$5:$H$3442,2,FALSE))))=TRUE,0,VLOOKUP(A161,'RunoffLook-up'!$G$5:$H$3442,2,FALSE))*('Reuse Inputs_Summary'!$C$3/10) -> 0.0004166666667 | I161: ='Reuse Inputs_Summary'!$C$7 -> 0.075 | J161: 0 | K161: 0.0004166666667 | L161: 0.0004166666667 | M161: 0 | N161: =IF($C161<'Reuse Inputs_Summary'!$C$13,"NO",IF(($C161>'Reuse Inputs_Summary'!$C$14),"NO","YES")) -> YES | O161: YES | P161: =IF(N161="No",0,IF(AND(N161="Yes",O161="NO",L161>'Reuse Inputs_Summary'!$C$12),'Reuse Inputs_Summary'!$C$12,IF(AND(N161="Yes",O161="NO",L161<'Reuse Inputs_Summary'!$C$12,L161>0),L161,0))) -> 0 | Q161: =IF('Reuse Inputs_Summary'!$C$15=0,"NO","YES") -> YES | R161: 0 | S161: 0.0004166666667 | T161: =IF(N161="No",0,IF(AND(N161="Yes",O161="YES"),0,IF(AND(N161="Yes",O161="NO",ReuseWaterBalance!L161<'Reuse Inputs_Summary'!$C$12),('Reuse Inputs_Summary'!$C$12-ReuseWaterBalance!L161),0))) -> 0
A162: 1955-06-07 | B162: 1955 | C162: 6 | D162: 7 | E162: 0 | F162: 0 | G162: 0 | H162: =IF((ISNA((VLOOKUP(A162,'RunoffLook-up'!$G$5:$H$3442,2,FALSE))))=TRUE,0,VLOOKUP(A162,'RunoffLook-up'!$G$5:$H$3442,2,FALSE))*('Reuse Inputs_Summary'!$C$3/10) -> 0 | I162: ='Reuse Inputs_Summary'!$C$7 -> 0.075 | J162: 0.0004166666667 | K162: 0 | L162: 0.0004166666667 | M162: 0 | N162: =IF($C162<'Reuse Inputs_Summary'!$C$13,"NO",IF(($C162>'Reuse Inputs_Summary'!$C$14),"NO","YES")) -> YES | O162: NO | P162: =IF(N162="No",0,IF(AND(N162="Yes",O162="NO",L162>'Reuse Inputs_Summary'!$C$12),'Reuse Inputs_Summary'!$C$12,IF(AND(N162="Yes",O162="NO",L162<'Reuse Inputs_Summary'!$C$12,L162>0),L162,0))) -> 0.0004166666667 | Q162: =IF('Reuse Inputs_Summary'!$C$15=0,"NO","YES") -> YES | R162: 0 | S162: 0 | T162: =IF(N162="No",0,IF(AND(N162="Yes",O162="YES"),0,IF(AND(N162="Yes",O162="NO",ReuseWaterBalance!L162<'Reuse Inputs_Summary'!$C$12),('Reuse Inputs_Summary'!$C$12-ReuseWaterBalance!L162),0))) -> 0.005535714286
A163: 1955-06-08 | B163: 1955 | C163: 6 | D163: 8 | E163: 0 | F163: 0 | G163: 0 | H163: =IF((ISNA((VLOOKUP(A163,'RunoffLook-up'!$G$5:$H$3442,2,FALSE))))=TRUE,0,VLOOKUP(A163,'RunoffLook-up'!$G$5:$H$3442,2,FALSE))*('Reuse Inputs_Summary'!$C$3/10) -> 0 | I163: ='Reuse Inputs_Summary'!$C$7 -> 0.075 | J163: 0 | K163: 0 | L163: 0 | M163: 0 | N163: =IF($C163<'Reuse Inputs_Summary'!$C$13,"NO",IF(($C163>'Reuse Inputs_Summary'!$C$14),"NO","YES")) -> YES | O163: NO | P163: =IF(N163="No",0,IF(AND(N163="Yes",O163="NO",L163>'Reuse Inputs_Summary'!$C$12),'Reuse Inputs_Summary'!$C$12,IF(AND(N163="Yes",O163="NO",L163<'Reuse Inputs_Summary'!$C$12,L163>0),L163,0))) -> 0 | Q163: =IF('Reuse Inputs_Summary'!$C$15=0,"NO","YES") -> YES | R163: 0 | S163: 0 | T163: =IF(N163="No",0,IF(AND(N163="Yes",O163="YES"),0,IF(AND(N163="Yes",O163="NO",ReuseWaterBalance!L163<'Reuse Inputs_Summary'!$C$12),('Reuse Inputs_Summary'!$C$12-ReuseWaterBalance!L163),0))) -> 0.005952380952
A164: 1955-06-09 | B164: 1955 | C164: 6 | D164: 9 | E164: 0 | F164: 0 | G164: 0 | H164: =IF((ISNA((VLOOKUP(A164,'RunoffLook-up'!$G$5:$H$3442,2,FALSE))))=TRUE,0,VLOOKUP(A164,'RunoffLook-up'!$G$5:$H$3442,2,FALSE))*('Reuse Inputs_Summary'!$C$3/10) -> 0 | I164: ='Reuse Inputs_Summary'!$C$7 -> 0.075 | J164: 0 | K164: 0 | L164: 0 | M164: 0 | N164: =IF($C164<'Reuse Inputs_Summary'!$C$13,"NO",IF(($C164>'Reuse Inputs_Summary'!$C$14),"NO","YES")) -> YES | O164: NO | P164: =IF(N164="No",0,IF(AND(N164="Yes",O164="NO",L164>'Reuse Inputs_Summary'!$C$12),'Reuse Inputs_Summary'!$C$12,IF(AND(N164="Yes",O164="NO",L164<'Reuse Inputs_Summary'!$C$12,L164>0),L164,0))) -> 0 | Q164: =IF('Reuse Inputs_Summary'!$C$15=0,"NO","YES") -> YES | R164: 0 | S164: 0 | T164: =IF(N164="No",0,IF(AND(N164="Yes",O164="YES"),0,IF(AND(N164="Yes",O164="NO",ReuseWaterBalance!L164<'Reuse Inputs_Summary'!$C$12),('Reuse Inputs_Summary'!$C$12-ReuseWaterBalance!L164),0))) -> 0.005952380952
A165: 1955-06-10 | B165: 1955 | C165: 6 | D165: 10 | E165: 0.02 | F165: 0 | G165: 0.02 | H165: =IF((ISNA((VLOOKUP(A165,'RunoffLook-up'!$G$5:$H$3442,2,FALSE))))=TRUE,0,VLOOKUP(A165,'RunoffLook-up'!$G$5:$H$3442,2,FALSE))*('Reuse Inputs_Summary'!$C$3/10) -> 4.441774494e-181 | I165: ='Reuse Inputs_Summary'!$C$7 -> 0.075 | J165: 0 | K165: 4.441774494e-181 | L165: 4.441774494e-181 | M165: 0 | N165: =IF($C165<'Reuse Inputs_Summary'!$C$13,"NO",IF(($C165>'Reuse Inputs_Summary'!$C$14),"NO","YES")) -> YES | O165: YES | P165: =IF(N165="No",0,IF(AND(N165="Yes",O165="NO",L165>'Reuse Inputs_Summary'!$C$12),'Reuse Inputs_Summary'!$C$12,IF(AND(N165="Yes",O165="NO",L165<'Reuse Inputs_Summary'!$C$12,L165>0),L165,0))) -> 0 | Q165: =IF('Reuse Inputs_Summary'!$C$15=0,"NO","YES") -> YES | R165: 0 | S165: 4.441774494e-181 | T165: =IF(N165="No",0,IF(AND(N165="Yes",O165="YES"),0,IF(AND(N165="Yes",O165="NO",ReuseWaterBalance!L165<'Reuse Inputs_Summary'!$C$12),('Reuse Inputs_Summary'!$C$12-ReuseWaterBalance!L165),0))) -> 0
A166: 1955-06-11 | B166: 1955 | C166: 6 | D166: 11 | E166: 0.13 | F166: 0 | G166: 0.13 | H166: =IF((ISNA((VLOOKUP(A166,'RunoffLook-up'!$G$5:$H$3442,2,FALSE))))=TRUE,0,VLOOKUP(A166,'RunoffLook-up'!$G$5:$H$3442,2,FALSE))*('Reuse Inputs_Summary'!$C$3/10) -> 0.0002916666667 | I166: ='Reuse Inputs_Summary'!$C$7 -> 0.075 | J166: 4.441774494e-181 | K166: 0.0002916666667 | L166: 0.0002916666667 | M166: 0 | N166: =IF($C166<'Reuse Inputs_Summary'!$C$13,"NO",IF(($C166>'Reuse Inputs_Summary'!$C$14),"NO","YES")) -> YES | O166: YES | P166: =IF(N166="No",0,IF(AND(N166="Yes",O166="NO",L166>'Reuse Inputs_Summary'!$C$12),'Reuse Inputs_Summary'!$C$12,IF(AND(N166="Yes",O166="NO",L166<'Reuse Inputs_Summary'!$C$12,L166>0),L166,0))) -> 0 | Q166: =IF('Reuse Inputs_Summary'!$C$15=0,"NO","YES") -> YES | R166: 0 | S166: 0.0002916666667 | T166: =IF(N166="No",0,IF(AND(N166="Yes",O166="YES"),0,IF(AND(N166="Yes",O166="NO",ReuseWaterBalance!L166<'Reuse Inputs_Summary'!$C$12),('Reuse Inputs_Summary'!$C$12-ReuseWaterBalance!L166),0))) -> 0
A167: 1955-06-12 | B167: 1955 | C167: 6 | D167: 12 | E167: 0 | F167: 0 | G167: 0 | H167: =IF((ISNA((VLOOKUP(A167,'RunoffLook-up'!$G$5:$H$3442,2,FALSE))))=TRUE,0,VLOOKUP(A167,'RunoffLook-up'!$G$5:$H$3442,2,FALSE))*('Reuse Inputs_Summary'!$C$3/10) -> 0 | I167: ='Reuse Inputs_Summary'!$C$7 -> 0.075 | J167: 0.0002916666667 | K167: 0 | L167: 0.0002916666667 | M167: 0 | N167: =IF($C167<'Reuse Inputs_Summary'!$C$13,"NO",IF(($C167>'Reuse Inputs_Summary'!$C$14),"NO","YES")) -> YES | O167: NO | P167: =IF(N167="No",0,IF(AND(N167="Yes",O167="NO",L167>'Reuse Inputs_Summary'!$C$12),'Reuse Inputs_Summary'!$C$12,IF(AND(N167="Yes",O167="NO",L167<'Reuse Inputs_Summary'!$C$12,L167>0),L167,0))) -> 0.0002916666667 | Q167: =IF('Reuse Inputs_Summary'!$C$15=0,"NO","YES") -> YES | R167: 0 | S167: 0 | T167: =IF(N167="No",0,IF(AND(N167="Yes",O167="YES"),0,IF(AND(N167="Yes",O167="NO",ReuseWaterBalance!L167<'Reuse Inputs_Summary'!$C$12),('Reuse Inputs_Summary'!$C$12-ReuseWaterBalance!L167),0))) -> 0.005660714286
A168: 1955-06-13 | B168: 1955 | C168: 6 | D168: 13 | E168: 0 | F168: 0 | G168: 0 | H168: =IF((ISNA((VLOOKUP(A168,'RunoffLook-up'!$G$5:$H$3442,2,FALSE))))=TRUE,0,VLOOKUP(A168,'RunoffLook-up'!$G$5:$H$3442,2,FALSE))*('Reuse Inputs_Summary'!$C$3/10) -> 0 | I168: ='Reuse Inputs_Summary'!$C$7 -> 0.075 | J168: 0 | K168: 0 | L168: 0 | M168: 0 | N168: =IF($C168<'Reuse Inputs_Summary'!$C$13,"NO",IF(($C168>'Reuse Inputs_Summary'!$C$14),"NO","YES")) -> YES | O168: NO | P168: =IF(N168="No",0,IF(AND(N168="Yes",O168="NO",L168>'Reuse Inputs_Summary'!$C$12),'Reuse Inputs_Summary'!$C$12,IF(AND(N168="Yes",O168="NO",L168<'Reuse Inputs_Summary'!$C$12,L168>0),L168,0))) -> 0 | Q168: =IF('Reuse Inputs_Summary'!$C$15=0,"NO","YES") -> YES | R168: 0 | S168: 0 | T168: =IF(N168="No",0,IF(AND(N168="Yes",O168="YES"),0,IF(AND(N168="Yes",O168="NO",ReuseWaterBalance!L168<'Reuse Inputs_Summary'!$C$12),('Reuse Inputs_Summary'!$C$12-ReuseWaterBalance!L168),0))) -> 0.005952380952
A169: 1955-06-14 | B169: 1955 | C169: 6 | D169: 14 | E169: 0 | F169: 0 | G169: 0 | H169: =IF((ISNA((VLOOKUP(A169,'RunoffLook-up'!$G$5:$H$3442,2,FALSE))))=TRUE,0,VLOOKUP(A169,'RunoffLook-up'!$G$5:$H$3442,2,FALSE))*('Reuse Inputs_Summary'!$C$3/10) -> 0 | I169: ='Reuse Inputs_Summary'!$C$7 -> 0.075 | J169: 0 | K169: 0 | L169: 0 | M169: 0 | N169: =IF($C169<'Reuse Inputs_Summary'!$C$13,"NO",IF(($C169>'Reuse Inputs_Summary'!$C$14),"NO","YES")) -> YES | O169: NO | P169: =IF(N169="No",0,IF(AND(N169="Yes",O169="NO",L169>'Reuse Inputs_Summary'!$C$12),'Reuse Inputs_Summary'!$C$12,IF(AND(N169="Yes",O169="NO",L169<'Reuse Inputs_Summary'!$C$12,L169>0),L169,0))) -> 0 | Q169: =IF('Reuse Inputs_Summary'!$C$15=0,"NO","YES") -> YES | R169: 0 | S169: 0 | T169: =IF(N169="No",0,IF(AND(N169="Yes",O169="YES"),0,IF(AND(N169="Yes",O169="NO",ReuseWaterBalance!L169<'Reuse Inputs_Summary'!$C$12),('Reuse Inputs_Summary'!$C$12-ReuseWaterBalance!L169),0))) -> 0.005952380952
A170: 1955-06-15 | B170: 1955 | C170: 6 | D170: 15 | E170: 0 | F170: 0 | G170: 0 | H170: =IF((ISNA((VLOOKUP(A170,'RunoffLook-up'!$G$5:$H$3442,2,FALSE))))=TRUE,0,VLOOKUP(A170,'RunoffLook-up'!$G$5:$H$3442,2,FALSE))*('Reuse Inputs_Summary'!$C$3/10) -> 0 | I170: ='Reuse Inputs_Summary'!$C$7 -> 0.075 | J170: 0 | K170: 0 | L170: 0 | M170: 0 | N170: =IF($C170<'Reuse Inputs_Summary'!$C$13,"NO",IF(($C170>'Reuse Inputs_Summary'!$C$14),"NO","YES")) -> YES | O170: NO | P170: =IF(N170="No",0,IF(AND(N170="Yes",O170="NO",L170>'Reuse Inputs_Summary'!$C$12),'Reuse Inputs_Summary'!$C$12,IF(AND(N170="Yes",O170="NO",L170<'Reuse Inputs_Summary'!$C$12,L170>0),L170,0))) -> 0 | Q170: =IF('Reuse Inputs_Summary'!$C$15=0,"NO","YES") -> YES | R170: 0 | S170: 0 | T170: =IF(N170="No",0,IF(AND(N170="Yes",O170="YES"),0,IF(AND(N170="Yes",O170="NO",ReuseWaterBalance!L170<'Reuse Inputs_Summary'!$C$12),('Reuse Inputs_Summary'!$C$12-ReuseWaterBalance!L170),0))) -> 0.005952380952
A171: 1955-06-16 | B171: 1955 | C171: 6 | D171: 16 | E171: 0 | F171: 0 | G171: 0 | H171: =IF((ISNA((VLOOKUP(A171,'RunoffLook-up'!$G$5:$H$3442,2,FALSE))))=TRUE,0,VLOOKUP(A171,'RunoffLook-up'!$G$5:$H$3442,2,FALSE))*('Reuse Inputs_Summary'!$C$3/10) -> 0 | I171: ='Reuse Inputs_Summary'!$C$7 -> 0.075 | J171: 0 | K171: 0 | L171: 0 | M171: 0 | N171: =IF($C171<'Reuse Inputs_Summary'!$C$13,"NO",IF(($C171>'Reuse Inputs_Summary'!$C$14),"NO","YES")) -> YES | O171: NO | P171: =IF(N171="No",0,IF(AND(N171="Yes",O171="NO",L171>'Reuse Inputs_Summary'!$C$12),'Reuse Inputs_Summary'!$C$12,IF(AND(N171="Yes",O171="NO",L171<'Reuse Inputs_Summary'!$C$12,L171>0),L171,0))) -> 0 | Q171: =IF('Reuse Inputs_Summary'!$C$15=0,"NO","YES") -> YES | R171: 0 | S171: 0 | T171: =IF(N171="No",0,IF(AND(N171="Yes",O171="YES"),0,IF(AND(N171="Yes",O171="NO",ReuseWaterBalance!L171<'Reuse Inputs_Summary'!$C$12),('Reuse Inputs_Summary'!$C$12-ReuseWaterBalance!L171),0))) -> 0.005952380952
A172: 1955-06-17 | B172: 1955 | C172: 6 | D172: 17 | E172: 0 | F172: 0 | G172: 0 | H172: =IF((ISNA((VLOOKUP(A172,'RunoffLook-up'!$G$5:$H$3442,2,FALSE))))=TRUE,0,VLOOKUP(A172,'RunoffLook-up'!$G$5:$H$3442,2,FALSE))*('Reuse Inputs_Summary'!$C$3/10) -> 0 | I172: ='Reuse Inputs_Summary'!$C$7 -> 0.075 | J172: 0 | K172: 0 | L172: 0 | M172: 0 | N172: =IF($C172<'Reuse Inputs_Summary'!$C$13,"NO",IF(($C172>'Reuse Inputs_Summary'!$C$14),"NO","YES")) -> YES | O172: NO | P172: =IF(N172="No",0,IF(AND(N172="Yes",O172="NO",L172>'Reuse Inputs_Summary'!$C$12),'Reuse Inputs_Summary'!$C$12,IF(AND(N172="Yes",O172="NO",L172<'Reuse Inputs_Summary'!$C$12,L172>0),L172,0))) -> 0 | Q172: =IF('Reuse Inputs_Summary'!$C$15=0,"NO","YES") -> YES | R172: 0 | S172: 0 | T172: =IF(N172="No",0,IF(AND(N172="Yes",O172="YES"),0,IF(AND(N172="Yes",O172="NO",ReuseWaterBalance!L172<'Reuse Inputs_Summary'!$C$12),('Reuse Inputs_Summary'!$C$12-ReuseWaterBalance!L172),0))) -> 0.005952380952
A173: 1955-06-18 | B173: 1955 | C173: 6 | D173: 18 | E173: 0 | F173: 0 | G173: 0 | H173: =IF((ISNA((VLOOKUP(A173,'RunoffLook-up'!$G$5:$H$3442,2,FALSE))))=TRUE,0,VLOOKUP(A173,'RunoffLook-up'!$G$5:$H$3442,2,FALSE))*('Reuse Inputs_Summary'!$C$3/10) -> 0 | I173: ='Reuse Inputs_Summary'!$C$7 -> 0.075 | J173: 0 | K173: 0 | L173: 0 | M173: 0 | N173: =IF($C173<'Reuse Inputs_Summary'!$C$13,"NO",IF(($C173>'Reuse Inputs_Summary'!$C$14),"NO","YES")) -> YES | O173: NO | P173: =IF(N173="No",0,IF(AND(N173="Yes",O173="NO",L173>'Reuse Inputs_Summary'!$C$12),'Reuse Inputs_Summary'!$C$12,IF(AND(N173="Yes",O173="NO",L173<'Reuse Inputs_Summary'!$C$12,L173>0),L173,0))) -> 0 | Q173: =IF('Reuse Inputs_Summary'!$C$15=0,"NO","YES") -> YES | R173: 0 | S173: 0 | T173: =IF(N173="No",0,IF(AND(N173="Yes",O173="YES"),0,IF(AND(N173="Yes",O173="NO",ReuseWaterBalance!L173<'Reuse Inputs_Summary'!$C$12),('Reuse Inputs_Summary'!$C$12-ReuseWaterBalance!L173),0))) -> 0.005952380952
A174: 1955-06-19 | B174: 1955 | C174: 6 | D174: 19 | E174: 0.06 | F174: 0 | G174: 0.06 | H174: =IF((ISNA((VLOOKUP(A174,'RunoffLook-up'!$G$5:$H$3442,2,FALSE))))=TRUE,0,VLOOKUP(A174,'RunoffLook-up'!$G$5:$H$3442,2,FALSE))*('Reuse Inputs_Summary'!$C$3/10) -> 0 | I174: ='Reuse Inputs_Summary'!$C$7 -> 0.075 | J174: 0 | K174: 0 | L174: 0 | M174: 0 | N174: =IF($C174<'Reuse Inputs_Summary'!$C$13,"NO",IF(($C174>'Reuse Inputs_Summary'!$C$14),"NO","YES")) -> YES | O174: YES | P174: =IF(N174="No",0,IF(AND(N174="Yes",O174="NO",L174>'Reuse Inputs_Summary'!$C$12),'Reuse Inputs_Summary'!$C$12,IF(AND(N174="Yes",O174="NO",L174<'Reuse Inputs_Summary'!$C$12,L174>0),L174,0))) -> 0 | Q174: =IF('Reuse Inputs_Summary'!$C$15=0,"NO","YES") -> YES | R174: 0 | S174: 0 | T174: =IF(N174="No",0,IF(AND(N174="Yes",O174="YES"),0,IF(AND(N174="Yes",O174="NO",ReuseWaterBalance!L174<'Reuse Inputs_Summary'!$C$12),('Reuse Inputs_Summary'!$C$12-ReuseWaterBalance!L174),0))) -> 0
A175: 1955-06-20 | B175: 1955 | C175: 6 | D175: 20 | E175: 0.09 | F175: 0 | G175: 0.09 | H175: =IF((ISNA((VLOOKUP(A175,'RunoffLook-up'!$G$5:$H$3442,2,FALSE))))=TRUE,0,VLOOKUP(A175,'RunoffLook-up'!$G$5:$H$3442,2,FALSE))*('Reuse Inputs_Summary'!$C$3/10) -> 0.000125 | I175: ='Reuse Inputs_Summary'!$C$7 -> 0.075 | J175: 0 | K175: 0.000125 | L175: 0.000125 | M175: 0 | N175: =IF($C175<'Reuse Inputs_Summary'!$C$13,"NO",IF(($C175>'Reuse Inputs_Summary'!$C$14),"NO","YES")) -> YES | O175: YES | P175: =IF(N175="No",0,IF(AND(N175="Yes",O175="NO",L175>'Reuse Inputs_Summary'!$C$12),'Reuse Inputs_Summary'!$C$12,IF(AND(N175="Yes",O175="NO",L175<'Reuse Inputs_Summary'!$C$12,L175>0),L175,0))) -> 0 | Q175: =IF('Reuse Inputs_Summary'!$C$15=0,"NO","YES") -> YES | R175: 0 | S175: 0.000125 | T175: =IF(N175="No",0,IF(AND(N175="Yes",O175="YES"),0,IF(AND(N175="Yes",O175="NO",ReuseWaterBalance!L175<'Reuse Inputs_Summary'!$C$12),('Reuse Inputs_Summary'!$C$12-ReuseWaterBalance!L175),0))) -> 0
A176: 1955-06-21 | B176: 1955 | C176: 6 | D176: 21 | E176: 0 | F176: 0 | G176: 0 | H176: =IF((ISNA((VLOOKUP(A176,'RunoffLook-up'!$G$5:$H$3442,2,FALSE))))=TRUE,0,VLOOKUP(A176,'RunoffLook-up'!$G$5:$H$3442,2,FALSE))*('Reuse Inputs_Summary'!$C$3/10) -> 0 | I176: ='Reuse Inputs_Summary'!$C$7 -> 0.075 | J176: 0.000125 | K176: 0 | L176: 0.000125 | M176: 0 | N176: =IF($C176<'Reuse Inputs_Summary'!$C$13,"NO",IF(($C176>'Reuse Inputs_Summary'!$C$14),"NO","YES")) -> YES | O176: NO | P176: =IF(N176="No",0,IF(AND(N176="Yes",O176="NO",L176>'Reuse Inputs_Summary'!$C$12),'Reuse Inputs_Summary'!$C$12,IF(AND(N176="Yes",O176="NO",L176<'Reuse Inputs_Summary'!$C$12,L176>0),L176,0))) -> 0.000125 | Q176: =IF('Reuse Inputs_Summary'!$C$15=0,"NO","YES") -> YES | R176: 0 | S176: 0 | T176: =IF(N176="No",0,IF(AND(N176="Yes",O176="YES"),0,IF(AND(N176="Yes",O176="NO",ReuseWaterBalance!L176<'Reuse Inputs_Summary'!$C$12),('Reuse Inputs_Summary'!$C$12-ReuseWaterBalance!L176),0))) -> 0.005827380952
A177: 1955-06-22 | B177: 1955 | C177: 6 | D177: 22 | E177: 0 | F177: 0 | G177: 0 | H177: =IF((ISNA((VLOOKUP(A177,'RunoffLook-up'!$G$5:$H$3442,2,FALSE))))=TRUE,0,VLOOKUP(A177,'RunoffLook-up'!$G$5:$H$3442,2,FALSE))*('Reuse Inputs_Summary'!$C$3/10) -> 0 | I177: ='Reuse Inputs_Summary'!$C$7 -> 0.075 | J177: 0 | K177: 0 | L177: 0 | M177: 0 | N177: =IF($C177<'Reuse Inputs_Summary'!$C$13,"NO",IF(($C177>'Reuse Inputs_Summary'!$C$14),"NO","YES")) -> YES | O177: NO | P177: =IF(N177="No",0,IF(AND(N177="Yes",O177="NO",L177>'Reuse Inputs_Summary'!$C$12),'Reuse Inputs_Summary'!$C$12,IF(AND(N177="Yes",O177="NO",L177<'Reuse Inputs_Summary'!$C$12,L177>0),L177,0))) -> 0 | Q177: =IF('Reuse Inputs_Summary'!$C$15=0,"NO","YES") -> YES | R177: 0 | S177: 0 | T177: =IF(N177="No",0,IF(AND(N177="Yes",O177="YES"),0,IF(AND(N177="Yes",O177="NO",ReuseWaterBalance!L177<'Reuse Inputs_Summary'!$C$12),('Reuse Inputs_Summary'!$C$12-ReuseWaterBalance!L177),0))) -> 0.005952380952
A178: 1955-06-23 | B178: 1955 | C178: 6 | D178: 23 | E178: 0 | F178: 0 | G178: 0 | H178: =IF((ISNA((VLOOKUP(A178,'RunoffLook-up'!$G$5:$H$3442,2,FALSE))))=TRUE,0,VLOOKUP(A178,'RunoffLook-up'!$G$5:$H$3442,2,FALSE))*('Reuse Inputs_Summary'!$C$3/10) -> 0 | I178: ='Reuse Inputs_Summary'!$C$7 -> 0.075 | J178: 0 | K178: 0 | L178: 0 | M178: 0 | N178: =IF($C178<'Reuse Inputs_Summary'!$C$13,"NO",IF(($C178>'Reuse Inputs_Summary'!$C$14),"NO","YES")) -> YES | O178: NO | P178: =IF(N178="No",0,IF(AND(N178="Yes",O178="NO",L178>'Reuse Inputs_Summary'!$C$12),'Reuse Inputs_Summary'!$C$12,IF(AND(N178="Yes",O178="NO",L178<'Reuse Inputs_Summary'!$C$12,L178>0),L178,0))) -> 0 | Q178: =IF('Reuse Inputs_Summary'!$C$15=0,"NO","YES") -> YES | R178: 0 | S178: 0 | T178: =IF(N178="No",0,IF(AND(N178="Yes",O178="YES"),0,IF(AND(N178="Yes",O178="NO",ReuseWaterBalance!L178<'Reuse Inputs_Summary'!$C$12),('Reuse Inputs_Summary'!$C$12-ReuseWaterBalance!L178),0))) -> 0.005952380952
A179: 1955-06-24 | B179: 1955 | C179: 6 | D179: 24 | E179: 0 | F179: 0 | G179: 0 | H179: =IF((ISNA((VLOOKUP(A179,'RunoffLook-up'!$G$5:$H$3442,2,FALSE))))=TRUE,0,VLOOKUP(A179,'RunoffLook-up'!$G$5:$H$3442,2,FALSE))*('Reuse Inputs_Summary'!$C$3/10) -> 0 | I179: ='Reuse Inputs_Summary'!$C$7 -> 0.075 | J179: 0 | K179: 0 | L179: 0 | M179: 0 | N179: =IF($C179<'Reuse Inputs_Summary'!$C$13,"NO",IF(($C179>'Reuse Inputs_Summary'!$C$14),"NO","YES")) -> YES | O179: NO | P179: =IF(N179="No",0,IF(AND(N179="Yes",O179="NO",L179>'Reuse Inputs_Summary'!$C$12),'Reuse Inputs_Summary'!$C$12,IF(AND(N179="Yes",O179="NO",L179<'Reuse Inputs_Summary'!$C$12,L179>0),L179,0))) -> 0 | Q179: =IF('Reuse Inputs_Summary'!$C$15=0,"NO","YES") -> YES | R179: 0 | S179: 0 | T179: =IF(N179="No",0,IF(AND(N179="Yes",O179="YES"),0,IF(AND(N179="Yes",O179="NO",ReuseWaterBalance!L179<'Reuse Inputs_Summary'!$C$12),('Reuse Inputs_Summary'!$C$12-ReuseWaterBalance!L179),0))) -> 0.005952380952
A180: 1955-06-25 | B180: 1955 | C180: 6 | D180: 25 | E180: 0 | F180: 0 | G180: 0 | H180: =IF((ISNA((VLOOKUP(A180,'RunoffLook-up'!$G$5:$H$3442,2,FALSE))))=TRUE,0,VLOOKUP(A180,'RunoffLook-up'!$G$5:$H$3442,2,FALSE))*('Reuse Inputs_Summary'!$C$3/10) -> 0 | I180: ='Reuse Inputs_Summary'!$C$7 -> 0.075 | J180: 0 | K180: 0 | L180: 0 | M180: 0 | N180: =IF($C180<'Reuse Inputs_Summary'!$C$13,"NO",IF(($C180>'Reuse Inputs_Summary'!$C$14),"NO","YES")) -> YES | O180: NO | P180: =IF(N180="No",0,IF(AND(N180="Yes",O180="NO",L180>'Reuse Inputs_Summary'!$C$12),'Reuse Inputs_Summary'!$C$12,IF(AND(N180="Yes",O180="NO",L180<'Reuse Inputs_Summary'!$C$12,L180>0),L180,0))) -> 0 | Q180: =IF('Reuse Inputs_Summary'!$C$15=0,"NO","YES") -> YES | R180: 0 | S180: 0 | T180: =IF(N180="No",0,IF(AND(N180="Yes",O180="YES"),0,IF(AND(N180="Yes",O180="NO",ReuseWaterBalance!L180<'Reuse Inputs_Summary'!$C$12),('Reuse Inputs_Summary'!$C$12-ReuseWaterBalance!L180),0))) -> 0.005952380952
A181: 1955-06-26 | B181: 1955 | C181: 6 | D181: 26 | E181: 0 | F181: 0 | G181: 0 | H181: =IF((ISNA((VLOOKUP(A181,'RunoffLook-up'!$G$5:$H$3442,2,FALSE))))=TRUE,0,VLOOKUP(A181,'RunoffLook-up'!$G$5:$H$3442,2,FALSE))*('Reuse Inputs_Summary'!$C$3/10) -> 0 | I181: ='Reuse Inputs_Summary'!$C$7 -> 0.075 | J181: 0 | K181: 0 | L181: 0 | M181: 0 | N181: =IF($C181<'Reuse Inputs_Summary'!$C$13,"NO",IF(($C181>'Reuse Inputs_Summary'!$C$14),"NO","YES")) -> YES | O181: NO | P181: =IF(N181="No",0,IF(AND(N181="Yes",O181="NO",L181>'Reuse Inputs_Summary'!$C$12),'Reuse Inputs_Summary'!$C$12,IF(AND(N181="Yes",O181="NO",L181<'Reuse Inputs_Summary'!$C$12,L181>0),L181,0))) -> 0 | Q181: =IF('Reuse Inputs_Summary'!$C$15=0,"NO","YES") -> YES | R181: 0 | S181: 0 | T181: =IF(N181="No",0,IF(AND(N181="Yes",O181="YES"),0,IF(AND(N181="Yes",O181="NO",ReuseWaterBalance!L181<'Reuse Inputs_Summary'!$C$12),('Reuse Inputs_Summary'!$C$12-ReuseWaterBalance!L181),0))) -> 0.005952380952
A182: 1955-06-27 | B182: 1955 | C182: 6 | D182: 27 | E182: 0 | F182: 0 | G182: 0 | H182: =IF((ISNA((VLOOKUP(A182,'RunoffLook-up'!$G$5:$H$3442,2,FALSE))))=TRUE,0,VLOOKUP(A182,'RunoffLook-up'!$G$5:$H$3442,2,FALSE))*('Reuse Inputs_Summary'!$C$3/10) -> 0 | I182: ='Reuse Inputs_Summary'!$C$7 -> 0.075 | J182: 0 | K182: 0 | L182: 0 | M182: 0 | N182: =IF($C182<'Reuse Inputs_Summary'!$C$13,"NO",IF(($C182>'Reuse Inputs_Summary'!$C$14),"NO","YES")) -> YES | O182: NO | P182: =IF(N182="No",0,IF(AND(N182="Yes",O182="NO",L182>'Reuse Inputs_Summary'!$C$12),'Reuse Inputs_Summary'!$C$12,IF(AND(N182="Yes",O182="NO",L182<'Reuse Inputs_Summary'!$C$12,L182>0),L182,0))) -> 0 | Q182: =IF('Reuse Inputs_Summary'!$C$15=0,"NO","YES") -> YES | R182: 0 | S182: 0 | T182: =IF(N182="No",0,IF(AND(N182="Yes",O182="YES"),0,IF(AND(N182="Yes",O182="NO",ReuseWaterBalance!L182<'Reuse Inputs_Summary'!$C$12),('Reuse Inputs_Summary'!$C$12-ReuseWaterBalance!L182),0))) -> 0.005952380952
A183: 1955-06-28 | B183: 1955 | C183: 6 | D183: 28 | E183: 0 | F183: 0 | G183: 0 | H183: =IF((ISNA((VLOOKUP(A183,'RunoffLook-up'!$G$5:$H$3442,2,FALSE))))=TRUE,0,VLOOKUP(A183,'RunoffLook-up'!$G$5:$H$3442,2,FALSE))*('Reuse Inputs_Summary'!$C$3/10) -> 0 | I183: ='Reuse Inputs_Summary'!$C$7 -> 0.075 | J183: 0 | K183: 0 | L183: 0 | M183: 0 | N183: =IF($C183<'Reuse Inputs_Summary'!$C$13,"NO",IF(($C183>'Reuse Inputs_Summary'!$C$14),"NO","YES")) -> YES | O183: NO | P183: =IF(N183="No",0,IF(AND(N183="Yes",O183="NO",L183>'Reuse Inputs_Summary'!$C$12),'Reuse Inputs_Summary'!$C$12,IF(AND(N183="Yes",O183="NO",L183<'Reuse Inputs_Summary'!$C$12,L183>0),L183,0))) -> 0 | Q183: =IF('Reuse Inputs_Summary'!$C$15=0,"NO","YES") -> YES | R183: 0 | S183: 0 | T183: =IF(N183="No",0,IF(AND(N183="Yes",O183="YES"),0,IF(AND(N183="Yes",O183="NO",ReuseWaterBalance!L183<'Reuse Inputs_Summary'!$C$12),('Reuse Inputs_Summary'!$C$12-ReuseWaterBalance!L183),0))) -> 0.005952380952
A184: 1955-06-29 | B184: 1955 | C184: 6 | D184: 29 | E184: 0.02 | F184: 0 | G184: 0.02 | H184: =IF((ISNA((VLOOKUP(A184,'RunoffLook-up'!$G$5:$H$3442,2,FALSE))))=TRUE,0,VLOOKUP(A184,'RunoffLook-up'!$G$5:$H$3442,2,FALSE))*('Reuse Inputs_Summary'!$C$3/10) -> 0 | I184: ='Reuse Inputs_Summary'!$C$7 -> 0.075 | J184: 0 | K184: 0 | L184: 0 | M184: 0 | N184: =IF($C184<'Reuse Inputs_Summary'!$C$13,"NO",IF(($C184>'Reuse Inputs_Summary'!$C$14),"NO","YES")) -> YES | O184: YES | P184: =IF(N184="No",0,IF(AND(N184="Yes",O184="NO",L184>'Reuse Inputs_Summary'!$C$12),'Reuse Inputs_Summary'!$C$12,IF(AND(N184="Yes",O184="NO",L184<'Reuse Inputs_Summary'!$C$12,L184>0),L184,0))) -> 0 | Q184: =IF('Reuse Inputs_Summary'!$C$15=0,"NO","YES") -> YES | R184: 0 | S184: 0 | T184: =IF(N184="No",0,IF(AND(N184="Yes",O184="YES"),0,IF(AND(N184="Yes",O184="NO",ReuseWaterBalance!L184<'Reuse Inputs_Summary'!$C$12),('Reuse Inputs_Summary'!$C$12-ReuseWaterBalance!L184),0))) -> 0
A185: 1955-06-30 | B185: 1955 | C185: 6 | D185: 30 | E185: 0.02 | F185: 0 | G185: 0.02 | H185: =IF((ISNA((VLOOKUP(A185,'RunoffLook-up'!$G$5:$H$3442,2,FALSE))))=TRUE,0,VLOOKUP(A185,'RunoffLook-up'!$G$5:$H$3442,2,FALSE))*('Reuse Inputs_Summary'!$C$3/10) -> 0 | I185: ='Reuse Inputs_Summary'!$C$7 -> 0.075 | J185: 0 | K185: 0 | L185: 0 | M185: 0 | N185: =IF($C185<'Reuse Inputs_Summary'!$C$13,"NO",IF(($C185>'Reuse Inputs_Summary'!$C$14),"NO","YES")) -> YES | O185: YES | P185: =IF(N185="No",0,IF(AND(N185="Yes",O185="NO",L185>'Reuse Inputs_Summary'!$C$12),'Reuse Inputs_Summary'!$C$12,IF(AND(N185="Yes",O185="NO",L185<'Reuse Inputs_Summary'!$C$12,L185>0),L185,0))) -> 0 | Q185: =IF('Reuse Inputs_Summary'!$C$15=0,"NO","YES") -> YES | R185: 0 | S185: 0 | T185: =IF(N185="No",0,IF(AND(N185="Yes",O185="YES"),0,IF(AND(N185="Yes",O185="NO",ReuseWaterBalance!L185<'Reuse Inputs_Summary'!$C$12),('Reuse Inputs_Summary'!$C$12-ReuseWaterBalance!L185),0))) -> 0
A186: 1955-07-01 | B186: 1955 | C186: 7 | D186: 1 | E186: 0 | F186: 0 | G186: 0 | H186: =IF((ISNA((VLOOKUP(A186,'RunoffLook-up'!$G$5:$H$3442,2,FALSE))))=TRUE,0,VLOOKUP(A186,'RunoffLook-up'!$G$5:$H$3442,2,FALSE))*('Reuse Inputs_Summary'!$C$3/10) -> 0 | I186: ='Reuse Inputs_Summary'!$C$7 -> 0.075 | J186: 0 | K186: 0 | L186: 0 | M186: 0 | N186: =IF($C186<'Reuse Inputs_Summary'!$C$13,"NO",IF(($C186>'Reuse Inputs_Summary'!$C$14),"NO","YES")) -> YES | O186: NO | P186: =IF(N186="No",0,IF(AND(N186="Yes",O186="NO",L186>'Reuse Inputs_Summary'!$C$12),'Reuse Inputs_Summary'!$C$12,IF(AND(N186="Yes",O186="NO",L186<'Reuse Inputs_Summary'!$C$12,L186>0),L186,0))) -> 0 | Q186: =IF('Reuse Inputs_Summary'!$C$15=0,"NO","YES") -> YES | R186: 0 | S186: 0 | T186: =IF(N186="No",0,IF(AND(N186="Yes",O186="YES"),0,IF(AND(N186="Yes",O186="NO",ReuseWaterBalance!L186<'Reuse Inputs_Summary'!$C$12),('Reuse Inputs_Summary'!$C$12-ReuseWaterBalance!L186),0))) -> 0.005952380952
A187: 1955-07-02 | B187: 1955 | C187: 7 | D187: 2 | E187: 0.5 | F187: 0 | G187: 0.5 | H187: =IF((ISNA((VLOOKUP(A187,'RunoffLook-up'!$G$5:$H$3442,2,FALSE))))=TRUE,0,VLOOKUP(A187,'RunoffLook-up'!$G$5:$H$3442,2,FALSE))*('Reuse Inputs_Summary'!$C$3/10) -> 0.001583333333 | I187: ='Reuse Inputs_Summary'!$C$7 -> 0.075 | J187: 0 | K187: 0.001583333333 | L187: 0.001583333333 | M187: 0 | N187: =IF($C187<'Reuse Inputs_Summary'!$C$13,"NO",IF(($C187>'Reuse Inputs_Summary'!$C$14),"NO","YES")) -> YES | O187: YES | P187: =IF(N187="No",0,IF(AND(N187="Yes",O187="NO",L187>'Reuse Inputs_Summary'!$C$12),'Reuse Inputs_Summary'!$C$12,IF(AND(N187="Yes",O187="NO",L187<'Reuse Inputs_Summary'!$C$12,L187>0),L187,0))) -> 0 | Q187: =IF('Reuse Inputs_Summary'!$C$15=0,"NO","YES") -> YES | R187: 0 | S187: 0.001583333333 | T187: =IF(N187="No",0,IF(AND(N187="Yes",O187="YES"),0,IF(AND(N187="Yes",O187="NO",ReuseWaterBalance!L187<'Reuse Inputs_Summary'!$C$12),('Reuse Inputs_Summary'!$C$12-ReuseWaterBalance!L187),0))) -> 0
A188: 1955-07-03 | B188: 1955 | C188: 7 | D188: 3 | E188: 0 | F188: 0 | G188: 0 | H188: =IF((ISNA((VLOOKUP(A188,'RunoffLook-up'!$G$5:$H$3442,2,FALSE))))=TRUE,0,VLOOKUP(A188,'RunoffLook-up'!$G$5:$H$3442,2,FALSE))*('Reuse Inputs_Summary'!$C$3/10) -> 0 | I188: ='Reuse Inputs_Summary'!$C$7 -> 0.075 | J188: 0.001583333333 | K188: 0 | L188: 0.001583333333 | M188: 0 | N188: =IF($C188<'Reuse Inputs_Summary'!$C$13,"NO",IF(($C188>'Reuse Inputs_Summary'!$C$14),"NO","YES")) -> YES | O188: NO | P188: =IF(N188="No",0,IF(AND(N188="Yes",O188="NO",L188>'Reuse Inputs_Summary'!$C$12),'Reuse Inputs_Summary'!$C$12,IF(AND(N188="Yes",O188="NO",L188<'Reuse Inputs_Summary'!$C$12,L188>0),L188,0))) -> 0.001583333333 | Q188: =IF('Reuse Inputs_Summary'!$C$15=0,"NO","YES") -> YES | R188: 0 | S188: 0 | T188: =IF(N188="No",0,IF(AND(N188="Yes",O188="YES"),0,IF(AND(N188="Yes",O188="NO",ReuseWaterBalance!L188<'Reuse Inputs_Summary'!$C$12),('Reuse Inputs_Summary'!$C$12-ReuseWaterBalance!L188),0))) -> 0.004369047619
A189: 1955-07-04 | B189: 1955 | C189: 7 | D189: 4 | E189: 0.19 | F189: 0 | G189: 0.19 | H189: =IF((ISNA((VLOOKUP(A189,'RunoffLook-up'!$G$5:$H$3442,2,FALSE))))=TRUE,0,VLOOKUP(A189,'RunoffLook-up'!$G$5:$H$3442,2,FALSE))*('Reuse Inputs_Summary'!$C$3/10) -> 0.0005416666667 | I189: ='Reuse Inputs_Summary'!$C$7 -> 0.075 | J189: 0 | K189: 0.0005416666667 | L189: 0.0005416666667 | M189: 0 | N189: =IF($C189<'Reuse Inputs_Summary'!$C$13,"NO",IF(($C189>'Reuse Inputs_Summary'!$C$14),"NO","YES")) -> YES | O189: YES | P189: =IF(N189="No",0,IF(AND(N189="Yes",O189="NO",L189>'Reuse Inputs_Summary'!$C$12),'Reuse Inputs_Summary'!$C$12,IF(AND(N189="Yes",O189="NO",L189<'Reuse Inputs_Summary'!$C$12,L189>0),L189,0))) -> 0 | Q189: =IF('Reuse Inputs_Summary'!$C$15=0,"NO","YES") -> YES | R189: 0 | S189: 0.0005416666667 | T189: =IF(N189="No",0,IF(AND(N189="Yes",O189="YES"),0,IF(AND(N189="Yes",O189="NO",ReuseWaterBalance!L189<'Reuse Inputs_Summary'!$C$12),('Reuse Inputs_Summary'!$C$12-ReuseWaterBalance!L189),0))) -> 0
A190: 1955-07-05 | B190: 1955 | C190: 7 | D190: 5 | E190: 0 | F190: 0 | G190: 0 | H190: =IF((ISNA((VLOOKUP(A190,'RunoffLook-up'!$G$5:$H$3442,2,FALSE))))=TRUE,0,VLOOKUP(A190,'RunoffLook-up'!$G$5:$H$3442,2,FALSE))*('Reuse Inputs_Summary'!$C$3/10) -> 0 | I190: ='Reuse Inputs_Summary'!$C$7 -> 0.075 | J190: 0.0005416666667 | K190: 0 | L190: 0.0005416666667 | M190: 0 | N190: =IF($C190<'Reuse Inputs_Summary'!$C$13,"NO",IF(($C190>'Reuse Inputs_Summary'!$C$14),"NO","YES")) -> YES | O190: NO | P190: =IF(N190="No",0,IF(AND(N190="Yes",O190="NO",L190>'Reuse Inputs_Summary'!$C$12),'Reuse Inputs_Summary'!$C$12,IF(AND(N190="Yes",O190="NO",L190<'Reuse Inputs_Summary'!$C$12,L190>0),L190,0))) -> 0.0005416666667 | Q190: =IF('Reuse Inputs_Summary'!$C$15=0,"NO","YES") -> YES | R190: 0 | S190: 0 | T190: =IF(N190="No",0,IF(AND(N190="Yes",O190="YES"),0,IF(AND(N190="Yes",O190="NO",ReuseWaterBalance!L190<'Reuse Inputs_Summary'!$C$12),('Reuse Inputs_Summary'!$C$12-ReuseWaterBalance!L190),0))) -> 0.005410714286
A191: 1955-07-06 | B191: 1955 | C191: 7 | D191: 6 | E191: 0 | F191: 0 | G191: 0 | H191: =IF((ISNA((VLOOKUP(A191,'RunoffLook-up'!$G$5:$H$3442,2,FALSE))))=TRUE,0,VLOOKUP(A191,'RunoffLook-up'!$G$5:$H$3442,2,FALSE))*('Reuse Inputs_Summary'!$C$3/10) -> 0 | I191: ='Reuse Inputs_Summary'!$C$7 -> 0.075 | J191: 0 | K191: 0 | L191: 0 | M191: 0 | N191: =IF($C191<'Reuse Inputs_Summary'!$C$13,"NO",IF(($C191>'Reuse Inputs_Summary'!$C$14),"NO","YES")) -> YES | O191: NO | P191: =IF(N191="No",0,IF(AND(N191="Yes",O191="NO",L191>'Reuse Inputs_Summary'!$C$12),'Reuse Inputs_Summary'!$C$12,IF(AND(N191="Yes",O191="NO",L191<'Reuse Inputs_Summary'!$C$12,L191>0),L191,0))) -> 0 | Q191: =IF('Reuse Inputs_Summary'!$C$15=0,"NO","YES") -> YES | R191: 0 | S191: 0 | T191: =IF(N191="No",0,IF(AND(N191="Yes",O191="YES"),0,IF(AND(N191="Yes",O191="NO",ReuseWaterBalance!L191<'Reuse Inputs_Summary'!$C$12),('Reuse Inputs_Summary'!$C$12-ReuseWaterBalance!L191),0))) -> 0.005952380952
A192: 1955-07-07 | B192: 1955 | C192: 7 | D192: 7 | E192: 0 | F192: 0 | G192: 0 | H192: =IF((ISNA((VLOOKUP(A192,'RunoffLook-up'!$G$5:$H$3442,2,FALSE))))=TRUE,0,VLOOKUP(A192,'RunoffLook-up'!$G$5:$H$3442,2,FALSE))*('Reuse Inputs_Summary'!$C$3/10) -> 0 | I192: ='Reuse Inputs_Summary'!$C$7 -> 0.075 | J192: 0 | K192: 0 | L192: 0 | M192: 0 | N192: =IF($C192<'Reuse Inputs_Summary'!$C$13,"NO",IF(($C192>'Reuse Inputs_Summary'!$C$14),"NO","YES")) -> YES | O192: NO | P192: =IF(N192="No",0,IF(AND(N192="Yes",O192="NO",L192>'Reuse Inputs_Summary'!$C$12),'Reuse Inputs_Summary'!$C$12,IF(AND(N192="Yes",O192="NO",L192<'Reuse Inputs_Summary'!$C$12,L192>0),L192,0))) -> 0 | Q192: =IF('Reuse Inputs_Summary'!$C$15=0,"NO","YES") -> YES | R192: 0 | S192: 0 | T192: =IF(N192="No",0,IF(AND(N192="Yes",O192="YES"),0,IF(AND(N192="Yes",O192="NO",ReuseWaterBalance!L192<'Reuse Inputs_Summary'!$C$12),('Reuse Inputs_Summary'!$C$12-ReuseWaterBalance!L192),0))) -> 0.005952380952
A193: 1955-07-08 | B193: 1955 | C193: 7 | D193: 8 | E193: 4.07 | F193: 0 | G193: 4.07 | H193: =IF((ISNA((VLOOKUP(A193,'RunoffLook-up'!$G$5:$H$3442,2,FALSE))))=TRUE,0,VLOOKUP(A193,'RunoffLook-up'!$G$5:$H$3442,2,FALSE))*('Reuse Inputs_Summary'!$C$3/10) -> 0.07008793184 | I193: ='Reuse Inputs_Summary'!$C$7 -> 0.075 | J193: 0 | K193: 0.07008793184 | L193: 0.07008793184 | M193: 0 | N193: =IF($C193<'Reuse Inputs_Summary'!$C$13,"NO",IF(($C193>'Reuse Inputs_Summary'!$C$14),"NO","YES")) -> YES | O193: YES | P193: =IF(N193="No",0,IF(AND(N193="Yes",O193="NO",L193>'Reuse Inputs_Summary'!$C$12),'Reuse Inputs_Summary'!$C$12,IF(AND(N193="Yes",O193="NO",L193<'Reuse Inputs_Summary'!$C$12,L193>0),L193,0))) -> 0 | Q193: =IF('Reuse Inputs_Summary'!$C$15=0,"NO","YES") -> YES | R193: 0 | S193: 0.07008793184 | T193: =IF(N193="No",0,IF(AND(N193="Yes",O193="YES"),0,IF(AND(N193="Yes",O193="NO",ReuseWaterBalance!L193<'Reuse Inputs_Summary'!$C$12),('Reuse Inputs_Summary'!$C$12-ReuseWaterBalance!L193),0))) -> 0
A194: 1955-07-09 | B194: 1955 | C194: 7 | D194: 9 | E194: 0 | F194: 0 | G194: 0 | H194: =IF((ISNA((VLOOKUP(A194,'RunoffLook-up'!$G$5:$H$3442,2,FALSE))))=TRUE,0,VLOOKUP(A194,'RunoffLook-up'!$G$5:$H$3442,2,FALSE))*('Reuse Inputs_Summary'!$C$3/10) -> 0 | I194: ='Reuse Inputs_Summary'!$C$7 -> 0.075 | J194: 0.07008793184 | K194: 0 | L194: 0.07008793184 | M194: 0 | N194: =IF($C194<'Reuse Inputs_Summary'!$C$13,"NO",IF(($C194>'Reuse Inputs_Summary'!$C$14),"NO","YES")) -> YES | O194: NO | P194: =IF(N194="No",0,IF(AND(N194="Yes",O194="NO",L194>'Reuse Inputs_Summary'!$C$12),'Reuse Inputs_Summary'!$C$12,IF(AND(N194="Yes",O194="NO",L194<'Reuse Inputs_Summary'!$C$12,L194>0),L194,0))) -> 0.005952380952 | Q194: =IF('Reuse Inputs_Summary'!$C$15=0,"NO","YES") -> YES | R194: 0 | S194: 0.06413555089 | T194: =IF(N194="No",0,IF(AND(N194="Yes",O194="YES"),0,IF(AND(N194="Yes",O194="NO",ReuseWaterBalance!L194<'Reuse Inputs_Summary'!$C$12),('Reuse Inputs_Summary'!$C$12-ReuseWaterBalance!L194),0))) -> 0
A195: 1955-07-10 | B195: 1955 | C195: 7 | D195: 10 | E195: 0 | F195: 0 | G195: 0 | H195: =IF((ISNA((VLOOKUP(A195,'RunoffLook-up'!$G$5:$H$3442,2,FALSE))))=TRUE,0,VLOOKUP(A195,'RunoffLook-up'!$G$5:$H$3442,2,FALSE))*('Reuse Inputs_Summary'!$C$3/10) -> 0 | I195: ='Reuse Inputs_Summary'!$C$7 -> 0.075 | J195: 0.06413555089 | K195: 0 | L195: 0.06413555089 | M195: 0 | N195: =IF($C195<'Reuse Inputs_Summary'!$C$13,"NO",IF(($C195>'Reuse Inputs_Summary'!$C$14),"NO","YES")) -> YES | O195: NO | P195: =IF(N195="No",0,IF(AND(N195="Yes",O195="NO",L195>'Reuse Inputs_Summary'!$C$12),'Reuse Inputs_Summary'!$C$12,IF(AND(N195="Yes",O195="NO",L195<'Reuse Inputs_Summary'!$C$12,L195>0),L195,0))) -> 0.005952380952 | Q195: =IF('Reuse Inputs_Summary'!$C$15=0,"NO","YES") -> YES | R195: 0 | S195: 0.05818316994 | T195: =IF(N195="No",0,IF(AND(N195="Yes",O195="YES"),0,IF(AND(N195="Yes",O195="NO",ReuseWaterBalance!L195<'Reuse Inputs_Summary'!$C$12),('Reuse Inputs_Summary'!$C$12-ReuseWaterBalance!L195),0))) -> 0
A196: 1955-07-11 | B196: 1955 | C196: 7 | D196: 11 | E196: 0 | F196: 0 | G196: 0 | H196: =IF((ISNA((VLOOKUP(A196,'RunoffLook-up'!$G$5:$H$3442,2,FALSE))))=TRUE,0,VLOOKUP(A196,'RunoffLook-up'!$G$5:$H$3442,2,FALSE))*('Reuse Inputs_Summary'!$C$3/10) -> 0 | I196: ='Reuse Inputs_Summary'!$C$7 -> 0.075 | J196: 0.05818316994 | K196: 0 | L196: 0.05818316994 | M196: 0 | N196: =IF($C196<'Reuse Inputs_Summary'!$C$13,"NO",IF(($C196>'Reuse Inputs_Summary'!$C$14),"NO","YES")) -> YES | O196: NO | P196: =IF(N196="No",0,IF(AND(N196="Yes",O196="NO",L196>'Reuse Inputs_Summary'!$C$12),'Reuse Inputs_Summary'!$C$12,IF(AND(N196="Yes",O196="NO",L196<'Reuse Inputs_Summary'!$C$12,L196>0),L196,0))) -> 0.005952380952 | Q196: =IF('Reuse Inputs_Summary'!$C$15=0,"NO","YES") -> YES | R196: 0 | S196: 0.05223078898 | T196: =IF(N196="No",0,IF(AND(N196="Yes",O196="YES"),0,IF(AND(N196="Yes",O196="NO",ReuseWaterBalance!L196<'Reuse Inputs_Summary'!$C$12),('Reuse Inputs_Summary'!$C$12-ReuseWaterBalance!L196),0))) -> 0
A197: 1955-07-12 | B197: =YEAR(A197) -> 1955 | C197: 7 | D197: 12 | E197: 0.96 | F197: 0 | G197: 0.96 | H197: =IF((ISNA((VLOOKUP(A197,'RunoffLook-up'!$G$5:$H$3442,2,FALSE))))=TRUE,0,VLOOKUP(A197,'RunoffLook-up'!$G$5:$H$3442,2,FALSE))*('Reuse Inputs_Summary'!$C$3/10) -> 0.02215344809 | I197: ='Reuse Inputs_Summary'!$C$7 -> 0.075 | J197: 0.05223078898 | K197: 0.02215344809 | L197: 0.07438423708 | M197: 0 | N197: =IF($C197<'Reuse Inputs_Summary'!$C$13,"NO",IF(($C197>'Reuse Inputs_Summary'!$C$14),"NO","YES")) -> YES | O197: YES | P197: =IF(N197="No",0,IF(AND(N197="Yes",O197="NO",L197>'Reuse Inputs_Summary'!$C$12),'Reuse Inputs_Summary'!$C$12,IF(AND(N197="Yes",O197="NO",L197<'Reuse Inputs_Summary'!$C$12,L197>0),L197,0))) -> 0 | Q197: =IF('Reuse Inputs_Summary'!$C$15=0,"NO","YES") -> YES | R197: 0 | S197: 0.07438423708 | T197: =IF(N197="No",0,IF(AND(N197="Yes",O197="YES"),0,IF(AND(N197="Yes",O197="NO",ReuseWaterBalance!L197<'Reuse Inputs_Summary'!$C$12),('Reuse Inputs_Summary'!$C$12-ReuseWaterBalance!L197),0))) -> 0
A198: 1955-07-13 | B198: 1955 | C198: =MONTH(A198) -> 7 | D198: =DAY(A198) -> 13 | E198: 0 | F198: 0 | G198: =SUM(E198:F198) -> 0 | H198: =IF((ISNA((VLOOKUP(A198,'RunoffLook-up'!$G$5:$H$3442,2,FALSE))))=TRUE,0,VLOOKUP(A198,'RunoffLook-up'!$G$5:$H$3442,2,FALSE))*('Reuse Inputs_Summary'!$C$3/10) -> 0 | I198: ='Reuse Inputs_Summary'!$C$7 -> 0.075 | J198: =S197 -> 0.07438423708 | K198: =IF(AND(N198="NO",Q198="YES"),0,IF($H198=0,0,IF($H198>(I198-J198),(I198-J198),IF($H198<(I198-J198),$H198)))) -> 0 | L198: =J198+K198 -> 0.07438423708 | M198: =IF(AND(N198="NO",Q198="YES"),H198,H198-K198) -> 0 | N198: =IF($C198<'Reuse Inputs_Summary'!$C$13,"NO",IF(($C198>'Reuse Inputs_Summary'!$C$14),"NO","YES")) -> YES | O198: =IF(G198>0,"YES","NO") -> NO | P198: =IF(N198="No",0,IF(AND(N198="Yes",O198="NO",L198>'Reuse Inputs_Summary'!$C$12),'Reuse Inputs_Summary'!$C$12,IF(AND(N198="Yes",O198="NO",L198<'Reuse Inputs_Summary'!$C$12,L198>0),L198,0))) -> 0.005952380952 | Q198: =IF('Reuse Inputs_Summary'!$C$15=0,"NO","YES") -> YES | R198: 0 | S198: =L198-P198-R198 -> 0.06843185612 | T198: =IF(N198="No",0,IF(AND(N198="Yes",O198="YES"),0,IF(AND(N198="Yes",O198="NO",ReuseWaterBalance!L198<'Reuse Inputs_Summary'!$C$12),('Reuse Inputs_Summary'!$C$12-ReuseWaterBalance!L198),0))) -> 0
A199: 1955-07-14 | B199: 1955 | C199: 7 | D199: 14 | E199: 0 | F199: 0 | G199: 0 | H199: =IF((ISNA((VLOOKUP(A199,'RunoffLook-up'!$G$5:$H$3442,2,FALSE))))=TRUE,0,VLOOKUP(A199,'RunoffLook-up'!$G$5:$H$3442,2,FALSE))*('Reuse Inputs_Summary'!$C$3/10) -> 0 | I199: ='Reuse Inputs_Summary'!$C$7 -> 0.075 | J199: 0.06843185612 | K199: 0 | L199: 0.06843185612 | M199: 0 | N199: =IF($C199<'Reuse Inputs_Summary'!$C$13,"NO",IF(($C199>'Reuse Inputs_Summary'!$C$14),"NO","YES")) -> YES | O199: NO | P199: =IF(N199="No",0,IF(AND(N199="Yes",O199="NO",L199>'Reuse Inputs_Summary'!$C$12),'Reuse Inputs_Summary'!$C$12,IF(AND(N199="Yes",O199="NO",L199<'Reuse Inputs_Summary'!$C$12,L199>0),L199,0))) -> 0.005952380952 | Q199: =IF('Reuse Inputs_Summary'!$C$15=0,"NO","YES") -> YES | R199: =IF(AND(N199="NO",Q199="YES"),S198,0) -> 0 | S199: 0.06247947517 | T199: =IF(N199="No",0,IF(AND(N199="Yes",O199="YES"),0,IF(AND(N199="Yes",O199="NO",ReuseWaterBalance!L199<'Reuse Inputs_Summary'!$C$12),('Reuse Inputs_Summary'!$C$12-ReuseWaterBalance!L199),0))) -> 0
A200: 1955-07-15 | B200: 1955 | C200: 7 | D200: 15 | E200: 0.01 | F200: 0 | G200: 0.01 | H200: =IF((ISNA((VLOOKUP(A200,'RunoffLook-up'!$G$5:$H$3442,2,FALSE))))=TRUE,0,VLOOKUP(A200,'RunoffLook-up'!$G$5:$H$3442,2,FALSE))*('Reuse Inputs_Summary'!$C$3/10) -> 5.273351632e-161 | I200: ='Reuse Inputs_Summary'!$C$7 -> 0.075 | J200: 0.06247947517 | K200: 5.273351632e-161 | L200: 0.06247947517 | M200: 0 | N200: =IF($C200<'Reuse Inputs_Summary'!$C$13,"NO",IF(($C200>'Reuse Inputs_Summary'!$C$14),"NO","YES")) -> YES | O200: YES | P200: =IF(N200="No",0,IF(AND(N200="Yes",O200="NO",L200>'Reuse Inputs_Summary'!$C$12),'Reuse Inputs_Summary'!$C$12,IF(AND(N200="Yes",O200="NO",L200<'Reuse Inputs_Summary'!$C$12,L200>0),L200,0))) -> 0 | Q200: =IF('Reuse Inputs_Summary'!$C$15=0,"NO","YES") -> YES | R200: 0 | S200: 0.06247947517 | T200: =IF(N200="No",0,IF(AND(N200="Yes",O200="YES"),0,IF(AND(N200="Yes",O200="NO",ReuseWaterBalance!L200<'Reuse Inputs_Summary'!$C$12),('Reuse Inputs_Summary'!$C$12-ReuseWaterBalance!L200),0))) -> 0
... 4299 more rows

Sheet RunoffLook-up (hidden)
E2: lower bound | F2: upper bound | G2: Date | H2: Interpolated Data
D3: Percent Impervious | E3: =INDEX(L4:R4,1,MATCH(B7,L4:Q4)) -> 0 | F3: =INDEX(L4:R4,1,MATCH(B7,L4:Q4)+1) -> 10 | K3: Soil Type | M3: A | T3: B | AA3: C | AH3: D
D4: Column | E4: =MATCH(E3,INDIRECT(CONCATENATE(ADDRESS(ROW(L4),B10),":",ADDRESS(ROW(L4),B10+7))))+B10-1 -> 26 | F4: =MATCH(F3,INDIRECT(CONCATENATE(ADDRESS(ROW(M4),B10),":",ADDRESS(ROW(M4),B10+7))))+B10-1 -> 27 | K4: Impervious Percentage | L4: 0 | M4: 10 | N4: 30 | O4: 50 | P4: 70 | Q4: 90 | R4: 100 | S4: 0 | T4: 10 | U4: 30 | V4: 50 | W4: 70 | X4: 90 | Y4: 100 | Z4: 0 | AA4: 10 | AB4: 30 | AC4: 50 | AD4: 70 | AE4: 90 | AF4: 100 | AG4: 0 | AH4: 10 | AI4: 30 | AJ4: 50 | AK4: 70 | AL4: 90 | AM4: 100
E5: =INDIRECT(ADDRESS(ROW(K5),$E$4)) -> 0 | F5: =INDIRECT(ADDRESS(ROW(K5),$F$4)) -> 0 | G5: =K5 -> 1955-02-18 | H5: =(F5-E5)*($B$7-$E$3)/($F$3-$E$3)+E5 -> 0 | K5: 1955-02-18 | L5: =IF(INTERCEPT(M5:R5,$M$4:$R$4)<0.000001,0,INTERCEPT(M5:R5,$M$4:$R$4)) -> 0 | M5: 0 | N5: 0 | O5: 0 | P5: 0 | Q5: 0 | R5: =((Q5-P5)/($Q$4-$P$4))*($R$4-$Q$4)+Q5 -> 0 | S5: =IF(INTERCEPT(T5:Y5,$M$4:$R$4)<0.000001,0,INTERCEPT(T5:Y5,$M$4:$R$4)) -> 0 | T5: 0 | U5: 0 | V5: 0 | W5: 0 | X5: 0 | Y5: =((X5-W5)/($X$4-$W$4))*($Y$4-$X$4)+X5 -> 0 | Z5: =IF(INTERCEPT(AA5:AF5,$M$4:$R$4)<0.000001,0,INTERCEPT(AA5:AF5,$M$4:$R$4)) -> 0 | AA5: 0 | AB5: 0 | AC5: 0 | AD5: 0 | AE5: 0 | AF5: =((AE5-AD5)/($AE$4-$AD$4))*($AF$4-$AE$4)+AE5 -> 0 | AG5: =IF(INTERCEPT(AH5:AM5,$M$4:$R$4)<0.000001,0,INTERCEPT(AH5:AM5,$M$4:$R$4)) -> 0 | AH5: 0 | AI5: 0 | AJ5: 0 | AK5: 0 | AL5: 0 | AM5: =((AL5-AK5)/($AL$4-$AK$4))*($AM$4-$AL$4)+AL5 -> 0
A6: Soil Type | B6: ='Reuse Inputs_Summary'!$C$5 -> C | E6: =INDIRECT(ADDRESS(ROW(K6),$E$4)) -> 1.000235216 | F6: =INDIRECT(ADDRESS(ROW(K6),$F$4)) -> 1.085211694 | G6: =K6 -> 1955-03-01 | H6: =(F6-E6)*($B$7-$E$3)/($F$3-$E$3)+E6 -> 1.042723455 | K6: 1955-03-01 | L6: =IF(INTERCEPT(M6:R6,$M$4:$R$4)<0.000001,0,INTERCEPT(M6:R6,$M$4:$R$4)) -> 0.1215176089 | M6: 0.294365848 | N6: 0.6400623262 | O6: 0.9857588044 | P6: 1.331455283 | Q6: 1.677151761 | R6: =((Q6-P6)/($Q$4-$P$4))*($R$4-$Q$4)+Q6 -> 1.85 | S6: =IF(INTERCEPT(T6:Y6,$M$4:$R$4)<0.000001,0,INTERCEPT(T6:Y6,$M$4:$R$4)) -> 0.7252333823 | T6: 0.837710044 | U6: 1.062663368 | V6: 1.287616691 | W6: 1.512570015 | X6: 1.737523338 | Y6: =((X6-W6)/($X$4-$W$4))*($Y$4-$X$4)+X6 -> 1.85 | Z6: =IF(INTERCEPT(AA6:AF6,$M$4:$R$4)<0.000001,0,INTERCEPT(AA6:AF6,$M$4:$R$4)) -> 1.000235216 | AA6: 1.085211694 | AB6: 1.255164651 | AC6: 1.425117608 | AD6: 1.595070565 | AE6: 1.765023522 | AF6: =((AE6-AD6)/($AE$4-$AD$4))*($AF$4-$AE$4)+AE6 -> 1.85 | AG6: =IF(INTERCEPT(AH6:AM6,$M$4:$R$4)<0.000001,0,INTERCEPT(AH6:AM6,$M$4:$R$4)) -> 1.200121047 | AH6: 1.265108943 | AI6: 1.395084733 | AJ6: 1.525060524 | AK6: 1.655036314 | AL6: 1.785012105 | AM6: =((AL6-AK6)/($AL$4-$AK$4))*($AM$4-$AL$4)+AL6 -> 1.85
A7: Percent Impervious | B7: ='Reuse Inputs_Summary'!$C$4 -> 5 | E7: 0.02764772283 | F7: 0.06154961722 | G7: 1955-03-09 | H7: =(F7-E7)*($B$7-$E$3)/($F$3-$E$3)+E7 -> 0.04459867003 | K7: 1955-03-09 | L7: 0 | M7: 0.03666666667 | N7: 0.11 | O7: 0.1833333333 | P7: 0.2566666667 | Q7: 0.33 | R7: 0.3666666667 | S7: 0.002326988902 | T7: 0.03876095668 | U7: 0.1116288922 | V7: 0.1844968278 | W7: 0.2573647633 | X7: 0.3302326989 | Y7: 0.3666666667 | Z7: 0.02764772283 | AA7: 0.06154961722 | AB7: 0.129353406 | AC7: 0.1971571948 | AD7: 0.2649609835 | AE7: 0.3327647723 | AF7: 0.3666666667 | AG7: 0.064172638 | AH7: 0.09442204087 | AI7: 0.1549208466 | AJ7: 0.2154196523 | AK7: 0.2759184581 | AL7: 0.3364172638 | AM7: 0.3666666667
A8: Watershed Area | B8: ='Reuse Inputs_Summary'!$C$3 -> 1 | E8: 0 | F8: 5.729751627e-194 | G8: 1955-03-14 | H8: 2.864875813e-194 | K8: 1955-03-14 | L8: 0 | M8: 1.686703697e-194 | N8: 5.060111092e-194 | O8: 8.433518487e-194 | P8: 1.180692588e-193 | Q8: 1.518033328e-193 | R8: 1.686703697e-193 | S8: 0 | T8: 2.721003522e-194 | U8: 5.864566511e-194 | V8: 9.0081295e-194 | W8: 1.215169249e-193 | X8: 1.529525548e-193 | Y8: 1.686703697e-193 | Z8: 0 | AA8: 5.729751627e-194 | AB8: 8.204703926e-194 | AC8: 1.067965623e-193 | AD8: 1.315460852e-193 | AE8: 1.562956082e-193 | AF8: 1.686703697e-193 | AG8: 0 | AH8: 8.240575e-194 | AI8: 1.015756655e-193 | AJ8: 1.20745581e-193 | AK8: 1.399154965e-193 | AL8: 1.59085412e-193 | AM8: 1.686703697e-193
E9: 0 | F9: 5.621432144e-240 | G9: 1955-03-15 | H9: 2.810716072e-240 | K9: 1955-03-15 | L9: 0 | M9: 1.654816997e-240 | N9: 4.964450992e-240 | O9: 8.274084987e-240 | P9: 1.158371898e-239 | Q9: 1.489335298e-239 | R9: 1.654816997e-239 | S9: 0 | T9: 2.669563649e-240 | U9: 5.753698388e-240 | V9: 8.837833127e-240 | W9: 1.192196787e-239 | X9: 1.50061026e-239 | Y9: 1.654816997e-239 | Z9: 0 | AA9: 5.621432144e-240 | AB9: 8.049596106e-240 | AC9: 1.047776007e-239 | AD9: 1.290592403e-239 | AE9: 1.533408799e-239 | AF9: 1.654816997e-239 | AG9: 0 | AH9: 8.084789047e-240 | AI9: 9.965540364e-240 | AJ9: 1.184629168e-239 | AK9: 1.3727043e-239 | AL9: 1.560779431e-239 | AM9: 1.654816997e-239
A10: Soil Type Table Column Start | B10: =IF(B6="A",COLUMN(L4),IF(B6="B",COLUMN(S4),IF(B6="C",COLUMN(Z4),IF(B6="D",COLUMN(AG4),"")))) -> 26 | E10: 0 | F10: 0.0025 | G10: 1955-03-19 | H10: 0.00125 | K10: 1955-03-19 | L10: 0 | M10: 0.0025 | N10: 0.0075 | O10: 0.0125 | P10: 0.0175 | Q10: 0.0225 | R10: 0.025 | S10: 0 | T10: 0.0025 | U10: 0.0075 | V10: 0.0125 | W10: 0.0175 | X10: 0.0225 | Y10: 0.025 | Z10: 0 | AA10: 0.0025 | AB10: 0.0075 | AC10: 0.0125 | AD10: 0.0175 | AE10: 0.0225 | AF10: 0.025 | AG10: 0 | AH10: 0.0025 | AI10: 0.0075 | AJ10: 0.0125 | AK10: 0.0175 | AL10: 0.0225 | AM10: 0.025
E11: 0.0002234521473 | F11: 0.0193677736 | G11: 1955-03-29 | H11: 0.009795612873 | K11: 1955-03-29 | L11: 0 | M11: 0.01916666667 | N11: 0.0575 | O11: 0.09583333333 | P11: 0.1341666667 | Q11: 0.1725 | R11: 0.1916666667 | S11: 0 | T11: 0.01916666667 | U11: 0.0575 | V11: 0.09583333333 | W11: 0.1341666667 | X11: 0.1725 | Y11: 0.1916666667 | Z11: 0.0002234521473 | AA11: 0.0193677736 | AB11: 0.0576564165 | AC11: 0.09594505941 | AD11: 0.1342337023 | AE11: 0.1725223452 | AF11: 0.1916666667 | AG11: 0.008126991714 | AH11: 0.02648095921 | AI11: 0.0631888942 | AJ11: 0.09989682919 | AK11: 0.1366047642 | AL11: 0.1733126992 | AM11: 0.1916666667
E12: 0 | F12: 0.02666666667 | G12: 1955-04-05 | H12: 0.01333333333 | K12: 1955-04-05 | L12: 0 | M12: 0.02666666667 | N12: 0.08 | O12: 0.1333333333 | P12: 0.1866666667 | Q12: 0.24 | R12: 0.2666666667 | S12: 0 | T12: 0.02666666667 | U12: 0.08 | V12: 0.1333333333 | W12: 0.1866666667 | X12: 0.24 | Y12: 0.2666666667 | Z12: 0 | AA12: 0.02666666667 | AB12: 0.08 | AC12: 0.1333333333 | AD12: 0.1866666667 | AE12: 0.24 | AF12: 0.2666666667 | AG12: 0 | AH12: 0.02666666667 | AI12: 0.08 | AJ12: 0.1333333333 | AK12: 0.1866666667 | AL12: 0.24 | AM12: 0.2666666667
E13: 0 | F13: 0.01916666667 | G13: 1955-04-19 | H13: 0.009583333333 | K13: 1955-04-19 | L13: 0 | M13: 0.01916666667 | N13: 0.0575 | O13: 0.09583333333 | P13: 0.1341666667 | Q13: 0.1725 | R13: 0.1916666667 | S13: 0 | T13: 0.01916666667 | U13: 0.0575 | V13: 0.09583333333 | W13: 0.1341666667 | X13: 0.1725 | Y13: 0.1916666667 | Z13: 0 | AA13: 0.01916666667 | AB13: 0.0575 | AC13: 0.09583333333 | AD13: 0.1341666667 | AE13: 0.1725 | AF13: 0.1916666667 | AG13: 0 | AH13: 0.01916666667 | AI13: 0.0575 | AJ13: 0.09583333333 | AK13: 0.1341666667 | AL13: 0.1725 | AM13: 0.1916666667
E14: 0 | F14: 1.749712299e-81 | G14: 1955-04-21 | H14: 8.748561493e-82 | K14: 1955-04-21 | L14: 0 | M14: 1.749712299e-81 | N14: 5.249136896e-81 | O14: 8.748561493e-81 | P14: 1.224798609e-80 | Q14: 1.574741069e-80 | R14: 1.749712299e-80 | S14: 0 | T14: 1.749712299e-81 | U14: 5.249136896e-81 | V14: 8.748561493e-81 | W14: 1.224798609e-80 | X14: 1.574741069e-80 | Y14: 1.749712299e-80 | Z14: 0 | AA14: 1.749712299e-81 | AB14: 5.249136896e-81 | AC14: 8.748561493e-81 | AD14: 1.224798609e-80 | AE14: 1.574741069e-80 | AF14: 1.749712299e-80 | AG14: 0 | AH14: 1.749712299e-81 | AI14: 5.249136896e-81 | AJ14: 8.748561493e-81 | AK14: 1.224798609e-80 | AL14: 1.574741069e-80 | AM14: 1.749712299e-80
E15: 0 | F15: 0.008333333333 | G15: 1955-04-25 | H15: 0.004166666667 | K15: 1955-04-25 | L15: 0 | M15: 0.008333333333 | N15: 0.025 | O15: 0.04166666667 | P15: 0.05833333333 | Q15: 0.075 | R15: 0.08333333333 | S15: 0 | T15: 0.008333333333 | U15: 0.025 | V15: 0.04166666667 | W15: 0.05833333333 | X15: 0.075 | Y15: 0.08333333333 | Z15: 0 | AA15: 0.008333333333 | AB15: 0.025 | AC15: 0.04166666667 | AD15: 0.05833333333 | AE15: 0.075 | AF15: 0.08333333333 | AG15: 0 | AH15: 0.008333333333 | AI15: 0.025 | AJ15: 0.04166666667 | AK15: 0.05833333333 | AL15: 0.075 | AM15: 0.08333333333
E16: 0 | F16: 3.402466765e-164 | G16: 1955-04-29 | H16: 1.701233383e-164 | K16: 1955-04-29 | L16: 0 | M16: 3.402466765e-164 | N16: 1.02074003e-163 | O16: 1.701233383e-163 | P16: 2.381726736e-163 | Q16: 3.062220089e-163 | R16: 3.402466765e-163 | S16: 0 | T16: 3.402466765e-164 | U16: 1.02074003e-163 | V16: 1.701233383e-163 | W16: 2.381726736e-163 | X16: 3.062220089e-163 | Y16: 3.402466765e-163 | Z16: 0 | AA16: 3.402466765e-164 | AB16: 1.02074003e-163 | AC16: 1.701233383e-163 | AD16: 2.381726736e-163 | AE16: 3.062220089e-163 | AF16: 3.402466765e-163 | AG16: 0 | AH16: 3.402466765e-164 | AI16: 1.02074003e-163 | AJ16: 1.701233383e-163 | AK16: 2.381726736e-163 | AL16: 3.062220089e-163 | AM16: 3.402466765e-163
E17: 0 | F17: 0 | G17: 1955-05-02 | H17: 0 | K17: 1955-05-02 | L17: 0 | M17: 0 | N17: 0 | O17: 0 | P17: 0 | Q17: 0 | R17: 0 | S17: 0 | T17: 0 | U17: 0 | V17: 0 | W17: 0 | X17: 0 | Y17: 0 | Z17: 0 | AA17: 0 | AB17: 0 | AC17: 0 | AD17: 0 | AE17: 0 | AF17: 0 | AG17: 0 | AH17: 0 | AI17: 0 | AJ17: 0 | AK17: 0 | AL17: 0 | AM17: 0
E18: 0 | F18: 0 | G18: 1955-05-04 | H18: 0 | K18: 1955-05-04 | L18: 0 | M18: 0 | N18: 0 | O18: 0 | P18: 0 | Q18: 0 | R18: 0 | S18: 0 | T18: 0 | U18: 0 | V18: 0 | W18: 0 | X18: 0 | Y18: 0 | Z18: 0 | AA18: 0 | AB18: 0 | AC18: 0 | AD18: 0 | AE18: 0 | AF18: 0 | AG18: 0 | AH18: 0 | AI18: 0 | AJ18: 0 | AK18: 0 | AL18: 0 | AM18: 0
E19: 0 | F19: 0 | G19: 1955-05-07 | H19: 0 | K19: 1955-05-07 | L19: 0 | M19: 0 | N19: 0 | O19: 0 | P19: 0 | Q19: 0 | R19: 0 | S19: 0 | T19: 0 | U19: 0 | V19: 0 | W19: 0 | X19: 0 | Y19: 0 | Z19: 0 | AA19: 0 | AB19: 0 | AC19: 0 | AD19: 0 | AE19: 0 | AF19: 0 | AG19: 0 | AH19: 0 | AI19: 0 | AJ19: 0 | AK19: 0 | AL19: 0 | AM19: 0
E20: 0 | F20: 0.01916666667 | G20: 1955-05-10 | H20: 0.009583333333 | K20: 1955-05-10 | L20: 0 | M20: 0.01916666667 | N20: 0.0575 | O20: 0.09583333333 | P20: 0.1341666667 | Q20: 0.1725 | R20: 0.1916666667 | S20: 0 | T20: 0.01916666667 | U20: 0.0575 | V20: 0.09583333333 | W20: 0.1341666667 | X20: 0.1725 | Y20: 0.1916666667 | Z20: 0 | AA20: 0.01916666667 | AB20: 0.0575 | AC20: 0.09583333333 | AD20: 0.1341666667 | AE20: 0.1725 | AF20: 0.1916666667 | AG20: 0 | AH20: 0.01916666667 | AI20: 0.0575 | AJ20: 0.09583333333 | AK20: 0.1341666667 | AL20: 0.1725 | AM20: 0.1916666667
E21: 0 | F21: 0.0125 | G21: 1955-05-27 | H21: 0.00625 | K21: 1955-05-27 | L21: 0 | M21: 0.0125 | N21: 0.0375 | O21: 0.0625 | P21: 0.0875 | Q21: 0.1125 | R21: 0.125 | S21: 0 | T21: 0.0125 | U21: 0.0375 | V21: 0.0625 | W21: 0.0875 | X21: 0.1125 | Y21: 0.125 | Z21: 0 | AA21: 0.0125 | AB21: 0.0375 | AC21: 0.0625 | AD21: 0.0875 | AE21: 0.1125 | AF21: 0.125 | AG21: 0 | AH21: 0.0125 | AI21: 0.0375 | AJ21: 0.0625 | AK21: 0.0875 | AL21: 0.1125 | AM21: 0.125
E22: 0 | F22: 0.005 | G22: 1955-05-29 | H22: 0.0025 | K22: 1955-05-29 | L22: 0 | M22: 0.005 | N22: 0.015 | O22: 0.025 | P22: 0.035 | Q22: 0.045 | R22: 0.05 | S22: 0 | T22: 0.005 | U22: 0.015 | V22: 0.025 | W22: 0.035 | X22: 0.045 | Y22: 0.05 | Z22: 0 | AA22: 0.005 | AB22: 0.015 | AC22: 0.025 | AD22: 0.035 | AE22: 0.045 | AF22: 0.05 | AG22: 0 | AH22: 0.005 | AI22: 0.015 | AJ22: 0.025 | AK22: 0.035 | AL22: 0.045 | AM22: 0.05
E23: 0 | F23: 0.02 | G23: 1955-06-02 | H23: 0.01 | K23: 1955-06-02 | L23: 0 | M23: 0.02 | N23: 0.06 | O23: 0.1 | P23: 0.14 | Q23: 0.18 | R23: 0.2 | S23: 0 | T23: 0.02 | U23: 0.06 | V23: 0.1 | W23: 0.14 | X23: 0.18 | Y23: 0.2 | Z23: 0 | AA23: 0.02 | AB23: 0.06 | AC23: 0.1 | AD23: 0.14 | AE23: 0.18 | AF23: 0.2 | AG23: 0 | AH23: 0.02 | AI23: 0.06 | AJ23: 0.1 | AK23: 0.14 | AL23: 0.18 | AM23: 0.2
E24: 0 | F24: 0.004166666667 | G24: 1955-06-03 | H24: 0.002083333333 | K24: 1955-06-03 | L24: 0 | M24: 0.004166666667 | N24: 0.0125 | O24: 0.02083333333 | P24: 0.02916666667 | Q24: 0.0375 | R24: 0.04166666667 | S24: 0 | T24: 0.004166666667 | U24: 0.0125 | V24: 0.02083333333 | W24: 0.02916666667 | X24: 0.0375 | Y24: 0.04166666667 | Z24: 0 | AA24: 0.004166666667 | AB24: 0.0125 | AC24: 0.02083333333 | AD24: 0.02916666667 | AE24: 0.0375 | AF24: 0.04166666667 | AG24: 0 | AH24: 0.004166666667 | AI24: 0.0125 | AJ24: 0.02083333333 | AK24: 0.02916666667 | AL24: 0.0375 | AM24: 0.04166666667
E25: 0 | F25: 0.03833333333 | G25: 1955-06-04 | H25: 0.01916666667 | K25: 1955-06-04 | L25: 0 | M25: 0.03833333333 | N25: 0.115 | O25: 0.1916666667 | P25: 0.2683333333 | Q25: 0.345 | R25: 0.3833333333 | S25: 0 | T25: 0.03833333333 | U25: 0.115 | V25: 0.1916666667 | W25: 0.2683333333 | X25: 0.345 | Y25: 0.3833333333 | Z25: 0 | AA25: 0.03833333333 | AB25: 0.115 | AC25: 0.1916666667 | AD25: 0.2683333333 | AE25: 0.345 | AF25: 0.3833333333 | AG25: 0 | AH25: 0.03833333333 | AI25: 0.115 | AJ25: 0.1916666667 | AK25: 0.2683333333 | AL25: 0.345 | AM25: 0.3833333333
E26: 0 | F26: 0.008333333333 | G26: 1955-06-06 | H26: 0.004166666667 | K26: 1955-06-06 | L26: 0 | M26: 0.008333333333 | N26: 0.025 | O26: 0.04166666667 | P26: 0.05833333333 | Q26: 0.075 | R26: 0.08333333333 | S26: 0 | T26: 0.008333333333 | U26: 0.025 | V26: 0.04166666667 | W26: 0.05833333333 | X26: 0.075 | Y26: 0.08333333333 | Z26: 0 | AA26: 0.008333333333 | AB26: 0.025 | AC26: 0.04166666667 | AD26: 0.05833333333 | AE26: 0.075 | AF26: 0.08333333333 | AG26: 0 | AH26: 0.008333333333 | AI26: 0.025 | AJ26: 0.04166666667 | AK26: 0.05833333333 | AL26: 0.075 | AM26: 0.08333333333
E27: 0 | F27: 8.883548989e-180 | G27: 1955-06-10 | H27: 4.441774494e-180 | K27: 1955-06-10 | L27: 0 | M27: 8.883548989e-180 | N27: 2.665064697e-179 | O27: 4.441774494e-179 | P27: 6.218484292e-179 | Q27: 7.99519409e-179 | R27: 8.883548989e-179 | S27: 0 | T27: 8.883548989e-180 | U27: 2.665064697e-179 | V27: 4.441774494e-179 | W27: 6.218484292e-179 | X27: 7.99519409e-179 | Y27: 8.883548989e-179 | Z27: 0 | AA27: 8.883548989e-180 | AB27: 2.665064697e-179 | AC27: 4.441774494e-179 | AD27: 6.218484292e-179 | AE27: 7.99519409e-179 | AF27: 8.883548989e-179 | AG27: 0 | AH27: 8.883548989e-180 | AI27: 2.665064697e-179 | AJ27: 4.441774494e-179 | AK27: 6.218484292e-179 | AL27: 7.99519409e-179 | AM27: 8.883548989e-179
E28: 0 | F28: 0.005833333333 | G28: 1955-06-11 | H28: 0.002916666667 | K28: 1955-06-11 | L28: 0 | M28: 0.005833333333 | N28: 0.0175 | O28: 0.02916666667 | P28: 0.04083333333 | Q28: 0.0525 | R28: 0.05833333333 | S28: 0 | T28: 0.005833333333 | U28: 0.0175 | V28: 0.02916666667 | W28: 0.04083333333 | X28: 0.0525 | Y28: 0.05833333333 | Z28: 0 | AA28: 0.005833333333 | AB28: 0.0175 | AC28: 0.02916666667 | AD28: 0.04083333333 | AE28: 0.0525 | AF28: 0.05833333333 | AG28: 0 | AH28: 0.005833333333 | AI28: 0.0175 | AJ28: 0.02916666667 | AK28: 0.04083333333 | AL28: 0.0525 | AM28: 0.05833333333
E29: 0 | F29: 0 | G29: 1955-06-19 | H29: 0 | K29: 1955-06-19 | L29: 0 | M29: 0 | N29: 0 | O29: 0 | P29: 0 | Q29: 0 | R29: 0 | S29: 0 | T29: 0 | U29: 0 | V29: 0 | W29: 0 | X29: 0 | Y29: 0 | Z29: 0 | AA29: 0 | AB29: 0 | AC29: 0 | AD29: 0 | AE29: 0 | AF29: 0 | AG29: 0 | AH29: 0 | AI29: 0 | AJ29: 0 | AK29: 0 | AL29: 0 | AM29: 0
E30: 0 | F30: 0.0025 | G30: 1955-06-20 | H30: 0.00125 | K30: 1955-06-20 | L30: 0 | M30: 0.0025 | N30: 0.0075 | O30: 0.0125 | P30: 0.0175 | Q30: 0.0225 | R30: 0.025 | S30: 0 | T30: 0.0025 | U30: 0.0075 | V30: 0.0125 | W30: 0.0175 | X30: 0.0225 | Y30: 0.025 | Z30: 0 | AA30: 0.0025 | AB30: 0.0075 | AC30: 0.0125 | AD30: 0.0175 | AE30: 0.0225 | AF30: 0.025 | AG30: 0 | AH30: 0.0025 | AI30: 0.0075 | AJ30: 0.0125 | AK30: 0.0175 | AL30: 0.0225 | AM30: 0.025
E31: 0 | F31: 0 | G31: 1955-06-29 | H31: 0 | K31: 1955-06-29 | L31: 0 | M31: 0 | N31: 0 | O31: 0 | P31: 0 | Q31: 0 | R31: 0 | S31: 0 | T31: 0 | U31: 0 | V31: 0 | W31: 0 | X31: 0 | Y31: 0 | Z31: 0 | AA31: 0 | AB31: 0 | AC31: 0 | AD31: 0 | AE31: 0 | AF31: 0 | AG31: 0 | AH31: 0 | AI31: 0 | AJ31: 0 | AK31: 0 | AL31: 0 | AM31: 0
E32: 0 | F32: 0 | G32: 1955-06-30 | H32: 0 | K32: 1955-06-30 | L32: 0 | M32: 0 | N32: 0 | O32: 0 | P32: 0 | Q32: 0 | R32: 0 | S32: 0 | T32: 0 | U32: 0 | V32: 0 | W32: 0 | X32: 0 | Y32: 0 | Z32: 0 | AA32: 0 | AB32: 0 | AC32: 0 | AD32: 0 | AE32: 0 | AF32: 0 | AG32: 0 | AH32: 0 | AI32: 0 | AJ32: 0 | AK32: 0 | AL32: 0 | AM32: 0
E33: 0 | F33: 0.03166666667 | G33: 1955-07-02 | H33: 0.01583333333 | K33: 1955-07-02 | L33: 0 | M33: 0.03166666667 | N33: 0.095 | O33: 0.1583333333 | P33: 0.2216666667 | Q33: 0.285 | R33: 0.3166666667 | S33: 0 | T33: 0.03166666667 | U33: 0.095 | V33: 0.1583333333 | W33: 0.2216666667 | X33: 0.285 | Y33: 0.3166666667 | Z33: 0 | AA33: 0.03166666667 | AB33: 0.095 | AC33: 0.1583333333 | AD33: 0.2216666667 | AE33: 0.285 | AF33: 0.3166666667 | AG33: 0 | AH33: 0.03166666667 | AI33: 0.095 | AJ33: 0.1583333333 | AK33: 0.2216666667 | AL33: 0.285 | AM33: 0.3166666667
E34: 0 | F34: 0.01083333333 | G34: 1955-07-04 | H34: 0.005416666667 | K34: 1955-07-04 | L34: 0 | M34: 0.01083333333 | N34: 0.0325 | O34: 0.05416666667 | P34: 0.07583333333 | Q34: 0.0975 | R34: 0.1083333333 | S34: 0 | T34: 0.01083333333 | U34: 0.0325 | V34: 0.05416666667 | W34: 0.07583333333 | X34: 0.0975 | Y34: 0.1083333333 | Z34: 0 | AA34: 0.01083333333 | AB34: 0.0325 | AC34: 0.05416666667 | AD34: 0.07583333333 | AE34: 0.0975 | AF34: 0.1083333333 | AG34: 0 | AH34: 0.01083333333 | AI34: 0.0325 | AJ34: 0.05416666667 | AK34: 0.07583333333 | AL34: 0.0975 | AM34: 0.1083333333
E35: 0.5618905106 | F35: 0.8398681262 | G35: 1955-07-08 | H35: 0.7008793184 | K35: 1955-07-08 | L35: 0 | M35: 0.3341666667 | N35: 1.0025 | O35: 1.670833333 | P35: 2.339166667 | Q35: 3.0075 | R35: 3.341666667 | S35: 0.2128087065 | T35: 0.5256945025 | U35: 1.151466095 | V35: 1.777237687 | W35: 2.403009279 | X35: 3.028780871 | Y35: 3.341666667 | Z35: 0.5618905106 | AA35: 0.8398681262 | AB35: 1.395823357 | AC35: 1.951778589 | AD35: 2.50773382 | AE35: 3.063689051 | AF35: 3.341666667 | AG35: 0.912377913 | AH35: 1.155306788 | AI35: 1.641164539 | AJ35: 2.12702229 | AK35: 2.612880041 | AL35: 3.098737791 | AM35: 3.341666667
E36: 0.1937205062 | F36: 0.2493484556 | G36: 1955-07-12 | H36: 0.2215344809 | K36: 1955-07-12 | L36: 0 | M36: 0.075 | N36: 0.225 | O36: 0.375 | P36: 0.525 | Q36: 0.675 | R36: 0.75 | S36: 0.09116216071 | T36: 0.1570459446 | U36: 0.2888135125 | V36: 0.4205810804 | W36: 0.5523486482 | X36: 0.6841162161 | Y36: 0.75 | Z36: 0.1937205062 | AA36: 0.2493484556 | AB36: 0.3606043544 | AC36: 0.4718602531 | AD36: 0.5831161519 | AE36: 0.6943720506 | AF36: 0.75 | AG36: 0.2886756993 | AH36: 0.3348081294 | AI36: 0.4270729895 | AJ36: 0.5193378497 | AK36: 0.6116027098 | AL36: 0.7038675699 | AM36: 0.75
E37: 0 | F37: 1.054670326e-159 | G37: 1955-07-15 | H37: 5.273351632e-160 | K37: 1955-07-15 | L37: 0 | M37: 1.74719869e-160 | N37: 5.24159607e-160 | O37: 8.735993451e-160 | P37: 1.223039083e-159 | Q37: 1.572478821e-159 | R37: 1.74719869e-159 | S37: 0 | T37: 7.468763945e-160 | U37: 9.69170238e-160 | V37: 1.191464081e-159 | W37: 1.413757925e-159 | X37: 1.636051768e-159 | Y37: 1.74719869e-159 | Z37: 0 | AA37: 1.054670326e-159 | AB37: 1.208565518e-159 | AC37: 1.36246071e-159 | AD37: 1.516355902e-159 | AE37: 1.670251094e-159 | AF37: 1.74719869e-159 | AG37: 0 | AH37: 1.268712711e-159 | AI37: 1.375042928e-159 | AJ37: 1.481373146e-159 | AK37: 1.587703364e-159 | AL37: 1.694033581e-159 | AM37: 1.74719869e-159
E38: 0 | F38: 0.01333333333 | G38: 1955-07-23 | H38: 0.006666666667 | K38: 1955-07-23 | L38: 0 | M38: 0.01333333333 | N38: 0.04 | O38: 0.06666666667 | P38: 0.09333333333 | Q38: 0.12 | R38: 0.1333333333 | S38: 0 | T38: 0.01333333333 | U38: 0.04 | V38: 0.06666666667 | W38: 0.09333333333 | X38: 0.12 | Y38: 0.1333333333 | Z38: 0 | AA38: 0.01333333333 | AB38: 0.04 | AC38: 0.06666666667 | AD38: 0.09333333333 | AE38: 0.12 | AF38: 0.1333333333 | AG38: 0 | AH38: 0.01333333333 | AI38: 0.04 | AJ38: 0.06666666667 | AK38: 0.09333333333 | AL38: 0.12 | AM38: 0.1333333333
E39: 0 | F39: 0.003333333333 | G39: 1955-07-28 | H39: 0.001666666667 | K39: 1955-07-28 | L39: 0 | M39: 0.003333333333 | N39: 0.01 | O39: 0.01666666667 | P39: 0.02333333333 | Q39: 0.03 | R39: 0.03333333333 | S39: 0 | T39: 0.003333333333 | U39: 0.01 | V39: 0.01666666667 | W39: 0.02333333333 | X39: 0.03 | Y39: 0.03333333333 | Z39: 0 | AA39: 0.003333333333 | AB39: 0.01 | AC39: 0.01666666667 | AD39: 0.02333333333 | AE39: 0.03 | AF39: 0.03333333333 | AG39: 0 | AH39: 0.003333333333 | AI39: 0.01 | AJ39: 0.01666666667 | AK39: 0.02333333333 | AL39: 0.03 | AM39: 0.03333333333
E40: 0 | F40: 0.08583333333 | G40: 1955-07-30 | H40: 0.04291666667 | K40: 1955-07-30 | L40: 0 | M40: 0.08583333333 | N40: 0.2575 | O40: 0.4291666667 | P40: 0.6008333333 | Q40: 0.7725 | R40: 0.8583333333 | S40: 0 | T40: 0.08583333333 | U40: 0.2575 | V40: 0.4291666667 | W40: 0.6008333333 | X40: 0.7725 | Y40: 0.8583333333 | Z40: 0 | AA40: 0.08583333333 | AB40: 0.2575 | AC40: 0.4291666667 | AD40: 0.6008333333 | AE40: 0.7725 | AF40: 0.8583333333 | AG40: 0 | AH40: 0.08583333333 | AI40: 0.2575 | AJ40: 0.4291666667 | AK40: 0.6008333333 | AL40: 0.7725 | AM40: 0.8583333333
E41: 0 | F41: 0.0225 | G41: 1955-08-04 | H41: 0.01125 | K41: 1955-08-04 | L41: 0 | M41: 0.0225 | N41: 0.0675 | O41: 0.1125 | P41: 0.1575 | Q41: 0.2025 | R41: 0.225 | S41: 0 | T41: 0.0225 | U41: 0.0675 | V41: 0.1125 | W41: 0.1575 | X41: 0.2025 | Y41: 0.225 | Z41: 0 | AA41: 0.0225 | AB41: 0.0675 | AC41: 0.1125 | AD41: 0.1575 | AE41: 0.2025 | AF41: 0.225 | AG41: 0 | AH41: 0.0225 | AI41: 0.0675 | AJ41: 0.1125 | AK41: 0.1575 | AL41: 0.2025 | AM41: 0.225
E42: 0 | F42: 1.942982578e-83 | G42: 1955-08-05 | H42: 9.71491289e-84 | K42: 1955-08-05 | L42: 0 | M42: 1.942982578e-83 | N42: 5.828947734e-83 | O42: 9.71491289e-83 | P42: 1.360087805e-82 | Q42: 1.74868432e-82 | R42: 1.942982578e-82 | S42: 0 | T42: 1.942982578e-83 | U42: 5.828947734e-83 | V42: 9.71491289e-83 | W42: 1.360087805e-82 | X42: 1.74868432e-82 | Y42: 1.942982578e-82 | Z42: 0 | AA42: 1.942982578e-83 | AB42: 5.828947734e-83 | AC42: 9.71491289e-83 | AD42: 1.360087805e-82 | AE42: 1.74868432e-82 | AF42: 1.942982578e-82 | AG42: 0 | AH42: 1.942982578e-83 | AI42: 5.828947734e-83 | AJ42: 9.71491289e-83 | AK42: 1.360087805e-82 | AL42: 1.74868432e-82 | AM42: 1.942982578e-82
E43: 0 | F43: 0.025 | G43: 1955-08-07 | H43: 0.0125 | K43: 1955-08-07 | L43: 0 | M43: 0.025 | N43: 0.075 | O43: 0.125 | P43: 0.175 | Q43: 0.225 | R43: 0.25 | S43: 0 | T43: 0.025 | U43: 0.075 | V43: 0.125 | W43: 0.175 | X43: 0.225 | Y43: 0.25 | Z43: 0 | AA43: 0.025 | AB43: 0.075 | AC43: 0.125 | AD43: 0.175 | AE43: 0.225 | AF43: 0.25 | AG43: 0 | AH43: 0.025 | AI43: 0.075 | AJ43: 0.125 | AK43: 0.175 | AL43: 0.225 | AM43: 0.25
E44: 0 | F44: 0.01 | G44: 1955-08-10 | H44: 0.005 | K44: 1955-08-10 | L44: 0 | M44: 0.01 | N44: 0.03 | O44: 0.05 | P44: 0.07 | Q44: 0.09 | R44: 0.1 | S44: 0 | T44: 0.01 | U44: 0.03 | V44: 0.05 | W44: 0.07 | X44: 0.09 | Y44: 0.1 | Z44: 0 | AA44: 0.01 | AB44: 0.03 | AC44: 0.05 | AD44: 0.07 | AE44: 0.09 | AF44: 0.1 | AG44: 0 | AH44: 0.01 | AI44: 0.03 | AJ44: 0.05 | AK44: 0.07 | AL44: 0.09 | AM44: 0.1
E45: 0 | F45: 0.0075 | G45: 1955-08-21 | H45: 0.00375 | K45: 1955-08-21 | L45: 0 | M45: 0.0075 | N45: 0.0225 | O45: 0.0375 | P45: 0.0525 | Q45: 0.0675 | R45: 0.075 | S45: 0 | T45: 0.0075 | U45: 0.0225 | V45: 0.0375 | W45: 0.0525 | X45: 0.0675 | Y45: 0.075 | Z45: 0 | AA45: 0.0075 | AB45: 0.0225 | AC45: 0.0375 | AD45: 0.0525 | AE45: 0.0675 | AF45: 0.075 | AG45: 0 | AH45: 0.0075 | AI45: 0.0225 | AJ45: 0.0375 | AK45: 0.0525 | AL45: 0.0675 | AM45: 0.075
E46: 0 | F46: 0.0275 | G46: 1955-08-25 | H46: 0.01375 | K46: 1955-08-25 | L46: 0 | M46: 0.0275 | N46: 0.0825 | O46: 0.1375 | P46: 0.1925 | Q46: 0.2475 | R46: 0.275 | S46: 0 | T46: 0.0275 | U46: 0.0825 | V46: 0.1375 | W46: 0.1925 | X46: 0.2475 | Y46: 0.275 | Z46: 0 | AA46: 0.0275 | AB46: 0.0825 | AC46: 0.1375 | AD46: 0.1925 | AE46: 0.2475 | AF46: 0.275 | AG46: 0 | AH46: 0.0275 | AI46: 0.0825 | AJ46: 0.1375 | AK46: 0.1925 | AL46: 0.2475 | AM46: 0.275
E47: 0 | F47: 0.0925 | G47: 1955-08-26 | H47: 0.04625 | K47: 1955-08-26 | L47: 0 | M47: 0.0925 | N47: 0.2775 | O47: 0.4625 | P47: 0.6475 | Q47: 0.8325 | R47: 0.925 | S47: 0 | T47: 0.0925 | U47: 0.2775 | V47: 0.4625 | W47: 0.6475 | X47: 0.8325 | Y47: 0.925 | Z47: 0 | AA47: 0.0925 | AB47: 0.2775 | AC47: 0.4625 | AD47: 0.6475 | AE47: 0.8325 | AF47: 0.925 | AG47: 0.008284754581 | AH47: 0.09995627912 | AI47: 0.2832993282 | AJ47: 0.4666423773 | AK47: 0.6499854264 | AL47: 0.8333284755 | AM47: 0.925
E48: 0 | F48: 1.882587394e-56 | G48: 1955-08-28 | H48: 9.412936968e-57 | K48: 1955-08-28 | L48: 0 | M48: 1.882587394e-56 | N48: 5.647762181e-56 | O48: 9.412936968e-56 | P48: 1.317811176e-55 | Q48: 1.694328654e-55 | R48: 1.882587394e-55 | S48: 0 | T48: 1.882587394e-56 | U48: 5.647762181e-56 | V48: 9.412936968e-56 | W48: 1.317811176e-55 | X48: 1.694328654e-55 | Y48: 1.882587394e-55 | Z48: 0 | AA48: 1.882587394e-56 | AB48: 5.647762181e-56 | AC48: 9.412936968e-56 | AD48: 1.317811176e-55 | AE48: 1.694328654e-55 | AF48: 1.882587394e-55 | AG48: 0 | AH48: 3.338750516e-56 | AI48: 6.780333498e-56 | AJ48: 1.022191648e-55 | AK48: 1.366349946e-55 | AL48: 1.710508245e-55 | AM48: 1.882587394e-55
E49: 0 | F49: 1.846997563e-102 | G49: 1955-08-29 | H49: 9.234987813e-103 | K49: 1955-08-29 | L49: 0 | M49: 1.846997563e-102 | N49: 5.540992688e-102 | O49: 9.234987813e-102 | P49: 1.292898294e-101 | Q49: 1.662297806e-101 | R49: 1.846997563e-101 | S49: 0 | T49: 1.846997563e-102 | U49: 5.540992688e-102 | V49: 9.234987813e-102 | W49: 1.292898294e-101 | X49: 1.662297806e-101 | Y49: 1.846997563e-101 | Z49: 0 | AA49: 1.846997563e-102 | AB49: 5.540992688e-102 | AC49: 9.234987813e-102 | AD49: 1.292898294e-101 | AE49: 1.662297806e-101 | AF49: 1.846997563e-101 | AG49: 0 | AH49: 3.275632295e-102 | AI49: 6.652153035e-102 | AJ49: 1.002867378e-101 | AK49: 1.340519452e-101 | AL49: 1.678171526e-101 | AM49: 1.846997563e-101
E50: 0 | F50: 0.005 | G50: 1955-08-30 | H50: 0.0025 | K50: 1955-08-30 | L50: 0 | M50: 0.005 | N50: 0.015 | O50: 0.025 | P50: 0.035 | Q50: 0.045 | R50: 0.05 | S50: 0 | T50: 0.005 | U50: 0.015 | V50: 0.025 | W50: 0.035 | X50: 0.045 | Y50: 0.05 | Z50: 0 | AA50: 0.005 | AB50: 0.015 | AC50: 0.025 | AD50: 0.035 | AE50: 0.045 | AF50: 0.05 | AG50: 0 | AH50: 0.005 | AI50: 0.015 | AJ50: 0.025 | AK50: 0.035 | AL50: 0.045 | AM50: 0.05
E51: 0 | F51: 0 | G51: 1955-09-13 | H51: 0 | K51: 1955-09-13 | L51: 0 | M51: 0 | N51: 0 | O51: 0 | P51: 0 | Q51: 0 | R51: 0 | S51: 0 | T51: 0 | U51: 0 | V51: 0 | W51: 0 | X51: 0 | Y51: 0 | Z51: 0 | AA51: 0 | AB51: 0 | AC51: 0 | AD51: 0 | AE51: 0 | AF51: 0 | AG51: 0 | AH51: 0 | AI51: 0 | AJ51: 0 | AK51: 0 | AL51: 0 | AM51: 0
E52: 0 | F52: 0.01583333333 | G52: 1955-09-18 | H52: 0.007916666667 | K52: 1955-09-18 | L52: 0 | M52: 0.01583333333 | N52: 0.0475 | O52: 0.07916666667 | P52: 0.1108333333 | Q52: 0.1425 | R52: 0.1583333333 | S52: 0 | T52: 0.01583333333 | U52: 0.0475 | V52: 0.07916666667 | W52: 0.1108333333 | X52: 0.1425 | Y52: 0.1583333333 | Z52: 0 | AA52: 0.01583333333 | AB52: 0.0475 | AC52: 0.07916666667 | AD52: 0.1108333333 | AE52: 0.1425 | AF52: 0.1583333333 | AG52: 0 | AH52: 0.01583333333 | AI52: 0.0475 | AJ52: 0.07916666667 | AK52: 0.1108333333 | AL52: 0.1425 | AM52: 0.1583333333
E53: 0 | F53: 0.02416666667 | G53: 1955-09-21 | H53: 0.01208333333 | K53: 1955-09-21 | L53: 0 | M53: 0.02416666667 | N53: 0.0725 | O53: 0.1208333333 | P53: 0.1691666667 | Q53: 0.2175 | R53: 0.2416666667 | S53: 0 | T53: 0.02416666667 | U53: 0.0725 | V53: 0.1208333333 | W53: 0.1691666667 | X53: 0.2175 | Y53: 0.2416666667 | Z53: 0 | AA53: 0.02416666667 | AB53: 0.0725 | AC53: 0.1208333333 | AD53: 0.1691666667 | AE53: 0.2175 | AF53: 0.2416666667 | AG53: 0 | AH53: 0.02416666667 | AI53: 0.0725 | AJ53: 0.1208333333 | AK53: 0.1691666667 | AL53: 0.2175 | AM53: 0.2416666667
E54: 0 | F54: 1.734118217e-82 | G54: 1955-09-23 | H54: 8.670591085e-83 | K54: 1955-09-23 | L54: 0 | M54: 1.734118217e-82 | N54: 5.202354651e-82 | O54: 8.670591085e-82 | P54: 1.213882752e-81 | Q54: 1.560706395e-81 | R54: 1.734118217e-81 | S54: 0 | T54: 1.734118217e-82 | U54: 5.202354651e-82 | V54: 8.670591085e-82 | W54: 1.213882752e-81 | X54: 1.560706395e-81 | Y54: 1.734118217e-81 | Z54: 0 | AA54: 1.734118217e-82 | AB54: 5.202354651e-82 | AC54: 8.670591085e-82 | AD54: 1.213882752e-81 | AE54: 1.560706395e-81 | AF54: 1.734118217e-81 | AG54: 0 | AH54: 1.734118217e-82 | AI54: 5.202354651e-82 | AJ54: 8.670591085e-82 | AK54: 1.213882752e-81 | AL54: 1.560706395e-81 | AM54: 1.734118217e-81
E55: 0 | F55: 0.01583333333 | G55: 1955-09-27 | H55: 0.007916666667 | K55: 1955-09-27 | L55: 0 | M55: 0.01583333333 | N55: 0.0475 | O55: 0.07916666667 | P55: 0.1108333333 | Q55: 0.1425 | R55: 0.1583333333 | S55: 0 | T55: 0.01583333333 | U55: 0.0475 | V55: 0.07916666667 | W55: 0.1108333333 | X55: 0.1425 | Y55: 0.1583333333 | Z55: 0 | AA55: 0.01583333333 | AB55: 0.0475 | AC55: 0.07916666667 | AD55: 0.1108333333 | AE55: 0.1425 | AF55: 0.1583333333 | AG55: 0 | AH55: 0.01583333333 | AI55: 0.0475 | AJ55: 0.07916666667 | AK55: 0.1108333333 | AL55: 0.1425 | AM55: 0.1583333333
E56: 0 | F56: 1.808011065e-204 | G56: 1955-10-02 | H56: 9.040055324e-205 | K56: 1955-10-02 | L56: 0 | M56: 1.808011065e-204 | N56: 5.424033194e-204 | O56: 9.040055324e-204 | P56: 1.265607745e-203 | Q56: 1.627209958e-203 | R56: 1.808011065e-203 | S56: 0 | T56: 1.808011065e-204 | U56: 5.424033194e-204 | V56: 9.040055324e-204 | W56: 1.265607745e-203 | X56: 1.627209958e-203 | Y56: 1.808011065e-203 | Z56: 0 | AA56: 1.808011065e-204 | AB56: 5.424033194e-204 | AC56: 9.040055324e-204 | AD56: 1.265607745e-203 | AE56: 1.627209958e-203 | AF56: 1.808011065e-203 | AG56: 0 | AH56: 1.808011065e-204 | AI56: 5.424033194e-204 | AJ56: 9.040055324e-204 | AK56: 1.265607745e-203 | AL56: 1.627209958e-203 | AM56: 1.808011065e-203
E57: 0 | F57: 0.02 | G57: 1955-10-04 | H57: 0.01 | K57: 1955-10-04 | L57: 0 | M57: 0.02 | N57: 0.06 | O57: 0.1 | P57: 0.14 | Q57: 0.18 | R57: 0.2 | S57: 0 | T57: 0.02 | U57: 0.06 | V57: 0.1 | W57: 0.14 | X57: 0.18 | Y57: 0.2 | Z57: 0 | AA57: 0.02 | AB57: 0.06 | AC57: 0.1 | AD57: 0.14 | AE57: 0.18 | AF57: 0.2 | AG57: 0 | AH57: 0.02 | AI57: 0.06 | AJ57: 0.1 | AK57: 0.14 | AL57: 0.18 | AM57: 0.2
E58: 0.001325708213 | F58: 0.1186931374 | G58: 1955-10-05 | H58: 0.0600094228 | K58: 1955-10-05 | L58: 0 | M58: 0.1175 | N58: 0.3525 | O58: 0.5875 | P58: 0.8225 | Q58: 1.0575 | R58: 1.175 | S58: 0 | T58: 0.1175 | U58: 0.3525 | V58: 0.5875 | W58: 0.8225 | X58: 1.0575 | Y58: 1.175 | Z58: 0.001325708213 | AA58: 0.1186931374 | AB58: 0.3534279957 | AC58: 0.5881628541 | AD58: 0.8228977125 | AE58: 1.057632571 | AF58: 1.175 | AG58: 0.03718998005 | AH58: 0.150970982 | AI58: 0.378532986 | AJ58: 0.60609499 | AK58: 0.833656994 | AL58: 1.061218998 | AM58: 1.175
E59: 0 | F59: 2.305741252e-38 | G59: 1955-10-06 | H59: 1.152870626e-38 | K59: 1955-10-06 | L59: 0 | M59: 1.825005012e-38 | N59: 5.475015037e-38 | O59: 9.125025062e-38 | P59: 1.277503509e-37 | Q59: 1.642504511e-37 | R59: 1.825005012e-37 | S59: 0 | T59: 1.825005012e-38 | U59: 5.475015037e-38 | V59: 9.125025062e-38 | W59: 1.277503509e-37 | X59: 1.642504511e-37 | Y59: 1.825005012e-37 | Z59: 0 | AA59: 2.305741252e-38 | AB59: 5.848921001e-38 | AC59: 9.392100751e-38 | AD59: 1.29352805e-37 | AE59: 1.647846025e-37 | AF59: 1.825005012e-37 | AG59: 0 | AH59: 4.663512482e-38 | AI59: 7.682743069e-38 | AJ59: 1.070197366e-37 | AK59: 1.372120424e-37 | AL59: 1.674043483e-37 | AM59: 1.825005012e-37
E60: 0 | F60: 0 | G60: 1955-10-14 | H60: 0 | K60: 1955-10-14 | L60: 0 | M60: 0 | N60: 0 | O60: 0 | P60: 0 | Q60: 0 | R60: 0 | S60: 0 | T60: 0 | U60: 0 | V60: 0 | W60: 0 | X60: 0 | Y60: 0 | Z60: 0 | AA60: 0 | AB60: 0 | AC60: 0 | AD60: 0 | AE60: 0 | AF60: 0 | AG60: 0 | AH60: 0 | AI60: 0 | AJ60: 0 | AK60: 0 | AL60: 0 | AM60: 0
E61: 0 | F61: 0 | G61: 1955-10-23 | H61: 0 | K61: 1955-10-23 | L61: 0 | M61: 0 | N61: 0 | O61: 0 | P61: 0 | Q61: 0 | R61: 0 | S61: 0 | T61: 0 | U61: 0 | V61: 0 | W61: 0 | X61: 0 | Y61: 0 | Z61: 0 | AA61: 0 | AB61: 0 | AC61: 0 | AD61: 0 | AE61: 0 | AF61: 0 | AG61: 0 | AH61: 0 | AI61: 0 | AJ61: 0 | AK61: 0 | AL61: 0 | AM61: 0
E62: 0 | F62: 0 | G62: 1955-10-24 | H62: 0 | K62: 1955-10-24 | L62: 0 | M62: 0 | N62: 0 | O62: 0 | P62: 0 | Q62: 0 | R62: 0 | S62: 0 | T62: 0 | U62: 0 | V62: 0 | W62: 0 | X62: 0 | Y62: 0 | Z62: 0 | AA62: 0 | AB62: 0 | AC62: 0 | AD62: 0 | AE62: 0 | AF62: 0 | AG62: 0 | AH62: 0 | AI62: 0 | AJ62: 0 | AK62: 0 | AL62: 0 | AM62: 0
E63: 0 | F63: 0 | G63: 1955-10-29 | H63: 0 | K63: 1955-10-29 | L63: 0 | M63: 0 | N63: 0 | O63: 0 | P63: 0 | Q63: 0 | R63: 0 | S63: 0 | T63: 0 | U63: 0 | V63: 0 | W63: 0 | X63: 0 | Y63: 0 | Z63: 0 | AA63: 0 | AB63: 0 | AC63: 0 | AD63: 0 | AE63: 0 | AF63: 0 | AG63: 0 | AH63: 0 | AI63: 0 | AJ63: 0 | AK63: 0 | AL63: 0 | AM63: 0
E64: 0 | F64: 0.02416666667 | G64: 1955-10-30 | H64: 0.01208333333 | K64: 1955-10-30 | L64: 0 | M64: 0.02416666667 | N64: 0.0725 | O64: 0.1208333333 | P64: 0.1691666667 | Q64: 0.2175 | R64: 0.2416666667 | S64: 0 | T64: 0.02416666667 | U64: 0.0725 | V64: 0.1208333333 | W64: 0.1691666667 | X64: 0.2175 | Y64: 0.2416666667 | Z64: 0 | AA64: 0.02416666667 | AB64: 0.0725 | AC64: 0.1208333333 | AD64: 0.1691666667 | AE64: 0.2175 | AF64: 0.2416666667 | AG64: 0 | AH64: 0.02416666667 | AI64: 0.0725 | AJ64: 0.1208333333 | AK64: 0.1691666667 | AL64: 0.2175 | AM64: 0.2416666667
E65: 0.01395523493 | F65: 0.04339304477 | G65: 1955-11-09 | H65: 0.02867413985 | K65: 1955-11-09 | L65: 0 | M65: 0.03083333333 | N65: 0.0925 | O65: 0.1541666667 | P65: 0.2158333333 | Q65: 0.2775 | R65: 0.3083333333 | S65: 2.616640305e-05 | T65: 0.0308568831 | U65: 0.09251831648 | V65: 0.1541797499 | W65: 0.2158411833 | X65: 0.2775026166 | Y65: 0.3083333333 | Z65: 0.01395523493 | AA65: 0.04339304477 | AB65: 0.1022686644 | AC65: 0.1611442841 | AD65: 0.2200199038 | AE65: 0.2788955235 | AF65: 0.3083333333 | AG65: 0.04081014615 | AH65: 0.06756246487 | AI65: 0.1210671023 | AJ65: 0.1745717397 | AK65: 0.2280763772 | AL65: 0.2815810146 | AM65: 0.3083333333
E66: 0 | F66: 0.001666666667 | G66: 1955-11-11 | H66: 0.0008333333333 | K66: 1955-11-11 | L66: 0 | M66: 0.001666666667 | N66: 0.005 | O66: 0.008333333333 | P66: 0.01166666667 | Q66: 0.015 | R66: 0.01666666667 | S66: 0 | T66: 0.001666666667 | U66: 0.005 | V66: 0.008333333333 | W66: 0.01166666667 | X66: 0.015 | Y66: 0.01666666667 | Z66: 0 | AA66: 0.001666666667 | AB66: 0.005 | AC66: 0.008333333333 | AD66: 0.01166666667 | AE66: 0.015 | AF66: 0.01666666667 | AG66: 0 | AH66: 0.001666666667 | AI66: 0.005 | AJ66: 0.008333333333 | AK66: 0.01166666667 | AL66: 0.015 | AM66: 0.01666666667
E67: 0 | F67: 0.005 | G67: 1955-11-20 | H67: 0.0025 | K67: 1955-11-20 | L67: 0 | M67: 0.005 | N67: 0.015 | O67: 0.025 | P67: 0.035 | Q67: 0.045 | R67: 0.05 | S67: 0 | T67: 0.005 | U67: 0.015 | V67: 0.025 | W67: 0.035 | X67: 0.045 | Y67: 0.05 | Z67: 0 | AA67: 0.005 | AB67: 0.015 | AC67: 0.025 | AD67: 0.035 | AE67: 0.045 | AF67: 0.05 | AG67: 0 | AH67: 0.005 | AI67: 0.015 | AJ67: 0.025 | AK67: 0.035 | AL67: 0.045 | AM67: 0.05
E68: 0 | F68: 1.214306433e-17 | G68: 1956-01-14 | H68: 6.071532166e-18 | K68: 1956-01-14 | L68: 0 | M68: 1.214306433e-17 | N68: 3.6429193e-17 | O68: 6.071532166e-17 | P68: 8.500145032e-17 | Q68: 1.09287579e-16 | R68: 1.214306433e-16 | S68: 0 | T68: 1.214306433e-17 | U68: 3.6429193e-17 | V68: 6.071532166e-17 | W68: 8.500145032e-17 | X68: 1.09287579e-16 | Y68: 1.214306433e-16 | Z68: 0 | AA68: 1.214306433e-17 | AB68: 3.6429193e-17 | AC68: 6.071532166e-17 | AD68: 8.500145032e-17 | AE68: 1.09287579e-16 | AF68: 1.214306433e-16 | AG68: 0 | AH68: 1.214306433e-17 | AI68: 3.6429193e-17 | AJ68: 6.071532166e-17 | AK68: 8.500145032e-17 | AL68: 1.09287579e-16 | AM68: 1.214306433e-16
E69: 0 | F69: 0.0025 | G69: 1956-03-01 | H69: 0.00125 | K69: 1956-03-01 | L69: 0 | M69: 0.0025 | N69: 0.0075 | O69: 0.0125 | P69: 0.0175 | Q69: 0.0225 | R69: 0.025 | S69: 0 | T69: 0.0025 | U69: 0.0075 | V69: 0.0125 | W69: 0.0175 | X69: 0.0225 | Y69: 0.025 | Z69: 0 | AA69: 0.0025 | AB69: 0.0075 | AC69: 0.0125 | AD69: 0.0175 | AE69: 0.0225 | AF69: 0.025 | AG69: 0 | AH69: 0.0025 | AI69: 0.0075 | AJ69: 0.0125 | AK69: 0.0175 | AL69: 0.0225 | AM69: 0.025
E70: =INDIRECT(ADDRESS(ROW(K70),$E$4)) -> 0 | F70: =INDIRECT(ADDRESS(ROW(K70),$F$4)) -> 6.391141979e-149 | G70: =K70 -> 1956-03-05 | H70: 3.19557099e-149 | K70: 1956-03-05 | L70: =IF(INTERCEPT(M70:R70,$M$4:$R$4)<0.000001,0,INTERCEPT(M70:R70,$M$4:$R$4)) -> 0 | M70: 6.391141979e-149 | N70: 1.917342594e-148 | O70: 3.19557099e-148 | P70: 4.473799386e-148 | Q70: 5.752027781e-148 | R70: =((Q70-P70)/($Q$4-$P$4))*($R$4-$Q$4)+Q70 -> 6.391141979e-148 | S70: =IF(INTERCEPT(T70:Y70,$M$4:$R$4)<0.000001,0,INTERCEPT(T70:Y70,$M$4:$R$4)) -> 0 | T70: 6.391141979e-149 | U70: 1.917342594e-148 | V70: 3.19557099e-148 | W70: 4.473799386e-148 | X70: 5.752027781e-148 | Y70: =((X70-W70)/($X$4-$W$4))*($Y$4-$X$4)+X70 -> 6.391141979e-148 | Z70: =IF(INTERCEPT(AA70:AF70,$M$4:$R$4)<0.000001,0,INTERCEPT(AA70:AF70,$M$4:$R$4)) -> 0 | AA70: 6.391141979e-149 | AB70: 1.917342594e-148 | AC70: 3.19557099e-148 | AD70: 4.473799386e-148 | AE70: 5.752027781e-148 | AF70: =((AE70-AD70)/($AE$4-$AD$4))*($AF$4-$AE$4)+AE70 -> 6.391141979e-148 | AG70: =IF(INTERCEPT(AH70:AM70,$M$4:$R$4)<0.000001,0,INTERCEPT(AH70:AM70,$M$4:$R$4)) -> 0 | AH70: 6.391141979e-149 | AI70: 1.917342594e-148 | AJ70: 3.19557099e-148 | AK70: 4.473799386e-148 | AL70: 5.752027781e-148 | AM70: =((AL70-AK70)/($AL$4-$AK$4))*($AM$4-$AL$4)+AL70 -> 6.391141979e-148
E71: 0 | F71: 0.01 | G71: 1956-03-20 | H71: =(F71-E71)*($B$7-$E$3)/($F$3-$E$3)+E71 -> 0.005 | K71: 1956-03-20 | L71: 0 | M71: 0.01 | N71: 0.03 | O71: 0.05 | P71: 0.07 | Q71: 0.09 | R71: 0.1 | S71: 0 | T71: 0.01 | U71: 0.03 | V71: 0.05 | W71: 0.07 | X71: 0.09 | Y71: 0.1 | Z71: 0 | AA71: 0.01 | AB71: 0.03 | AC71: 0.05 | AD71: 0.07 | AE71: 0.09 | AF71: 0.1 | AG71: 0 | AH71: 0.01 | AI71: 0.03 | AJ71: 0.05 | AK71: 0.07 | AL71: 0.09 | AM71: 0.1
E72: 0.3369311727 | F72: 0.4015713887 | G72: 1956-03-25 | H72: 0.3692512807 | K72: 1956-03-25 | L72: 0 | M72: 0.09833333333 | N72: 0.295 | O72: 0.4916666667 | P72: 0.6883333333 | Q72: 0.885 | R72: 0.9833333333 | S72: 0.1905499857 | T72: 0.2698283205 | U72: 0.42838499 | V72: 0.5869416595 | W72: 0.745498329 | X72: 0.9040549986 | Y72: 0.9833333333 | Z72: 0.3369311727 | AA72: 0.4015713887 | AB72: 0.5308518209 | AC72: 0.660132253 | AD72: 0.7894126851 | AE72: 0.9186931173 | AF72: 0.9833333333 | AG72: 0.4611727622 | AH72: 0.5133888193 | AI72: 0.6178209335 | AJ72: 0.7222530478 | AK72: 0.826685162 | AL72: 0.9311172762 | AM72: 0.9833333333
E73: 1.20583971 | F73: 1.294422406 | G73: 1956-04-01 | H73: 1.250131058 | K73: 1956-04-01 | L73: 0.1919103023 | M73: 0.3818859387 | N73: 0.7618372116 | O73: 1.141788484 | P73: 1.521739757 | Q73: 1.90169103 | R73: 2.091666667 | S73: 0.9032472131 | T73: 1.022089158 | U73: 1.259773049 | V73: 1.49745694 | W73: 1.735140831 | X73: 1.972824721 | Y73: 2.091666667 | Z73: 1.20583971 | AA73: 1.294422406 | AB73: 1.471587797 | AC73: 1.648753188 | AD73: 1.82591858 | AE73: 2.003083971 | AF73: 2.091666667 | AG73: 1.420415163 | AH73: 1.487540314 | AI73: 1.621790614 | AJ73: 1.756040915 | AK73: 1.890291216 | AL73: 2.024541516 | AM73: 2.091666667
E74: 0 | F74: 0.003333333333 | G74: 1956-04-08 | H74: 0.001666666667 | K74: 1956-04-08 | L74: 0 | M74: 0.003333333333 | N74: 0.01 | O74: 0.01666666667 | P74: 0.02333333333 | Q74: 0.03 | R74: 0.03333333333 | S74: 0 | T74: 0.003333333333 | U74: 0.01 | V74: 0.01666666667 | W74: 0.02333333333 | X74: 0.03 | Y74: 0.03333333333 | Z74: 0 | AA74: 0.003333333333 | AB74: 0.01 | AC74: 0.01666666667 | AD74: 0.02333333333 | AE74: 0.03 | AF74: 0.03333333333 | AG74: 0 | AH74: 0.003333333333 | AI74: 0.01 | AJ74: 0.01666666667 | AK74: 0.02333333333 | AL74: 0.03 | AM74: 0.03333333333
E75: 0 | F75: 0.001666666667 | G75: 1956-04-26 | H75: 0.0008333333333 | K75: 1956-04-26 | L75: 0 | M75: 0.001666666667 | N75: 0.005 | O75: 0.008333333333 | P75: 0.01166666667 | Q75: 0.015 | R75: 0.01666666667 | S75: 0 | T75: 0.001666666667 | U75: 0.005 | V75: 0.008333333333 | W75: 0.01166666667 | X75: 0.015 | Y75: 0.01666666667 | Z75: 0 | AA75: 0.001666666667 | AB75: 0.005 | AC75: 0.008333333333 | AD75: 0.01166666667 | AE75: 0.015 | AF75: 0.01666666667 | AG75: 0 | AH75: 0.001666666667 | AI75: 0.005 | AJ75: 0.008333333333 | AK75: 0.01166666667 | AL75: 0.015 | AM75: 0.01666666667
E76: 0 | F76: 0.01583333333 | G76: 1956-04-27 | H76: 0.007916666667 | K76: 1956-04-27 | L76: 0 | M76: 0.01583333333 | N76: 0.0475 | O76: 0.07916666667 | P76: 0.1108333333 | Q76: 0.1425 | R76: 0.1583333333 | S76: 0 | T76: 0.01583333333 | U76: 0.0475 | V76: 0.07916666667 | W76: 0.1108333333 | X76: 0.1425 | Y76: 0.1583333333 | Z76: 0 | AA76: 0.01583333333 | AB76: 0.0475 | AC76: 0.07916666667 | AD76: 0.1108333333 | AE76: 0.1425 | AF76: 0.1583333333 | AG76: 0 | AH76: 0.01583333333 | AI76: 0.0475 | AJ76: 0.07916666667 | AK76: 0.1108333333 | AL76: 0.1425 | AM76: 0.1583333333
E77: 0 | F77: 5.226615767e-96 | G77: 1956-04-30 | H77: 2.613307883e-96 | K77: 1956-04-30 | L77: 0 | M77: 5.226615767e-96 | N77: 1.56798473e-95 | O77: 2.613307883e-95 | P77: 3.658631037e-95 | Q77: 4.70395419e-95 | R77: 5.226615767e-95 | S77: 0 | T77: 5.226615767e-96 | U77: 1.56798473e-95 | V77: 2.613307883e-95 | W77: 3.658631037e-95 | X77: 4.70395419e-95 | Y77: 5.226615767e-95 | Z77: 0 | AA77: 5.226615767e-96 | AB77: 1.56798473e-95 | AC77: 2.613307883e-95 | AD77: 3.658631037e-95 | AE77: 4.70395419e-95 | AF77: 5.226615767e-95 | AG77: 0 | AH77: 5.226615767e-96 | AI77: 1.56798473e-95 | AJ77: 2.613307883e-95 | AK77: 3.658631037e-95 | AL77: 4.70395419e-95 | AM77: 5.226615767e-95
E78: 0 | F78: 0.0225 | G78: 1956-05-02 | H78: 0.01125 | K78: 1956-05-02 | L78: 0 | M78: 0.0225 | N78: 0.0675 | O78: 0.1125 | P78: 0.1575 | Q78: 0.2025 | R78: 0.225 | S78: 0 | T78: 0.0225 | U78: 0.0675 | V78: 0.1125 | W78: 0.1575 | X78: 0.2025 | Y78: 0.225 | Z78: 0 | AA78: 0.0225 | AB78: 0.0675 | AC78: 0.1125 | AD78: 0.1575 | AE78: 0.2025 | AF78: 0.225 | AG78: 0 | AH78: 0.0225 | AI78: 0.0675 | AJ78: 0.1125 | AK78: 0.1575 | AL78: 0.2025 | AM78: 0.225
E79: 0 | F79: 0.0008333333333 | G79: 1956-05-04 | H79: 0.0004166666667 | K79: 1956-05-04 | L79: 0 | M79: 0.0008333333333 | N79: 0.0025 | O79: 0.004166666667 | P79: 0.005833333333 | Q79: 0.0075 | R79: 0.008333333333 | S79: 0 | T79: 0.0008333333333 | U79: 0.0025 | V79: 0.004166666667 | W79: 0.005833333333 | X79: 0.0075 | Y79: 0.008333333333 | Z79: 0 | AA79: 0.0008333333333 | AB79: 0.0025 | AC79: 0.004166666667 | AD79: 0.005833333333 | AE79: 0.0075 | AF79: 0.008333333333 | AG79: 0 | AH79: 0.0008333333333 | AI79: 0.0025 | AJ79: 0.004166666667 | AK79: 0.005833333333 | AL79: 0.0075 | AM79: 0.008333333333
E80: 0 | F80: 0.035 | G80: 1956-05-06 | H80: 0.0175 | K80: 1956-05-06 | L80: 0 | M80: 0.035 | N80: 0.105 | O80: 0.175 | P80: 0.245 | Q80: 0.315 | R80: 0.35 | S80: 0 | T80: 0.035 | U80: 0.105 | V80: 0.175 | W80: 0.245 | X80: 0.315 | Y80: 0.35 | Z80: 0 | AA80: 0.035 | AB80: 0.105 | AC80: 0.175 | AD80: 0.245 | AE80: 0.315 | AF80: 0.35 | AG80: 0 | AH80: 0.035 | AI80: 0.105 | AJ80: 0.175 | AK80: 0.245 | AL80: 0.315 | AM80: 0.35
E81: 0 | F81: 1.532933219e-159 | G81: 1956-05-10 | H81: 7.664666096e-160 | K81: 1956-05-10 | L81: 0 | M81: 1.532933219e-159 | N81: 4.598799658e-159 | O81: 7.664666096e-159 | P81: 1.073053253e-158 | Q81: 1.379639897e-158 | R81: 1.532933219e-158 | S81: 0 | T81: 1.532933219e-159 | U81: 4.598799658e-159 | V81: 7.664666096e-159 | W81: 1.073053253e-158 | X81: 1.379639897e-158 | Y81: 1.532933219e-158 | Z81: 0 | AA81: 1.532933219e-159 | AB81: 4.598799658e-159 | AC81: 7.664666096e-159 | AD81: 1.073053253e-158 | AE81: 1.379639897e-158 | AF81: 1.532933219e-158 | AG81: 0 | AH81: 1.532933219e-159 | AI81: 4.598799658e-159 | AJ81: 7.664666096e-159 | AK81: 1.073053253e-158 | AL81: 1.379639897e-158 | AM81: 1.532933219e-158
E82: 0 | F82: 0.03416666667 | G82: 1956-05-11 | H82: 0.01708333333 | K82: 1956-05-11 | L82: 0 | M82: 0.03416666667 | N82: 0.1025 | O82: 0.1708333333 | P82: 0.2391666667 | Q82: 0.3075 | R82: 0.3416666667 | S82: 0 | T82: 0.03416666667 | U82: 0.1025 | V82: 0.1708333333 | W82: 0.2391666667 | X82: 0.3075 | Y82: 0.3416666667 | Z82: 0 | AA82: 0.03416666667 | AB82: 0.1025 | AC82: 0.1708333333 | AD82: 0.2391666667 | AE82: 0.3075 | AF82: 0.3416666667 | AG82: 0 | AH82: 0.03416666667 | AI82: 0.1025 | AJ82: 0.1708333333 | AK82: 0.2391666667 | AL82: 0.3075 | AM82: 0.3416666667
E83: 0 | F83: 0.0075 | G83: 1956-05-14 | H83: 0.00375 | K83: 1956-05-14 | L83: 0 | M83: 0.0075 | N83: 0.0225 | O83: 0.0375 | P83: 0.0525 | Q83: 0.0675 | R83: 0.075 | S83: 0 | T83: 0.0075 | U83: 0.0225 | V83: 0.0375 | W83: 0.0525 | X83: 0.0675 | Y83: 0.075 | Z83: 0 | AA83: 0.0075 | AB83: 0.0225 | AC83: 0.0375 | AD83: 0.0525 | AE83: 0.0675 | AF83: 0.075 | AG83: 0 | AH83: 0.0075 | AI83: 0.0225 | AJ83: 0.0375 | AK83: 0.0525 | AL83: 0.0675 | AM83: 0.075
E84: 0 | F84: 0.0008333333333 | G84: 1956-05-17 | H84: 0.0004166666667 | K84: 1956-05-17 | L84: 0 | M84: 0.0008333333333 | N84: 0.0025 | O84: 0.004166666667 | P84: 0.005833333333 | Q84: 0.0075 | R84: 0.008333333333 | S84: 0 | T84: 0.0008333333333 | U84: 0.0025 | V84: 0.004166666667 | W84: 0.005833333333 | X84: 0.0075 | Y84: 0.008333333333 | Z84: 0 | AA84: 0.0008333333333 | AB84: 0.0025 | AC84: 0.004166666667 | AD84: 0.005833333333 | AE84: 0.0075 | AF84: 0.008333333333 | AG84: 0 | AH84: 0.0008333333333 | AI84: 0.0025 | AJ84: 0.004166666667 | AK84: 0.005833333333 | AL84: 0.0075 | AM84: 0.008333333333
E85: 0 | F85: 0.01666666667 | G85: 1956-05-25 | H85: 0.008333333333 | K85: 1956-05-25 | L85: 0 | M85: 0.01666666667 | N85: 0.05 | O85: 0.08333333333 | P85: 0.1166666667 | Q85: 0.15 | R85: 0.1666666667 | S85: 0 | T85: 0.01666666667 | U85: 0.05 | V85: 0.08333333333 | W85: 0.1166666667 | X85: 0.15 | Y85: 0.1666666667 | Z85: 0 | AA85: 0.01666666667 | AB85: 0.05 | AC85: 0.08333333333 | AD85: 0.1166666667 | AE85: 0.15 | AF85: 0.1666666667 | AG85: 0 | AH85: 0.01666666667 | AI85: 0.05 | AJ85: 0.08333333333 | AK85: 0.1166666667 | AL85: 0.15 | AM85: 0.1666666667
E86: 0 | F86: 0.0025 | G86: 1956-05-29 | H86: 0.00125 | K86: 1956-05-29 | L86: 0 | M86: 0.0025 | N86: 0.0075 | O86: 0.0125 | P86: 0.0175 | Q86: 0.0225 | R86: 0.025 | S86: 0 | T86: 0.0025 | U86: 0.0075 | V86: 0.0125 | W86: 0.0175 | X86: 0.0225 | Y86: 0.025 | Z86: 0 | AA86: 0.0025 | AB86: 0.0075 | AC86: 0.0125 | AD86: 0.0175 | AE86: 0.0225 | AF86: 0.025 | AG86: 0 | AH86: 0.0025 | AI86: 0.0075 | AJ86: 0.0125 | AK86: 0.0175 | AL86: 0.0225 | AM86: 0.025
E87: 0 | F87: 0.02916666667 | G87: 1956-05-31 | H87: 0.01458333333 | K87: 1956-05-31 | L87: 0 | M87: 0.02916666667 | N87: 0.0875 | O87: 0.1458333333 | P87: 0.2041666667 | Q87: 0.2625 | R87: 0.2916666667 | S87: 0 | T87: 0.02916666667 | U87: 0.0875 | V87: 0.1458333333 | W87: 0.2041666667 | X87: 0.2625 | Y87: 0.2916666667 | Z87: 0 | AA87: 0.02916666667 | AB87: 0.0875 | AC87: 0.1458333333 | AD87: 0.2041666667 | AE87: 0.2625 | AF87: 0.2916666667 | AG87: 0 | AH87: 0.02916666667 | AI87: 0.0875 | AJ87: 0.1458333333 | AK87: 0.2041666667 | AL87: 0.2625 | AM87: 0.2916666667
E88: 0 | F88: 4.195481479e-48 | G88: 1956-06-01 | H88: 2.09774074e-48 | K88: 1956-06-01 | L88: 0 | M88: 4.195481479e-48 | N88: 1.258644444e-47 | O88: 2.09774074e-47 | P88: 2.936837035e-47 | Q88: 3.775933331e-47 | R88: 4.195481479e-47 | S88: 0 | T88: 4.195481479e-48 | U88: 1.258644444e-47 | V88: 2.09774074e-47 | W88: 2.936837035e-47 | X88: 3.775933331e-47 | Y88: 4.195481479e-47 | Z88: 0 | AA88: 4.195481479e-48 | AB88: 1.258644444e-47 | AC88: 2.09774074e-47 | AD88: 2.936837035e-47 | AE88: 3.775933331e-47 | AF88: 4.195481479e-47 | AG88: 0 | AH88: 4.195481479e-48 | AI88: 1.258644444e-47 | AJ88: 2.09774074e-47 | AK88: 2.936837035e-47 | AL88: 3.775933331e-47 | AM88: 4.195481479e-47
E89: 0 | F89: 0.009166666667 | G89: 1956-06-08 | H89: 0.004583333333 | K89: 1956-06-08 | L89: 0 | M89: 0.009166666667 | N89: 0.0275 | O89: 0.04583333333 | P89: 0.06416666667 | Q89: 0.0825 | R89: 0.09166666667 | S89: 0 | T89: 0.009166666667 | U89: 0.0275 | V89: 0.04583333333 | W89: 0.06416666667 | X89: 0.0825 | Y89: 0.09166666667 | Z89: 0 | AA89: 0.009166666667 | AB89: 0.0275 | AC89: 0.04583333333 | AD89: 0.06416666667 | AE89: 0.0825 | AF89: 0.09166666667 | AG89: 0 | AH89: 0.009166666667 | AI89: 0.0275 | AJ89: 0.04583333333 | AK89: 0.06416666667 | AL89: 0.0825 | AM89: 0.09166666667
E90: 0 | F90: 0.08916666667 | G90: 1956-06-15 | H90: 0.04458333333 | K90: 1956-06-15 | L90: 0 | M90: 0.08916666667 | N90: 0.2675 | O90: 0.4458333333 | P90: 0.6241666667 | Q90: 0.8025 | R90: 0.8916666667 | S90: 0 | T90: 0.08916666667 | U90: 0.2675 | V90: 0.4458333333 | W90: 0.6241666667 | X90: 0.8025 | Y90: 0.8916666667 | Z90: 0 | AA90: 0.08916666667 | AB90: 0.2675 | AC90: 0.4458333333 | AD90: 0.6241666667 | AE90: 0.8025 | AF90: 0.8916666667 | AG90: 0 | AH90: 0.08916666667 | AI90: 0.2675 | AJ90: 0.4458333333 | AK90: 0.6241666667 | AL90: 0.8025 | AM90: 0.8916666667
E91: 0 | F91: 0.065 | G91: 1956-06-17 | H91: 0.0325 | K91: 1956-06-17 | L91: 0 | M91: 0.065 | N91: 0.195 | O91: 0.325 | P91: 0.455 | Q91: 0.585 | R91: 0.65 | S91: 0 | T91: 0.065 | U91: 0.195 | V91: 0.325 | W91: 0.455 | X91: 0.585 | Y91: 0.65 | Z91: 0 | AA91: 0.065 | AB91: 0.195 | AC91: 0.325 | AD91: 0.455 | AE91: 0.585 | AF91: 0.65 | AG91: 0.01400125251 | AH91: 0.07760112726 | AI91: 0.2048008768 | AJ91: 0.3320006263 | AK91: 0.4592003758 | AL91: 0.5864001253 | AM91: 0.65
E92: 0.3650814939 | F92: 0.4444066778 | G92: 1956-06-18 | H92: 0.4047440859 | K92: 1956-06-18 | L92: 0 | M92: 0.1158333333 | N92: 0.3475 | O92: 0.5791666667 | P92: 0.8108333333 | Q92: 1.0425 | R92: 1.158333333 | S92: 0.2031453752 | T92: 0.298664171 | U92: 0.4897017626 | V92: 0.6807393543 | W92: 0.8717769459 | X92: 1.062814538 | Y92: 1.158333333 | Z92: 0.3650814939 | AA92: 0.4444066778 | AB92: 0.6030570457 | AC92: 0.7617074136 | AD92: 0.9203577815 | AE92: 1.079008149 | AF92: 1.158333333 | AG92: 0.5049722653 | AH92: 0.5703083721 | AI92: 0.7009805857 | AJ92: 0.8316527993 | AK92: 0.9623250129 | AL92: 1.092997227 | AM92: 1.158333333
E93: 0.03977086883 | F93: 0.07662711528 | G93: 1956-06-20 | H93: 0.05819899206 | K93: 1956-06-20 | L93: 0 | M93: 0.04083333333 | N93: 0.1225 | O93: 0.2041666667 | P93: 0.2858333333 | Q93: 0.3675 | R93: 0.4083333333 | S93: 0.006117041065 | T93: 0.04633867029 | U93: 0.1267819287 | V93: 0.2072251872 | W93: 0.2876684457 | X93: 0.3681117041 | Y93: 0.4083333333 | Z93: 0.03977086883 | AA93: 0.07662711528 | AB93: 0.1503396082 | AC93: 0.2240521011 | AD93: 0.297764594 | AE93: 0.3714770869 | AF93: 0.4083333333 | AG93: 0.08315530883 | AH93: 0.1156731113 | AI93: 0.1807087162 | AJ93: 0.2457443211 | AK93: 0.310779926 | AL93: 0.3758155309 | AM93: 0.4083333333
E94: 0.1663432852 | F94: 0.2197089567 | G94: 1956-06-22 | H94: 0.193026121 | K94: 1956-06-22 | L94: 0 | M94: 0.07 | N94: 0.21 | O94: 0.35 | P94: 0.49 | Q94: 0.63 | R94: 0.7 | S94: 0.07363648838 | T94: 0.1362728395 | U94: 0.2615455419 | V94: 0.3868182442 | W94: 0.5120909465 | X94: 0.6373636488 | Y94: 0.7 | Z94: 0.1663432852 | AA94: 0.2197089567 | AB94: 0.3264402997 | AC94: 0.4331716426 | AD94: 0.5399029856 | AE94: 0.6466343285 | AF94: 0.7 | AG94: 0.254388587 | AH94: 0.2989497283 | AI94: 0.3880720109 | AJ94: 0.4771942935 | AK94: 0.5663165761 | AL94: 0.6554388587 | AM94: 0.7
E95: 0.0294660694 | F95: 0.1390194625 | G95: 1956-06-26 | H95: 0.08424276593 | K95: 1956-06-26 | L95: 0 | M95: 0.1125 | N95: 0.3375 | O95: 0.5625 | P95: 0.7875 | Q95: 1.0125 | R95: 1.125 | S95: 0 | T95: 0.1125 | U95: 0.3375 | V95: 0.5625 | W95: 0.7875 | X95: 1.0125 | Y95: 1.125 | Z95: 0.0294660694 | AA95: 0.1390194625 | AB95: 0.3581262486 | AC95: 0.5772330347 | AD95: 0.7963398208 | AE95: 1.015446607 | AF95: 1.125 | AG95: 0.09853344586 | AH95: 0.2011801013 | AI95: 0.4064734121 | AJ95: 0.6117667229 | AK95: 0.8170600338 | AL95: 1.022353345 | AM95: 1.125
E96: 0 | F96: 0.005833333333 | G96: 1956-06-30 | H96: 0.002916666667 | K96: 1956-06-30 | L96: 0 | M96: 0.005833333333 | N96: 0.0175 | O96: 0.02916666667 | P96: 0.04083333333 | Q96: 0.0525 | R96: 0.05833333333 | S96: 0 | T96: 0.005833333333 | U96: 0.0175 | V96: 0.02916666667 | W96: 0.04083333333 | X96: 0.0525 | Y96: 0.05833333333 | Z96: 0 | AA96: 0.005833333333 | AB96: 0.0175 | AC96: 0.02916666667 | AD96: 0.04083333333 | AE96: 0.0525 | AF96: 0.05833333333 | AG96: 0 | AH96: 0.005833333333 | AI96: 0.0175 | AJ96: 0.02916666667 | AK96: 0.04083333333 | AL96: 0.0525 | AM96: 0.05833333333
E97: 0 | F97: 0.0075 | G97: 1956-07-02 | H97: 0.00375 | K97: 1956-07-02 | L97: 0 | M97: 0.0075 | N97: 0.0225 | O97: 0.0375 | P97: 0.0525 | Q97: 0.0675 | R97: 0.075 | S97: 0 | T97: 0.0075 | U97: 0.0225 | V97: 0.0375 | W97: 0.0525 | X97: 0.0675 | Y97: 0.075 | Z97: 0 | AA97: 0.0075 | AB97: 0.0225 | AC97: 0.0375 | AD97: 0.0525 | AE97: 0.0675 | AF97: 0.075 | AG97: 0 | AH97: 0.0075 | AI97: 0.0225 | AJ97: 0.0375 | AK97: 0.0525 | AL97: 0.0675 | AM97: 0.075
E98: 0 | F98: 1.758278395e-212 | G98: 1956-07-06 | H98: 8.791391976e-213 | K98: 1956-07-06 | L98: 0 | M98: 1.758278395e-212 | N98: 5.274835186e-212 | O98: 8.791391976e-212 | P98: 1.230794877e-211 | Q98: 1.582450556e-211 | R98: 1.758278395e-211 | S98: 0 | T98: 1.758278395e-212 | U98: 5.274835186e-212 | V98: 8.791391976e-212 | W98: 1.230794877e-211 | X98: 1.582450556e-211 | Y98: 1.758278395e-211 | Z98: 0 | AA98: 1.758278395e-212 | AB98: 5.274835186e-212 | AC98: 8.791391976e-212 | AD98: 1.230794877e-211 | AE98: 1.582450556e-211 | AF98: 1.758278395e-211 | AG98: 0 | AH98: 1.758278395e-212 | AI98: 5.274835186e-212 | AJ98: 8.791391976e-212 | AK98: 1.230794877e-211 | AL98: 1.582450556e-211 | AM98: 1.758278395e-211
E99: 0 | F99: 0.03666666667 | G99: 1956-07-08 | H99: 0.01833333333 | K99: 1956-07-08 | L99: 0 | M99: 0.03666666667 | N99: 0.11 | O99: 0.1833333333 | P99: 0.2566666667 | Q99: 0.33 | R99: 0.3666666667 | S99: 0 | T99: 0.03666666667 | U99: 0.11 | V99: 0.1833333333 | W99: 0.2566666667 | X99: 0.33 | Y99: 0.3666666667 | Z99: 0 | AA99: 0.03666666667 | AB99: 0.11 | AC99: 0.1833333333 | AD99: 0.2566666667 | AE99: 0.33 | AF99: 0.3666666667 | AG99: 0 | AH99: 0.03666666667 | AI99: 0.11 | AJ99: 0.1833333333 | AK99: 0.2566666667 | AL99: 0.33 | AM99: 0.3666666667
E100: 0 | F100: 0.005 | G100: 1956-07-09 | H100: 0.0025 | K100: 1956-07-09 | L100: 0 | M100: 0.005 | N100: 0.015 | O100: 0.025 | P100: 0.035 | Q100: 0.045 | R100: 0.05 | S100: 0 | T100: 0.005 | U100: 0.015 | V100: 0.025 | W100: 0.035 | X100: 0.045 | Y100: 0.05 | Z100: 0 | AA100: 0.005 | AB100: 0.015 | AC100: 0.025 | AD100: 0.035 | AE100: 0.045 | AF100: 0.05 | AG100: 0 | AH100: 0.005 | AI100: 0.015 | AJ100: 0.025 | AK100: 0.035 | AL100: 0.045 | AM100: 0.05
E101: 0 | F101: 0.006666666667 | G101: 1956-07-12 | H101: 0.003333333333 | K101: 1956-07-12 | L101: 0 | M101: 0.006666666667 | N101: 0.02 | O101: 0.03333333333 | P101: 0.04666666667 | Q101: 0.06 | R101: 0.06666666667 | S101: 0 | T101: 0.006666666667 | U101: 0.02 | V101: 0.03333333333 | W101: 0.04666666667 | X101: 0.06 | Y101: 0.06666666667 | Z101: 0 | AA101: 0.006666666667 | AB101: 0.02 | AC101: 0.03333333333 | AD101: 0.04666666667 | AE101: 0.06 | AF101: 0.06666666667 | AG101: 0 | AH101: 0.006666666667 | AI101: 0.02 | AJ101: 0.03333333333 | AK101: 0.04666666667 | AL101: 0.06 | AM101: 0.06666666667
E102: 0 | F102: 0.01333333333 | G102: 1956-07-13 | H102: 0.006666666667 | K102: 1956-07-13 | L102: 0 | M102: 0.01333333333 | N102: 0.04 | O102: 0.06666666667 | P102: 0.09333333333 | Q102: 0.12 | R102: 0.1333333333 | S102: 0 | T102: 0.01333333333 | U102: 0.04 | V102: 0.06666666667 | W102: 0.09333333333 | X102: 0.12 | Y102: 0.1333333333 | Z102: 0 | AA102: 0.01333333333 | AB102: 0.04 | AC102: 0.06666666667 | AD102: 0.09333333333 | AE102: 0.12 | AF102: 0.1333333333 | AG102: 0 | AH102: 0.01333333333 | AI102: 0.04 | AJ102: 0.06666666667 | AK102: 0.09333333333 | AL102: 0.12 | AM102: 0.1333333333
E103: 0 | F103: 0.02 | G103: 1956-07-15 | H103: 0.01 | K103: 1956-07-15 | L103: 0 | M103: 0.02 | N103: 0.06 | O103: 0.1 | P103: 0.14 | Q103: 0.18 | R103: 0.2 | S103: 0 | T103: 0.02 | U103: 0.06 | V103: 0.1 | W103: 0.14 | X103: 0.18 | Y103: 0.2 | Z103: 0 | AA103: 0.02 | AB103: 0.06 | AC103: 0.1 | AD103: 0.14 | AE103: 0.18 | AF103: 0.2 | AG103: 0 | AH103: 0.02 | AI103: 0.06 | AJ103: 0.1 | AK103: 0.14 | AL103: 0.18 | AM103: 0.2
E104: 0 | F104: 0.04416666667 | G104: 1956-07-18 | H104: 0.02208333333 | K104: 1956-07-18 | L104: 0 | M104: 0.04416666667 | N104: 0.1325 | O104: 0.2208333333 | P104: 0.3091666667 | Q104: 0.3975 | R104: 0.4416666667 | S104: 0 | T104: 0.04416666667 | U104: 0.1325 | V104: 0.2208333333 | W104: 0.3091666667 | X104: 0.3975 | Y104: 0.4416666667 | Z104: 0 | AA104: 0.04416666667 | AB104: 0.1325 | AC104: 0.2208333333 | AD104: 0.3091666667 | AE104: 0.3975 | AF104: 0.4416666667 | AG104: 0 | AH104: 0.04416666667 | AI104: 0.1325 | AJ104: 0.2208333333 | AK104: 0.3091666667 | AL104: 0.3975 | AM104: 0.4416666667
E105: 0.02244974862 | F105: 0.1285381071 | G105: 1956-07-19 | H105: 0.07549392785 | K105: 1956-07-19 | L105: 0 | M105: 0.1083333333 | N105: 0.325 | O105: 0.5416666667 | P105: 0.7583333333 | Q105: 0.975 | R105: 1.083333333 | S105: 0 | T105: 0.1083333333 | U105: 0.325 | V105: 0.5416666667 | W105: 0.7583333333 | X105: 0.975 | Y105: 1.083333333 | Z105: 0.02244974862 | AA105: 0.1285381071 | AB105: 0.340714824 | AC105: 0.552891541 | AD105: 0.7650682579 | AE105: 0.9772449749 | AF105: 1.083333333 | AG105: 0.08459420805 | AH105: 0.1844681206 | AI105: 0.3842159456 | AJ105: 0.5839637707 | AK105: 0.7837115957 | AL105: 0.9834594208 | AM105: 1.083333333
E106: 0 | F106: 3.949333306e-34 | G106: 1956-07-20 | H106: 1.974666653e-34 | K106: 1956-07-20 | L106: 0 | M106: 1.76918046e-34 | N106: 5.30754138e-34 | O106: 8.845902299e-34 | P106: 1.238426322e-33 | Q106: 1.592262414e-33 | R106: 1.76918046e-33 | S106: 0 | T106: 1.76918046e-34 | U106: 5.30754138e-34 | V106: 8.845902299e-34 | W106: 1.238426322e-33 | X106: 1.592262414e-33 | Y106: 1.76918046e-33 | Z106: 0 | AA106: 3.949333306e-34 | AB106: 7.003215816e-34 | AC106: 1.005709833e-33 | AD106: 1.311098083e-33 | AE106: 1.616486334e-33 | AF106: 1.76918046e-33 | AG106: 0 | AH106: 6.327888128e-34 | AI106: 8.853202899e-34 | AJ106: 1.137851767e-33 | AK106: 1.390383244e-33 | AL106: 1.642914721e-33 | AM106: 1.76918046e-33
E107: 0 | F107: 0.005 | G107: 1956-07-22 | H107: 0.0025 | K107: 1956-07-22 | L107: 0 | M107: 0.005 | N107: 0.015 | O107: 0.025 | P107: 0.035 | Q107: 0.045 | R107: 0.05 | S107: 0 | T107: 0.005 | U107: 0.015 | V107: 0.025 | W107: 0.035 | X107: 0.045 | Y107: 0.05 | Z107: 0 | AA107: 0.005 | AB107: 0.015 | AC107: 0.025 | AD107: 0.035 | AE107: 0.045 | AF107: 0.05 | AG107: 0 | AH107: 0.005 | AI107: 0.015 | AJ107: 0.025 | AK107: 0.035 | AL107: 0.045 | AM107: 0.05
E108: 0 | F108: 0.02166666667 | G108: 1956-07-27 | H108: 0.01083333333 | K108: 1956-07-27 | L108: 0 | M108: 0.02166666667 | N108: 0.065 | O108: 0.1083333333 | P108: 0.1516666667 | Q108: 0.195 | R108: 0.2166666667 | S108: 0 | T108: 0.02166666667 | U108: 0.065 | V108: 0.1083333333 | W108: 0.1516666667 | X108: 0.195 | Y108: 0.2166666667 | Z108: 0 | AA108: 0.02166666667 | AB108: 0.065 | AC108: 0.1083333333 | AD108: 0.1516666667 | AE108: 0.195 | AF108: 0.2166666667 | AG108: 0 | AH108: 0.02166666667 | AI108: 0.065 | AJ108: 0.1083333333 | AK108: 0.1516666667 | AL108: 0.195 | AM108: 0.2166666667
E109: 6.417123369e-06 | F109: 0.1100057754 | G109: 1956-07-31 | H109: 0.05500609627 | K109: 1956-07-31 | L109: 0 | M109: 0.11 | N109: 0.33 | O109: 0.55 | P109: 0.77 | Q109: 0.99 | R109: 1.1 | S109: 0 | T109: 0.11 | U109: 0.33 | V109: 0.55 | W109: 0.77 | X109: 0.99 | Y109: 1.1 | Z109: 6.417123369e-06 | AA109: 0.1100057754 | AB109: 0.330004492 | AC109: 0.5500032086 | AD109: 0.7700019251 | AE109: 0.9900006417 | AF109: 1.1 | AG109: 0.024444538 | AH109: 0.1320000842 | AI109: 0.3471111766 | AJ109: 0.562222269 | AK109: 0.7773333614 | AL109: 0.9924444538 | AM109: 1.1
E110: 0.8739148635 | F110: 1.051523377 | G110: 1956-08-02 | H110: 0.9627191203 | K110: 1956-08-02 | L110: 0.0003250401831 | M110: 0.2652925362 | N110: 0.7952275281 | O110: 1.32516252 | P110: 1.855097512 | Q110: 2.385032504 | R110: 2.65 | S110: 0.5061317055 | T110: 0.7205185349 | U110: 1.149292194 | V110: 1.578065853 | W110: 2.006839512 | X110: 2.435613171 | Y110: 2.65 | Z110: 0.8739148635 | AA110: 1.051523377 | AB110: 1.406740404 | AC110: 1.761957432 | AD110: 2.117174459 | AE110: 2.472391486 | AF110: 2.65 | AG110: 1.180591602 | AH110: 1.327532442 | AI110: 1.621414121 | AJ110: 1.915295801 | AK110: 2.209177481 | AL110: 2.50305916 | AM110: 2.65
E111: 0 | F111: 0.003333333333 | G111: 1956-08-04 | H111: 0.001666666667 | K111: 1956-08-04 | L111: 0 | M111: 0.003333333333 | N111: 0.01 | O111: 0.01666666667 | P111: 0.02333333333 | Q111: 0.03 | R111: 0.03333333333 | S111: 0 | T111: 0.003333333333 | U111: 0.01 | V111: 0.01666666667 | W111: 0.02333333333 | X111: 0.03 | Y111: 0.03333333333 | Z111: 0 | AA111: 0.003333333333 | AB111: 0.01 | AC111: 0.01666666667 | AD111: 0.02333333333 | AE111: 0.03 | AF111: 0.03333333333 | AG111: 0 | AH111: 0.003333333333 | AI111: 0.01 | AJ111: 0.01666666667 | AK111: 0.02333333333 | AL111: 0.03 | AM111: 0.03333333333
E112: 0 | F112: 0.001666666667 | G112: 1956-08-09 | H112: 0.0008333333333 | K112: 1956-08-09 | L112: 0 | M112: 0.001666666667 | N112: 0.005 | O112: 0.008333333333 | P112: 0.01166666667 | Q112: 0.015 | R112: 0.01666666667 | S112: 0 | T112: 0.001666666667 | U112: 0.005 | V112: 0.008333333333 | W112: 0.01166666667 | X112: 0.015 | Y112: 0.01666666667 | Z112: 0 | AA112: 0.001666666667 | AB112: 0.005 | AC112: 0.008333333333 | AD112: 0.01166666667 | AE112: 0.015 | AF112: 0.01666666667 | AG112: 0 | AH112: 0.001666666667 | AI112: 0.005 | AJ112: 0.008333333333 | AK112: 0.01166666667 | AL112: 0.015 | AM112: 0.01666666667
E113: 0 | F113: 6.207476532e-120 | G113: 1956-08-11 | H113: 3.103738266e-120 | K113: 1956-08-11 | L113: 0 | M113: 6.207476532e-120 | N113: 1.862242959e-119 | O113: 3.103738266e-119 | P113: 4.345233572e-119 | Q113: 5.586728878e-119 | R113: 6.207476532e-119 | S113: 0 | T113: 6.207476532e-120 | U113: 1.862242959e-119 | V113: 3.103738266e-119 | W113: 4.345233572e-119 | X113: 5.586728878e-119 | Y113: 6.207476532e-119 | Z113: 0 | AA113: 6.207476532e-120 | AB113: 1.862242959e-119 | AC113: 3.103738266e-119 | AD113: 4.345233572e-119 | AE113: 5.586728878e-119 | AF113: 6.207476532e-119 | AG113: 0 | AH113: 6.207476532e-120 | AI113: 1.862242959e-119 | AJ113: 3.103738266e-119 | AK113: 4.345233572e-119 | AL113: 5.586728878e-119 | AM113: 6.207476532e-119
E114: 0 | F114: 0.0025 | G114: 1956-08-13 | H114: 0.00125 | K114: 1956-08-13 | L114: 0 | M114: 0.0025 | N114: 0.0075 | O114: 0.0125 | P114: 0.0175 | Q114: 0.0225 | R114: 0.025 | S114: 0 | T114: 0.0025 | U114: 0.0075 | V114: 0.0125 | W114: 0.0175 | X114: 0.0225 | Y114: 0.025 | Z114: 0 | AA114: 0.0025 | AB114: 0.0075 | AC114: 0.0125 | AD114: 0.0175 | AE114: 0.0225 | AF114: 0.025 | AG114: 0 | AH114: 0.0025 | AI114: 0.0075 | AJ114: 0.0125 | AK114: 0.0175 | AL114: 0.0225 | AM114: 0.025
E115: 0 | F115: 0.0375 | G115: 1956-08-27 | H115: 0.01875 | K115: 1956-08-27 | L115: 0 | M115: 0.0375 | N115: 0.1125 | O115: 0.1875 | P115: 0.2625 | Q115: 0.3375 | R115: 0.375 | S115: 0 | T115: 0.0375 | U115: 0.1125 | V115: 0.1875 | W115: 0.2625 | X115: 0.3375 | Y115: 0.375 | Z115: 0 | AA115: 0.0375 | AB115: 0.1125 | AC115: 0.1875 | AD115: 0.2625 | AE115: 0.3375 | AF115: 0.375 | AG115: 0 | AH115: 0.0375 | AI115: 0.1125 | AJ115: 0.1875 | AK115: 0.2625 | AL115: 0.3375 | AM115: 0.375
E116: 0 | F116: 0.08083333333 | G116: 1956-08-29 | H116: 0.04041666667 | K116: 1956-08-29 | L116: 0 | M116: 0.08083333333 | N116: 0.2425 | O116: 0.4041666667 | P116: 0.5658333333 | Q116: 0.7275 | R116: 0.8083333333 | S116: 0 | T116: 0.08083333333 | U116: 0.2425 | V116: 0.4041666667 | W116: 0.5658333333 | X116: 0.7275 | Y116: 0.8083333333 | Z116: 0 | AA116: 0.08083333333 | AB116: 0.2425 | AC116: 0.4041666667 | AD116: 0.5658333333 | AE116: 0.7275 | AF116: 0.8083333333 | AG116: 0.004215925931 | AH116: 0.08462766667 | AI116: 0.2454511482 | AJ116: 0.4062746296 | AK116: 0.5670981111 | AL116: 0.7279215926 | AM116: 0.8083333333
E117: 0 | F117: 0.003333333333 | G117: 1956-08-31 | H117: 0.001666666667 | K117: 1956-08-31 | L117: 0 | M117: 0.003333333333 | N117: 0.01 | O117: 0.01666666667 | P117: 0.02333333333 | Q117: 0.03 | R117: 0.03333333333 | S117: 0 | T117: 0.003333333333 | U117: 0.01 | V117: 0.01666666667 | W117: 0.02333333333 | X117: 0.03 | Y117: 0.03333333333 | Z117: 0 | AA117: 0.003333333333 | AB117: 0.01 | AC117: 0.01666666667 | AD117: 0.02333333333 | AE117: 0.03 | AF117: 0.03333333333 | AG117: 0 | AH117: 0.003333333333 | AI117: 0.01 | AJ117: 0.01666666667 | AK117: 0.02333333333 | AL117: 0.03 | AM117: 0.03333333333
E118: 0 | F118: 0.005833333333 | G118: 1956-09-06 | H118: 0.002916666667 | K118: 1956-09-06 | L118: 0 | M118: 0.005833333333 | N118: 0.0175 | O118: 0.02916666667 | P118: 0.04083333333 | Q118: 0.0525 | R118: 0.05833333333 | S118: 0 | T118: 0.005833333333 | U118: 0.0175 | V118: 0.02916666667 | W118: 0.04083333333 | X118: 0.0525 | Y118: 0.05833333333 | Z118: 0 | AA118: 0.005833333333 | AB118: 0.0175 | AC118: 0.02916666667 | AD118: 0.04083333333 | AE118: 0.0525 | AF118: 0.05833333333 | AG118: 0 | AH118: 0.005833333333 | AI118: 0.0175 | AJ118: 0.02916666667 | AK118: 0.04083333333 | AL118: 0.0525 | AM118: 0.05833333333
E119: 0 | F119: 0 | G119: 1956-09-13 | H119: 0 | K119: 1956-09-13 | L119: 0 | M119: 0 | N119: 0 | O119: 0 | P119: 0 | Q119: 0 | R119: 0 | S119: 0 | T119: 0 | U119: 0 | V119: 0 | W119: 0 | X119: 0 | Y119: 0 | Z119: 0 | AA119: 0 | AB119: 0 | AC119: 0 | AD119: 0 | AE119: 0 | AF119: 0 | AG119: 0 | AH119: 0 | AI119: 0 | AJ119: 0 | AK119: 0 | AL119: 0 | AM119: 0
E120: 0 | F120: 0.0175 | G120: 1956-09-15 | H120: 0.00875 | K120: 1956-09-15 | L120: 0 | M120: 0.0175 | N120: 0.0525 | O120: 0.0875 | P120: 0.1225 | Q120: 0.1575 | R120: 0.175 | S120: 0 | T120: 0.0175 | U120: 0.0525 | V120: 0.0875 | W120: 0.1225 | X120: 0.1575 | Y120: 0.175 | Z120: 0 | AA120: 0.0175 | AB120: 0.0525 | AC120: 0.0875 | AD120: 0.1225 | AE120: 0.1575 | AF120: 0.175 | AG120: 0 | AH120: 0.0175 | AI120: 0.0525 | AJ120: 0.0875 | AK120: 0.1225 | AL120: 0.1575 | AM120: 0.175
E121: 0 | F121: 0.025 | G121: 1956-09-17 | H121: 0.0125 | K121: 1956-09-17 | L121: 0 | M121: 0.025 | N121: 0.075 | O121: 0.125 | P121: 0.175 | Q121: 0.225 | R121: 0.25 | S121: 0 | T121: 0.025 | U121: 0.075 | V121: 0.125 | W121: 0.175 | X121: 0.225 | Y121: 0.25 | Z121: 0 | AA121: 0.025 | AB121: 0.075 | AC121: 0.125 | AD121: 0.175 | AE121: 0.225 | AF121: 0.25 | AG121: 0 | AH121: 0.025 | AI121: 0.075 | AJ121: 0.125 | AK121: 0.175 | AL121: 0.225 | AM121: 0.25
E122: 0 | F122: 0 | G122: 1956-10-02 | H122: 0 | K122: 1956-10-02 | L122: 0 | M122: 0 | N122: 0 | O122: 0 | P122: 0 | Q122: 0 | R122: 0 | S122: 0 | T122: 0 | U122: 0 | V122: 0 | W122: 0 | X122: 0 | Y122: 0 | Z122: 0 | AA122: 0 | AB122: 0 | AC122: 0 | AD122: 0 | AE122: 0 | AF122: 0 | AG122: 0 | AH122: 0 | AI122: 0 | AJ122: 0 | AK122: 0 | AL122: 0 | AM122: 0
E123: 0 | F123: 0.08833333333 | G123: 1956-10-14 | H123: 0.04416666667 | K123: 1956-10-14 | L123: 0 | M123: 0.08833333333 | N123: 0.265 | O123: 0.4416666667 | P123: 0.6183333333 | Q123: 0.795 | R123: 0.8833333333 | S123: 0 | T123: 0.08833333333 | U123: 0.265 | V123: 0.4416666667 | W123: 0.6183333333 | X123: 0.795 | Y123: 0.8833333333 | Z123: 0 | AA123: 0.08833333333 | AB123: 0.265 | AC123: 0.4416666667 | AD123: 0.6183333333 | AE123: 0.795 | AF123: 0.8833333333 | AG123: 0 | AH123: 0.08833333333 | AI123: 0.265 | AJ123: 0.4416666667 | AK123: 0.6183333333 | AL123: 0.795 | AM123: 0.8833333333
E124: 0 | F124: 0.0275 | G124: 1956-10-26 | H124: 0.01375 | K124: 1956-10-26 | L124: 0 | M124: 0.0275 | N124: 0.0825 | O124: 0.1375 | P124: 0.1925 | Q124: 0.2475 | R124: 0.275 | S124: 0 | T124: 0.0275 | U124: 0.0825 | V124: 0.1375 | W124: 0.1925 | X124: 0.2475 | Y124: 0.275 | Z124: 0 | AA124: 0.0275 | AB124: 0.0825 | AC124: 0.1375 | AD124: 0.1925 | AE124: 0.2475 | AF124: 0.275 | AG124: 0 | AH124: 0.0275 | AI124: 0.0825 | AJ124: 0.1375 | AK124: 0.1925 | AL124: 0.2475 | AM124: 0.275
E125: 0 | F125: 0.03 | G125: 1956-10-30 | H125: 0.015 | K125: 1956-10-30 | L125: 0 | M125: 0.03 | N125: 0.09 | O125: 0.15 | P125: 0.21 | Q125: 0.27 | R125: 0.3 | S125: 0 | T125: 0.03 | U125: 0.09 | V125: 0.15 | W125: 0.21 | X125: 0.27 | Y125: 0.3 | Z125: 0 | AA125: 0.03 | AB125: 0.09 | AC125: 0.15 | AD125: 0.21 | AE125: 0.27 | AF125: 0.3 | AG125: 0 | AH125: 0.03 | AI125: 0.09 | AJ125: 0.15 | AK125: 0.21 | AL125: 0.27 | AM125: 0.3
E126: 0 | F126: 1.497276535e-181 | G126: 1956-11-04 | H126: 7.486382676e-182 | K126: 1956-11-04 | L126: 0 | M126: 1.497276535e-181 | N126: 4.491829606e-181 | O126: 7.486382676e-181 | P126: 1.048093575e-180 | Q126: 1.347548882e-180 | R126: 1.497276535e-180 | S126: 0 | T126: 1.497276535e-181 | U126: 4.491829606e-181 | V126: 7.486382676e-181 | W126: 1.048093575e-180 | X126: 1.347548882e-180 | Y126: 1.497276535e-180 | Z126: 0 | AA126: 1.497276535e-181 | AB126: 4.491829606e-181 | AC126: 7.486382676e-181 | AD126: 1.048093575e-180 | AE126: 1.347548882e-180 | AF126: 1.497276535e-180 | AG126: 0 | AH126: 1.497276535e-181 | AI126: 4.491829606e-181 | AJ126: 7.486382676e-181 | AK126: 1.048093575e-180 | AL126: 1.347548882e-180 | AM126: 1.497276535e-180
E127: 0 | F127: 0.0325 | G127: 1956-11-05 | H127: 0.01625 | K127: 1956-11-05 | L127: 0 | M127: 0.0325 | N127: 0.0975 | O127: 0.1625 | P127: 0.2275 | Q127: 0.2925 | R127: 0.325 | S127: 0 | T127: 0.0325 | U127: 0.0975 | V127: 0.1625 | W127: 0.2275 | X127: 0.2925 | Y127: 0.325 | Z127: 0 | AA127: 0.0325 | AB127: 0.0975 | AC127: 0.1625 | AD127: 0.2275 | AE127: 0.2925 | AF127: 0.325 | AG127: 0 | AH127: 0.0325 | AI127: 0.0975 | AJ127: 0.1625 | AK127: 0.2275 | AL127: 0.2925 | AM127: 0.325
E128: 0 | F128: 7.041241443e-58 | G128: 1956-11-07 | H128: 3.520620722e-58 | K128: 1956-11-07 | L128: 0 | M128: 7.041241443e-58 | N128: 2.112372433e-57 | O128: 3.520620722e-57 | P128: 4.92886901e-57 | Q128: 6.337117299e-57 | R128: 7.041241443e-57 | S128: 0 | T128: 7.041241443e-58 | U128: 2.112372433e-57 | V128: 3.520620722e-57 | W128: 4.92886901e-57 | X128: 6.337117299e-57 | Y128: 7.041241443e-57 | Z128: 0 | AA128: 7.041241443e-58 | AB128: 2.112372433e-57 | AC128: 3.520620722e-57 | AD128: 4.92886901e-57 | AE128: 6.337117299e-57 | AF128: 7.041241443e-57 | AG128: 0 | AH128: 7.041241443e-58 | AI128: 2.112372433e-57 | AJ128: 3.520620722e-57 | AK128: 4.92886901e-57 | AL128: 6.337117299e-57 | AM128: 7.041241443e-57
E129: 0.008035594758 | F129: 0.03473203528 | G129: 1956-11-18 | H129: 0.02138381502 | K129: 1956-11-18 | L129: 0 | M129: 0.0275 | N129: 0.0825 | O129: 0.1375 | P129: 0.1925 | Q129: 0.2475 | R129: 0.275 | S129: 0 | T129: 0.0275 | U129: 0.0825 | V129: 0.1375 | W129: 0.1925 | X129: 0.2475 | Y129: 0.275 | Z129: 0.008035594758 | AA129: 0.03473203528 | AB129: 0.08812491633 | AC129: 0.1415177974 | AD129: 0.1949106784 | AE129: 0.2483035595 | AF129: 0.275 | AG129: 0.02937827225 | AH129: 0.05394044503 | AI129: 0.1030647906 | AJ129: 0.1521891361 | AK129: 0.2013134817 | AL129: 0.2504378272 | AM129: 0.275
E130: 0.01566010652 | F130: 0.04576076254 | G130: 1956-12-02 | H130: 0.03071043453 | K130: 1956-12-02 | L130: 0 | M130: 0.03166666667 | N130: 0.095 | O130: 0.1583333333 | P130: 0.2216666667 | Q130: 0.285 | R130: 0.3166666667 | S130: 0.0001290951841 | T130: 0.03178285233 | U130: 0.09509036663 | V130: 0.1583978809 | W130: 0.2217053952 | X130: 0.2850129095 | Y130: 0.3166666667 | Z130: 0.01566010652 | AA130: 0.04576076254 | AB130: 0.1059620746 | AC130: 0.1661633866 | AD130: 0.2263646986 | AE130: 0.2865660107 | AF130: 0.3166666667 | AG130: 0.04389701784 | AH130: 0.07117398272 | AI130: 0.1257279125 | AJ130: 0.1802818423 | AK130: 0.234835772 | AL130: 0.2893897018 | AM130: 0.3166666667
E131: 0 | F131: 0 | G131: 1956-12-19 | H131: 0 | K131: 1956-12-19 | L131: 0 | M131: 0 | N131: 0 | O131: 0 | P131: 0 | Q131: 0 | R131: 0 | S131: 0 | T131: 0 | U131: 0 | V131: 0 | W131: 0 | X131: 0 | Y131: 0 | Z131: 0 | AA131: 0 | AB131: 0 | AC131: 0 | AD131: 0 | AE131: 0 | AF131: 0 | AG131: 0 | AH131: 0 | AI131: 0 | AJ131: 0 | AK131: 0 | AL131: 0 | AM131: 0
E132: 0 | F132: 0.0025 | G132: 1956-12-27 | H132: 0.00125 | K132: 1956-12-27 | L132: 0 | M132: 0.0025 | N132: 0.0075 | O132: 0.0125 | P132: 0.0175 | Q132: 0.0225 | R132: 0.025 | S132: 0 | T132: 0.0025 | U132: 0.0075 | V132: 0.0125 | W132: 0.0175 | X132: 0.0225 | Y132: 0.025 | Z132: 0 | AA132: 0.0025 | AB132: 0.0075 | AC132: 0.0125 | AD132: 0.0175 | AE132: 0.0225 | AF132: 0.025 | AG132: 0 | AH132: 0.0025 | AI132: 0.0075 | AJ132: 0.0125 | AK132: 0.0175 | AL132: 0.0225 | AM132: 0.025
E133: 5.161783512e-05 | F133: 0.01837978938 | G133: 1957-01-28 | H133: 0.00921570361 | K133: 1957-01-28 | L133: 0 | M133: 0.01833333333 | N133: 0.055 | O133: 0.09166666667 | P133: 0.1283333333 | Q133: 0.165 | R133: 0.1833333333 | S133: 0 | T133: 0.01833333333 | U133: 0.055 | V133: 0.09166666667 | W133: 0.1283333333 | X133: 0.165 | Y133: 0.1833333333 | Z133: 5.161783512e-05 | AA133: 0.01837978938 | AB133: 0.05503613248 | AC133: 0.09169247558 | AD133: 0.1283488187 | AE133: 0.1650051618 | AF133: 0.1833333333 | AG133: 0.006661036036 | AH133: 0.02432826577 | AI133: 0.05966272523 | AJ133: 0.09499718468 | AK133: 0.1303316441 | AL133: 0.1656661036 | AM133: 0.1833333333
E134: =INDIRECT(ADDRESS(ROW(K134),$E$4)) -> 0 | F134: =INDIRECT(ADDRESS(ROW(K134),$F$4)) -> 0.01 | G134: =K134 -> 1957-02-12 | H134: 0.005 | K134: 1957-02-12 | L134: =IF(INTERCEPT(M134:R134,$M$4:$R$4)<0.000001,0,INTERCEPT(M134:R134,$M$4:$R$4)) -> 0 | M134: 0.01 | N134: 0.03 | O134: 0.05 | P134: 0.07 | Q134: 0.09 | R134: =((Q134-P134)/($Q$4-$P$4))*($R$4-$Q$4)+Q134 -> 0.1 | S134: =IF(INTERCEPT(T134:Y134,$M$4:$R$4)<0.000001,0,INTERCEPT(T134:Y134,$M$4:$R$4)) -> 0 | T134: 0.01 | U134: 0.03 | V134: 0.05 | W134: 0.07 | X134: 0.09 | Y134: =((X134-W134)/($X$4-$W$4))*($Y$4-$X$4)+X134 -> 0.1 | Z134: =IF(INTERCEPT(AA134:AF134,$M$4:$R$4)<0.000001,0,INTERCEPT(AA134:AF134,$M$4:$R$4)) -> 0 | AA134: 0.01 | AB134: 0.03 | AC134: 0.05 | AD134: 0.07 | AE134: 0.09 | AF134: =((AE134-AD134)/($AE$4-$AD$4))*($AF$4-$AE$4)+AE134 -> 0.1 | AG134: =IF(INTERCEPT(AH134:AM134,$M$4:$R$4)<0.000001,0,INTERCEPT(AH134:AM134,$M$4:$R$4)) -> 0 | AH134: 0.01 | AI134: 0.03 | AJ134: 0.05 | AK134: 0.07 | AL134: 0.09 | AM134: =((AL134-AK134)/($AL$4-$AK$4))*($AM$4-$AL$4)+AL134 -> 0.1
E135: 0 | F135: 0.01666666667 | G135: 1957-02-24 | H135: =(F135-E135)*($B$7-$E$3)/($F$3-$E$3)+E135 -> 0.008333333333 | K135: 1957-02-24 | L135: 0 | M135: 0.01666666667 | N135: 0.05 | O135: 0.08333333333 | P135: 0.1166666667 | Q135: 0.15 | R135: 0.1666666667 | S135: 0 | T135: 0.01666666667 | U135: 0.05 | V135: 0.08333333333 | W135: 0.1166666667 | X135: 0.15 | Y135: 0.1666666667 | Z135: 0 | AA135: 0.01666666667 | AB135: 0.05 | AC135: 0.08333333333 | AD135: 0.1166666667 | AE135: 0.15 | AF135: 0.1666666667 | AG135: 0.004134678478 | AH135: 0.0203878773 | AI135: 0.05289427493 | AJ135: 0.08540067257 | AK135: 0.1179070702 | AL135: 0.1504134678 | AM135: 0.1666666667
E136: 0 | F136: 0.005 | G136: 1957-02-28 | H136: 0.0025 | K136: 1957-02-28 | L136: 0 | M136: 0.005 | N136: 0.015 | O136: 0.025 | P136: 0.035 | Q136: 0.045 | R136: 0.05 | S136: 0 | T136: 0.005 | U136: 0.015 | V136: 0.025 | W136: 0.035 | X136: 0.045 | Y136: 0.05 | Z136: 0 | AA136: 0.005 | AB136: 0.015 | AC136: 0.025 | AD136: 0.035 | AE136: 0.045 | AF136: 0.05 | AG136: 0 | AH136: 0.005 | AI136: 0.015 | AJ136: 0.025 | AK136: 0.035 | AL136: 0.045 | AM136: 0.05
E137: 0.0372006372 | F137: 0.07348057348 | G137: 1957-03-11 | H137: 0.05534060534 | K137: 1957-03-11 | L137: 0 | M137: 0.04 | N137: 0.12 | O137: 0.2 | P137: 0.28 | Q137: 0.36 | R137: 0.4 | S137: 0.005222990851 | T137: 0.04470069177 | U137: 0.1236560936 | V137: 0.2026114954 | W137: 0.2815668973 | X137: 0.3605222991 | Y137: 0.4 | Z137: 0.0372006372 | AA137: 0.07348057348 | AB137: 0.146040446 | AC137: 0.2186003186 | AD137: 0.2911601912 | AE137: 0.3637200637 | AF137: 0.4 | AG137: 0.07921875 | AH137: 0.111296875 | AI137: 0.175453125 | AJ137: 0.239609375 | AK137: 0.303765625 | AL137: 0.367921875 | AM137: 0.4
E138: 0.2421639799 | F138: 0.3012809152 | G138: 1957-03-20 | H138: 0.2717224475 | K138: 1957-03-20 | L138: 0 | M138: 0.08333333333 | N138: 0.25 | O138: 0.4166666667 | P138: 0.5833333333 | Q138: 0.75 | R138: 0.8333333333 | S138: 0.123523638 | T138: 0.1945046076 | U138: 0.3364665466 | V138: 0.4784284857 | W138: 0.6203904247 | X138: 0.7623523638 | Y138: 0.8333333333 | Z138: 0.2421639799 | AA138: 0.3012809152 | AB138: 0.4195147859 | AC138: 0.5377486566 | AD138: 0.6559825273 | AE138: 0.774216398 | AF138: 0.8333333333 | AG138: 0.3481282122 | AH138: 0.3966487243 | AI138: 0.4936897485 | AJ138: 0.5907307728 | AK138: 0.687771797 | AL138: 0.7848128212 | AM138: 0.8333333333
E139: 0 | F139: 0 | G139: 1957-03-28 | H139: 0 | K139: 1957-03-28 | L139: 0 | M139: 0 | N139: 0 | O139: 0 | P139: 0 | Q139: 0 | R139: 0 | S139: 0 | T139: 0 | U139: 0 | V139: 0 | W139: 0 | X139: 0 | Y139: 0 | Z139: 0 | AA139: 0 | AB139: 0 | AC139: 0 | AD139: 0 | AE139: 0 | AF139: 0 | AG139: 0 | AH139: 0 | AI139: 0 | AJ139: 0 | AK139: 0 | AL139: 0 | AM139: 0
E140: 0 | F140: 0 | G140: 1957-03-29 | H140: 0 | K140: 1957-03-29 | L140: 0 | M140: 0 | N140: 0 | O140: 0 | P140: 0 | Q140: 0 | R140: 0 | S140: 0 | T140: 0 | U140: 0 | V140: 0 | W140: 0 | X140: 0 | Y140: 0 | Z140: 0 | AA140: 0 | AB140: 0 | AC140: 0 | AD140: 0 | AE140: 0 | AF140: 0 | AG140: 0 | AH140: 0 | AI140: 0 | AJ140: 0 | AK140: 0 | AL140: 0 | AM140: 0
E141: 0 | F141: 0.0008333333333 | G141: 1957-04-01 | H141: 0.0004166666667 | K141: 1957-04-01 | L141: 0 | M141: 0.0008333333333 | N141: 0.0025 | O141: 0.004166666667 | P141: 0.005833333333 | Q141: 0.0075 | R141: 0.008333333333 | S141: 0 | T141: 0.0008333333333 | U141: 0.0025 | V141: 0.004166666667 | W141: 0.005833333333 | X141: 0.0075 | Y141: 0.008333333333 | Z141: 0 | AA141: 0.0008333333333 | AB141: 0.0025 | AC141: 0.004166666667 | AD141: 0.005833333333 | AE141: 0.0075 | AF141: 0.008333333333 | AG141: 0 | AH141: 0.0008333333333 | AI141: 0.0025 | AJ141: 0.004166666667 | AK141: 0.005833333333 | AL141: 0.0075 | AM141: 0.008333333333
E142: 0 | F142: 0.05666666667 | G142: 1957-04-05 | H142: 0.02833333333 | K142: 1957-04-05 | L142: 0 | M142: 0.05666666667 | N142: 0.17 | O142: 0.2833333333 | P142: 0.3966666667 | Q142: 0.51 | R142: 0.5666666667 | S142: 0 | T142: 0.05666666667 | U142: 0.17 | V142: 0.2833333333 | W142: 0.3966666667 | X142: 0.51 | Y142: 0.5666666667 | Z142: 0 | AA142: 0.05666666667 | AB142: 0.17 | AC142: 0.2833333333 | AD142: 0.3966666667 | AE142: 0.51 | AF142: 0.5666666667 | AG142: 0 | AH142: 0.05666666667 | AI142: 0.17 | AJ142: 0.2833333333 | AK142: 0.3966666667 | AL142: 0.51 | AM142: 0.5666666667
E143: 0 | F143: 0.01583333333 | G143: 1957-04-14 | H143: 0.007916666667 | K143: 1957-04-14 | L143: 0 | M143: 0.01583333333 | N143: 0.0475 | O143: 0.07916666667 | P143: 0.1108333333 | Q143: 0.1425 | R143: 0.1583333333 | S143: 0 | T143: 0.01583333333 | U143: 0.0475 | V143: 0.07916666667 | W143: 0.1108333333 | X143: 0.1425 | Y143: 0.1583333333 | Z143: 0 | AA143: 0.01583333333 | AB143: 0.0475 | AC143: 0.07916666667 | AD143: 0.1108333333 | AE143: 0.1425 | AF143: 0.1583333333 | AG143: 0.003082339298 | AH143: 0.0186074387 | AI143: 0.04965763751 | AJ143: 0.08070783632 | AK143: 0.1117580351 | AL143: 0.1428082339 | AM143: 0.1583333333
E144: 0 | F144: 0.0008333333333 | G144: 1957-04-16 | H144: 0.0004166666667 | K144: 1957-04-16 | L144: 0 | M144: 0.0008333333333 | N144: 0.0025 | O144: 0.004166666667 | P144: 0.005833333333 | Q144: 0.0075 | R144: 0.008333333333 | S144: 0 | T144: 0.0008333333333 | U144: 0.0025 | V144: 0.004166666667 | W144: 0.005833333333 | X144: 0.0075 | Y144: 0.008333333333 | Z144: 0 | AA144: 0.0008333333333 | AB144: 0.0025 | AC144: 0.004166666667 | AD144: 0.005833333333 | AE144: 0.0075 | AF144: 0.008333333333 | AG144: 0 | AH144: 0.0008333333333 | AI144: 0.0025 | AJ144: 0.004166666667 | AK144: 0.005833333333 | AL144: 0.0075 | AM144: 0.008333333333
E145: 0 | F145: 0.009166666667 | G145: 1957-04-20 | H145: 0.004583333333 | K145: 1957-04-20 | L145: 0 | M145: 0.009166666667 | N145: 0.0275 | O145: 0.04583333333 | P145: 0.06416666667 | Q145: 0.0825 | R145: 0.09166666667 | S145: 0 | T145: 0.009166666667 | U145: 0.0275 | V145: 0.04583333333 | W145: 0.06416666667 | X145: 0.0825 | Y145: 0.09166666667 | Z145: 0 | AA145: 0.009166666667 | AB145: 0.0275 | AC145: 0.04583333333 | AD145: 0.06416666667 | AE145: 0.0825 | AF145: 0.09166666667 | AG145: 0 | AH145: 0.009166666667 | AI145: 0.0275 | AJ145: 0.04583333333 | AK145: 0.06416666667 | AL145: 0.0825 | AM145: 0.09166666667
E146: 0 | F146: 0.01 | G146: 1957-05-13 | H146: 0.005 | K146: 1957-05-13 | L146: 0 | M146: 0.01 | N146: 0.03 | O146: 0.05 | P146: 0.07 | Q146: 0.09 | R146: 0.1 | S146: 0 | T146: 0.01 | U146: 0.03 | V146: 0.05 | W146: 0.07 | X146: 0.09 | Y146: 0.1 | Z146: 0 | AA146: 0.01 | AB146: 0.03 | AC146: 0.05 | AD146: 0.07 | AE146: 0.09 | AF146: 0.1 | AG146: 0 | AH146: 0.01 | AI146: 0.03 | AJ146: 0.05 | AK146: 0.07 | AL146: 0.09 | AM146: 0.1
E147: 0 | F147: 0.07166666667 | G147: 1957-05-14 | H147: 0.03583333333 | K147: 1957-05-14 | L147: 0 | M147: 0.07166666667 | N147: 0.215 | O147: 0.3583333333 | P147: 0.5016666667 | Q147: 0.645 | R147: 0.7166666667 | S147: 0 | T147: 0.07166666667 | U147: 0.215 | V147: 0.3583333333 | W147: 0.5016666667 | X147: 0.645 | Y147: 0.7166666667 | Z147: 0 | AA147: 0.07166666667 | AB147: 0.215 | AC147: 0.3583333333 | AD147: 0.5016666667 | AE147: 0.645 | AF147: 0.7166666667 | AG147: 0 | AH147: 0.07166666667 | AI147: 0.215 | AJ147: 0.3583333333 | AK147: 0.5016666667 | AL147: 0.645 | AM147: 0.7166666667
E148: 0 | F148: 0.02666666667 | G148: 1957-05-18 | H148: 0.01333333333 | K148: 1957-05-18 | L148: 0 | M148: 0.02666666667 | N148: 0.08 | O148: 0.1333333333 | P148: 0.1866666667 | Q148: 0.24 | R148: 0.2666666667 | S148: 0 | T148: 0.02666666667 | U148: 0.08 | V148: 0.1333333333 | W148: 0.1866666667 | X148: 0.24 | Y148: 0.2666666667 | Z148: 0 | AA148: 0.02666666667 | AB148: 0.08 | AC148: 0.1333333333 | AD148: 0.1866666667 | AE148: 0.24 | AF148: 0.2666666667 | AG148: 0 | AH148: 0.02666666667 | AI148: 0.08 | AJ148: 0.1333333333 | AK148: 0.1866666667 | AL148: 0.24 | AM148: 0.2666666667
E149: 0 | F149: 0.0008333333333 | G149: 1957-05-20 | H149: 0.0004166666667 | K149: 1957-05-20 | L149: 0 | M149: 0.0008333333333 | N149: 0.0025 | O149: 0.004166666667 | P149: 0.005833333333 | Q149: 0.0075 | R149: 0.008333333333 | S149: 0 | T149: 0.0008333333333 | U149: 0.0025 | V149: 0.004166666667 | W149: 0.005833333333 | X149: 0.0075 | Y149: 0.008333333333 | Z149: 0 | AA149: 0.0008333333333 | AB149: 0.0025 | AC149: 0.004166666667 | AD149: 0.005833333333 | AE149: 0.0075 | AF149: 0.008333333333 | AG149: 0 | AH149: 0.0008333333333 | AI149: 0.0025 | AJ149: 0.004166666667 | AK149: 0.005833333333 | AL149: 0.0075 | AM149: 0.008333333333
E150: 0 | F150: 0.0475 | G150: 1957-05-21 | H150: 0.02375 | K150: 1957-05-21 | L150: 0 | M150: 0.0475 | N150: 0.1425 | O150: 0.2375 | P150: 0.3325 | Q150: 0.4275 | R150: 0.475 | S150: 0 | T150: 0.0475 | U150: 0.1425 | V150: 0.2375 | W150: 0.3325 | X150: 0.4275 | Y150: 0.475 | Z150: 0 | AA150: 0.0475 | AB150: 0.1425 | AC150: 0.2375 | AD150: 0.3325 | AE150: 0.4275 | AF150: 0.475 | AG150: 0 | AH150: 0.0475 | AI150: 0.1425 | AJ150: 0.2375 | AK150: 0.3325 | AL150: 0.4275 | AM150: 0.475
E151: 0 | F151: 0.04666666667 | G151: 1957-05-26 | H151: 0.02333333333 | K151: 1957-05-26 | L151: 0 | M151: 0.04666666667 | N151: 0.14 | O151: 0.2333333333 | P151: 0.3266666667 | Q151: 0.42 | R151: 0.4666666667 | S151: 0 | T151: 0.04666666667 | U151: 0.14 | V151: 0.2333333333 | W151: 0.3266666667 | X151: 0.42 | Y151: 0.4666666667 | Z151: 0 | AA151: 0.04666666667 | AB151: 0.14 | AC151: 0.2333333333 | AD151: 0.3266666667 | AE151: 0.42 | AF151: 0.4666666667 | AG151: 0 | AH151: 0.04666666667 | AI151: 0.14 | AJ151: 0.2333333333 | AK151: 0.3266666667 | AL151: 0.42 | AM151: 0.4666666667
E152: 0 | F152: 1.944305304e-35 | G152: 1957-05-27 | H152: 9.721526522e-36 | K152: 1957-05-27 | L152: 0 | M152: 1.944305304e-35 | N152: 5.832915913e-35 | O152: 9.721526522e-35 | P152: 1.361013713e-34 | Q152: 1.749874774e-34 | R152: 1.944305304e-34 | S152: 0 | T152: 1.944305304e-35 | U152: 5.832915913e-35 | V152: 9.721526522e-35 | W152: 1.361013713e-34 | X152: 1.749874774e-34 | Y152: 1.944305304e-34 | Z152: 0 | AA152: 1.944305304e-35 | AB152: 5.832915913e-35 | AC152: 9.721526522e-35 | AD152: 1.361013713e-34 | AE152: 1.749874774e-34 | AF152: 1.944305304e-34 | AG152: 0 | AH152: 1.944305304e-35 | AI152: 5.832915913e-35 | AJ152: 9.721526522e-35 | AK152: 1.361013713e-34 | AL152: 1.749874774e-34 | AM152: 1.944305304e-34
E153: 0 | F153: 0.003333333333 | G153: 1957-05-29 | H153: 0.001666666667 | K153: 1957-05-29 | L153: 0 | M153: 0.003333333333 | N153: 0.01 | O153: 0.01666666667 | P153: 0.02333333333 | Q153: 0.03 | R153: 0.03333333333 | S153: 0 | T153: 0.003333333333 | U153: 0.01 | V153: 0.01666666667 | W153: 0.02333333333 | X153: 0.03 | Y153: 0.03333333333 | Z153: 0 | AA153: 0.003333333333 | AB153: 0.01 | AC153: 0.01666666667 | AD153: 0.02333333333 | AE153: 0.03 | AF153: 0.03333333333 | AG153: 0 | AH153: 0.003333333333 | AI153: 0.01 | AJ153: 0.01666666667 | AK153: 0.02333333333 | AL153: 0.03 | AM153: 0.03333333333
E154: 0 | F154: 0.01333333333 | G154: 1957-06-01 | H154: 0.006666666667 | K154: 1957-06-01 | L154: 0 | M154: 0.01333333333 | N154: 0.04 | O154: 0.06666666667 | P154: 0.09333333333 | Q154: 0.12 | R154: 0.1333333333 | S154: 0 | T154: 0.01333333333 | U154: 0.04 | V154: 0.06666666667 | W154: 0.09333333333 | X154: 0.12 | Y154: 0.1333333333 | Z154: 0 | AA154: 0.01333333333 | AB154: 0.04 | AC154: 0.06666666667 | AD154: 0.09333333333 | AE154: 0.12 | AF154: 0.1333333333 | AG154: 0 | AH154: 0.01333333333 | AI154: 0.04 | AJ154: 0.06666666667 | AK154: 0.09333333333 | AL154: 0.12 | AM154: 0.1333333333
E155: 0 | F155: 0.03083333333 | G155: 1957-06-11 | H155: 0.01541666667 | K155: 1957-06-11 | L155: 0 | M155: 0.03083333333 | N155: 0.0925 | O155: 0.1541666667 | P155: 0.2158333333 | Q155: 0.2775 | R155: 0.3083333333 | S155: 0 | T155: 0.03083333333 | U155: 0.0925 | V155: 0.1541666667 | W155: 0.2158333333 | X155: 0.2775 | Y155: 0.3083333333 | Z155: 0 | AA155: 0.03083333333 | AB155: 0.0925 | AC155: 0.1541666667 | AD155: 0.2158333333 | AE155: 0.2775 | AF155: 0.3083333333 | AG155: 0 | AH155: 0.03083333333 | AI155: 0.0925 | AJ155: 0.1541666667 | AK155: 0.2158333333 | AL155: 0.2775 | AM155: 0.3083333333
E156: 0 | F156: 0.01916666667 | G156: 1957-06-14 | H156: 0.009583333333 | K156: 1957-06-14 | L156: 0 | M156: 0.01916666667 | N156: 0.0575 | O156: 0.09583333333 | P156: 0.1341666667 | Q156: 0.1725 | R156: 0.1916666667 | S156: 0 | T156: 0.01916666667 | U156: 0.0575 | V156: 0.09583333333 | W156: 0.1341666667 | X156: 0.1725 | Y156: 0.1916666667 | Z156: 0 | AA156: 0.01916666667 | AB156: 0.0575 | AC156: 0.09583333333 | AD156: 0.1341666667 | AE156: 0.1725 | AF156: 0.1916666667 | AG156: 0 | AH156: 0.01916666667 | AI156: 0.0575 | AJ156: 0.09583333333 | AK156: 0.1341666667 | AL156: 0.1725 | AM156: 0.1916666667
E157: 0 | F157: 0.04416666667 | G157: 1957-06-17 | H157: 0.02208333333 | K157: 1957-06-17 | L157: 0 | M157: 0.04416666667 | N157: 0.1325 | O157: 0.2208333333 | P157: 0.3091666667 | Q157: 0.3975 | R157: 0.4416666667 | S157: 0 | T157: 0.04416666667 | U157: 0.1325 | V157: 0.2208333333 | W157: 0.3091666667 | X157: 0.3975 | Y157: 0.4416666667 | Z157: 0 | AA157: 0.04416666667 | AB157: 0.1325 | AC157: 0.2208333333 | AD157: 0.3091666667 | AE157: 0.3975 | AF157: 0.4416666667 | AG157: 0 | AH157: 0.04416666667 | AI157: 0.1325 | AJ157: 0.2208333333 | AK157: 0.3091666667 | AL157: 0.3975 | AM157: 0.4416666667
E158: 0.0595482439 | F158: 0.2235934195 | G158: 1957-06-22 | H158: 0.1415708317 | K158: 1957-06-22 | L158: 0 | M158: 0.17 | N158: 0.51 | O158: 0.85 | P158: 1.19 | Q158: 1.53 | R158: 1.7 | S158: 9.267830819e-05 | T158: 0.1700834105 | U158: 0.5100648748 | V158: 0.8500463392 | W158: 1.190027803 | X158: 1.530009268 | Y158: 1.7 | Z158: 0.0595482439 | AA158: 0.2235934195 | AB158: 0.5516837707 | AC158: 0.879774122 | AD158: 1.207864473 | AE158: 1.535954824 | AF158: 1.7 | AG158: 0.1738067651 | AH158: 0.3264260886 | AI158: 0.6316647356 | AJ158: 0.9369033825 | AK158: 1.24214203 | AL158: 1.547380677 | AM158: 1.7
E159: 0 | F159: 4.664010581e-56 | G159: 1957-06-24 | H159: 2.332005291e-56 | K159: 1957-06-24 | L159: 0 | M159: 1.752926388e-56 | N159: 5.258779164e-56 | O159: 8.76463194e-56 | P159: 1.227048472e-55 | Q159: 1.577633749e-55 | R159: 1.752926388e-55 | S159: 0 | T159: 1.849531847e-56 | U159: 5.333916743e-56 | V159: 8.81830164e-56 | W159: 1.230268654e-55 | X159: 1.578707143e-55 | Y159: 1.752926388e-55 | Z159: 0 | AA159: 4.664010581e-56 | AB159: 7.522955759e-56 | AC159: 1.038190094e-55 | AD159: 1.324084611e-55 | AE159: 1.609979129e-55 | AF159: 1.752926388e-55 | AG159: 0 | AH159: 7.072414386e-56 | AI159: 9.396158718e-56 | AJ159: 1.171990305e-55 | AK159: 1.404364738e-55 | AL159: 1.636739171e-55 | AM159: 1.752926388e-55
E160: 0.02332763261 | F160: 0.05599486935 | G160: 1957-06-26 | H160: 0.03966125098 | K160: 1957-06-26 | L160: 0 | M160: 0.035 | N160: 0.105 | O160: 0.175 | P160: 0.245 | Q160: 0.315 | R160: 0.35 | S160: 0.001300288298 | T160: 0.03617025947 | U160: 0.1059102018 | V160: 0.1756501441 | W160: 0.2453900865 | X160: 0.3151300288 | Y160: 0.35 | Z160: 0.02332763261 | AA160: 0.05599486935 | AB160: 0.1213293428 | AC160: 0.1866638163 | AD160: 0.2519982898 | AE160: 0.3173327633 | AF160: 0.35 | AG160: 0.0570934466 | AH160: 0.08638410194 | AI160: 0.1449654126 | AJ160: 0.2035467233 | AK160: 0.262128034 | AL160: 0.3207093447 | AM160: 0.35
E161: 0 | F161: 0.009166666667 | G161: 1957-06-28 | H161: 0.004583333333 | K161: 1957-06-28 | L161: 0 | M161: 0.009166666667 | N161: 0.0275 | O161: 0.04583333333 | P161: 0.06416666667 | Q161: 0.0825 | R161: 0.09166666667 | S161: 0 | T161: 0.009166666667 | U161: 0.0275 | V161: 0.04583333333 | W161: 0.06416666667 | X161: 0.0825 | Y161: 0.09166666667 | Z161: 0 | AA161: 0.009166666667 | AB161: 0.0275 | AC161: 0.04583333333 | AD161: 0.06416666667 | AE161: 0.0825 | AF161: 0.09166666667 | AG161: 0 | AH161: 0.009166666667 | AI161: 0.0275 | AJ161: 0.04583333333 | AK161: 0.06416666667 | AL161: 0.0825 | AM161: 0.09166666667
E162: 0 | F162: 0.03916666667 | G162: 1957-07-04 | H162: 0.01958333333 | K162: 1957-07-04 | L162: 0 | M162: 0.03916666667 | N162: 0.1175 | O162: 0.1958333333 | P162: 0.2741666667 | Q162: 0.3525 | R162: 0.3916666667 | S162: 0 | T162: 0.03916666667 | U162: 0.1175 | V162: 0.1958333333 | W162: 0.2741666667 | X162: 0.3525 | Y162: 0.3916666667 | Z162: 0 | AA162: 0.03916666667 | AB162: 0.1175 | AC162: 0.1958333333 | AD162: 0.2741666667 | AE162: 0.3525 | AF162: 0.3916666667 | AG162: 0 | AH162: 0.03916666667 | AI162: 0.1175 | AJ162: 0.1958333333 | AK162: 0.2741666667 | AL162: 0.3525 | AM162: 0.3916666667
E163: 0 | F163: 2.758823171e-119 | G163: 1957-07-06 | H163: 1.379411585e-119 | K163: 1957-07-06 | L163: 0 | M163: 2.758823171e-119 | N163: 8.276469512e-119 | O163: 1.379411585e-118 | P163: 1.931176219e-118 | Q163: 2.482940853e-118 | R163: 2.758823171e-118 | S163: 0 | T163: 2.758823171e-119 | U163: 8.276469512e-119 | V163: 1.379411585e-118 | W163: 1.931176219e-118 | X163: 2.482940853e-118 | Y163: 2.758823171e-118 | Z163: 0 | AA163: 2.758823171e-119 | AB163: 8.276469512e-119 | AC163: 1.379411585e-118 | AD163: 1.931176219e-118 | AE163: 2.482940853e-118 | AF163: 2.758823171e-118 | AG163: 0 | AH163: 2.758823171e-119 | AI163: 8.276469512e-119 | AJ163: 1.379411585e-118 | AK163: 1.931176219e-118 | AL163: 2.482940853e-118 | AM163: 2.758823171e-118
E164: 0 | F164: 0.035 | G164: 1957-07-09 | H164: 0.0175 | K164: 1957-07-09 | L164: 0 | M164: 0.035 | N164: 0.105 | O164: 0.175 | P164: 0.245 | Q164: 0.315 | R164: 0.35 | S164: 0 | T164: 0.035 | U164: 0.105 | V164: 0.175 | W164: 0.245 | X164: 0.315 | Y164: 0.35 | Z164: 0 | AA164: 0.035 | AB164: 0.105 | AC164: 0.175 | AD164: 0.245 | AE164: 0.315 | AF164: 0.35 | AG164: 0 | AH164: 0.035 | AI164: 0.105 | AJ164: 0.175 | AK164: 0.245 | AL164: 0.315 | AM164: 0.35
E165: 0 | F165: 0.01416666667 | G165: 1957-07-13 | H165: 0.007083333333 | K165: 1957-07-13 | L165: 0 | M165: 0.01416666667 | N165: 0.0425 | O165: 0.07083333333 | P165: 0.09916666667 | Q165: 0.1275 | R165: 0.1416666667 | S165: 0 | T165: 0.01416666667 | U165: 0.0425 | V165: 0.07083333333 | W165: 0.09916666667 | X165: 0.1275 | Y165: 0.1416666667 | Z165: 0 | AA165: 0.01416666667 | AB165: 0.0425 | AC165: 0.07083333333 | AD165: 0.09916666667 | AE165: 0.1275 | AF165: 0.1416666667 | AG165: 0 | AH165: 0.01416666667 | AI165: 0.0425 | AJ165: 0.07083333333 | AK165: 0.09916666667 | AL165: 0.1275 | AM165: 0.1416666667
E166: 0 | F166: 0.09 | G166: 1957-07-15 | H166: 0.045 | K166: 1957-07-15 | L166: 0 | M166: 0.09 | N166: 0.27 | O166: 0.45 | P166: 0.63 | Q166: 0.81 | R166: 0.9 | S166: 0 | T166: 0.09 | U166: 0.27 | V166: 0.45 | W166: 0.63 | X166: 0.81 | Y166: 0.9 | Z166: 0 | AA166: 0.09 | AB166: 0.27 | AC166: 0.45 | AD166: 0.63 | AE166: 0.81 | AF166: 0.9 | AG166: 0.001774187707 | AH166: 0.09159676894 | AI166: 0.2712419314 | AJ166: 0.4508870939 | AK166: 0.6305322563 | AL166: 0.8101774188 | AM166: 0.9
E167: 0.04577659082 | F167: 0.1353655984 | G167: 1957-07-16 | H167: 0.09057109462 | K167: 1957-07-16 | L167: 0 | M167: 0.09416666667 | N167: 0.2825 | O167: 0.4708333333 | P167: 0.6591666667 | Q167: 0.8475 | R167: 0.9416666667 | S167: 0.001262071516 | T167: 0.09530253103 | U167: 0.2833834501 | V167: 0.4714643691 | W167: 0.6595452881 | X167: 0.8476262072 | Y167: 0.9416666667 | Z167: 0.04577659082 | AA167: 0.1353655984 | AB167: 0.3145436136 | AC167: 0.4937216287 | AD167: 0.6728996439 | AE167: 0.8520776591 | AF167: 0.9416666667 | AG167: 0.1186347494 | AH167: 0.2009379411 | AI167: 0.3655443246 | AJ167: 0.530150708 | AK167: 0.6947570915 | AL167: 0.8593634749 | AM167: 0.9416666667
E168: 0.4648046866 | F168: 0.6316575513 | G168: 1957-07-20 | H168: 0.5482311189 | K168: 1957-07-20 | L168: 0 | M168: 0.2133333333 | N168: 0.64 | O168: 1.066666667 | P168: 1.493333333 | Q168: 1.92 | R168: 2.133333333 | S168: 0.2130382672 | T168: 0.4050677738 | U168: 0.789126787 | V168: 1.1731858 | W168: 1.557244813 | X168: 1.941303827 | Y168: 2.133333333 | Z168: 0.4648046866 | AA168: 0.6316575513 | AB168: 0.9653632806 | AC168: 1.29906901 | AD168: 1.632774739 | AE168: 1.966480469 | AF168: 2.133333333 | AG168: 0.7000730319 | AH168: 0.843399062 | AI168: 1.130051122 | AJ168: 1.416703183 | AK168: 1.703355243 | AL168: 1.990007303 | AM168: 2.133333333
E169: 0 | F169: 9.201319679e-47 | G169: 1957-07-22 | H169: 4.600659839e-47 | K169: 1957-07-22 | L169: 0 | M169: 1.625411255e-47 | N169: 4.876233765e-47 | O169: 8.127056275e-47 | P169: 1.137787878e-46 | Q169: 1.462870129e-46 | R169: 1.625411255e-46 | S169: 0 | T169: 6.455672719e-47 | U169: 8.633103792e-47 | V169: 1.081053487e-46 | W169: 1.298796594e-46 | X169: 1.516539701e-46 | Y169: 1.625411255e-46 | Z169: 0 | AA169: 9.201319679e-47 | AB169: 1.076860698e-46 | AC169: 1.233589429e-46 | AD169: 1.390318159e-46 | AE169: 1.54704689e-46 | AF169: 1.625411255e-46 | AG169: 0 | AH169: 1.115090871e-46 | AI169: 1.228495401e-46 | AJ169: 1.34189993e-46 | AK169: 1.45530446e-46 | AL169: 1.56870899e-46 | AM169: 1.625411255e-46
E170: 0 | F170: 0 | G170: 1957-07-29 | H170: 0 | K170: 1957-07-29 | L170: 0 | M170: 0 | N170: 0 | O170: 0 | P170: 0 | Q170: 0 | R170: 0 | S170: 0 | T170: 0 | U170: 0 | V170: 0 | W170: 0 | X170: 0 | Y170: 0 | Z170: 0 | AA170: 0 | AB170: 0 | AC170: 0 | AD170: 0 | AE170: 0 | AF170: 0 | AG170: 0 | AH170: 0 | AI170: 0 | AJ170: 0 | AK170: 0 | AL170: 0 | AM170: 0
E171: 0 | F171: 0 | G171: 1957-08-01 | H171: 0 | K171: 1957-08-01 | L171: 0 | M171: 0 | N171: 0 | O171: 0 | P171: 0 | Q171: 0 | R171: 0 | S171: 0 | T171: 0 | U171: 0 | V171: 0 | W171: 0 | X171: 0 | Y171: 0 | Z171: 0 | AA171: 0 | AB171: 0 | AC171: 0 | AD171: 0 | AE171: 0 | AF171: 0 | AG171: 0 | AH171: 0 | AI171: 0 | AJ171: 0 | AK171: 0 | AL171: 0 | AM171: 0
E172: 0 | F172: 0.08916666667 | G172: 1957-08-02 | H172: 0.04458333333 | K172: 1957-08-02 | L172: 0 | M172: 0.08916666667 | N172: 0.2675 | O172: 0.4458333333 | P172: 0.6241666667 | Q172: 0.8025 | R172: 0.8916666667 | S172: 0 | T172: 0.08916666667 | U172: 0.2675 | V172: 0.4458333333 | W172: 0.6241666667 | X172: 0.8025 | Y172: 0.8916666667 | Z172: 0 | AA172: 0.08916666667 | AB172: 0.2675 | AC172: 0.4458333333 | AD172: 0.6241666667 | AE172: 0.8025 | AF172: 0.8916666667 | AG172: 0 | AH172: 0.08916666667 | AI172: 0.2675 | AJ172: 0.4458333333 | AK172: 0.6241666667 | AL172: 0.8025 | AM172: 0.8916666667
E173: 0 | F173: 0.0625 | G173: 1957-08-09 | H173: 0.03125 | K173: 1957-08-09 | L173: 0 | M173: 0.0625 | N173: 0.1875 | O173: 0.3125 | P173: 0.4375 | Q173: 0.5625 | R173: 0.625 | S173: 0 | T173: 0.0625 | U173: 0.1875 | V173: 0.3125 | W173: 0.4375 | X173: 0.5625 | Y173: 0.625 | Z173: 0 | AA173: 0.0625 | AB173: 0.1875 | AC173: 0.3125 | AD173: 0.4375 | AE173: 0.5625 | AF173: 0.625 | AG173: 0 | AH173: 0.0625 | AI173: 0.1875 | AJ173: 0.3125 | AK173: 0.4375 | AL173: 0.5625 | AM173: 0.625
E174: 0.1348824531 | F174: 0.2855608745 | G174: 1957-08-14 | H174: 0.2102216638 | K174: 1957-08-14 | L174: 0 | M174: 0.1641666667 | N174: 0.4925 | O174: 0.8208333333 | P174: 1.149166667 | Q174: 1.4775 | R174: 1.641666667 | S174: 0.02294164007 | T174: 0.1848141427 | U174: 0.5085591481 | V174: 0.8323041534 | W174: 1.156049159 | X174: 1.479794164 | Y174: 1.641666667 | Z174: 0.1348824531 | AA174: 0.2855608745 | AB174: 0.5869177172 | AC174: 0.8882745599 | AD174: 1.189631403 | AE174: 1.490988245 | AF174: 1.641666667 | AG174: 0.2756234483 | AH174: 0.4122277702 | AI174: 0.6854364138 | AJ174: 0.9586450575 | AK174: 1.231853701 | AL174: 1.505062345 | AM174: 1.641666667
E175: 0 | F175: 5.824325489e-79 | G175: 1957-08-15 | H175: 2.912162745e-79 | K175: 1957-08-15 | L175: 0 | M175: 1.602449467e-79 | N175: 4.807348401e-79 | O175: 8.012247335e-79 | P175: 1.121714627e-78 | Q175: 1.44220452e-78 | R175: 1.602449467e-78 | S175: 0 | T175: 3.149826673e-79 | U175: 6.010864006e-79 | V175: 8.871901338e-79 | W175: 1.173293867e-78 | X175: 1.4593976e-78 | Y175: 1.602449467e-78 | Z175: 0 | AA175: 5.824325489e-79 | AB175: 8.091029752e-79 | AC175: 1.035773401e-78 | AD175: 1.262443828e-78 | AE175: 1.489114254e-78 | AF175: 1.602449467e-78 | AG175: 0 | AH175: 7.991304664e-79 | AI175: 9.776457999e-79 | AJ175: 1.156161133e-78 | AK175: 1.334676467e-78 | AL175: 1.5131918e-78 | AM175: 1.602449467e-78
E176: 0 | F176: 0.1133333333 | G176: 1957-08-23 | H176: 0.05666666667 | K176: 1957-08-23 | L176: 0 | M176: 0.1133333333 | N176: 0.34 | O176: 0.5666666667 | P176: 0.7933333333 | Q176: 1.02 | R176: 1.133333333 | S176: 0 | T176: 0.1133333333 | U176: 0.34 | V176: 0.5666666667 | W176: 0.7933333333 | X176: 1.02 | Y176: 1.133333333 | Z176: 0 | AA176: 0.1133333333 | AB176: 0.34 | AC176: 0.5666666667 | AD176: 0.7933333333 | AE176: 1.02 | AF176: 1.133333333 | AG176: 0.00876163491 | AH176: 0.1212188048 | AI176: 0.3461331444 | AJ176: 0.5710474841 | AK176: 0.7959618238 | AL176: 1.020876163 | AM176: 1.133333333
E177: 0 | F177: 0.005 | G177: 1957-08-28 | H177: 0.0025 | K177: 1957-08-28 | L177: 0 | M177: 0.005 | N177: 0.015 | O177: 0.025 | P177: 0.035 | Q177: 0.045 | R177: 0.05 | S177: 0 | T177: 0.005 | U177: 0.015 | V177: 0.025 | W177: 0.035 | X177: 0.045 | Y177: 0.05 | Z177: 0 | AA177: 0.005 | AB177: 0.015 | AC177: 0.025 | AD177: 0.035 | AE177: 0.045 | AF177: 0.05 | AG177: 0 | AH177: 0.005 | AI177: 0.015 | AJ177: 0.025 | AK177: 0.035 | AL177: 0.045 | AM177: 0.05
E178: 0 | F178: 0.01416666667 | G178: 1957-08-31 | H178: 0.007083333333 | K178: 1957-08-31 | L178: 0 | M178: 0.01416666667 | N178: 0.0425 | O178: 0.07083333333 | P178: 0.09916666667 | Q178: 0.1275 | R178: 0.1416666667 | S178: 0 | T178: 0.01416666667 | U178: 0.0425 | V178: 0.07083333333 | W178: 0.09916666667 | X178: 0.1275 | Y178: 0.1416666667 | Z178: 0 | AA178: 0.01416666667 | AB178: 0.0425 | AC178: 0.07083333333 | AD178: 0.09916666667 | AE178: 0.1275 | AF178: 0.1416666667 | AG178: 0 | AH178: 0.01416666667 | AI178: 0.0425 | AJ178: 0.07083333333 | AK178: 0.09916666667 | AL178: 0.1275 | AM178: 0.1416666667
E179: 0 | F179: 0.035 | G179: 1957-09-02 | H179: 0.0175 | K179: 1957-09-02 | L179: 0 | M179: 0.035 | N179: 0.105 | O179: 0.175 | P179: 0.245 | Q179: 0.315 | R179: 0.35 | S179: 0 | T179: 0.035 | U179: 0.105 | V179: 0.175 | W179: 0.245 | X179: 0.315 | Y179: 0.35 | Z179: 0 | AA179: 0.035 | AB179: 0.105 | AC179: 0.175 | AD179: 0.245 | AE179: 0.315 | AF179: 0.35 | AG179: 0 | AH179: 0.035 | AI179: 0.105 | AJ179: 0.175 | AK179: 0.245 | AL179: 0.315 | AM179: 0.35
E180: 0 | F180: 0.0425 | G180: 1957-09-03 | H180: 0.02125 | K180: 1957-09-03 | L180: 0 | M180: 0.0425 | N180: 0.1275 | O180: 0.2125 | P180: 0.2975 | Q180: 0.3825 | R180: 0.425 | S180: 0 | T180: 0.0425 | U180: 0.1275 | V180: 0.2125 | W180: 0.2975 | X180: 0.3825 | Y180: 0.425 | Z180: 0 | AA180: 0.0425 | AB180: 0.1275 | AC180: 0.2125 | AD180: 0.2975 | AE180: 0.3825 | AF180: 0.425 | AG180: 0 | AH180: 0.0425 | AI180: 0.1275 | AJ180: 0.2125 | AK180: 0.2975 | AL180: 0.3825 | AM180: 0.425
E181: 0 | F181: 0.0075 | G181: 1957-09-10 | H181: 0.00375 | K181: 1957-09-10 | L181: 0 | M181: 0.0075 | N181: 0.0225 | O181: 0.0375 | P181: 0.0525 | Q181: 0.0675 | R181: 0.075 | S181: 0 | T181: 0.0075 | U181: 0.0225 | V181: 0.0375 | W181: 0.0525 | X181: 0.0675 | Y181: 0.075 | Z181: 0 | AA181: 0.0075 | AB181: 0.0225 | AC181: 0.0375 | AD181: 0.0525 | AE181: 0.0675 | AF181: 0.075 | AG181: 0 | AH181: 0.0075 | AI181: 0.0225 | AJ181: 0.0375 | AK181: 0.0525 | AL181: 0.0675 | AM181: 0.075
E182: 0 | F182: 0.005833333333 | G182: 1957-09-20 | H182: 0.002916666667 | K182: 1957-09-20 | L182: 0 | M182: 0.005833333333 | N182: 0.0175 | O182: 0.02916666667 | P182: 0.04083333333 | Q182: 0.0525 | R182: 0.05833333333 | S182: 0 | T182: 0.005833333333 | U182: 0.0175 | V182: 0.02916666667 | W182: 0.04083333333 | X182: 0.0525 | Y182: 0.05833333333 | Z182: 0 | AA182: 0.005833333333 | AB182: 0.0175 | AC182: 0.02916666667 | AD182: 0.04083333333 | AE182: 0.0525 | AF182: 0.05833333333 | AG182: 0 | AH182: 0.005833333333 | AI182: 0.0175 | AJ182: 0.02916666667 | AK182: 0.04083333333 | AL182: 0.0525 | AM182: 0.05833333333
E183: 0 | F183: 0.0125 | G183: 1957-09-21 | H183: 0.00625 | K183: 1957-09-21 | L183: 0 | M183: 0.0125 | N183: 0.0375 | O183: 0.0625 | P183: 0.0875 | Q183: 0.1125 | R183: 0.125 | S183: 0 | T183: 0.0125 | U183: 0.0375 | V183: 0.0625 | W183: 0.0875 | X183: 0.1125 | Y183: 0.125 | Z183: 0 | AA183: 0.0125 | AB183: 0.0375 | AC183: 0.0625 | AD183: 0.0875 | AE183: 0.1125 | AF183: 0.125 | AG183: 0 | AH183: 0.0125 | AI183: 0.0375 | AJ183: 0.0625 | AK183: 0.0875 | AL183: 0.1125 | AM183: 0.125
E184: 0 | F184: 0.004166666667 | G184: 1957-09-23 | H184: 0.002083333333 | K184: 1957-09-23 | L184: 0 | M184: 0.004166666667 | N184: 0.0125 | O184: 0.02083333333 | P184: 0.02916666667 | Q184: 0.0375 | R184: 0.04166666667 | S184: 0 | T184: 0.004166666667 | U184: 0.0125 | V184: 0.02083333333 | W184: 0.02916666667 | X184: 0.0375 | Y184: 0.04166666667 | Z184: 0 | AA184: 0.004166666667 | AB184: 0.0125 | AC184: 0.02083333333 | AD184: 0.02916666667 | AE184: 0.0375 | AF184: 0.04166666667 | AG184: 0 | AH184: 0.004166666667 | AI184: 0.0125 | AJ184: 0.02083333333 | AK184: 0.02916666667 | AL184: 0.0375 | AM184: 0.04166666667
E185: 0 | F185: 0.006666666667 | G185: 1957-10-09 | H185: 0.003333333333 | K185: 1957-10-09 | L185: 0 | M185: 0.006666666667 | N185: 0.02 | O185: 0.03333333333 | P185: 0.04666666667 | Q185: 0.06 | R185: 0.06666666667 | S185: 0 | T185: 0.006666666667 | U185: 0.02 | V185: 0.03333333333 | W185: 0.04666666667 | X185: 0.06 | Y185: 0.06666666667 | Z185: 0 | AA185: 0.006666666667 | AB185: 0.02 | AC185: 0.03333333333 | AD185: 0.04666666667 | AE185: 0.06 | AF185: 0.06666666667 | AG185: 0 | AH185: 0.006666666667 | AI185: 0.02 | AJ185: 0.03333333333 | AK185: 0.04666666667 | AL185: 0.06 | AM185: 0.06666666667
E186: 0 | F186: 1.640635252e-240 | G186: 1957-10-14 | H186: 8.203176262e-241 | K186: 1957-10-14 | L186: 0 | M186: 1.640635252e-240 | N186: 4.921905757e-240 | O186: 8.203176262e-240 | P186: 1.148444677e-239 | Q186: 1.476571727e-239 | R186: 1.640635252e-239 | S186: 0 | T186: 1.640635252e-240 | U186: 4.921905757e-240 | V186: 8.203176262e-240 | W186: 1.148444677e-239 | X186: 1.476571727e-239 | Y186: 1.640635252e-239 | Z186: 0 | AA186: 1.640635252e-240 | AB186: 4.921905757e-240 | AC186: 8.203176262e-240 | AD186: 1.148444677e-239 | AE186: 1.476571727e-239 | AF186: 1.640635252e-239 | AG186: 0 | AH186: 1.640635252e-240 | AI186: 4.921905757e-240 | AJ186: 8.203176262e-240 | AK186: 1.148444677e-239 | AL186: 1.476571727e-239 | AM186: 1.640635252e-239
E187: 0 | F187: 0.01333333333 | G187: 1957-10-16 | H187: 0.006666666667 | K187: 1957-10-16 | L187: 0 | M187: 0.01333333333 | N187: 0.04 | O187: 0.06666666667 | P187: 0.09333333333 | Q187: 0.12 | R187: 0.1333333333 | S187: 0 | T187: 0.01333333333 | U187: 0.04 | V187: 0.06666666667 | W187: 0.09333333333 | X187: 0.12 | Y187: 0.1333333333 | Z187: 0 | AA187: 0.01333333333 | AB187: 0.04 | AC187: 0.06666666667 | AD187: 0.09333333333 | AE187: 0.12 | AF187: 0.1333333333 | AG187: 0 | AH187: 0.01333333333 | AI187: 0.04 | AJ187: 0.06666666667 | AK187: 0.09333333333 | AL187: 0.12 | AM187: 0.1333333333
E188: 0 | F188: 0.01833333333 | G188: 1957-10-22 | H188: 0.009166666667 | K188: 1957-10-22 | L188: 0 | M188: 0.01833333333 | N188: 0.055 | O188: 0.09166666667 | P188: 0.1283333333 | Q188: 0.165 | R188: 0.1833333333 | S188: 0 | T188: 0.01833333333 | U188: 0.055 | V188: 0.09166666667 | W188: 0.1283333333 | X188: 0.165 | Y188: 0.1833333333 | Z188: 0 | AA188: 0.01833333333 | AB188: 0.055 | AC188: 0.09166666667 | AD188: 0.1283333333 | AE188: 0.165 | AF188: 0.1833333333 | AG188: 0 | AH188: 0.01833333333 | AI188: 0.055 | AJ188: 0.09166666667 | AK188: 0.1283333333 | AL188: 0.165 | AM188: 0.1833333333
E189: 0 | F189: 0.055 | G189: 1957-10-23 | H189: 0.0275 | K189: 1957-10-23 | L189: 0 | M189: 0.055 | N189: 0.165 | O189: 0.275 | P189: 0.385 | Q189: 0.495 | R189: 0.55 | S189: 0 | T189: 0.055 | U189: 0.165 | V189: 0.275 | W189: 0.385 | X189: 0.495 | Y189: 0.55 | Z189: 0 | AA189: 0.055 | AB189: 0.165 | AC189: 0.275 | AD189: 0.385 | AE189: 0.495 | AF189: 0.55 | AG189: 0 | AH189: 0.055 | AI189: 0.165 | AJ189: 0.275 | AK189: 0.385 | AL189: 0.495 | AM189: 0.55
E190: 0 | F190: 0.02916666667 | G190: 1957-11-02 | H190: 0.01458333333 | K190: 1957-11-02 | L190: 0 | M190: 0.02916666667 | N190: 0.0875 | O190: 0.1458333333 | P190: 0.2041666667 | Q190: 0.2625 | R190: 0.2916666667 | S190: 0 | T190: 0.02916666667 | U190: 0.0875 | V190: 0.1458333333 | W190: 0.2041666667 | X190: 0.2625 | Y190: 0.2916666667 | Z190: 0 | AA190: 0.02916666667 | AB190: 0.0875 | AC190: 0.1458333333 | AD190: 0.2041666667 | AE190: 0.2625 | AF190: 0.2916666667 | AG190: 0 | AH190: 0.02916666667 | AI190: 0.0875 | AJ190: 0.1458333333 | AK190: 0.2041666667 | AL190: 0.2625 | AM190: 0.2916666667
E191: 0 | F191: 3.469446952e-18 | G191: 1957-11-10 | H191: 1.734723476e-18 | K191: 1957-11-10 | L191: 0 | M191: 3.469446952e-18 | N191: 1.040834086e-17 | O191: 1.734723476e-17 | P191: 2.428612866e-17 | Q191: 3.122502257e-17 | R191: 3.469446952e-17 | S191: 0 | T191: 3.469446952e-18 | U191: 1.040834086e-17 | V191: 1.734723476e-17 | W191: 2.428612866e-17 | X191: 3.122502257e-17 | Y191: 3.469446952e-17 | Z191: 0 | AA191: 3.469446952e-18 | AB191: 1.040834086e-17 | AC191: 1.734723476e-17 | AD191: 2.428612866e-17 | AE191: 3.122502257e-17 | AF191: 3.469446952e-17 | AG191: 0 | AH191: 3.469446952e-18 | AI191: 1.040834086e-17 | AJ191: 1.734723476e-17 | AK191: 2.428612866e-17 | AL191: 3.122502257e-17 | AM191: 3.469446952e-17
E192: 0 | F192: 2.249580201e-196 | G192: 1957-11-14 | H192: 1.124790101e-196 | K192: 1957-11-14 | L192: 0 | M192: 2.249580201e-196 | N192: 6.748740604e-196 | O192: 1.124790101e-195 | P192: 1.574706141e-195 | Q192: 2.024622181e-195 | R192: 2.249580201e-195 | S192: 0 | T192: 2.249580201e-196 | U192: 6.748740604e-196 | V192: 1.124790101e-195 | W192: 1.574706141e-195 | X192: 2.024622181e-195 | Y192: 2.249580201e-195 | Z192: 0 | AA192: 2.249580201e-196 | AB192: 6.748740604e-196 | AC192: 1.124790101e-195 | AD192: 1.574706141e-195 | AE192: 2.024622181e-195 | AF192: 2.249580201e-195 | AG192: 0 | AH192: 2.249580201e-196 | AI192: 6.748740604e-196 | AJ192: 1.124790101e-195 | AK192: 1.574706141e-195 | AL192: 2.024622181e-195 | AM192: 2.249580201e-195
E193: 0 | F193: 2.216228704e-232 | G193: 1957-11-15 | H193: 1.108114352e-232 | K193: 1957-11-15 | L193: 0 | M193: 2.216228704e-232 | N193: 6.648686112e-232 | O193: 1.108114352e-231 | P193: 1.551360093e-231 | Q193: 1.994605834e-231 | R193: 2.216228704e-231 | S193: 0 | T193: 2.216228704e-232 | U193: 6.648686112e-232 | V193: 1.108114352e-231 | W193: 1.551360093e-231 | X193: 1.994605834e-231 | Y193: 2.216228704e-231 | Z193: 0 | AA193: 2.216228704e-232 | AB193: 6.648686112e-232 | AC193: 1.108114352e-231 | AD193: 1.551360093e-231 | AE193: 1.994605834e-231 | AF193: 2.216228704e-231 | AG193: 0 | AH193: 2.216228704e-232 | AI193: 6.648686112e-232 | AJ193: 1.108114352e-231 | AK193: 1.551360093e-231 | AL193: 1.994605834e-231 | AM193: 2.216228704e-231
E194: 0.002065792126 | F194: 0.02435921291 | G194: 1957-11-23 | H194: 0.01321250252 | K194: 1957-11-23 | L194: 0 | M194: 0.0225 | N194: 0.0675 | O194: 0.1125 | P194: 0.1575 | Q194: 0.2025 | R194: 0.225 | S194: 0 | T194: 0.0225 | U194: 0.0675 | V194: 0.1125 | W194: 0.1575 | X194: 0.2025 | Y194: 0.225 | Z194: 0.002065792126 | AA194: 0.02435921291 | AB194: 0.06894605449 | AC194: 0.1135328961 | AD194: 0.1581197376 | AE194: 0.2027065792 | AF194: 0.225 | AG194: 0.01525552486 | AH194: 0.03622997238 | AI194: 0.0781788674 | AJ194: 0.1201277624 | AK194: 0.1620766575 | AL194: 0.2040255525 | AM194: 0.225
E195: 0 | F195: 0.01 | G195: 1957-12-13 | H195: 0.005 | K195: 1957-12-13 | L195: 0 | M195: 0.01 | N195: 0.03 | O195: 0.05 | P195: 0.07 | Q195: 0.09 | R195: 0.1 | S195: 0 | T195: 0.01 | U195: 0.03 | V195: 0.05 | W195: 0.07 | X195: 0.09 | Y195: 0.1 | Z195: 0 | AA195: 0.01 | AB195: 0.03 | AC195: 0.05 | AD195: 0.07 | AE195: 0.09 | AF195: 0.1 | AG195: 0 | AH195: 0.01 | AI195: 0.03 | AJ195: 0.05 | AK195: 0.07 | AL195: 0.09 | AM195: 0.1
